Workbook

Sheet Instructions
A1: INSTRUCTIONS Food Waste Assesment Results
A6: Step 1 | C6: Hit the Enable Content button at the top of the screen.
A10: Step 2 | C10: Enter customer volume & capacity information in the Customer Info tab.
C12: These values are used to scale the results.
A14: Step 3 | C14: Enter data from the log sheet into the Log Sheet tab. . Enter tray/plate counts and assumptions into the table at the top of the sheet.
I15: Enter tray/plate counts and assumptions into the table at the top of the sheet.
A18: Step 4 | C18: Click the "VIEW RESULTS" button.
A22: Step 5 | C22: Review the (5) green tabs to see results.

Sheet Customer Info
A1: Food Waste Assessment
A6: Customer Volume Information
B9: General Information | H9: Color Code
B10: Healthcare Facility Type: | E10: Hospital | H10: Required Information
B11: Licensed Number of Beds: | E11: 318 | H11: Optional Information
B12: Staffed Number of Beds: | E12: 250
B13: Average Occupied Beds: | E13: 240 | G13: =IF(E12>0,E13/E12,"") -> 0.96
B14: Day of Assesment: | E14: Saturday
L15: Scale using the waste per person
B16: Total Meals Served on Assessment Day | L16: Average Diner Volume | M16: =$J$30 -> 1449
B17: Meal Service | D17: Patients | F17: Cafeteria | H17: Other1 | L17: Assessment Day Diner Volume | M17: =$H$23 -> 1508
B18: Breakfast | D18: 208 | F18: 183 | L18: Pre-Consumer Scaling Factor | M18: =IF(OR(M16=0,M17=0),1,M16/M17) -> 0.9608753316
B19: Lunch | D19: 214 | F19: 365
B20: Dinner | D20: 216 | F20: 322
B21: Other Meal
B22: Total | D22: =SUM(D18:E21) -> 638 | F22: =SUM(F18:G21) -> 870 | H22: =SUM(H18:I21) -> 0
G23: Assessment day total meals | H23: =SUM(D22:I22) -> 1508
B25: Average Number of Daily Meals
C26: Sunday | D26: Monday | E26: Tuesday | F26: Wednesday | G26: Thursday | H26: Friday | I26: Saturday | J26: Average | L26: Post Consumer Scaling
B27: Patient Diners | C27: 720 | D27: 720 | E27: 720 | F27: 720 | G27: 720 | H27: 720 | I27: 720 | J27: =ROUNDUP(SUM(C27:I27)/7,) -> 720 | L27: Patient Scaling Value | M27: =IF(D22=0,1,J27/D22) -> 1.128526646
B28: Cafeteria Diners | C28: 425 | D28: 850 | E28: 850 | F28: 850 | G28: 850 | H28: 850 | I28: 425 | J28: =ROUNDUP(SUM(C28:I28)/7,) -> 729 | L28: Cafeteria Scaling Value | M28: =IF(F22=0,1,J28/F22) -> 0.8379310345
B29: Other1 Diners | J29: =IF(COUNTA(C29:I29)=0,,ROUNDUP(SUM(C29:I29)/7,)) -> 0 | L29: Other dining Scaling Value | M29: =IF(H22=0,1,J29/H22) -> 1
I30: Total Average Daily meals | J30: =J27+J28+J29 -> 1449

Sheet Log Sheet
A2: Color Code: | D2: Section B: TRAY/PLATE WASTE SAMPLE COUNTS
A3: Required Information | D3: Patients | E3: Tray/Plate Count | F3: Same Per Person Waste As… | G3: Estimated Count
A4: Sample Data (must enter data in one of the columns) | D4: Breakfast | E4: 79 | G4: =IF(F4="lunch",E5,IF(F4="dinner",E6,IF(F4="other",E7,IF(OR(F4="n/a",F4=""),"")))) ->  | J4: =IF(F4="lunch",E5,IF(F4="dinner",E6,IF(F4="other",E7,IF(OR(F4="n/a",F4=""),0)))) -> 0
D5: Lunch | E5: 88 | G5: =IF(F5="dinner",E6,IF(F5="breakfast",E4,IF(F5="other",E7,IF(OR(F5="n/a",F5=""),"")))) ->  | J5: =IF(F5="dinner",E6,IF(F5="breakfast",E4,IF(F5="other",E7,IF(OR(F5="n/a",F5=""),0)))) -> 0
D6: Dinner | E6: 99 | G6: =IF(F6="lunch",E5,IF(F6="breakfast",E4,IF(F6="other",E7,IF(OR(F6="n/a",F6=""),"")))) ->  | J6: =IF(F6="lunch",E5,IF(F6="breakfast",E4,IF(F6="other",E7,IF(OR(F6="n/a",F6=""),0)))) -> 0
A7: Optional Information | D7: Other Meal | G7: =IF(F7="breakfast",E4,IF(F7="lunch",E5,IF(F7="dinner",E6,IF(OR(F7="",F7="n/a"),"")))) ->  | J7: =IF(F7="breakfast",E4,IF(F7="lunch",E5,IF(F7="dinner",E6,IF(OR(F7="",F7="n/a"),0)))) -> 0
CY8: Post/day | CZ8: Pre/day | DA8: #Bev/day | DB8: Beverages lbs/day
A9: Assessment Date: | D9: Cafeteria | E9: Tray/Plate Count | F9: Same Per Person Waste As… | G9: Estimated Count | L9: Loss Reasons: | M9: If kitchen | N9: If beverages | O9: If donation | P9: All other disposal methods | CX9: Totals | CY9: =SUM(CY23:CY322)+SUM(K622:K4232) -> 481.0327166 | CZ9: =SUM(CZ23:CZ322) -> 82.05875332 | DA9: =DB16 -> 309.0262272 | DB9: =DC16 -> 158.6621873
A10: 6/29/206 | D10: Breakfast | F10: lunch | G10: =IF(F10="lunch",E11,IF(F10="dinner",E12,IF(F10="other",E13,IF(OR(F10="n/a",F10=""),"")))) -> 45 | M10: prep waste | N10: plate waste | O10: surplus | P10: prep waste
A11: Hours Studied: | D11: Lunch | E11: 45 | G11: =IF(F11="dinner",E12,IF(F11="breakfast",E10,IF(F11="other",E13,IF(OR(F11="n/a",F11=""),"")))) ->  | M11: expired | P11: expired | CX11: Patient Beverage Summary Table
A12: 24 | D12: Dinner | E12: 22 | G12: =IF(F12="lunch",E11,IF(F12="breakfast",E10,IF(F12="other",E13,IF(OR(F12="n/a",F12=""),"")))) ->  | M12: surplus | P12: plate waste | CX12: Meal | CY12: Count | CZ12: Scaled # | DA12: Scaled lbs | DB12: Est # | DC12: Est lbs
A13: Team Members: | D13: Other Meal | G13: =IF(F13="breakfast",E10,IF(F13="lunch",E11,IF(F13="dinner",E12,IF(OR(F13="",F13="n/a"),"")))) ->  | M13: quality | P13: surplus | CX13: Breakfast | CY13: ='Customer Info'!$D$18 -> 208 | CZ13: =SUMIF($DC$23:$DC$322,$CX13,$DA$23:$DA$322) -> 89.13931987 | DA13: =SUMIF($DC$23:$DC$322,$CX13,$DB$23:$DB$322) -> 44.56965993 | DB13: =IF(CZ13>0,0,IF(AND(CZ14>0,CZ15>0),SUM(CZ14:CZ15)/SUM($CY$14:$CY$15)*$CY$13,IF(CZ14>0,CZ14/$CY$14*$CY$13,IF(CZ15>0,CZ15/$CY$15*$CY$13,0)))) -> 0 | DC13: =IF(DA13>0,0,IF(AND(DA14>0,DA15>0),SUM(DA14:DA15)/SUM($CY$14:$CY$15)*$CY$13,IF(DA14>0,DA14/$CY$14*$CY$13,IF(DA15>0,DA15/$CY$15*$CY$13,0)))) -> 0
A14: T. Jones, M. Evans | M14: other | P14: quality | CX14: Lunch | CY14: ='Customer Info'!$D$19 -> 214 | CZ14: =SUMIF($DC$23:$DC$322,$CX14,$DA$23:$DA$322) -> 115.2636079 | DA14: =SUMIF($DC$23:$DC$322,$CX14,$DB$23:$DB$322) -> 60.37617555 | DB14: =IF(CZ14>0,0,IF(AND(CZ13>0,CZ15>0),SUM(CZ13,CZ15)/SUM($CY$13,$CY$15)*$CY$14,IF(CZ13>0,CZ13/$CY$13*$CY$14,IF(CZ15>0,CZ15/$CY$15*$CY$14,0)))) -> 0 | DC14: =IF(DA14>0,0,IF(AND(DA13>0,DA15>0),SUM(DA13,DA15)/SUM($CY$13,$CY$15)*$CY$14,IF(DA13>0,DA13/$CY$13*$CY$14,IF(DA15>0,DA15/$CY$15*$CY$14,0)))) -> 0
D15: Other1 Area | E15: Tray/Plate Count | F15: Same Per Person Waste As… | G15: Estimated Count | P15: other | CX15: Dinner | CY15: ='Customer Info'!$D$20 -> 216 | CZ15: =SUMIF($DC$23:$DC$322,$CX15,$DA$23:$DA$322) -> 0 | DA15: =SUMIF($DC$23:$DC$322,$CX15,$DB$23:$DB$322) -> 0 | DB15: =IF(CZ15>0,0,IF(AND(CZ13>0,CZ14>0),SUM(CZ13:CZ14)/SUM($CY$13:$CY$14)*$CY$15,IF(CZ13>0,CZ13/$CY$13*$CY$15,IF(CZ14>0,CZ14/$CY$14*$CY$15,0)))) -> 104.6232995 | DC15: =IF(DA15>0,0,IF(AND(DA13>0,DA14>0),SUM(DA13:DA14)/SUM($CY$13:$CY$14)*$CY$15,IF(DA13>0,DA13/$CY$13*$CY$15,IF(DA14>0,DA14/$CY$14*$CY$15,0)))) -> 53.71635181
D16: Breakfast | G16: =IF(F16="lunch",E17,IF(F16="dinner",E18,IF(F16="other",E19,IF(OR(F16="n/a",F16=""),"")))) ->  | J16: =IF(F16="lunch",E17,IF(F16="dinner",E18,IF(F16="other",E19,IF(OR(F16="n/a",F16=""),0)))) -> 0 | CY16: =SUM(CY13:CY15) -> 638 | DA16: Totals | DB16: =SUM(CZ13:CZ15,DB13:DB15) -> 309.0262272 | DC16: =SUM(DA13:DA15,DC13:DC15) -> 158.6621873
D17: Lunch | G17: =IF(F17="dinner",E18,IF(F17="breakfast",E16,IF(F17="other",E19,IF(OR(F17="n/a",F17=""),"")))) ->  | J17: =IF(F17="dinner",E18,IF(F17="breakfast",E16,IF(F17="other",E19,IF(OR(F17="n/a",F17=""),0)))) -> 0
D18: Dinner | G18: =IF(F18="lunch",E17,IF(F18="breakfast",E16,IF(F18="other",E19,IF(OR(F18="n/a",F18=""),"")))) ->  | J18: =IF(F18="lunch",E17,IF(F18="breakfast",E16,IF(F18="other",E19,IF(OR(F18="n/a",F18=""),0)))) -> 0
D19: Other Meal | G19: =IF(F19="breakfast",E16,IF(F19="lunch",E17,IF(F19="dinner",E18,IF(OR(F19="",F19="n/a"),"")))) ->  | J19: =IF(F19="breakfast",E16,IF(F19="lunch",E17,IF(F19="dinner",E18,IF(OR(F19="",F19="n/a"),0)))) -> 0
BJ20: Making up for Missing Data
A21: Section A: LOG SHEET | M21: Sample Size Scaling Formulas | BC21: Patient | BS21: Cafeteria | CI21: Other1 | CY21: Pre vs. Post | DA21: Beverages
A22: Meal Service | B22: Timeframe (hrs) | C22: Source Location | D22: Disposal Method | E22: Loss Reason | F22: Food Description | G22: Container Weight (lbs) | H22: Total Weight (lbs) | I22: # Unopened Beverages | J22: Notes | K22: Food Weight (lbs) | L22: Scaled Food Weight (lbs/day) | M22: IF(plate waste) | N22: IF(patient) | O22: IF(cafeteria) | P22: IF(other1) | Q22: IF(Patient beverages) | R22: If Patient and breakfast | S22: If Patient and lunch | T22: If Patient and dinner | U22: If Patient and other | V22: If Cafeteria and breakfast | W22: If Cafeteria and lunch | X22: IF Cafeteria and dinner | Y22: Cafeteria and other | Z22: If Other and breakfast | AA22: If Other and lunch | AB22: If Other and dinner | AC22: Other and other | AD22: If PB and breakfast | AE22: If PB and lunch | AF22: IF PB and dinner | AG22: IF PB and other | AH22: Scale Patient breakfast | AI22: Scale Patient Lunch | AJ22: Scale Patient Dinner | AK22: Scale Patient Other | AL22: Scale Cafeteria breakfast | AM22: Scale Cafeteria lunch | AN22: Scale Cafeteria dinner | AO22: Scale Cafeteria other | AP22: Scale Other1 breakfast | AQ22: Scale Other1 lunch | AR22: Scale Other1 dinner | AS22: Scale Other1 other | AT22: Scale PB breakfast | AU22: Scale PB lunch | AV22: Scale PB dinner | AW22: Scale PB other | AX22: Scaled by Tray Count | AY22: Scaled by Time Frame | AZ22: Scaling Factor Pre | BA22: Scaling Factor Post | BB22: Shown Scaled Food Weight | BC22: Breakfast assuming lunch | BD22: Breakfast assuming dinner | BE22: Breakfast assuming other | BF22: Sum of Breakfast | BG22: Lunch assuming breakfast | BH22: Lunch assuming dinner | BI22: Lunch assuming other | BJ22: Sum of Lunch | BK22: Dinner assuming breakfast | BL22: Dinner assuming lunch | BM22: Dinner assuming other | BN22: Sum of Dinner | BO22: Other assuming breakfast | BP22: Other assuming lunch | BQ22: Other assuming dinner | BR22: Sum of Other | BS22: Breakfast assuming lunch | BT22: Breakfast assuming dinner | BU22: Breakfast assuming other | BV22: Sum of Breakfast | BW22: Lunch assuming breakfast | BX22: Lunch assuming dinner | BY22: Lunch assuming other | BZ22: Sum of Lunch | CA22: Dinner assuming breakfast | CB22: Dinner assuming lunch | CC22: Dinner assuming other | CD22: Sum of Dinner | CE22: Other assuming breakfast | CF22: Other assuming lunch | CG22: Other assuming dinner | CH22: Sum of Other | CI22: Breakfast assuming lunch | CJ22: Breakfast assuming dinner | CK22: Breakfast assuming other | CL22: Sum of Breakfast | CM22: Lunch assuming breakfast | CN22: Lunch assuming dinner | CO22: Lunch assuming other | CP22: Sum of Lunch | CQ22: Dinner assuming breakfast | CR22: Dinner assuming lunch | CS22: Dinner assuming other | CT22: Sum of Dinner | CU22: Other assuming breakfast | CV22: Other assuming lunch | CW22: Other assuming dinner | CX22: Sum of Other | CY22: Post Consumer (lbs) | CZ22: Pre Consumer (lbs) | DA22: #Beverages | DB22: Scaled lbs of Unopened Beverages | DC22: Meal with beverage waste
A23: dinner | C23: kitchen | D23: compost | E23: prep waste | F23: Potato peels and trimmings | G23: 2 | H23: 11 | K23: =H23-G23 -> 9 | L23: =BB23 -> 8.647877984 | M23: =IF(E23="plate waste",K23,) -> 0 | N23: =IF(M23=0,,IF(C23="patient",K23,)) -> 0 | O23: =IF(M23=0,,IF(C23="cafeteria",K23,)) -> 0 | P23: =IF(M23=0,,IF(C23="other1",K23,)) -> 0 | Q23: =IF(C23="patient beverages",K23,0) -> 0 | R23: =IF(N23=0,,IF(A23="breakfast",K23,)) -> 0 | S23: =IF(N23=0,,IF(A23="lunch",K23,)) -> 0 | T23: =IF(N23=0,,IF(A23="dinner",K23,)) -> 0 | U23: =IF(N23=0,,IF(A23="other",K23,)) -> 0 | V23: =IF(O23=0,,IF(A23="breakfast",K23,)) -> 0 | W23: =IF(O23=0,,IF(A23="lunch",K23,)) -> 0 | X23: =IF(O23=0,,IF(A23="dinner",K23,)) -> 0 | Y23: =IF(O23=0,,IF(A23="other",K23,)) -> 0 | Z23: =IF(P23=0,,IF(A23="breakfast",K23,)) -> 0 | AA23: =IF(P23=0,,IF(A23="lunch",K23,)) -> 0 | AB23: =IF(P23=0,,IF(A23="dinner",K23,)) -> 0 | AC23: =IF(P23=0,,IF(A23="other",K23,)) -> 0 | AD23: =IF(Q23=0,,IF(A23="breakfast",Q23,)) -> 0 | AE23: =IF(Q23=0,,IF(A23="lunch",Q23,)) -> 0 | AF23: =IF(Q23=0,,IF(A23="dinner",Q23,)) -> 0 | AG23: =IF(Q23=0,,IF(A23="other",Q23,)) -> 0 | AH23: =IF((OR($F$4=0,$F$4="none")),IF(R23=0,,IF(OR($E$4='Customer Info'!$D$18,$E$4=0),R23,(R23/$E$4)*'Customer Info'!$D$18)),) -> 0 | AI23: =IF((OR($F$5=0,$F$5="none")),IF(S23=0,,IF(OR($E$5='Customer Info'!$D$19,$E$5=0),S23,(S23/$E$5)*'Customer Info'!$D$19)),) -> 0 | AJ23: =IF((OR($F$6=0,$F$6="none")),IF(T23=0,,IF(OR($E$6='Customer Info'!$D$20,$E$6=0),T23,(T23/$E$6)*'Customer Info'!$D$20)),) -> 0 | AK23: =IF((OR($F$7=0,$F$7="none")),IF(U23=0,,IF(OR($E$7='Customer Info'!$D$21,$E$7=0),U23,(U23/$E$7)*'Customer Info'!$D$21)),) -> 0 | AL23: =IF((OR($F$10=0,$F$10="none")),IF(V23=0,,IF(OR($E$10='Customer Info'!$F$18,$E$10=0),V23,(V23/$E$10)*'Customer Info'!$F$18)),) -> 0 | AM23: =IF((OR($F$11=0,$F$11="none")),IF(W23=0,,IF(OR($E$11='Customer Info'!$F$19,$E$11=0),W23,(W23/$E$11)*'Customer Info'!$F$19)),) -> 0 | AN23: =IF((OR($F$12=0,$F$12="none")),IF(X23=0,,IF(OR($E$12='Customer Info'!$F$20,$E$12=0),X23,(X23/$E$12)*'Customer Info'!$F$20)),) -> 0 | AO23: =IF((OR($F$13=0,$F$13="none")),IF(Y23=0,,IF(OR($E$13='Customer Info'!$F$21,$E$13=0),Y23,(Y23/$E$13)*'Customer Info'!$F$21)),) -> 0 | AP23: =IF((OR($F$16=0,$F$16="none")),IF(Z23=0,,IF(OR($E$16='Customer Info'!$H$18,$E$16=0),Z23,(Z23/$E$16)*'Customer Info'!$H$18)),) -> 0 | AQ23: =IF((OR($F$17=0,$F$17="none")),IF(AA23=0,,IF(OR($E$17='Customer Info'!$H$19,$E$17=0),AA23,(AA23/$E$17)*'Customer Info'!$H$19)),) -> 0 | AR23: =IF((OR($F$18=0,$F$18="none")),IF(AB23=0,,IF(OR($E$18='Customer Info'!$H$20,$E$18=0),AB23,(AB23/$E$18)*'Customer Info'!$H$20)),) -> 0 | AS23: =IF((OR($F$19=0,$F$19="none")),IF(AC23=0,,IF(OR($E$19='Customer Info'!$H$21,$E$19=0),AC23,(AC23/$E$19)*'Customer Info'!$H$21)),) -> 0 | AT23: =IF((OR($F$4=0,$F$4="none")),IF(AD23=0,,IF(OR($E$4='Customer Info'!$D$18,$E$4=0),AD23,(AD23/$E$4)*'Customer Info'!$D$18)),) -> 0 | AU23: =IF((OR($F$5=0,$F$5="none")),IF(AE23=0,,IF(OR($E$5='Customer Info'!$D$19,$E$5=0),AE23,(AE23/$E$5)*'Customer Info'!$D$19)),) -> 0 | AV23: =IF((OR($F$6=0,$F$6="none")),IF(AF23=0,,IF(OR($E$6='Customer Info'!$D$20,$E$6=0),AF23,(AF23/$E$6)*'Customer Info'!$D$20)),) -> 0 | AW23: =IF((OR($F$7=0,$F$7="none")),IF(AG23=0,,IF(OR($E$7='Customer Info'!$D$21,$E$7=0),AG23,(AG23/$E$7)*'Customer Info'!$D$21)),) -> 0 | AX23: =SUM(AH23:AW23) -> 0 | AY23: =IF(AX23=0,(IF(B23=0, K23,K23*24/B23)),(IF(B23=0, AX23,AX23*24/B23))) -> 9 | AZ23: =IF(E23="plate waste",,IF('Customer Info'!$M$18=0,'Log Sheet'!AY23,'Customer Info'!$M$18*'Log Sheet'!AY23)) -> 8.647877984 | BA23: =IF(E23="plate waste",IF(OR(C23="patient",C23="patient beverages"),IF('Customer Info'!$M$27=0,AY23*'Customer Info'!$M$18,AY23*'Customer Info'!$M$27),IF(C23="cafeteria",IF('Customer Info'!$M$28=0,AY23*'Customer Info'!$M$18,AY23*'Customer Info'!$M$28),IF(C23="other1",IF('Customer Info'!$M$29=0,AY23*'Customer Info'!$M$18,AY23*'Customer Info'!$M$29),))),) -> 0 | BB23: =SUM(AZ23:BA23) -> 8.647877984 | BC23: =IF($F$4="lunch",IF(S23=0,,(S23/$E$5)*'Customer Info'!$D$18),) -> 0 | BD23: =IF($F$4="dinner",IF(T23=0,,(T23/$E$6)*'Customer Info'!$D$18),) -> 0 | BE23: =IF($F$4="other",IF(U23=0,,(U23/$E$7)*'Customer Info'!$D$18),) -> 0 | BF23: =SUM(BC23:BE23) -> 0 | BG23: =IF($F$5="breakfast",IF(R23=0,,(R23/$E$4)*'Customer Info'!$D$19),) -> 0 | BH23: =IF($F$5="dinner",IF(T23=0,,(T23/$E$6)*'Customer Info'!$D$19),) -> 0 | BI23: =IF($F$5="other",IF(U23=0,,(U23/$E$7)*'Customer Info'!$D$19),) -> 0 | BJ23: =SUM(BG23:BI23) -> 0 | BK23: =IF($F$6="breakfast",IF(R23=0,,(R23/$E$4)*'Customer Info'!$D$20),) -> 0 | BL23: =IF($F$6="lunch",IF(S23=0,,(S23/$E$5)*'Customer Info'!$D$20),) -> 0 | BM23: =IF($F$6="other",IF(U23=0,,(U23/$E$7)*'Customer Info'!$D$20),) -> 0 | BN23: =SUM(BK23:BM23) -> 0 | BO23: =IF($F$7="breakfast",IF(R23=0,,(R23/$E$4)*'Customer Info'!$D$21),) -> 0 | BP23: =IF($F$7="lunch",IF(S23=0,,(S23/$E$5)*'Customer Info'!$D$21),) -> 0 | BQ23: =IF($F$7="dinner",IF(T23=0,,(T23/$E$6)*'Customer Info'!$D$21),) -> 0 | BR23: =SUM(BO23:BQ23) -> 0 | BS23: =IF($F$10="lunch",IF(W23=0,,(W23/$E$11)*'Customer Info'!$F$18),) -> 0 | BT23: =IF($F$10="dinner",IF(X23=0,,(X23/$E$12)*'Customer Info'!$F$18),) -> 0 | BU23: =IF($F$10="other",IF(Y23=0,,(Y23/$E$13)*'Customer Info'!$F$18),) -> 0 | BV23: =SUM(BS23:BU23) -> 0 | BW23: =IF($F$11="breakfast",IF(V23=0,,(V23/$E$10)*'Customer Info'!$F$19),) -> 0 | BX23: =IF($F$11="dinner",IF(X23=0,,(X23/$E$12)*'Customer Info'!$F$19),) -> 0 | BY23: =IF($F$11="other",IF(Y23=0,,(Y23/$E$13)*'Customer Info'!$F$19),) -> 0 | BZ23: =SUM(BW23:BY23) -> 0 | CA23: =IF($F$12="breakfast",IF(V23=0,,(V23/$E$10)*'Customer Info'!$F$20),) -> 0 | CB23: =IF($F$12="lunch",IF(W23=0,,(W23/$E$11)*'Customer Info'!$F$20),) -> 0 | CC23: =IF($F$12="other",IF(Y23=0,,(Y23/$E$13)*'Customer Info'!$F$20),) -> 0 | CD23: =SUM(CA23:CC23) -> 0 | CE23: =IF($F$13="breakfast",IF(V23=0,,(V23/$E$10)*'Customer Info'!$F$21),) -> 0 | CF23: =IF($F$13="lunch",IF(W23=0,,(W23/$E$11)*'Customer Info'!$F$21),) -> 0 | CG23: =IF($F$13="dinner",IF(X23=0,,(X23/$E$12)*'Customer Info'!$F$21),) -> 0 | CH23: =SUM(CE23:CG23) -> 0 | CI23: =IF($F$16="lunch",IF(AA23=0,,(AA23/$E$17)*'Customer Info'!$H$18),) -> 0 | CJ23: =IF($F$16="dinner",IF(AB23=0,,(AB23/$E$18)*'Customer Info'!$H$18),) -> 0 | CK23: =IF($F$16="other",IF(AC23=0,,(AC23/$E$19)*'Customer Info'!$H$18),) -> 0 | CL23: =SUM(CI23:CK23) -> 0 | CM23: =IF($F$17="breakfast",IF(Z23=0,,(Z23/$E$16)*'Customer Info'!$H$19),) -> 0 | CN23: =IF($F$17="dinner",IF(AB23=0,,(AB23/$E$18)*'Customer Info'!$H$19),) -> 0 | CO23: =IF($F$17="other",IF(AC23=0,,(AC23/$E$19)*'Customer Info'!$H$19),) -> 0 | CP23: =SUM(CM23:CO23) -> 0 | CQ23: =IF($F$18="breakfast",IF(Z23=0,,(Z23/$E$16)*'Customer Info'!$H$20),) -> 0 | CR23: =IF($F$18="lunch",IF(AA23=0,,(AA23/$E$17)*'Customer Info'!$H$20),) -> 0 | CS23: =IF($F$18="other",IF(AC23=0,,(AC23/$E$19)*'Customer Info'!$H$20),) -> 0 | CT23: =SUM(CQ23:CS23) -> 0 | CU23: =IF($F$19="breakfast",IF(Z23=0,,(Z23/$E$16)*'Customer Info'!$H$21),) -> 0 | CV23: =IF($F$19="lunch",IF(AA23=0,,(AA23/$E$17)*'Customer Info'!$H$21),) -> 0 | CW23: =IF($F$19="dinner",IF(AB23=0,,(AB23/$E$18)*'Customer Info'!$H$21),) -> 0 | CX23: =SUM(CU23:CW23) -> 0 | CY23: =IF(E23="plate waste",BB23,) -> 0 | CZ23: =IF(E23="plate waste",,BB23) -> 8.647877984 | DA23: =IF(Q23=0,,I23*(L23/K23)) -> 0 | DB23: =IF(Q23=0,,L23) -> 0 | DC23: =IF(I23>0,A23,"") -> 
A24: dinner | C24: kitchen | D24: donation | E24: surplus | F24: Rice, pasta | G24: 2 | H24: 18 | J24: Freeze for food bank | K24: 16 | L24: =BB24 -> 15.37400531 | M24: 0 | N24: 0 | O24: =IF(M24=0,,IF(C24="cafeteria",M24,)) -> 0 | P24: 0 | Q24: 0 | R24: 0 | S24: 0 | T24: 0 | U24: 0 | V24: 0 | W24: 0 | X24: 0 | Y24: 0 | Z24: 0 | AA24: 0 | AB24: 0 | AC24: 0 | AD24: 0 | AE24: 0 | AF24: 0 | AG24: 0 | AH24: =IF((OR($F$4=0,$F$4="none")),IF(R24=0,,IF(OR($E$4='Customer Info'!$D$18,$E$4=0),R24,(R24/$E$4)*'Customer Info'!$D$18)),) -> 0 | AI24: =IF((OR($F$5=0,$F$5="none")),IF(S24=0,,IF(OR($E$5='Customer Info'!$D$18,$E$5=0),S24,(S24/$E$5)*'Customer Info'!$D$19)),) -> 0 | AJ24: =IF((OR($F$6=0,$F$6="none")),IF(T24=0,,IF(OR($E$6='Customer Info'!$D$18,$E$6=0),T24,(T24/$E$6)*'Customer Info'!$D$20)),) -> 0 | AK24: =IF((OR($F$7=0,$F$7="none")),IF(U24=0,,IF(OR($E$7='Customer Info'!$D$18,$E$7=0),U24,(U24/$E$7)*'Customer Info'!$D$21)),) -> 0 | AL24: =IF((OR($F$10=0,$F$10="none")),IF(V24=0,,IF(OR($E$10='Customer Info'!$F$18,$E$10=0),V24,(V24/$E$10)*'Customer Info'!$F$18)),) -> 0 | AM24: =IF((OR($F$11=0,$F$11="none")),IF(W24=0,,IF(OR($E$11='Customer Info'!$F$19,$E$11=0),W24,(W24/$E$11)*'Customer Info'!$F$19)),) -> 0 | AN24: =IF((OR($F$12=0,$F$12="none")),IF(X24=0,,IF(OR($E$12='Customer Info'!$F$20,$E$12=0),X24,(X24/$E$12)*'Customer Info'!$F$20)),) -> 0 | AO24: =IF((OR($F$13=0,$F$13="none")),IF(Y24=0,,IF(OR($E$13='Customer Info'!$F$21,$E$13=0),Y24,(Y24/$E$13)*'Customer Info'!$F$21)),) -> 0 | AP24: =IF((OR($F$16=0,$F$16="none")),IF(Z24=0,,IF(OR($E$16='Customer Info'!$H$18,$E$16=0),Z24,(Z24/$E$16)*'Customer Info'!$H$18)),) -> 0 | AQ24: =IF((OR($F$17=0,$F$17="none")),IF(AA24=0,,IF(OR($E$17='Customer Info'!$H$19,$E$17=0),AA24,(AA24/$E$17)*'Customer Info'!$H$19)),) -> 0 | AR24: =IF((OR($F$18=0,$F$18="none")),IF(AB24=0,,IF(OR($E$18='Customer Info'!$H$20,$E$18=0),AB24,(AB24/$E$18)*'Customer Info'!$H$20)),) -> 0 | AS24: =IF((OR($F$19=0,$F$19="none")),IF(AC24=0,,IF(OR($E$19='Customer Info'!$H$21,$E$19=0),AC24,(AC24/$E$19)*'Customer Info'!$H$21)),) -> 0 | AT24: =IF((OR($F$4=0,$F$4="none")),IF(AD24=0,,IF(OR($E$4='Customer Info'!$D$18,$E$4=0),AD24,(AD24/$E$4)*'Customer Info'!$D$18)),) -> 0 | AU24: =IF((OR($F$5=0,$F$5="none")),IF(AE24=0,,IF(OR($E$5='Customer Info'!$D$19,$E$5=0),AE24,(AE24/$E$5)*'Customer Info'!$D$19)),) -> 0 | AV24: =IF((OR($F$6=0,$F$6="none")),IF(AF24=0,,IF(OR($E$6='Customer Info'!$D$20,$E$6=0),AF24,(AF24/$E$6)*'Customer Info'!$D$20)),) -> 0 | AW24: =IF((OR($F$7=0,$F$7="none")),IF(AG24=0,,IF(OR($E$7='Customer Info'!$D$21,$E$7=0),AG24,(AG24/$E$7)*'Customer Info'!$D$21)),) -> 0 | AX24: =SUM(AH24:AW24) -> 0 | AY24: 16 | AZ24: =IF(E24="plate waste",,IF('Customer Info'!$M$18=0,'Log Sheet'!AY24,'Customer Info'!$M$18*'Log Sheet'!AY24)) -> 15.37400531 | BA24: =IF(E24="plate waste",IF(OR(C24="patient",C24="patient beverages"),IF('Customer Info'!$M$27=0,AY24*'Customer Info'!$M$18,AY24*'Customer Info'!$M$27),IF(C24="cafeteria",IF('Customer Info'!$M$28=0,AY24*'Customer Info'!$M$18,AY24*'Customer Info'!$M$28),IF(C24="other1",IF('Customer Info'!$M$29=0,AY24*'Customer Info'!$M$18,AY24*'Customer Info'!$M$29),))),) -> 0 | BB24: =SUM(AZ24:BA24) -> 15.37400531 | BC24: =IF($F$4="lunch",IF(S24=0,,(S24/$E$5)*'Customer Info'!$D$18),) -> 0 | BD24: =IF($F$4="dinner",IF(T24=0,,(T24/$E$6)*'Customer Info'!$D$18),) -> 0 | BE24: =IF($F$4="other",IF(U24=0,,(U24/$E$7)*'Customer Info'!$D$18),) -> 0 | BF24: =SUM(BC24:BE24) -> 0 | BG24: =IF($F$5="breakfast",IF(R24=0,,(R24/$E$4)*'Customer Info'!$D$19),) -> 0 | BH24: =IF($F$5="dinner",IF(T24=0,,(T24/$E$6)*'Customer Info'!$D$19),) -> 0 | BI24: =IF($F$5="other",IF(U24=0,,(U24/$E$7)*'Customer Info'!$D$19),) -> 0 | BJ24: =SUM(BG24:BI24) -> 0 | BK24: =IF($F$6="breakfast",IF(R24=0,,(R24/$E$4)*'Customer Info'!$D$20),) -> 0 | BL24: =IF($F$6="lunch",IF(S24=0,,(S24/$E$5)*'Customer Info'!$D$20),) -> 0 | BM24: =IF($F$6="other",IF(U24=0,,(U24/$E$7)*'Customer Info'!$D$20),) -> 0 | BN24: =SUM(BK24:BM24) -> 0 | BO24: =IF($F$7="breakfast",IF(R24=0,,(R24/$E$4)*'Customer Info'!$D$21),) -> 0 | BP24: =IF($F$7="lunch",IF(S24=0,,(S24/$E$5)*'Customer Info'!$D$21),) -> 0 | BQ24: =IF($F$7="dinner",IF(T24=0,,(T24/$E$6)*'Customer Info'!$D$21),) -> 0 | BR24: =SUM(BO24:BQ24) -> 0 | BS24: =IF($F$10="lunch",IF(W24=0,,(W24/$E$11)*'Customer Info'!$F$18),) -> 0 | BT24: =IF($F$10="dinner",IF(X24=0,,(X24/$E$12)*'Customer Info'!$F$18),) -> 0 | BU24: =IF($F$10="other",IF(Y24=0,,(Y24/$E$13)*'Customer Info'!$F$18),) -> 0 | BV24: =SUM(BS24:BU24) -> 0 | BW24: =IF($F$11="breakfast",IF(V24=0,,(V24/$E$10)*'Customer Info'!$F$19),) -> 0 | BX24: =IF($F$11="dinner",IF(X24=0,,(X24/$E$12)*'Customer Info'!$F$19),) -> 0 | BY24: =IF($F$11="other",IF(Y24=0,,(Y24/$E$13)*'Customer Info'!$F$19),) -> 0 | BZ24: =SUM(BW24:BY24) -> 0 | CA24: =IF($F$12="breakfast",IF(V24=0,,(V24/$E$10)*'Customer Info'!$F$20),) -> 0 | CB24: =IF($F$12="lunch",IF(W24=0,,(W24/$E$11)*'Customer Info'!$F$20),) -> 0 | CC24: =IF($F$12="other",IF(Y24=0,,(Y24/$E$13)*'Customer Info'!$F$20),) -> 0 | CD24: =SUM(CA24:CC24) -> 0 | CE24: =IF($F$13="breakfast",IF(V24=0,,(V24/$E$10)*'Customer Info'!$F$21),) -> 0 | CF24: =IF($F$13="lunch",IF(W24=0,,(W24/$E$11)*'Customer Info'!$F$21),) -> 0 | CG24: =IF($F$13="dinner",IF(X24=0,,(X24/$E$12)*'Customer Info'!$F$21),) -> 0 | CH24: =SUM(CE24:CG24) -> 0 | CI24: =IF($F$16="lunch",IF(AA24=0,,(AA24/$E$17)*'Customer Info'!$H$18),) -> 0 | CJ24: =IF($F$16="dinner",IF(AB24=0,,(AB24/$E$18)*'Customer Info'!$H$18),) -> 0 | CK24: =IF($F$16="other",IF(AC24=0,,(AC24/$E$19)*'Customer Info'!$H$18),) -> 0 | CL24: =SUM(CI24:CK24) -> 0 | CM24: =IF($F$17="breakfast",IF(Z24=0,,(Z24/$E$16)*'Customer Info'!$H$19),) -> 0 | CN24: =IF($F$17="dinner",IF(AB24=0,,(AB24/$E$18)*'Customer Info'!$H$19),) -> 0 | CO24: =IF($F$17="other",IF(AC24=0,,(AC24/$E$19)*'Customer Info'!$H$19),) -> 0 | CP24: =SUM(CM24:CO24) -> 0 | CQ24: =IF($F$18="breakfast",IF(Z24=0,,(Z24/$E$16)*'Customer Info'!$H$20),) -> 0 | CR24: =IF($F$18="lunch",IF(AA24=0,,(AA24/$E$17)*'Customer Info'!$H$20),) -> 0 | CS24: =IF($F$18="other",IF(AC24=0,,(AC24/$E$19)*'Customer Info'!$H$20),) -> 0 | CT24: =SUM(CQ24:CS24) -> 0 | CU24: =IF($F$19="breakfast",IF(Z24=0,,(Z24/$E$16)*'Customer Info'!$H$21),) -> 0 | CV24: =IF($F$19="lunch",IF(AA24=0,,(AA24/$E$17)*'Customer Info'!$H$21),) -> 0 | CW24: =IF($F$19="dinner",IF(AB24=0,,(AB24/$E$18)*'Customer Info'!$H$21),) -> 0 | CX24: =SUM(CU24:CW24) -> 0 | CY24: 0 | CZ24: 15.37400531 | DA24: =IF(Q24=0,,I24*(L24/K24)) -> 0 | DB24: =IF(Q24=0,,L24) -> 0 | DC24: =IF(I24>0,A24,"") -> 
A25: breakfast | C25: kitchen | D25: compost | E25: prep waste | F25: Cut watermelon and cantaloupe rinds | G25: 2 | H25: 34.2 | K25: 32.2 | L25: =BB25 -> 30.94018568 | M25: 0 | N25: 0 | O25: 0 | P25: 0 | Q25: 0 | R25: 0 | S25: 0 | T25: 0 | U25: 0 | V25: 0 | W25: 0 | X25: 0 | Y25: 0 | Z25: 0 | AA25: 0 | AB25: 0 | AC25: 0 | AD25: 0 | AE25: 0 | AF25: 0 | AG25: 0 | AH25: =IF((OR($F$4=0,$F$4="none")),IF(R25=0,,IF(OR($E$4='Customer Info'!$D$18,$E$4=0),R25,(R25/$E$4)*'Customer Info'!$D$18)),) -> 0 | AI25: =IF((OR($F$5=0,$F$5="none")),IF(S25=0,,IF(OR($E$5='Customer Info'!$D$18,$E$5=0),S25,(S25/$E$5)*'Customer Info'!$D$19)),) -> 0 | AJ25: =IF((OR($F$6=0,$F$6="none")),IF(T25=0,,IF(OR($E$6='Customer Info'!$D$18,$E$6=0),T25,(T25/$E$6)*'Customer Info'!$D$20)),) -> 0 | AK25: =IF((OR($F$7=0,$F$7="none")),IF(U25=0,,IF(OR($E$7='Customer Info'!$D$18,$E$7=0),U25,(U25/$E$7)*'Customer Info'!$D$21)),) -> 0 | AL25: =IF((OR($F$10=0,$F$10="none")),IF(V25=0,,IF(OR($E$10='Customer Info'!$F$18,$E$10=0),V25,(V25/$E$10)*'Customer Info'!$F$18)),) -> 0 | AM25: =IF((OR($F$11=0,$F$11="none")),IF(W25=0,,IF(OR($E$11='Customer Info'!$F$19,$E$11=0),W25,(W25/$E$11)*'Customer Info'!$F$19)),) -> 0 | AN25: =IF((OR($F$12=0,$F$12="none")),IF(X25=0,,IF(OR($E$12='Customer Info'!$F$20,$E$12=0),X25,(X25/$E$12)*'Customer Info'!$F$20)),) -> 0 | AO25: =IF((OR($F$13=0,$F$13="none")),IF(Y25=0,,IF(OR($E$13='Customer Info'!$F$21,$E$13=0),Y25,(Y25/$E$13)*'Customer Info'!$F$21)),) -> 0 | AP25: =IF((OR($F$16=0,$F$16="none")),IF(Z25=0,,IF(OR($E$16='Customer Info'!$H$18,$E$16=0),Z25,(Z25/$E$16)*'Customer Info'!$H$18)),) -> 0 | AQ25: =IF((OR($F$17=0,$F$17="none")),IF(AA25=0,,IF(OR($E$17='Customer Info'!$H$19,$E$17=0),AA25,(AA25/$E$17)*'Customer Info'!$H$19)),) -> 0 | AR25: =IF((OR($F$18=0,$F$18="none")),IF(AB25=0,,IF(OR($E$18='Customer Info'!$H$20,$E$18=0),AB25,(AB25/$E$18)*'Customer Info'!$H$20)),) -> 0 | AS25: =IF((OR($F$19=0,$F$19="none")),IF(AC25=0,,IF(OR($E$19='Customer Info'!$H$21,$E$19=0),AC25,(AC25/$E$19)*'Customer Info'!$H$21)),) -> 0 | AT25: =IF((OR($F$4=0,$F$4="none")),IF(AD25=0,,IF(OR($E$4='Customer Info'!$D$18,$E$4=0),AD25,(AD25/$E$4)*'Customer Info'!$D$18)),) -> 0 | AU25: =IF((OR($F$5=0,$F$5="none")),IF(AE25=0,,IF(OR($E$5='Customer Info'!$D$19,$E$5=0),AE25,(AE25/$E$5)*'Customer Info'!$D$19)),) -> 0 | AV25: =IF((OR($F$6=0,$F$6="none")),IF(AF25=0,,IF(OR($E$6='Customer Info'!$D$20,$E$6=0),AF25,(AF25/$E$6)*'Customer Info'!$D$20)),) -> 0 | AW25: =IF((OR($F$7=0,$F$7="none")),IF(AG25=0,,IF(OR($E$7='Customer Info'!$D$21,$E$7=0),AG25,(AG25/$E$7)*'Customer Info'!$D$21)),) -> 0 | AX25: 0 | AY25: 32.2 | AZ25: =IF(E25="plate waste",,IF('Customer Info'!$M$18=0,'Log Sheet'!AY25,'Customer Info'!$M$18*'Log Sheet'!AY25)) -> 30.94018568 | BA25: =IF(E25="plate waste",IF(OR(C25="patient",C25="patient beverages"),IF('Customer Info'!$M$27=0,AY25*'Customer Info'!$M$18,AY25*'Customer Info'!$M$27),IF(C25="cafeteria",IF('Customer Info'!$M$28=0,AY25*'Customer Info'!$M$18,AY25*'Customer Info'!$M$28),IF(C25="other1",IF('Customer Info'!$M$29=0,AY25*'Customer Info'!$M$18,AY25*'Customer Info'!$M$29),))),) -> 0 | BB25: =SUM(AZ25:BA25) -> 30.94018568 | BC25: =IF($F$4="lunch",IF(S25=0,,(S25/$E$5)*'Customer Info'!$D$18),) -> 0 | BD25: =IF($F$4="dinner",IF(T25=0,,(T25/$E$6)*'Customer Info'!$D$18),) -> 0 | BE25: =IF($F$4="other",IF(U25=0,,(U25/$E$7)*'Customer Info'!$D$18),) -> 0 | BF25: 0 | BG25: =IF($F$5="breakfast",IF(R25=0,,(R25/$E$4)*'Customer Info'!$D$19),) -> 0 | BH25: =IF($F$5="dinner",IF(T25=0,,(T25/$E$6)*'Customer Info'!$D$19),) -> 0 | BI25: =IF($F$5="other",IF(U25=0,,(U25/$E$7)*'Customer Info'!$D$19),) -> 0 | BJ25: 0 | BK25: =IF($F$6="breakfast",IF(R25=0,,(R25/$E$4)*'Customer Info'!$D$20),) -> 0 | BL25: =IF($F$6="lunch",IF(S25=0,,(S25/$E$5)*'Customer Info'!$D$20),) -> 0 | BM25: =IF($F$6="other",IF(U25=0,,(U25/$E$7)*'Customer Info'!$D$20),) -> 0 | BN25: 0 | BO25: =IF($F$7="breakfast",IF(R25=0,,(R25/$E$4)*'Customer Info'!$D$21),) -> 0 | BP25: =IF($F$7="lunch",IF(S25=0,,(S25/$E$5)*'Customer Info'!$D$21),) -> 0 | BQ25: =IF($F$7="dinner",IF(T25=0,,(T25/$E$6)*'Customer Info'!$D$21),) -> 0 | BR25: 0 | BS25: =IF($F$10="lunch",IF(W25=0,,(W25/$E$11)*'Customer Info'!$F$18),) -> 0 | BT25: =IF($F$10="dinner",IF(X25=0,,(X25/$E$12)*'Customer Info'!$F$18),) -> 0 | BU25: =IF($F$10="other",IF(Y25=0,,(Y25/$E$13)*'Customer Info'!$F$18),) -> 0 | BV25: 0 | BW25: =IF($F$11="breakfast",IF(V25=0,,(V25/$E$10)*'Customer Info'!$F$19),) -> 0 | BX25: =IF($F$11="dinner",IF(X25=0,,(X25/$E$12)*'Customer Info'!$F$19),) -> 0 | BY25: =IF($F$11="other",IF(Y25=0,,(Y25/$E$13)*'Customer Info'!$F$19),) -> 0 | BZ25: 0 | CA25: =IF($F$12="breakfast",IF(V25=0,,(V25/$E$10)*'Customer Info'!$F$20),) -> 0 | CB25: =IF($F$12="lunch",IF(W25=0,,(W25/$E$11)*'Customer Info'!$F$20),) -> 0 | CC25: =IF($F$12="other",IF(Y25=0,,(Y25/$E$13)*'Customer Info'!$F$20),) -> 0 | CD25: 0 | CE25: =IF($F$13="breakfast",IF(V25=0,,(V25/$E$10)*'Customer Info'!$F$21),) -> 0 | CF25: =IF($F$13="lunch",IF(W25=0,,(W25/$E$11)*'Customer Info'!$F$21),) -> 0 | CG25: =IF($F$13="dinner",IF(X25=0,,(X25/$E$12)*'Customer Info'!$F$21),) -> 0 | CH25: 0 | CI25: =IF($F$16="lunch",IF(AA25=0,,(AA25/$E$17)*'Customer Info'!$H$18),) -> 0 | CJ25: =IF($F$16="dinner",IF(AB25=0,,(AB25/$E$18)*'Customer Info'!$H$18),) -> 0 | CK25: =IF($F$16="other",IF(AC25=0,,(AC25/$E$19)*'Customer Info'!$H$18),) -> 0 | CL25: 0 | CM25: =IF($F$17="breakfast",IF(Z25=0,,(Z25/$E$16)*'Customer Info'!$H$19),) -> 0 | CN25: =IF($F$17="dinner",IF(AB25=0,,(AB25/$E$18)*'Customer Info'!$H$19),) -> 0 | CO25: =IF($F$17="other",IF(AC25=0,,(AC25/$E$19)*'Customer Info'!$H$19),) -> 0 | CP25: 0 | CQ25: =IF($F$18="breakfast",IF(Z25=0,,(Z25/$E$16)*'Customer Info'!$H$20),) -> 0 | CR25: =IF($F$18="lunch",IF(AA25=0,,(AA25/$E$17)*'Customer Info'!$H$20),) -> 0 | CS25: =IF($F$18="other",IF(AC25=0,,(AC25/$E$19)*'Customer Info'!$H$20),) -> 0 | CT25: 0 | CU25: =IF($F$19="breakfast",IF(Z25=0,,(Z25/$E$16)*'Customer Info'!$H$21),) -> 0 | CV25: =IF($F$19="lunch",IF(AA25=0,,(AA25/$E$17)*'Customer Info'!$H$21),) -> 0 | CW25: =IF($F$19="dinner",IF(AB25=0,,(AB25/$E$18)*'Customer Info'!$H$21),) -> 0 | CX25: 0 | CY25: 0 | CZ25: 30.94018568 | DA25: 0 | DB25: 0
A26: breakfast | C26: kitchen | D26: compost | E26: surplus | F26: Scrambled Eggs, Pancakes | G26: 2 | H26: 5.6 | K26: 3.6 | L26: 3.459151194 | M26: 0 | N26: 0 | O26: 0 | P26: 0 | Q26: 0 | R26: 0 | S26: 0 | T26: 0 | U26: 0 | V26: 0 | W26: 0 | X26: 0 | Y26: 0 | Z26: 0 | AA26: 0 | AB26: 0 | AC26: 0 | AD26: 0 | AE26: 0 | AF26: 0 | AG26: 0 | AH26: =IF((OR($F$4=0,$F$4="none")),IF(R26=0,,IF(OR($E$4='Customer Info'!$D$18,$E$4=0),R26,(R26/$E$4)*'Customer Info'!$D$18)),) -> 0 | AI26: =IF((OR($F$5=0,$F$5="none")),IF(S26=0,,IF(OR($E$5='Customer Info'!$D$18,$E$5=0),S26,(S26/$E$5)*'Customer Info'!$D$19)),) -> 0 | AJ26: =IF((OR($F$6=0,$F$6="none")),IF(T26=0,,IF(OR($E$6='Customer Info'!$D$18,$E$6=0),T26,(T26/$E$6)*'Customer Info'!$D$20)),) -> 0 | AK26: =IF((OR($F$7=0,$F$7="none")),IF(U26=0,,IF(OR($E$7='Customer Info'!$D$18,$E$7=0),U26,(U26/$E$7)*'Customer Info'!$D$21)),) -> 0 | AL26: =IF((OR($F$10=0,$F$10="none")),IF(V26=0,,IF(OR($E$10='Customer Info'!$F$18,$E$10=0),V26,(V26/$E$10)*'Customer Info'!$F$18)),) -> 0 | AM26: =IF((OR($F$11=0,$F$11="none")),IF(W26=0,,IF(OR($E$11='Customer Info'!$F$19,$E$11=0),W26,(W26/$E$11)*'Customer Info'!$F$19)),) -> 0 | AN26: =IF((OR($F$12=0,$F$12="none")),IF(X26=0,,IF(OR($E$12='Customer Info'!$F$20,$E$12=0),X26,(X26/$E$12)*'Customer Info'!$F$20)),) -> 0 | AO26: =IF((OR($F$13=0,$F$13="none")),IF(Y26=0,,IF(OR($E$13='Customer Info'!$F$21,$E$13=0),Y26,(Y26/$E$13)*'Customer Info'!$F$21)),) -> 0 | AP26: =IF((OR($F$16=0,$F$16="none")),IF(Z26=0,,IF(OR($E$16='Customer Info'!$H$18,$E$16=0),Z26,(Z26/$E$16)*'Customer Info'!$H$18)),) -> 0 | AQ26: =IF((OR($F$17=0,$F$17="none")),IF(AA26=0,,IF(OR($E$17='Customer Info'!$H$19,$E$17=0),AA26,(AA26/$E$17)*'Customer Info'!$H$19)),) -> 0 | AR26: =IF((OR($F$18=0,$F$18="none")),IF(AB26=0,,IF(OR($E$18='Customer Info'!$H$20,$E$18=0),AB26,(AB26/$E$18)*'Customer Info'!$H$20)),) -> 0 | AS26: =IF((OR($F$19=0,$F$19="none")),IF(AC26=0,,IF(OR($E$19='Customer Info'!$H$21,$E$19=0),AC26,(AC26/$E$19)*'Customer Info'!$H$21)),) -> 0 | AT26: =IF((OR($F$4=0,$F$4="none")),IF(AD26=0,,IF(OR($E$4='Customer Info'!$D$18,$E$4=0),AD26,(AD26/$E$4)*'Customer Info'!$D$18)),) -> 0 | AU26: =IF((OR($F$5=0,$F$5="none")),IF(AE26=0,,IF(OR($E$5='Customer Info'!$D$19,$E$5=0),AE26,(AE26/$E$5)*'Customer Info'!$D$19)),) -> 0 | AV26: =IF((OR($F$6=0,$F$6="none")),IF(AF26=0,,IF(OR($E$6='Customer Info'!$D$20,$E$6=0),AF26,(AF26/$E$6)*'Customer Info'!$D$20)),) -> 0 | AW26: =IF((OR($F$7=0,$F$7="none")),IF(AG26=0,,IF(OR($E$7='Customer Info'!$D$21,$E$7=0),AG26,(AG26/$E$7)*'Customer Info'!$D$21)),) -> 0 | AX26: 0 | AY26: 3.6 | AZ26: =IF(E26="plate waste",,IF('Customer Info'!$M$18=0,'Log Sheet'!AY26,'Customer Info'!$M$18*'Log Sheet'!AY26)) -> 3.459151194 | BA26: =IF(E26="plate waste",IF(OR(C26="patient",C26="patient beverages"),IF('Customer Info'!$M$27=0,AY26*'Customer Info'!$M$18,AY26*'Customer Info'!$M$27),IF(C26="cafeteria",IF('Customer Info'!$M$28=0,AY26*'Customer Info'!$M$18,AY26*'Customer Info'!$M$28),IF(C26="other1",IF('Customer Info'!$M$29=0,AY26*'Customer Info'!$M$18,AY26*'Customer Info'!$M$29),))),) -> 0 | BB26: 3.459151194 | BC26: =IF($F$4="lunch",IF(S26=0,,(S26/$E$5)*'Customer Info'!$D$18),) -> 0 | BD26: =IF($F$4="dinner",IF(T26=0,,(T26/$E$6)*'Customer Info'!$D$18),) -> 0 | BE26: =IF($F$4="other",IF(U26=0,,(U26/$E$7)*'Customer Info'!$D$18),) -> 0 | BF26: 0 | BG26: =IF($F$5="breakfast",IF(R26=0,,(R26/$E$4)*'Customer Info'!$D$19),) -> 0 | BH26: =IF($F$5="dinner",IF(T26=0,,(T26/$E$6)*'Customer Info'!$D$19),) -> 0 | BI26: =IF($F$5="other",IF(U26=0,,(U26/$E$7)*'Customer Info'!$D$19),) -> 0 | BJ26: 0 | BK26: =IF($F$6="breakfast",IF(R26=0,,(R26/$E$4)*'Customer Info'!$D$20),) -> 0 | BL26: =IF($F$6="lunch",IF(S26=0,,(S26/$E$5)*'Customer Info'!$D$20),) -> 0 | BM26: =IF($F$6="other",IF(U26=0,,(U26/$E$7)*'Customer Info'!$D$20),) -> 0 | BN26: 0 | BO26: =IF($F$7="breakfast",IF(R26=0,,(R26/$E$4)*'Customer Info'!$D$21),) -> 0 | BP26: =IF($F$7="lunch",IF(S26=0,,(S26/$E$5)*'Customer Info'!$D$21),) -> 0 | BQ26: =IF($F$7="dinner",IF(T26=0,,(T26/$E$6)*'Customer Info'!$D$21),) -> 0 | BR26: 0 | BS26: =IF($F$10="lunch",IF(W26=0,,(W26/$E$11)*'Customer Info'!$F$18),) -> 0 | BT26: =IF($F$10="dinner",IF(X26=0,,(X26/$E$12)*'Customer Info'!$F$18),) -> 0 | BU26: =IF($F$10="other",IF(Y26=0,,(Y26/$E$13)*'Customer Info'!$F$18),) -> 0 | BV26: 0 | BW26: =IF($F$11="breakfast",IF(V26=0,,(V26/$E$10)*'Customer Info'!$F$19),) -> 0 | BX26: =IF($F$11="dinner",IF(X26=0,,(X26/$E$12)*'Customer Info'!$F$19),) -> 0 | BY26: =IF($F$11="other",IF(Y26=0,,(Y26/$E$13)*'Customer Info'!$F$19),) -> 0 | BZ26: 0 | CA26: =IF($F$12="breakfast",IF(V26=0,,(V26/$E$10)*'Customer Info'!$F$20),) -> 0 | CB26: =IF($F$12="lunch",IF(W26=0,,(W26/$E$11)*'Customer Info'!$F$20),) -> 0 | CC26: =IF($F$12="other",IF(Y26=0,,(Y26/$E$13)*'Customer Info'!$F$20),) -> 0 | CD26: 0 | CE26: =IF($F$13="breakfast",IF(V26=0,,(V26/$E$10)*'Customer Info'!$F$21),) -> 0 | CF26: =IF($F$13="lunch",IF(W26=0,,(W26/$E$11)*'Customer Info'!$F$21),) -> 0 | CG26: =IF($F$13="dinner",IF(X26=0,,(X26/$E$12)*'Customer Info'!$F$21),) -> 0 | CH26: 0 | CI26: =IF($F$16="lunch",IF(AA26=0,,(AA26/$E$17)*'Customer Info'!$H$18),) -> 0 | CJ26: =IF($F$16="dinner",IF(AB26=0,,(AB26/$E$18)*'Customer Info'!$H$18),) -> 0 | CK26: =IF($F$16="other",IF(AC26=0,,(AC26/$E$19)*'Customer Info'!$H$18),) -> 0 | CL26: 0 | CM26: =IF($F$17="breakfast",IF(Z26=0,,(Z26/$E$16)*'Customer Info'!$H$19),) -> 0 | CN26: =IF($F$17="dinner",IF(AB26=0,,(AB26/$E$18)*'Customer Info'!$H$19),) -> 0 | CO26: =IF($F$17="other",IF(AC26=0,,(AC26/$E$19)*'Customer Info'!$H$19),) -> 0 | CP26: 0 | CQ26: =IF($F$18="breakfast",IF(Z26=0,,(Z26/$E$16)*'Customer Info'!$H$20),) -> 0 | CR26: =IF($F$18="lunch",IF(AA26=0,,(AA26/$E$17)*'Customer Info'!$H$20),) -> 0 | CS26: =IF($F$18="other",IF(AC26=0,,(AC26/$E$19)*'Customer Info'!$H$20),) -> 0 | CT26: 0 | CU26: =IF($F$19="breakfast",IF(Z26=0,,(Z26/$E$16)*'Customer Info'!$H$21),) -> 0 | CV26: =IF($F$19="lunch",IF(AA26=0,,(AA26/$E$17)*'Customer Info'!$H$21),) -> 0 | CW26: =IF($F$19="dinner",IF(AB26=0,,(AB26/$E$18)*'Customer Info'!$H$21),) -> 0 | CX26: 0 | CY26: 0 | CZ26: 3.459151194 | DA26: 0 | DB26: 0
A27: breakfast | C27: patient | D27: landfill | E27: surplus | F27: Pan scrapes, leftovers from serving line | G27: 3 | H27: 11.4 | K27: 8.4 | L27: 8.071352785 | M27: 0 | N27: 0 | O27: 0 | P27: 0 | Q27: 0 | R27: 0 | S27: 0 | T27: 0 | U27: 0 | V27: 0 | W27: 0 | X27: 0 | Y27: 0 | Z27: 0 | AA27: 0 | AB27: 0 | AC27: 0 | AD27: 0 | AE27: 0 | AF27: 0 | AG27: 0 | AH27: =IF((OR($F$4=0,$F$4="none")),IF(R27=0,,IF(OR($E$4='Customer Info'!$D$18,$E$4=0),R27,(R27/$E$4)*'Customer Info'!$D$18)),) -> 0 | AI27: =IF((OR($F$5=0,$F$5="none")),IF(S27=0,,IF(OR($E$5='Customer Info'!$D$18,$E$5=0),S27,(S27/$E$5)*'Customer Info'!$D$19)),) -> 0 | AJ27: =IF((OR($F$6=0,$F$6="none")),IF(T27=0,,IF(OR($E$6='Customer Info'!$D$18,$E$6=0),T27,(T27/$E$6)*'Customer Info'!$D$20)),) -> 0 | AK27: =IF((OR($F$7=0,$F$7="none")),IF(U27=0,,IF(OR($E$7='Customer Info'!$D$18,$E$7=0),U27,(U27/$E$7)*'Customer Info'!$D$21)),) -> 0 | AL27: =IF((OR($F$10=0,$F$10="none")),IF(V27=0,,IF(OR($E$10='Customer Info'!$F$18,$E$10=0),V27,(V27/$E$10)*'Customer Info'!$F$18)),) -> 0 | AM27: =IF((OR($F$11=0,$F$11="none")),IF(W27=0,,IF(OR($E$11='Customer Info'!$F$19,$E$11=0),W27,(W27/$E$11)*'Customer Info'!$F$19)),) -> 0 | AN27: =IF((OR($F$12=0,$F$12="none")),IF(X27=0,,IF(OR($E$12='Customer Info'!$F$20,$E$12=0),X27,(X27/$E$12)*'Customer Info'!$F$20)),) -> 0 | AO27: =IF((OR($F$13=0,$F$13="none")),IF(Y27=0,,IF(OR($E$13='Customer Info'!$F$21,$E$13=0),Y27,(Y27/$E$13)*'Customer Info'!$F$21)),) -> 0 | AP27: =IF((OR($F$16=0,$F$16="none")),IF(Z27=0,,IF(OR($E$16='Customer Info'!$H$18,$E$16=0),Z27,(Z27/$E$16)*'Customer Info'!$H$18)),) -> 0 | AQ27: =IF((OR($F$17=0,$F$17="none")),IF(AA27=0,,IF(OR($E$17='Customer Info'!$H$19,$E$17=0),AA27,(AA27/$E$17)*'Customer Info'!$H$19)),) -> 0 | AR27: =IF((OR($F$18=0,$F$18="none")),IF(AB27=0,,IF(OR($E$18='Customer Info'!$H$20,$E$18=0),AB27,(AB27/$E$18)*'Customer Info'!$H$20)),) -> 0 | AS27: =IF((OR($F$19=0,$F$19="none")),IF(AC27=0,,IF(OR($E$19='Customer Info'!$H$21,$E$19=0),AC27,(AC27/$E$19)*'Customer Info'!$H$21)),) -> 0 | AT27: =IF((OR($F$4=0,$F$4="none")),IF(AD27=0,,IF(OR($E$4='Customer Info'!$D$18,$E$4=0),AD27,(AD27/$E$4)*'Customer Info'!$D$18)),) -> 0 | AU27: =IF((OR($F$5=0,$F$5="none")),IF(AE27=0,,IF(OR($E$5='Customer Info'!$D$19,$E$5=0),AE27,(AE27/$E$5)*'Customer Info'!$D$19)),) -> 0 | AV27: =IF((OR($F$6=0,$F$6="none")),IF(AF27=0,,IF(OR($E$6='Customer Info'!$D$20,$E$6=0),AF27,(AF27/$E$6)*'Customer Info'!$D$20)),) -> 0 | AW27: =IF((OR($F$7=0,$F$7="none")),IF(AG27=0,,IF(OR($E$7='Customer Info'!$D$21,$E$7=0),AG27,(AG27/$E$7)*'Customer Info'!$D$21)),) -> 0 | AX27: 0 | AY27: 8.4 | AZ27: =IF(E27="plate waste",,IF('Customer Info'!$M$18=0,'Log Sheet'!AY27,'Customer Info'!$M$18*'Log Sheet'!AY27)) -> 8.071352785 | BA27: =IF(E27="plate waste",IF(OR(C27="patient",C27="patient beverages"),IF('Customer Info'!$M$27=0,AY27*'Customer Info'!$M$18,AY27*'Customer Info'!$M$27),IF(C27="cafeteria",IF('Customer Info'!$M$28=0,AY27*'Customer Info'!$M$18,AY27*'Customer Info'!$M$28),IF(C27="other1",IF('Customer Info'!$M$29=0,AY27*'Customer Info'!$M$18,AY27*'Customer Info'!$M$29),))),) -> 0 | BB27: 8.071352785 | BC27: =IF($F$4="lunch",IF(S27=0,,(S27/$E$5)*'Customer Info'!$D$18),) -> 0 | BD27: =IF($F$4="dinner",IF(T27=0,,(T27/$E$6)*'Customer Info'!$D$18),) -> 0 | BE27: =IF($F$4="other",IF(U27=0,,(U27/$E$7)*'Customer Info'!$D$18),) -> 0 | BF27: 0 | BG27: =IF($F$5="breakfast",IF(R27=0,,(R27/$E$4)*'Customer Info'!$D$19),) -> 0 | BH27: =IF($F$5="dinner",IF(T27=0,,(T27/$E$6)*'Customer Info'!$D$19),) -> 0 | BI27: =IF($F$5="other",IF(U27=0,,(U27/$E$7)*'Customer Info'!$D$19),) -> 0 | BJ27: 0 | BK27: =IF($F$6="breakfast",IF(R27=0,,(R27/$E$4)*'Customer Info'!$D$20),) -> 0 | BL27: =IF($F$6="lunch",IF(S27=0,,(S27/$E$5)*'Customer Info'!$D$20),) -> 0 | BM27: =IF($F$6="other",IF(U27=0,,(U27/$E$7)*'Customer Info'!$D$20),) -> 0 | BN27: 0 | BO27: =IF($F$7="breakfast",IF(R27=0,,(R27/$E$4)*'Customer Info'!$D$21),) -> 0 | BP27: =IF($F$7="lunch",IF(S27=0,,(S27/$E$5)*'Customer Info'!$D$21),) -> 0 | BQ27: =IF($F$7="dinner",IF(T27=0,,(T27/$E$6)*'Customer Info'!$D$21),) -> 0 | BR27: 0 | BS27: =IF($F$10="lunch",IF(W27=0,,(W27/$E$11)*'Customer Info'!$F$18),) -> 0 | BT27: =IF($F$10="dinner",IF(X27=0,,(X27/$E$12)*'Customer Info'!$F$18),) -> 0 | BU27: =IF($F$10="other",IF(Y27=0,,(Y27/$E$13)*'Customer Info'!$F$18),) -> 0 | BV27: 0 | BW27: =IF($F$11="breakfast",IF(V27=0,,(V27/$E$10)*'Customer Info'!$F$19),) -> 0 | BX27: =IF($F$11="dinner",IF(X27=0,,(X27/$E$12)*'Customer Info'!$F$19),) -> 0 | BY27: =IF($F$11="other",IF(Y27=0,,(Y27/$E$13)*'Customer Info'!$F$19),) -> 0 | BZ27: 0 | CA27: =IF($F$12="breakfast",IF(V27=0,,(V27/$E$10)*'Customer Info'!$F$20),) -> 0 | CB27: =IF($F$12="lunch",IF(W27=0,,(W27/$E$11)*'Customer Info'!$F$20),) -> 0 | CC27: =IF($F$12="other",IF(Y27=0,,(Y27/$E$13)*'Customer Info'!$F$20),) -> 0 | CD27: 0 | CE27: =IF($F$13="breakfast",IF(V27=0,,(V27/$E$10)*'Customer Info'!$F$21),) -> 0 | CF27: =IF($F$13="lunch",IF(W27=0,,(W27/$E$11)*'Customer Info'!$F$21),) -> 0 | CG27: =IF($F$13="dinner",IF(X27=0,,(X27/$E$12)*'Customer Info'!$F$21),) -> 0 | CH27: 0 | CI27: =IF($F$16="lunch",IF(AA27=0,,(AA27/$E$17)*'Customer Info'!$H$18),) -> 0 | CJ27: =IF($F$16="dinner",IF(AB27=0,,(AB27/$E$18)*'Customer Info'!$H$18),) -> 0 | CK27: =IF($F$16="other",IF(AC27=0,,(AC27/$E$19)*'Customer Info'!$H$18),) -> 0 | CL27: 0 | CM27: =IF($F$17="breakfast",IF(Z27=0,,(Z27/$E$16)*'Customer Info'!$H$19),) -> 0 | CN27: =IF($F$17="dinner",IF(AB27=0,,(AB27/$E$18)*'Customer Info'!$H$19),) -> 0 | CO27: =IF($F$17="other",IF(AC27=0,,(AC27/$E$19)*'Customer Info'!$H$19),) -> 0 | CP27: 0 | CQ27: =IF($F$18="breakfast",IF(Z27=0,,(Z27/$E$16)*'Customer Info'!$H$20),) -> 0 | CR27: =IF($F$18="lunch",IF(AA27=0,,(AA27/$E$17)*'Customer Info'!$H$20),) -> 0 | CS27: =IF($F$18="other",IF(AC27=0,,(AC27/$E$19)*'Customer Info'!$H$20),) -> 0 | CT27: 0 | CU27: =IF($F$19="breakfast",IF(Z27=0,,(Z27/$E$16)*'Customer Info'!$H$21),) -> 0 | CV27: =IF($F$19="lunch",IF(AA27=0,,(AA27/$E$17)*'Customer Info'!$H$21),) -> 0 | CW27: =IF($F$19="dinner",IF(AB27=0,,(AB27/$E$18)*'Customer Info'!$H$21),) -> 0 | CX27: 0 | CY27: 0 | CZ27: 8.071352785 | DA27: 0 | DB27: 0
A28: lunch | B28: 48 | C28: kitchen | D28: other | E28: surplus | F28: Pre-made sandwiches | G28: 2 | H28: 12 | J28: Two days, 5 lbs./day - given to maternity ward | K28: 10 | L28: 4.804376658 | M28: 0 | N28: 0 | O28: 0 | P28: 0 | Q28: 0 | R28: 0 | S28: 0 | T28: 0 | U28: 0 | V28: 0 | W28: 0 | X28: 0 | Y28: 0 | Z28: 0 | AA28: 0 | AB28: 0 | AC28: 0 | AD28: 0 | AE28: 0 | AF28: 0 | AG28: 0 | AH28: =IF((OR($F$4=0,$F$4="none")),IF(R28=0,,IF(OR($E$4='Customer Info'!$D$18,$E$4=0),R28,(R28/$E$4)*'Customer Info'!$D$18)),) -> 0 | AI28: =IF((OR($F$5=0,$F$5="none")),IF(S28=0,,IF(OR($E$5='Customer Info'!$D$18,$E$5=0),S28,(S28/$E$5)*'Customer Info'!$D$19)),) -> 0 | AJ28: =IF((OR($F$6=0,$F$6="none")),IF(T28=0,,IF(OR($E$6='Customer Info'!$D$18,$E$6=0),T28,(T28/$E$6)*'Customer Info'!$D$20)),) -> 0 | AK28: =IF((OR($F$7=0,$F$7="none")),IF(U28=0,,IF(OR($E$7='Customer Info'!$D$18,$E$7=0),U28,(U28/$E$7)*'Customer Info'!$D$21)),) -> 0 | AL28: =IF((OR($F$10=0,$F$10="none")),IF(V28=0,,IF(OR($E$10='Customer Info'!$F$18,$E$10=0),V28,(V28/$E$10)*'Customer Info'!$F$18)),) -> 0 | AM28: =IF((OR($F$11=0,$F$11="none")),IF(W28=0,,IF(OR($E$11='Customer Info'!$F$19,$E$11=0),W28,(W28/$E$11)*'Customer Info'!$F$19)),) -> 0 | AN28: =IF((OR($F$12=0,$F$12="none")),IF(X28=0,,IF(OR($E$12='Customer Info'!$F$20,$E$12=0),X28,(X28/$E$12)*'Customer Info'!$F$20)),) -> 0 | AO28: =IF((OR($F$13=0,$F$13="none")),IF(Y28=0,,IF(OR($E$13='Customer Info'!$F$21,$E$13=0),Y28,(Y28/$E$13)*'Customer Info'!$F$21)),) -> 0 | AP28: =IF((OR($F$16=0,$F$16="none")),IF(Z28=0,,IF(OR($E$16='Customer Info'!$H$18,$E$16=0),Z28,(Z28/$E$16)*'Customer Info'!$H$18)),) -> 0 | AQ28: =IF((OR($F$17=0,$F$17="none")),IF(AA28=0,,IF(OR($E$17='Customer Info'!$H$19,$E$17=0),AA28,(AA28/$E$17)*'Customer Info'!$H$19)),) -> 0 | AR28: =IF((OR($F$18=0,$F$18="none")),IF(AB28=0,,IF(OR($E$18='Customer Info'!$H$20,$E$18=0),AB28,(AB28/$E$18)*'Customer Info'!$H$20)),) -> 0 | AS28: =IF((OR($F$19=0,$F$19="none")),IF(AC28=0,,IF(OR($E$19='Customer Info'!$H$21,$E$19=0),AC28,(AC28/$E$19)*'Customer Info'!$H$21)),) -> 0 | AT28: =IF((OR($F$4=0,$F$4="none")),IF(AD28=0,,IF(OR($E$4='Customer Info'!$D$18,$E$4=0),AD28,(AD28/$E$4)*'Customer Info'!$D$18)),) -> 0 | AU28: =IF((OR($F$5=0,$F$5="none")),IF(AE28=0,,IF(OR($E$5='Customer Info'!$D$19,$E$5=0),AE28,(AE28/$E$5)*'Customer Info'!$D$19)),) -> 0 | AV28: =IF((OR($F$6=0,$F$6="none")),IF(AF28=0,,IF(OR($E$6='Customer Info'!$D$20,$E$6=0),AF28,(AF28/$E$6)*'Customer Info'!$D$20)),) -> 0 | AW28: =IF((OR($F$7=0,$F$7="none")),IF(AG28=0,,IF(OR($E$7='Customer Info'!$D$21,$E$7=0),AG28,(AG28/$E$7)*'Customer Info'!$D$21)),) -> 0 | AX28: 0 | AY28: 5 | AZ28: =IF(E28="plate waste",,IF('Customer Info'!$M$18=0,'Log Sheet'!AY28,'Customer Info'!$M$18*'Log Sheet'!AY28)) -> 4.804376658 | BA28: =IF(E28="plate waste",IF(OR(C28="patient",C28="patient beverages"),IF('Customer Info'!$M$27=0,AY28*'Customer Info'!$M$18,AY28*'Customer Info'!$M$27),IF(C28="cafeteria",IF('Customer Info'!$M$28=0,AY28*'Customer Info'!$M$18,AY28*'Customer Info'!$M$28),IF(C28="other1",IF('Customer Info'!$M$29=0,AY28*'Customer Info'!$M$18,AY28*'Customer Info'!$M$29),))),) -> 0 | BB28: 4.804376658 | BC28: =IF($F$4="lunch",IF(S28=0,,(S28/$E$5)*'Customer Info'!$D$18),) -> 0 | BD28: =IF($F$4="dinner",IF(T28=0,,(T28/$E$6)*'Customer Info'!$D$18),) -> 0 | BE28: =IF($F$4="other",IF(U28=0,,(U28/$E$7)*'Customer Info'!$D$18),) -> 0 | BF28: 0 | BG28: =IF($F$5="breakfast",IF(R28=0,,(R28/$E$4)*'Customer Info'!$D$19),) -> 0 | BH28: =IF($F$5="dinner",IF(T28=0,,(T28/$E$6)*'Customer Info'!$D$19),) -> 0 | BI28: =IF($F$5="other",IF(U28=0,,(U28/$E$7)*'Customer Info'!$D$19),) -> 0 | BJ28: 0 | BK28: =IF($F$6="breakfast",IF(R28=0,,(R28/$E$4)*'Customer Info'!$D$20),) -> 0 | BL28: =IF($F$6="lunch",IF(S28=0,,(S28/$E$5)*'Customer Info'!$D$20),) -> 0 | BM28: =IF($F$6="other",IF(U28=0,,(U28/$E$7)*'Customer Info'!$D$20),) -> 0 | BN28: 0 | BO28: =IF($F$7="breakfast",IF(R28=0,,(R28/$E$4)*'Customer Info'!$D$21),) -> 0 | BP28: =IF($F$7="lunch",IF(S28=0,,(S28/$E$5)*'Customer Info'!$D$21),) -> 0 | BQ28: =IF($F$7="dinner",IF(T28=0,,(T28/$E$6)*'Customer Info'!$D$21),) -> 0 | BR28: 0 | BS28: =IF($F$10="lunch",IF(W28=0,,(W28/$E$11)*'Customer Info'!$F$18),) -> 0 | BT28: =IF($F$10="dinner",IF(X28=0,,(X28/$E$12)*'Customer Info'!$F$18),) -> 0 | BU28: =IF($F$10="other",IF(Y28=0,,(Y28/$E$13)*'Customer Info'!$F$18),) -> 0 | BV28: 0 | BW28: =IF($F$11="breakfast",IF(V28=0,,(V28/$E$10)*'Customer Info'!$F$19),) -> 0 | BX28: =IF($F$11="dinner",IF(X28=0,,(X28/$E$12)*'Customer Info'!$F$19),) -> 0 | BY28: =IF($F$11="other",IF(Y28=0,,(Y28/$E$13)*'Customer Info'!$F$19),) -> 0 | BZ28: 0 | CA28: =IF($F$12="breakfast",IF(V28=0,,(V28/$E$10)*'Customer Info'!$F$20),) -> 0 | CB28: =IF($F$12="lunch",IF(W28=0,,(W28/$E$11)*'Customer Info'!$F$20),) -> 0 | CC28: =IF($F$12="other",IF(Y28=0,,(Y28/$E$13)*'Customer Info'!$F$20),) -> 0 | CD28: 0 | CE28: =IF($F$13="breakfast",IF(V28=0,,(V28/$E$10)*'Customer Info'!$F$21),) -> 0 | CF28: =IF($F$13="lunch",IF(W28=0,,(W28/$E$11)*'Customer Info'!$F$21),) -> 0 | CG28: =IF($F$13="dinner",IF(X28=0,,(X28/$E$12)*'Customer Info'!$F$21),) -> 0 | CH28: 0 | CI28: =IF($F$16="lunch",IF(AA28=0,,(AA28/$E$17)*'Customer Info'!$H$18),) -> 0 | CJ28: =IF($F$16="dinner",IF(AB28=0,,(AB28/$E$18)*'Customer Info'!$H$18),) -> 0 | CK28: =IF($F$16="other",IF(AC28=0,,(AC28/$E$19)*'Customer Info'!$H$18),) -> 0 | CL28: 0 | CM28: =IF($F$17="breakfast",IF(Z28=0,,(Z28/$E$16)*'Customer Info'!$H$19),) -> 0 | CN28: =IF($F$17="dinner",IF(AB28=0,,(AB28/$E$18)*'Customer Info'!$H$19),) -> 0 | CO28: =IF($F$17="other",IF(AC28=0,,(AC28/$E$19)*'Customer Info'!$H$19),) -> 0 | CP28: 0 | CQ28: =IF($F$18="breakfast",IF(Z28=0,,(Z28/$E$16)*'Customer Info'!$H$20),) -> 0 | CR28: =IF($F$18="lunch",IF(AA28=0,,(AA28/$E$17)*'Customer Info'!$H$20),) -> 0 | CS28: =IF($F$18="other",IF(AC28=0,,(AC28/$E$19)*'Customer Info'!$H$20),) -> 0 | CT28: 0 | CU28: =IF($F$19="breakfast",IF(Z28=0,,(Z28/$E$16)*'Customer Info'!$H$21),) -> 0 | CV28: =IF($F$19="lunch",IF(AA28=0,,(AA28/$E$17)*'Customer Info'!$H$21),) -> 0 | CW28: =IF($F$19="dinner",IF(AB28=0,,(AB28/$E$18)*'Customer Info'!$H$21),) -> 0 | CX28: 0 | CY28: 0 | CZ28: 4.804376658 | DA28: 0 | DB28: 0
A29: lunch | C29: patient | D29: compost | E29: prep waste | F29: Carrot, onion, pepper and lettuce trimmings | G29: 2 | H29: 6.8 | K29: 4.8 | L29: 4.612201592 | M29: 0 | N29: 0 | O29: 0 | P29: 0 | Q29: 0 | R29: 0 | S29: 0 | T29: 0 | U29: 0 | V29: 0 | W29: 0 | X29: 0 | Y29: 0 | Z29: 0 | AA29: 0 | AB29: 0 | AC29: 0 | AD29: 0 | AE29: 0 | AF29: 0 | AG29: 0 | AH29: =IF((OR($F$4=0,$F$4="none")),IF(R29=0,,IF(OR($E$4='Customer Info'!$D$18,$E$4=0),R29,(R29/$E$4)*'Customer Info'!$D$18)),) -> 0 | AI29: =IF((OR($F$5=0,$F$5="none")),IF(S29=0,,IF(OR($E$5='Customer Info'!$D$18,$E$5=0),S29,(S29/$E$5)*'Customer Info'!$D$19)),) -> 0 | AJ29: =IF((OR($F$6=0,$F$6="none")),IF(T29=0,,IF(OR($E$6='Customer Info'!$D$18,$E$6=0),T29,(T29/$E$6)*'Customer Info'!$D$20)),) -> 0 | AK29: =IF((OR($F$7=0,$F$7="none")),IF(U29=0,,IF(OR($E$7='Customer Info'!$D$18,$E$7=0),U29,(U29/$E$7)*'Customer Info'!$D$21)),) -> 0 | AL29: =IF((OR($F$10=0,$F$10="none")),IF(V29=0,,IF(OR($E$10='Customer Info'!$F$18,$E$10=0),V29,(V29/$E$10)*'Customer Info'!$F$18)),) -> 0 | AM29: =IF((OR($F$11=0,$F$11="none")),IF(W29=0,,IF(OR($E$11='Customer Info'!$F$19,$E$11=0),W29,(W29/$E$11)*'Customer Info'!$F$19)),) -> 0 | AN29: =IF((OR($F$12=0,$F$12="none")),IF(X29=0,,IF(OR($E$12='Customer Info'!$F$20,$E$12=0),X29,(X29/$E$12)*'Customer Info'!$F$20)),) -> 0 | AO29: =IF((OR($F$13=0,$F$13="none")),IF(Y29=0,,IF(OR($E$13='Customer Info'!$F$21,$E$13=0),Y29,(Y29/$E$13)*'Customer Info'!$F$21)),) -> 0 | AP29: =IF((OR($F$16=0,$F$16="none")),IF(Z29=0,,IF(OR($E$16='Customer Info'!$H$18,$E$16=0),Z29,(Z29/$E$16)*'Customer Info'!$H$18)),) -> 0 | AQ29: =IF((OR($F$17=0,$F$17="none")),IF(AA29=0,,IF(OR($E$17='Customer Info'!$H$19,$E$17=0),AA29,(AA29/$E$17)*'Customer Info'!$H$19)),) -> 0 | AR29: =IF((OR($F$18=0,$F$18="none")),IF(AB29=0,,IF(OR($E$18='Customer Info'!$H$20,$E$18=0),AB29,(AB29/$E$18)*'Customer Info'!$H$20)),) -> 0 | AS29: =IF((OR($F$19=0,$F$19="none")),IF(AC29=0,,IF(OR($E$19='Customer Info'!$H$21,$E$19=0),AC29,(AC29/$E$19)*'Customer Info'!$H$21)),) -> 0 | AT29: =IF((OR($F$4=0,$F$4="none")),IF(AD29=0,,IF(OR($E$4='Customer Info'!$D$18,$E$4=0),AD29,(AD29/$E$4)*'Customer Info'!$D$18)),) -> 0 | AU29: =IF((OR($F$5=0,$F$5="none")),IF(AE29=0,,IF(OR($E$5='Customer Info'!$D$19,$E$5=0),AE29,(AE29/$E$5)*'Customer Info'!$D$19)),) -> 0 | AV29: =IF((OR($F$6=0,$F$6="none")),IF(AF29=0,,IF(OR($E$6='Customer Info'!$D$20,$E$6=0),AF29,(AF29/$E$6)*'Customer Info'!$D$20)),) -> 0 | AW29: =IF((OR($F$7=0,$F$7="none")),IF(AG29=0,,IF(OR($E$7='Customer Info'!$D$21,$E$7=0),AG29,(AG29/$E$7)*'Customer Info'!$D$21)),) -> 0 | AX29: 0 | AY29: 4.8 | AZ29: =IF(E29="plate waste",,IF('Customer Info'!$M$18=0,'Log Sheet'!AY29,'Customer Info'!$M$18*'Log Sheet'!AY29)) -> 4.612201592 | BA29: =IF(E29="plate waste",IF(OR(C29="patient",C29="patient beverages"),IF('Customer Info'!$M$27=0,AY29*'Customer Info'!$M$18,AY29*'Customer Info'!$M$27),IF(C29="cafeteria",IF('Customer Info'!$M$28=0,AY29*'Customer Info'!$M$18,AY29*'Customer Info'!$M$28),IF(C29="other1",IF('Customer Info'!$M$29=0,AY29*'Customer Info'!$M$18,AY29*'Customer Info'!$M$29),))),) -> 0 | BB29: 4.612201592 | BC29: =IF($F$4="lunch",IF(S29=0,,(S29/$E$5)*'Customer Info'!$D$18),) -> 0 | BD29: =IF($F$4="dinner",IF(T29=0,,(T29/$E$6)*'Customer Info'!$D$18),) -> 0 | BE29: =IF($F$4="other",IF(U29=0,,(U29/$E$7)*'Customer Info'!$D$18),) -> 0 | BF29: 0 | BG29: =IF($F$5="breakfast",IF(R29=0,,(R29/$E$4)*'Customer Info'!$D$19),) -> 0 | BH29: =IF($F$5="dinner",IF(T29=0,,(T29/$E$6)*'Customer Info'!$D$19),) -> 0 | BI29: =IF($F$5="other",IF(U29=0,,(U29/$E$7)*'Customer Info'!$D$19),) -> 0 | BJ29: 0 | BK29: =IF($F$6="breakfast",IF(R29=0,,(R29/$E$4)*'Customer Info'!$D$20),) -> 0 | BL29: =IF($F$6="lunch",IF(S29=0,,(S29/$E$5)*'Customer Info'!$D$20),) -> 0 | BM29: =IF($F$6="other",IF(U29=0,,(U29/$E$7)*'Customer Info'!$D$20),) -> 0 | BN29: 0 | BO29: =IF($F$7="breakfast",IF(R29=0,,(R29/$E$4)*'Customer Info'!$D$21),) -> 0 | BP29: =IF($F$7="lunch",IF(S29=0,,(S29/$E$5)*'Customer Info'!$D$21),) -> 0 | BQ29: =IF($F$7="dinner",IF(T29=0,,(T29/$E$6)*'Customer Info'!$D$21),) -> 0 | BR29: 0 | BS29: =IF($F$10="lunch",IF(W29=0,,(W29/$E$11)*'Customer Info'!$F$18),) -> 0 | BT29: =IF($F$10="dinner",IF(X29=0,,(X29/$E$12)*'Customer Info'!$F$18),) -> 0 | BU29: =IF($F$10="other",IF(Y29=0,,(Y29/$E$13)*'Customer Info'!$F$18),) -> 0 | BV29: 0 | BW29: =IF($F$11="breakfast",IF(V29=0,,(V29/$E$10)*'Customer Info'!$F$19),) -> 0 | BX29: =IF($F$11="dinner",IF(X29=0,,(X29/$E$12)*'Customer Info'!$F$19),) -> 0 | BY29: =IF($F$11="other",IF(Y29=0,,(Y29/$E$13)*'Customer Info'!$F$19),) -> 0 | BZ29: 0 | CA29: =IF($F$12="breakfast",IF(V29=0,,(V29/$E$10)*'Customer Info'!$F$20),) -> 0 | CB29: =IF($F$12="lunch",IF(W29=0,,(W29/$E$11)*'Customer Info'!$F$20),) -> 0 | CC29: =IF($F$12="other",IF(Y29=0,,(Y29/$E$13)*'Customer Info'!$F$20),) -> 0 | CD29: 0 | CE29: =IF($F$13="breakfast",IF(V29=0,,(V29/$E$10)*'Customer Info'!$F$21),) -> 0 | CF29: =IF($F$13="lunch",IF(W29=0,,(W29/$E$11)*'Customer Info'!$F$21),) -> 0 | CG29: =IF($F$13="dinner",IF(X29=0,,(X29/$E$12)*'Customer Info'!$F$21),) -> 0 | CH29: 0 | CI29: =IF($F$16="lunch",IF(AA29=0,,(AA29/$E$17)*'Customer Info'!$H$18),) -> 0 | CJ29: =IF($F$16="dinner",IF(AB29=0,,(AB29/$E$18)*'Customer Info'!$H$18),) -> 0 | CK29: =IF($F$16="other",IF(AC29=0,,(AC29/$E$19)*'Customer Info'!$H$18),) -> 0 | CL29: 0 | CM29: =IF($F$17="breakfast",IF(Z29=0,,(Z29/$E$16)*'Customer Info'!$H$19),) -> 0 | CN29: =IF($F$17="dinner",IF(AB29=0,,(AB29/$E$18)*'Customer Info'!$H$19),) -> 0 | CO29: =IF($F$17="other",IF(AC29=0,,(AC29/$E$19)*'Customer Info'!$H$19),) -> 0 | CP29: 0 | CQ29: =IF($F$18="breakfast",IF(Z29=0,,(Z29/$E$16)*'Customer Info'!$H$20),) -> 0 | CR29: =IF($F$18="lunch",IF(AA29=0,,(AA29/$E$17)*'Customer Info'!$H$20),) -> 0 | CS29: =IF($F$18="other",IF(AC29=0,,(AC29/$E$19)*'Customer Info'!$H$20),) -> 0 | CT29: 0 | CU29: =IF($F$19="breakfast",IF(Z29=0,,(Z29/$E$16)*'Customer Info'!$H$21),) -> 0 | CV29: =IF($F$19="lunch",IF(AA29=0,,(AA29/$E$17)*'Customer Info'!$H$21),) -> 0 | CW29: =IF($F$19="dinner",IF(AB29=0,,(AB29/$E$18)*'Customer Info'!$H$21),) -> 0 | CX29: 0 | CY29: 0 | CZ29: 4.612201592 | DA29: 0 | DB29: 0
A30: lunch | C30: other1 | D30: compost | E30: quality | F30: Burned rice – rice cooker is broken | G30: 2 | H30: 8.4 | J30: Cafeteria Prep kitchen | K30: 6.4 | L30: 6.149602122 | M30: 0 | N30: 0 | O30: 0 | P30: 0 | Q30: 0 | R30: 0 | S30: 0 | T30: 0 | U30: 0 | V30: 0 | W30: 0 | X30: 0 | Y30: 0 | Z30: 0 | AA30: 0 | AB30: 0 | AC30: 0 | AD30: 0 | AE30: 0 | AF30: 0 | AG30: 0 | AH30: =IF((OR($F$4=0,$F$4="none")),IF(R30=0,,IF(OR($E$4='Customer Info'!$D$18,$E$4=0),R30,(R30/$E$4)*'Customer Info'!$D$18)),) -> 0 | AI30: =IF((OR($F$5=0,$F$5="none")),IF(S30=0,,IF(OR($E$5='Customer Info'!$D$18,$E$5=0),S30,(S30/$E$5)*'Customer Info'!$D$19)),) -> 0 | AJ30: =IF((OR($F$6=0,$F$6="none")),IF(T30=0,,IF(OR($E$6='Customer Info'!$D$18,$E$6=0),T30,(T30/$E$6)*'Customer Info'!$D$20)),) -> 0 | AK30: =IF((OR($F$7=0,$F$7="none")),IF(U30=0,,IF(OR($E$7='Customer Info'!$D$18,$E$7=0),U30,(U30/$E$7)*'Customer Info'!$D$21)),) -> 0 | AL30: =IF((OR($F$10=0,$F$10="none")),IF(V30=0,,IF(OR($E$10='Customer Info'!$F$18,$E$10=0),V30,(V30/$E$10)*'Customer Info'!$F$18)),) -> 0 | AM30: =IF((OR($F$11=0,$F$11="none")),IF(W30=0,,IF(OR($E$11='Customer Info'!$F$19,$E$11=0),W30,(W30/$E$11)*'Customer Info'!$F$19)),) -> 0 | AN30: =IF((OR($F$12=0,$F$12="none")),IF(X30=0,,IF(OR($E$12='Customer Info'!$F$20,$E$12=0),X30,(X30/$E$12)*'Customer Info'!$F$20)),) -> 0 | AO30: =IF((OR($F$13=0,$F$13="none")),IF(Y30=0,,IF(OR($E$13='Customer Info'!$F$21,$E$13=0),Y30,(Y30/$E$13)*'Customer Info'!$F$21)),) -> 0 | AP30: =IF((OR($F$16=0,$F$16="none")),IF(Z30=0,,IF(OR($E$16='Customer Info'!$H$18,$E$16=0),Z30,(Z30/$E$16)*'Customer Info'!$H$18)),) -> 0 | AQ30: =IF((OR($F$17=0,$F$17="none")),IF(AA30=0,,IF(OR($E$17='Customer Info'!$H$19,$E$17=0),AA30,(AA30/$E$17)*'Customer Info'!$H$19)),) -> 0 | AR30: =IF((OR($F$18=0,$F$18="none")),IF(AB30=0,,IF(OR($E$18='Customer Info'!$H$20,$E$18=0),AB30,(AB30/$E$18)*'Customer Info'!$H$20)),) -> 0 | AS30: =IF((OR($F$19=0,$F$19="none")),IF(AC30=0,,IF(OR($E$19='Customer Info'!$H$21,$E$19=0),AC30,(AC30/$E$19)*'Customer Info'!$H$21)),) -> 0 | AT30: =IF((OR($F$4=0,$F$4="none")),IF(AD30=0,,IF(OR($E$4='Customer Info'!$D$18,$E$4=0),AD30,(AD30/$E$4)*'Customer Info'!$D$18)),) -> 0 | AU30: =IF((OR($F$5=0,$F$5="none")),IF(AE30=0,,IF(OR($E$5='Customer Info'!$D$19,$E$5=0),AE30,(AE30/$E$5)*'Customer Info'!$D$19)),) -> 0 | AV30: =IF((OR($F$6=0,$F$6="none")),IF(AF30=0,,IF(OR($E$6='Customer Info'!$D$20,$E$6=0),AF30,(AF30/$E$6)*'Customer Info'!$D$20)),) -> 0 | AW30: =IF((OR($F$7=0,$F$7="none")),IF(AG30=0,,IF(OR($E$7='Customer Info'!$D$21,$E$7=0),AG30,(AG30/$E$7)*'Customer Info'!$D$21)),) -> 0 | AX30: 0 | AY30: 6.4 | AZ30: =IF(E30="plate waste",,IF('Customer Info'!$M$18=0,'Log Sheet'!AY30,'Customer Info'!$M$18*'Log Sheet'!AY30)) -> 6.149602122 | BA30: =IF(E30="plate waste",IF(OR(C30="patient",C30="patient beverages"),IF('Customer Info'!$M$27=0,AY30*'Customer Info'!$M$18,AY30*'Customer Info'!$M$27),IF(C30="cafeteria",IF('Customer Info'!$M$28=0,AY30*'Customer Info'!$M$18,AY30*'Customer Info'!$M$28),IF(C30="other1",IF('Customer Info'!$M$29=0,AY30*'Customer Info'!$M$18,AY30*'Customer Info'!$M$29),))),) -> 0 | BB30: 6.149602122 | BC30: =IF($F$4="lunch",IF(S30=0,,(S30/$E$5)*'Customer Info'!$D$18),) -> 0 | BD30: =IF($F$4="dinner",IF(T30=0,,(T30/$E$6)*'Customer Info'!$D$18),) -> 0 | BE30: =IF($F$4="other",IF(U30=0,,(U30/$E$7)*'Customer Info'!$D$18),) -> 0 | BF30: 0 | BG30: =IF($F$5="breakfast",IF(R30=0,,(R30/$E$4)*'Customer Info'!$D$19),) -> 0 | BH30: =IF($F$5="dinner",IF(T30=0,,(T30/$E$6)*'Customer Info'!$D$19),) -> 0 | BI30: =IF($F$5="other",IF(U30=0,,(U30/$E$7)*'Customer Info'!$D$19),) -> 0 | BJ30: 0 | BK30: =IF($F$6="breakfast",IF(R30=0,,(R30/$E$4)*'Customer Info'!$D$20),) -> 0 | BL30: =IF($F$6="lunch",IF(S30=0,,(S30/$E$5)*'Customer Info'!$D$20),) -> 0 | BM30: =IF($F$6="other",IF(U30=0,,(U30/$E$7)*'Customer Info'!$D$20),) -> 0 | BN30: 0 | BO30: =IF($F$7="breakfast",IF(R30=0,,(R30/$E$4)*'Customer Info'!$D$21),) -> 0 | BP30: =IF($F$7="lunch",IF(S30=0,,(S30/$E$5)*'Customer Info'!$D$21),) -> 0 | BQ30: =IF($F$7="dinner",IF(T30=0,,(T30/$E$6)*'Customer Info'!$D$21),) -> 0 | BR30: 0 | BS30: =IF($F$10="lunch",IF(W30=0,,(W30/$E$11)*'Customer Info'!$F$18),) -> 0 | BT30: =IF($F$10="dinner",IF(X30=0,,(X30/$E$12)*'Customer Info'!$F$18),) -> 0 | BU30: =IF($F$10="other",IF(Y30=0,,(Y30/$E$13)*'Customer Info'!$F$18),) -> 0 | BV30: 0 | BW30: =IF($F$11="breakfast",IF(V30=0,,(V30/$E$10)*'Customer Info'!$F$19),) -> 0 | BX30: =IF($F$11="dinner",IF(X30=0,,(X30/$E$12)*'Customer Info'!$F$19),) -> 0 | BY30: =IF($F$11="other",IF(Y30=0,,(Y30/$E$13)*'Customer Info'!$F$19),) -> 0 | BZ30: 0 | CA30: =IF($F$12="breakfast",IF(V30=0,,(V30/$E$10)*'Customer Info'!$F$20),) -> 0 | CB30: =IF($F$12="lunch",IF(W30=0,,(W30/$E$11)*'Customer Info'!$F$20),) -> 0 | CC30: =IF($F$12="other",IF(Y30=0,,(Y30/$E$13)*'Customer Info'!$F$20),) -> 0 | CD30: 0 | CE30: =IF($F$13="breakfast",IF(V30=0,,(V30/$E$10)*'Customer Info'!$F$21),) -> 0 | CF30: =IF($F$13="lunch",IF(W30=0,,(W30/$E$11)*'Customer Info'!$F$21),) -> 0 | CG30: =IF($F$13="dinner",IF(X30=0,,(X30/$E$12)*'Customer Info'!$F$21),) -> 0 | CH30: 0 | CI30: =IF($F$16="lunch",IF(AA30=0,,(AA30/$E$17)*'Customer Info'!$H$18),) -> 0 | CJ30: =IF($F$16="dinner",IF(AB30=0,,(AB30/$E$18)*'Customer Info'!$H$18),) -> 0 | CK30: =IF($F$16="other",IF(AC30=0,,(AC30/$E$19)*'Customer Info'!$H$18),) -> 0 | CL30: 0 | CM30: =IF($F$17="breakfast",IF(Z30=0,,(Z30/$E$16)*'Customer Info'!$H$19),) -> 0 | CN30: =IF($F$17="dinner",IF(AB30=0,,(AB30/$E$18)*'Customer Info'!$H$19),) -> 0 | CO30: =IF($F$17="other",IF(AC30=0,,(AC30/$E$19)*'Customer Info'!$H$19),) -> 0 | CP30: 0 | CQ30: =IF($F$18="breakfast",IF(Z30=0,,(Z30/$E$16)*'Customer Info'!$H$20),) -> 0 | CR30: =IF($F$18="lunch",IF(AA30=0,,(AA30/$E$17)*'Customer Info'!$H$20),) -> 0 | CS30: =IF($F$18="other",IF(AC30=0,,(AC30/$E$19)*'Customer Info'!$H$20),) -> 0 | CT30: 0 | CU30: =IF($F$19="breakfast",IF(Z30=0,,(Z30/$E$16)*'Customer Info'!$H$21),) -> 0 | CV30: =IF($F$19="lunch",IF(AA30=0,,(AA30/$E$17)*'Customer Info'!$H$21),) -> 0 | CW30: =IF($F$19="dinner",IF(AB30=0,,(AB30/$E$18)*'Customer Info'!$H$21),) -> 0 | CX30: 0 | CY30: 0 | CZ30: 6.149602122 | DA30: 0 | DB30: 0
A31: breakfast | C31: patient | D31: landfill | E31: plate waste | F31: Pancakes, eggs, sausage, applesauce | G31: 2 | H31: 18 | K31: 16 | L31: 47.5409706 | M31: 16 | N31: 16 | O31: 0 | P31: 0 | Q31: 0 | R31: 16 | S31: 0 | T31: 0 | U31: 0 | V31: 0 | W31: 0 | X31: 0 | Y31: 0 | Z31: 0 | AA31: 0 | AB31: 0 | AC31: 0 | AD31: 0 | AE31: 0 | AF31: 0 | AG31: 0 | AH31: =IF((OR($F$4=0,$F$4="none")),IF(R31=0,,IF(OR($E$4='Customer Info'!$D$18,$E$4=0),R31,(R31/$E$4)*'Customer Info'!$D$18)),) -> 42.12658228 | AI31: =IF((OR($F$5=0,$F$5="none")),IF(S31=0,,IF(OR($E$5='Customer Info'!$D$18,$E$5=0),S31,(S31/$E$5)*'Customer Info'!$D$19)),) -> 0 | AJ31: =IF((OR($F$6=0,$F$6="none")),IF(T31=0,,IF(OR($E$6='Customer Info'!$D$18,$E$6=0),T31,(T31/$E$6)*'Customer Info'!$D$20)),) -> 0 | AK31: =IF((OR($F$7=0,$F$7="none")),IF(U31=0,,IF(OR($E$7='Customer Info'!$D$18,$E$7=0),U31,(U31/$E$7)*'Customer Info'!$D$21)),) -> 0 | AL31: =IF((OR($F$10=0,$F$10="none")),IF(V31=0,,IF(OR($E$10='Customer Info'!$F$18,$E$10=0),V31,(V31/$E$10)*'Customer Info'!$F$18)),) -> 0 | AM31: =IF((OR($F$11=0,$F$11="none")),IF(W31=0,,IF(OR($E$11='Customer Info'!$F$19,$E$11=0),W31,(W31/$E$11)*'Customer Info'!$F$19)),) -> 0 | AN31: =IF((OR($F$12=0,$F$12="none")),IF(X31=0,,IF(OR($E$12='Customer Info'!$F$20,$E$12=0),X31,(X31/$E$12)*'Customer Info'!$F$20)),) -> 0 | AO31: =IF((OR($F$13=0,$F$13="none")),IF(Y31=0,,IF(OR($E$13='Customer Info'!$F$21,$E$13=0),Y31,(Y31/$E$13)*'Customer Info'!$F$21)),) -> 0 | AP31: =IF((OR($F$16=0,$F$16="none")),IF(Z31=0,,IF(OR($E$16='Customer Info'!$H$18,$E$16=0),Z31,(Z31/$E$16)*'Customer Info'!$H$18)),) -> 0 | AQ31: =IF((OR($F$17=0,$F$17="none")),IF(AA31=0,,IF(OR($E$17='Customer Info'!$H$19,$E$17=0),AA31,(AA31/$E$17)*'Customer Info'!$H$19)),) -> 0 | AR31: =IF((OR($F$18=0,$F$18="none")),IF(AB31=0,,IF(OR($E$18='Customer Info'!$H$20,$E$18=0),AB31,(AB31/$E$18)*'Customer Info'!$H$20)),) -> 0 | AS31: =IF((OR($F$19=0,$F$19="none")),IF(AC31=0,,IF(OR($E$19='Customer Info'!$H$21,$E$19=0),AC31,(AC31/$E$19)*'Customer Info'!$H$21)),) -> 0 | AT31: =IF((OR($F$4=0,$F$4="none")),IF(AD31=0,,IF(OR($E$4='Customer Info'!$D$18,$E$4=0),AD31,(AD31/$E$4)*'Customer Info'!$D$18)),) -> 0 | AU31: =IF((OR($F$5=0,$F$5="none")),IF(AE31=0,,IF(OR($E$5='Customer Info'!$D$19,$E$5=0),AE31,(AE31/$E$5)*'Customer Info'!$D$19)),) -> 0 | AV31: =IF((OR($F$6=0,$F$6="none")),IF(AF31=0,,IF(OR($E$6='Customer Info'!$D$20,$E$6=0),AF31,(AF31/$E$6)*'Customer Info'!$D$20)),) -> 0 | AW31: =IF((OR($F$7=0,$F$7="none")),IF(AG31=0,,IF(OR($E$7='Customer Info'!$D$21,$E$7=0),AG31,(AG31/$E$7)*'Customer Info'!$D$21)),) -> 0 | AX31: 42.12658228 | AY31: 42.12658228 | AZ31: =IF(E31="plate waste",,IF('Customer Info'!$M$18=0,'Log Sheet'!AY31,'Customer Info'!$M$18*'Log Sheet'!AY31)) -> 0 | BA31: =IF(E31="plate waste",IF(OR(C31="patient",C31="patient beverages"),IF('Customer Info'!$M$27=0,AY31*'Customer Info'!$M$18,AY31*'Customer Info'!$M$27),IF(C31="cafeteria",IF('Customer Info'!$M$28=0,AY31*'Customer Info'!$M$18,AY31*'Customer Info'!$M$28),IF(C31="other1",IF('Customer Info'!$M$29=0,AY31*'Customer Info'!$M$18,AY31*'Customer Info'!$M$29),))),) -> 47.5409706 | BB31: 47.5409706 | BC31: =IF($F$4="lunch",IF(S31=0,,(S31/$E$5)*'Customer Info'!$D$18),) -> 0 | BD31: =IF($F$4="dinner",IF(T31=0,,(T31/$E$6)*'Customer Info'!$D$18),) -> 0 | BE31: =IF($F$4="other",IF(U31=0,,(U31/$E$7)*'Customer Info'!$D$18),) -> 0 | BF31: 0 | BG31: =IF($F$5="breakfast",IF(R31=0,,(R31/$E$4)*'Customer Info'!$D$19),) -> 0 | BH31: =IF($F$5="dinner",IF(T31=0,,(T31/$E$6)*'Customer Info'!$D$19),) -> 0 | BI31: =IF($F$5="other",IF(U31=0,,(U31/$E$7)*'Customer Info'!$D$19),) -> 0 | BJ31: 0 | BK31: =IF($F$6="breakfast",IF(R31=0,,(R31/$E$4)*'Customer Info'!$D$20),) -> 0 | BL31: =IF($F$6="lunch",IF(S31=0,,(S31/$E$5)*'Customer Info'!$D$20),) -> 0 | BM31: =IF($F$6="other",IF(U31=0,,(U31/$E$7)*'Customer Info'!$D$20),) -> 0 | BN31: 0 | BO31: =IF($F$7="breakfast",IF(R31=0,,(R31/$E$4)*'Customer Info'!$D$21),) -> 0 | BP31: =IF($F$7="lunch",IF(S31=0,,(S31/$E$5)*'Customer Info'!$D$21),) -> 0 | BQ31: =IF($F$7="dinner",IF(T31=0,,(T31/$E$6)*'Customer Info'!$D$21),) -> 0 | BR31: 0 | BS31: =IF($F$10="lunch",IF(W31=0,,(W31/$E$11)*'Customer Info'!$F$18),) -> 0 | BT31: =IF($F$10="dinner",IF(X31=0,,(X31/$E$12)*'Customer Info'!$F$18),) -> 0 | BU31: =IF($F$10="other",IF(Y31=0,,(Y31/$E$13)*'Customer Info'!$F$18),) -> 0 | BV31: 0 | BW31: =IF($F$11="breakfast",IF(V31=0,,(V31/$E$10)*'Customer Info'!$F$19),) -> 0 | BX31: =IF($F$11="dinner",IF(X31=0,,(X31/$E$12)*'Customer Info'!$F$19),) -> 0 | BY31: =IF($F$11="other",IF(Y31=0,,(Y31/$E$13)*'Customer Info'!$F$19),) -> 0 | BZ31: 0 | CA31: =IF($F$12="breakfast",IF(V31=0,,(V31/$E$10)*'Customer Info'!$F$20),) -> 0 | CB31: =IF($F$12="lunch",IF(W31=0,,(W31/$E$11)*'Customer Info'!$F$20),) -> 0 | CC31: =IF($F$12="other",IF(Y31=0,,(Y31/$E$13)*'Customer Info'!$F$20),) -> 0 | CD31: 0 | CE31: =IF($F$13="breakfast",IF(V31=0,,(V31/$E$10)*'Customer Info'!$F$21),) -> 0 | CF31: =IF($F$13="lunch",IF(W31=0,,(W31/$E$11)*'Customer Info'!$F$21),) -> 0 | CG31: =IF($F$13="dinner",IF(X31=0,,(X31/$E$12)*'Customer Info'!$F$21),) -> 0 | CH31: 0 | CI31: =IF($F$16="lunch",IF(AA31=0,,(AA31/$E$17)*'Customer Info'!$H$18),) -> 0 | CJ31: =IF($F$16="dinner",IF(AB31=0,,(AB31/$E$18)*'Customer Info'!$H$18),) -> 0 | CK31: =IF($F$16="other",IF(AC31=0,,(AC31/$E$19)*'Customer Info'!$H$18),) -> 0 | CL31: 0 | CM31: =IF($F$17="breakfast",IF(Z31=0,,(Z31/$E$16)*'Customer Info'!$H$19),) -> 0 | CN31: =IF($F$17="dinner",IF(AB31=0,,(AB31/$E$18)*'Customer Info'!$H$19),) -> 0 | CO31: =IF($F$17="other",IF(AC31=0,,(AC31/$E$19)*'Customer Info'!$H$19),) -> 0 | CP31: 0 | CQ31: =IF($F$18="breakfast",IF(Z31=0,,(Z31/$E$16)*'Customer Info'!$H$20),) -> 0 | CR31: =IF($F$18="lunch",IF(AA31=0,,(AA31/$E$17)*'Customer Info'!$H$20),) -> 0 | CS31: =IF($F$18="other",IF(AC31=0,,(AC31/$E$19)*'Customer Info'!$H$20),) -> 0 | CT31: 0 | CU31: =IF($F$19="breakfast",IF(Z31=0,,(Z31/$E$16)*'Customer Info'!$H$21),) -> 0 | CV31: =IF($F$19="lunch",IF(AA31=0,,(AA31/$E$17)*'Customer Info'!$H$21),) -> 0 | CW31: =IF($F$19="dinner",IF(AB31=0,,(AB31/$E$18)*'Customer Info'!$H$21),) -> 0 | CX31: 0 | CY31: 47.5409706 | CZ31: 0 | DA31: 0 | DB31: 0
A32: breakfast | C32: patient beverages | D32: landfill | E32: plate waste | F32: Milk, Juice – sorted out | G32: 2 | H32: 17 | I32: 30 | K32: 15 | L32: 44.56965993 | M32: 15 | N32: 0 | O32: 0 | P32: 0 | Q32: 15 | R32: 0 | S32: 0 | T32: 0 | U32: 0 | V32: 0 | W32: 0 | X32: 0 | Y32: 0 | Z32: 0 | AA32: 0 | AB32: 0 | AC32: 0 | AD32: 15 | AE32: 0 | AF32: 0 | AG32: 0 | AH32: =IF((OR($F$4=0,$F$4="none")),IF(R32=0,,IF(OR($E$4='Customer Info'!$D$18,$E$4=0),R32,(R32/$E$4)*'Customer Info'!$D$18)),) -> 0 | AI32: =IF((OR($F$5=0,$F$5="none")),IF(S32=0,,IF(OR($E$5='Customer Info'!$D$18,$E$5=0),S32,(S32/$E$5)*'Customer Info'!$D$19)),) -> 0 | AJ32: =IF((OR($F$6=0,$F$6="none")),IF(T32=0,,IF(OR($E$6='Customer Info'!$D$18,$E$6=0),T32,(T32/$E$6)*'Customer Info'!$D$20)),) -> 0 | AK32: =IF((OR($F$7=0,$F$7="none")),IF(U32=0,,IF(OR($E$7='Customer Info'!$D$18,$E$7=0),U32,(U32/$E$7)*'Customer Info'!$D$21)),) -> 0 | AL32: =IF((OR($F$10=0,$F$10="none")),IF(V32=0,,IF(OR($E$10='Customer Info'!$F$18,$E$10=0),V32,(V32/$E$10)*'Customer Info'!$F$18)),) -> 0 | AM32: =IF((OR($F$11=0,$F$11="none")),IF(W32=0,,IF(OR($E$11='Customer Info'!$F$19,$E$11=0),W32,(W32/$E$11)*'Customer Info'!$F$19)),) -> 0 | AN32: =IF((OR($F$12=0,$F$12="none")),IF(X32=0,,IF(OR($E$12='Customer Info'!$F$20,$E$12=0),X32,(X32/$E$12)*'Customer Info'!$F$20)),) -> 0 | AO32: =IF((OR($F$13=0,$F$13="none")),IF(Y32=0,,IF(OR($E$13='Customer Info'!$F$21,$E$13=0),Y32,(Y32/$E$13)*'Customer Info'!$F$21)),) -> 0 | AP32: =IF((OR($F$16=0,$F$16="none")),IF(Z32=0,,IF(OR($E$16='Customer Info'!$H$18,$E$16=0),Z32,(Z32/$E$16)*'Customer Info'!$H$18)),) -> 0 | AQ32: =IF((OR($F$17=0,$F$17="none")),IF(AA32=0,,IF(OR($E$17='Customer Info'!$H$19,$E$17=0),AA32,(AA32/$E$17)*'Customer Info'!$H$19)),) -> 0 | AR32: =IF((OR($F$18=0,$F$18="none")),IF(AB32=0,,IF(OR($E$18='Customer Info'!$H$20,$E$18=0),AB32,(AB32/$E$18)*'Customer Info'!$H$20)),) -> 0 | AS32: =IF((OR($F$19=0,$F$19="none")),IF(AC32=0,,IF(OR($E$19='Customer Info'!$H$21,$E$19=0),AC32,(AC32/$E$19)*'Customer Info'!$H$21)),) -> 0 | AT32: =IF((OR($F$4=0,$F$4="none")),IF(AD32=0,,IF(OR($E$4='Customer Info'!$D$18,$E$4=0),AD32,(AD32/$E$4)*'Customer Info'!$D$18)),) -> 39.49367089 | AU32: =IF((OR($F$5=0,$F$5="none")),IF(AE32=0,,IF(OR($E$5='Customer Info'!$D$19,$E$5=0),AE32,(AE32/$E$5)*'Customer Info'!$D$19)),) -> 0 | AV32: =IF((OR($F$6=0,$F$6="none")),IF(AF32=0,,IF(OR($E$6='Customer Info'!$D$20,$E$6=0),AF32,(AF32/$E$6)*'Customer Info'!$D$20)),) -> 0 | AW32: =IF((OR($F$7=0,$F$7="none")),IF(AG32=0,,IF(OR($E$7='Customer Info'!$D$21,$E$7=0),AG32,(AG32/$E$7)*'Customer Info'!$D$21)),) -> 0 | AX32: 39.49367089 | AY32: 39.49367089 | AZ32: =IF(E32="plate waste",,IF('Customer Info'!$M$18=0,'Log Sheet'!AY32,'Customer Info'!$M$18*'Log Sheet'!AY32)) -> 0 | BA32: =IF(E32="plate waste",IF(OR(C32="patient",C32="patient beverages"),IF('Customer Info'!$M$27=0,AY32*'Customer Info'!$M$18,AY32*'Customer Info'!$M$27),IF(C32="cafeteria",IF('Customer Info'!$M$28=0,AY32*'Customer Info'!$M$18,AY32*'Customer Info'!$M$28),IF(C32="other1",IF('Customer Info'!$M$29=0,AY32*'Customer Info'!$M$18,AY32*'Customer Info'!$M$29),))),) -> 44.56965993 | BB32: 44.56965993 | BC32: =IF($F$4="lunch",IF(S32=0,,(S32/$E$5)*'Customer Info'!$D$18),) -> 0 | BD32: =IF($F$4="dinner",IF(T32=0,,(T32/$E$6)*'Customer Info'!$D$18),) -> 0 | BE32: =IF($F$4="other",IF(U32=0,,(U32/$E$7)*'Customer Info'!$D$18),) -> 0 | BF32: 0 | BG32: =IF($F$5="breakfast",IF(R32=0,,(R32/$E$4)*'Customer Info'!$D$19),) -> 0 | BH32: =IF($F$5="dinner",IF(T32=0,,(T32/$E$6)*'Customer Info'!$D$19),) -> 0 | BI32: =IF($F$5="other",IF(U32=0,,(U32/$E$7)*'Customer Info'!$D$19),) -> 0 | BJ32: 0 | BK32: =IF($F$6="breakfast",IF(R32=0,,(R32/$E$4)*'Customer Info'!$D$20),) -> 0 | BL32: =IF($F$6="lunch",IF(S32=0,,(S32/$E$5)*'Customer Info'!$D$20),) -> 0 | BM32: =IF($F$6="other",IF(U32=0,,(U32/$E$7)*'Customer Info'!$D$20),) -> 0 | BN32: 0 | BO32: =IF($F$7="breakfast",IF(R32=0,,(R32/$E$4)*'Customer Info'!$D$21),) -> 0 | BP32: =IF($F$7="lunch",IF(S32=0,,(S32/$E$5)*'Customer Info'!$D$21),) -> 0 | BQ32: =IF($F$7="dinner",IF(T32=0,,(T32/$E$6)*'Customer Info'!$D$21),) -> 0 | BR32: 0 | BS32: =IF($F$10="lunch",IF(W32=0,,(W32/$E$11)*'Customer Info'!$F$18),) -> 0 | BT32: =IF($F$10="dinner",IF(X32=0,,(X32/$E$12)*'Customer Info'!$F$18),) -> 0 | BU32: =IF($F$10="other",IF(Y32=0,,(Y32/$E$13)*'Customer Info'!$F$18),) -> 0 | BV32: 0 | BW32: =IF($F$11="breakfast",IF(V32=0,,(V32/$E$10)*'Customer Info'!$F$19),) -> 0 | BX32: =IF($F$11="dinner",IF(X32=0,,(X32/$E$12)*'Customer Info'!$F$19),) -> 0 | BY32: =IF($F$11="other",IF(Y32=0,,(Y32/$E$13)*'Customer Info'!$F$19),) -> 0 | BZ32: 0 | CA32: =IF($F$12="breakfast",IF(V32=0,,(V32/$E$10)*'Customer Info'!$F$20),) -> 0 | CB32: =IF($F$12="lunch",IF(W32=0,,(W32/$E$11)*'Customer Info'!$F$20),) -> 0 | CC32: =IF($F$12="other",IF(Y32=0,,(Y32/$E$13)*'Customer Info'!$F$20),) -> 0 | CD32: 0 | CE32: =IF($F$13="breakfast",IF(V32=0,,(V32/$E$10)*'Customer Info'!$F$21),) -> 0 | CF32: =IF($F$13="lunch",IF(W32=0,,(W32/$E$11)*'Customer Info'!$F$21),) -> 0 | CG32: =IF($F$13="dinner",IF(X32=0,,(X32/$E$12)*'Customer Info'!$F$21),) -> 0 | CH32: 0 | CI32: =IF($F$16="lunch",IF(AA32=0,,(AA32/$E$17)*'Customer Info'!$H$18),) -> 0 | CJ32: =IF($F$16="dinner",IF(AB32=0,,(AB32/$E$18)*'Customer Info'!$H$18),) -> 0 | CK32: =IF($F$16="other",IF(AC32=0,,(AC32/$E$19)*'Customer Info'!$H$18),) -> 0 | CL32: 0 | CM32: =IF($F$17="breakfast",IF(Z32=0,,(Z32/$E$16)*'Customer Info'!$H$19),) -> 0 | CN32: =IF($F$17="dinner",IF(AB32=0,,(AB32/$E$18)*'Customer Info'!$H$19),) -> 0 | CO32: =IF($F$17="other",IF(AC32=0,,(AC32/$E$19)*'Customer Info'!$H$19),) -> 0 | CP32: 0 | CQ32: =IF($F$18="breakfast",IF(Z32=0,,(Z32/$E$16)*'Customer Info'!$H$20),) -> 0 | CR32: =IF($F$18="lunch",IF(AA32=0,,(AA32/$E$17)*'Customer Info'!$H$20),) -> 0 | CS32: =IF($F$18="other",IF(AC32=0,,(AC32/$E$19)*'Customer Info'!$H$20),) -> 0 | CT32: 0 | CU32: =IF($F$19="breakfast",IF(Z32=0,,(Z32/$E$16)*'Customer Info'!$H$21),) -> 0 | CV32: =IF($F$19="lunch",IF(AA32=0,,(AA32/$E$17)*'Customer Info'!$H$21),) -> 0 | CW32: =IF($F$19="dinner",IF(AB32=0,,(AB32/$E$18)*'Customer Info'!$H$21),) -> 0 | CX32: 0 | CY32: 44.56965993 | CZ32: 0 | DA32: =IF(Q32=0,,I32*(L32/K32)) -> 89.13931987 | DB32: 44.56965993 | DC32: breakfast
A33: lunch | C33: patient | D33: landfill | E33: plate waste | F33: Sandwiches, grilled chicken, salad, rice | G33: 2 | H33: 28.4 | K33: 26.4 | L33: 72.45141066 | M33: 26.4 | N33: 26.4 | O33: 0 | P33: 0 | Q33: 0 | R33: 0 | S33: 26.4 | T33: 0 | U33: 0 | V33: 0 | W33: 0 | X33: 0 | Y33: 0 | Z33: 0 | AA33: 0 | AB33: 0 | AC33: 0 | AD33: 0 | AE33: 0 | AF33: 0 | AG33: 0 | AH33: =IF((OR($F$4=0,$F$4="none")),IF(R33=0,,IF(OR($E$4='Customer Info'!$D$18,$E$4=0),R33,(R33/$E$4)*'Customer Info'!$D$18)),) -> 0 | AI33: =IF((OR($F$5=0,$F$5="none")),IF(S33=0,,IF(OR($E$5='Customer Info'!$D$18,$E$5=0),S33,(S33/$E$5)*'Customer Info'!$D$19)),) -> 64.2 | AJ33: =IF((OR($F$6=0,$F$6="none")),IF(T33=0,,IF(OR($E$6='Customer Info'!$D$18,$E$6=0),T33,(T33/$E$6)*'Customer Info'!$D$20)),) -> 0 | AK33: =IF((OR($F$7=0,$F$7="none")),IF(U33=0,,IF(OR($E$7='Customer Info'!$D$18,$E$7=0),U33,(U33/$E$7)*'Customer Info'!$D$21)),) -> 0 | AL33: =IF((OR($F$10=0,$F$10="none")),IF(V33=0,,IF(OR($E$10='Customer Info'!$F$18,$E$10=0),V33,(V33/$E$10)*'Customer Info'!$F$18)),) -> 0 | AM33: =IF((OR($F$11=0,$F$11="none")),IF(W33=0,,IF(OR($E$11='Customer Info'!$F$19,$E$11=0),W33,(W33/$E$11)*'Customer Info'!$F$19)),) -> 0 | AN33: =IF((OR($F$12=0,$F$12="none")),IF(X33=0,,IF(OR($E$12='Customer Info'!$F$20,$E$12=0),X33,(X33/$E$12)*'Customer Info'!$F$20)),) -> 0 | AO33: =IF((OR($F$13=0,$F$13="none")),IF(Y33=0,,IF(OR($E$13='Customer Info'!$F$21,$E$13=0),Y33,(Y33/$E$13)*'Customer Info'!$F$21)),) -> 0 | AP33: =IF((OR($F$16=0,$F$16="none")),IF(Z33=0,,IF(OR($E$16='Customer Info'!$H$18,$E$16=0),Z33,(Z33/$E$16)*'Customer Info'!$H$18)),) -> 0 | AQ33: =IF((OR($F$17=0,$F$17="none")),IF(AA33=0,,IF(OR($E$17='Customer Info'!$H$19,$E$17=0),AA33,(AA33/$E$17)*'Customer Info'!$H$19)),) -> 0 | AR33: =IF((OR($F$18=0,$F$18="none")),IF(AB33=0,,IF(OR($E$18='Customer Info'!$H$20,$E$18=0),AB33,(AB33/$E$18)*'Customer Info'!$H$20)),) -> 0 | AS33: =IF((OR($F$19=0,$F$19="none")),IF(AC33=0,,IF(OR($E$19='Customer Info'!$H$21,$E$19=0),AC33,(AC33/$E$19)*'Customer Info'!$H$21)),) -> 0 | AT33: =IF((OR($F$4=0,$F$4="none")),IF(AD33=0,,IF(OR($E$4='Customer Info'!$D$18,$E$4=0),AD33,(AD33/$E$4)*'Customer Info'!$D$18)),) -> 0 | AU33: =IF((OR($F$5=0,$F$5="none")),IF(AE33=0,,IF(OR($E$5='Customer Info'!$D$19,$E$5=0),AE33,(AE33/$E$5)*'Customer Info'!$D$19)),) -> 0 | AV33: =IF((OR($F$6=0,$F$6="none")),IF(AF33=0,,IF(OR($E$6='Customer Info'!$D$20,$E$6=0),AF33,(AF33/$E$6)*'Customer Info'!$D$20)),) -> 0 | AW33: =IF((OR($F$7=0,$F$7="none")),IF(AG33=0,,IF(OR($E$7='Customer Info'!$D$21,$E$7=0),AG33,(AG33/$E$7)*'Customer Info'!$D$21)),) -> 0 | AX33: 64.2 | AY33: 64.2 | AZ33: =IF(E33="plate waste",,IF('Customer Info'!$M$18=0,'Log Sheet'!AY33,'Customer Info'!$M$18*'Log Sheet'!AY33)) -> 0 | BA33: =IF(E33="plate waste",IF(OR(C33="patient",C33="patient beverages"),IF('Customer Info'!$M$27=0,AY33*'Customer Info'!$M$18,AY33*'Customer Info'!$M$27),IF(C33="cafeteria",IF('Customer Info'!$M$28=0,AY33*'Customer Info'!$M$18,AY33*'Customer Info'!$M$28),IF(C33="other1",IF('Customer Info'!$M$29=0,AY33*'Customer Info'!$M$18,AY33*'Customer Info'!$M$29),))),) -> 72.45141066 | BB33: 72.45141066 | BC33: =IF($F$4="lunch",IF(S33=0,,(S33/$E$5)*'Customer Info'!$D$18),) -> 0 | BD33: =IF($F$4="dinner",IF(T33=0,,(T33/$E$6)*'Customer Info'!$D$18),) -> 0 | BE33: =IF($F$4="other",IF(U33=0,,(U33/$E$7)*'Customer Info'!$D$18),) -> 0 | BF33: 0 | BG33: =IF($F$5="breakfast",IF(R33=0,,(R33/$E$4)*'Customer Info'!$D$19),) -> 0 | BH33: =IF($F$5="dinner",IF(T33=0,,(T33/$E$6)*'Customer Info'!$D$19),) -> 0 | BI33: =IF($F$5="other",IF(U33=0,,(U33/$E$7)*'Customer Info'!$D$19),) -> 0 | BJ33: 0 | BK33: =IF($F$6="breakfast",IF(R33=0,,(R33/$E$4)*'Customer Info'!$D$20),) -> 0 | BL33: =IF($F$6="lunch",IF(S33=0,,(S33/$E$5)*'Customer Info'!$D$20),) -> 0 | BM33: =IF($F$6="other",IF(U33=0,,(U33/$E$7)*'Customer Info'!$D$20),) -> 0 | BN33: 0 | BO33: =IF($F$7="breakfast",IF(R33=0,,(R33/$E$4)*'Customer Info'!$D$21),) -> 0 | BP33: =IF($F$7="lunch",IF(S33=0,,(S33/$E$5)*'Customer Info'!$D$21),) -> 0 | BQ33: =IF($F$7="dinner",IF(T33=0,,(T33/$E$6)*'Customer Info'!$D$21),) -> 0 | BR33: 0 | BS33: =IF($F$10="lunch",IF(W33=0,,(W33/$E$11)*'Customer Info'!$F$18),) -> 0 | BT33: =IF($F$10="dinner",IF(X33=0,,(X33/$E$12)*'Customer Info'!$F$18),) -> 0 | BU33: =IF($F$10="other",IF(Y33=0,,(Y33/$E$13)*'Customer Info'!$F$18),) -> 0 | BV33: 0 | BW33: =IF($F$11="breakfast",IF(V33=0,,(V33/$E$10)*'Customer Info'!$F$19),) -> 0 | BX33: =IF($F$11="dinner",IF(X33=0,,(X33/$E$12)*'Customer Info'!$F$19),) -> 0 | BY33: =IF($F$11="other",IF(Y33=0,,(Y33/$E$13)*'Customer Info'!$F$19),) -> 0 | BZ33: 0 | CA33: =IF($F$12="breakfast",IF(V33=0,,(V33/$E$10)*'Customer Info'!$F$20),) -> 0 | CB33: =IF($F$12="lunch",IF(W33=0,,(W33/$E$11)*'Customer Info'!$F$20),) -> 0 | CC33: =IF($F$12="other",IF(Y33=0,,(Y33/$E$13)*'Customer Info'!$F$20),) -> 0 | CD33: 0 | CE33: =IF($F$13="breakfast",IF(V33=0,,(V33/$E$10)*'Customer Info'!$F$21),) -> 0 | CF33: =IF($F$13="lunch",IF(W33=0,,(W33/$E$11)*'Customer Info'!$F$21),) -> 0 | CG33: =IF($F$13="dinner",IF(X33=0,,(X33/$E$12)*'Customer Info'!$F$21),) -> 0 | CH33: 0 | CI33: =IF($F$16="lunch",IF(AA33=0,,(AA33/$E$17)*'Customer Info'!$H$18),) -> 0 | CJ33: =IF($F$16="dinner",IF(AB33=0,,(AB33/$E$18)*'Customer Info'!$H$18),) -> 0 | CK33: =IF($F$16="other",IF(AC33=0,,(AC33/$E$19)*'Customer Info'!$H$18),) -> 0 | CL33: 0 | CM33: =IF($F$17="breakfast",IF(Z33=0,,(Z33/$E$16)*'Customer Info'!$H$19),) -> 0 | CN33: =IF($F$17="dinner",IF(AB33=0,,(AB33/$E$18)*'Customer Info'!$H$19),) -> 0 | CO33: =IF($F$17="other",IF(AC33=0,,(AC33/$E$19)*'Customer Info'!$H$19),) -> 0 | CP33: 0 | CQ33: =IF($F$18="breakfast",IF(Z33=0,,(Z33/$E$16)*'Customer Info'!$H$20),) -> 0 | CR33: =IF($F$18="lunch",IF(AA33=0,,(AA33/$E$17)*'Customer Info'!$H$20),) -> 0 | CS33: =IF($F$18="other",IF(AC33=0,,(AC33/$E$19)*'Customer Info'!$H$20),) -> 0 | CT33: 0 | CU33: =IF($F$19="breakfast",IF(Z33=0,,(Z33/$E$16)*'Customer Info'!$H$21),) -> 0 | CV33: =IF($F$19="lunch",IF(AA33=0,,(AA33/$E$17)*'Customer Info'!$H$21),) -> 0 | CW33: =IF($F$19="dinner",IF(AB33=0,,(AB33/$E$18)*'Customer Info'!$H$21),) -> 0 | CX33: 0 | CY33: 72.45141066 | CZ33: 0 | DA33: 0 | DB33: 0
A34: lunch | C34: patient beverages | D34: landfill | E34: plate waste | F34: Milk, Juice – sorted out | G34: 2 | H34: 24 | I34: 42 | K34: 22 | L34: 60.37617555 | M34: 22 | N34: 0 | O34: 0 | P34: 0 | Q34: 22 | R34: 0 | S34: 0 | T34: 0 | U34: 0 | V34: 0 | W34: 0 | X34: 0 | Y34: 0 | Z34: 0 | AA34: 0 | AB34: 0 | AC34: 0 | AD34: 0 | AE34: 22 | AF34: 0 | AG34: 0 | AH34: =IF((OR($F$4=0,$F$4="none")),IF(R34=0,,IF(OR($E$4='Customer Info'!$D$18,$E$4=0),R34,(R34/$E$4)*'Customer Info'!$D$18)),) -> 0 | AI34: =IF((OR($F$5=0,$F$5="none")),IF(S34=0,,IF(OR($E$5='Customer Info'!$D$18,$E$5=0),S34,(S34/$E$5)*'Customer Info'!$D$19)),) -> 0 | AJ34: =IF((OR($F$6=0,$F$6="none")),IF(T34=0,,IF(OR($E$6='Customer Info'!$D$18,$E$6=0),T34,(T34/$E$6)*'Customer Info'!$D$20)),) -> 0 | AK34: =IF((OR($F$7=0,$F$7="none")),IF(U34=0,,IF(OR($E$7='Customer Info'!$D$18,$E$7=0),U34,(U34/$E$7)*'Customer Info'!$D$21)),) -> 0 | AL34: =IF((OR($F$10=0,$F$10="none")),IF(V34=0,,IF(OR($E$10='Customer Info'!$F$18,$E$10=0),V34,(V34/$E$10)*'Customer Info'!$F$18)),) -> 0 | AM34: =IF((OR($F$11=0,$F$11="none")),IF(W34=0,,IF(OR($E$11='Customer Info'!$F$19,$E$11=0),W34,(W34/$E$11)*'Customer Info'!$F$19)),) -> 0 | AN34: =IF((OR($F$12=0,$F$12="none")),IF(X34=0,,IF(OR($E$12='Customer Info'!$F$20,$E$12=0),X34,(X34/$E$12)*'Customer Info'!$F$20)),) -> 0 | AO34: =IF((OR($F$13=0,$F$13="none")),IF(Y34=0,,IF(OR($E$13='Customer Info'!$F$21,$E$13=0),Y34,(Y34/$E$13)*'Customer Info'!$F$21)),) -> 0 | AP34: =IF((OR($F$16=0,$F$16="none")),IF(Z34=0,,IF(OR($E$16='Customer Info'!$H$18,$E$16=0),Z34,(Z34/$E$16)*'Customer Info'!$H$18)),) -> 0 | AQ34: =IF((OR($F$17=0,$F$17="none")),IF(AA34=0,,IF(OR($E$17='Customer Info'!$H$19,$E$17=0),AA34,(AA34/$E$17)*'Customer Info'!$H$19)),) -> 0 | AR34: =IF((OR($F$18=0,$F$18="none")),IF(AB34=0,,IF(OR($E$18='Customer Info'!$H$20,$E$18=0),AB34,(AB34/$E$18)*'Customer Info'!$H$20)),) -> 0 | AS34: =IF((OR($F$19=0,$F$19="none")),IF(AC34=0,,IF(OR($E$19='Customer Info'!$H$21,$E$19=0),AC34,(AC34/$E$19)*'Customer Info'!$H$21)),) -> 0 | AT34: =IF((OR($F$4=0,$F$4="none")),IF(AD34=0,,IF(OR($E$4='Customer Info'!$D$18,$E$4=0),AD34,(AD34/$E$4)*'Customer Info'!$D$18)),) -> 0 | AU34: =IF((OR($F$5=0,$F$5="none")),IF(AE34=0,,IF(OR($E$5='Customer Info'!$D$19,$E$5=0),AE34,(AE34/$E$5)*'Customer Info'!$D$19)),) -> 53.5 | AV34: =IF((OR($F$6=0,$F$6="none")),IF(AF34=0,,IF(OR($E$6='Customer Info'!$D$20,$E$6=0),AF34,(AF34/$E$6)*'Customer Info'!$D$20)),) -> 0 | AW34: =IF((OR($F$7=0,$F$7="none")),IF(AG34=0,,IF(OR($E$7='Customer Info'!$D$21,$E$7=0),AG34,(AG34/$E$7)*'Customer Info'!$D$21)),) -> 0 | AX34: 53.5 | AY34: 53.5 | AZ34: =IF(E34="plate waste",,IF('Customer Info'!$M$18=0,'Log Sheet'!AY34,'Customer Info'!$M$18*'Log Sheet'!AY34)) -> 0 | BA34: =IF(E34="plate waste",IF(OR(C34="patient",C34="patient beverages"),IF('Customer Info'!$M$27=0,AY34*'Customer Info'!$M$18,AY34*'Customer Info'!$M$27),IF(C34="cafeteria",IF('Customer Info'!$M$28=0,AY34*'Customer Info'!$M$18,AY34*'Customer Info'!$M$28),IF(C34="other1",IF('Customer Info'!$M$29=0,AY34*'Customer Info'!$M$18,AY34*'Customer Info'!$M$29),))),) -> 60.37617555 | BB34: 60.37617555 | BC34: =IF($F$4="lunch",IF(S34=0,,(S34/$E$5)*'Customer Info'!$D$18),) -> 0 | BD34: =IF($F$4="dinner",IF(T34=0,,(T34/$E$6)*'Customer Info'!$D$18),) -> 0 | BE34: =IF($F$4="other",IF(U34=0,,(U34/$E$7)*'Customer Info'!$D$18),) -> 0 | BF34: 0 | BG34: =IF($F$5="breakfast",IF(R34=0,,(R34/$E$4)*'Customer Info'!$D$19),) -> 0 | BH34: =IF($F$5="dinner",IF(T34=0,,(T34/$E$6)*'Customer Info'!$D$19),) -> 0 | BI34: =IF($F$5="other",IF(U34=0,,(U34/$E$7)*'Customer Info'!$D$19),) -> 0 | BJ34: 0 | BK34: =IF($F$6="breakfast",IF(R34=0,,(R34/$E$4)*'Customer Info'!$D$20),) -> 0 | BL34: =IF($F$6="lunch",IF(S34=0,,(S34/$E$5)*'Customer Info'!$D$20),) -> 0 | BM34: =IF($F$6="other",IF(U34=0,,(U34/$E$7)*'Customer Info'!$D$20),) -> 0 | BN34: 0 | BO34: =IF($F$7="breakfast",IF(R34=0,,(R34/$E$4)*'Customer Info'!$D$21),) -> 0 | BP34: =IF($F$7="lunch",IF(S34=0,,(S34/$E$5)*'Customer Info'!$D$21),) -> 0 | BQ34: =IF($F$7="dinner",IF(T34=0,,(T34/$E$6)*'Customer Info'!$D$21),) -> 0 | BR34: 0 | BS34: =IF($F$10="lunch",IF(W34=0,,(W34/$E$11)*'Customer Info'!$F$18),) -> 0 | BT34: =IF($F$10="dinner",IF(X34=0,,(X34/$E$12)*'Customer Info'!$F$18),) -> 0 | BU34: =IF($F$10="other",IF(Y34=0,,(Y34/$E$13)*'Customer Info'!$F$18),) -> 0 | BV34: 0 | BW34: =IF($F$11="breakfast",IF(V34=0,,(V34/$E$10)*'Customer Info'!$F$19),) -> 0 | BX34: =IF($F$11="dinner",IF(X34=0,,(X34/$E$12)*'Customer Info'!$F$19),) -> 0 | BY34: =IF($F$11="other",IF(Y34=0,,(Y34/$E$13)*'Customer Info'!$F$19),) -> 0 | BZ34: 0 | CA34: =IF($F$12="breakfast",IF(V34=0,,(V34/$E$10)*'Customer Info'!$F$20),) -> 0 | CB34: =IF($F$12="lunch",IF(W34=0,,(W34/$E$11)*'Customer Info'!$F$20),) -> 0 | CC34: =IF($F$12="other",IF(Y34=0,,(Y34/$E$13)*'Customer Info'!$F$20),) -> 0 | CD34: 0 | CE34: =IF($F$13="breakfast",IF(V34=0,,(V34/$E$10)*'Customer Info'!$F$21),) -> 0 | CF34: =IF($F$13="lunch",IF(W34=0,,(W34/$E$11)*'Customer Info'!$F$21),) -> 0 | CG34: =IF($F$13="dinner",IF(X34=0,,(X34/$E$12)*'Customer Info'!$F$21),) -> 0 | CH34: 0 | CI34: =IF($F$16="lunch",IF(AA34=0,,(AA34/$E$17)*'Customer Info'!$H$18),) -> 0 | CJ34: =IF($F$16="dinner",IF(AB34=0,,(AB34/$E$18)*'Customer Info'!$H$18),) -> 0 | CK34: =IF($F$16="other",IF(AC34=0,,(AC34/$E$19)*'Customer Info'!$H$18),) -> 0 | CL34: 0 | CM34: =IF($F$17="breakfast",IF(Z34=0,,(Z34/$E$16)*'Customer Info'!$H$19),) -> 0 | CN34: =IF($F$17="dinner",IF(AB34=0,,(AB34/$E$18)*'Customer Info'!$H$19),) -> 0 | CO34: =IF($F$17="other",IF(AC34=0,,(AC34/$E$19)*'Customer Info'!$H$19),) -> 0 | CP34: 0 | CQ34: =IF($F$18="breakfast",IF(Z34=0,,(Z34/$E$16)*'Customer Info'!$H$20),) -> 0 | CR34: =IF($F$18="lunch",IF(AA34=0,,(AA34/$E$17)*'Customer Info'!$H$20),) -> 0 | CS34: =IF($F$18="other",IF(AC34=0,,(AC34/$E$19)*'Customer Info'!$H$20),) -> 0 | CT34: 0 | CU34: =IF($F$19="breakfast",IF(Z34=0,,(Z34/$E$16)*'Customer Info'!$H$21),) -> 0 | CV34: =IF($F$19="lunch",IF(AA34=0,,(AA34/$E$17)*'Customer Info'!$H$21),) -> 0 | CW34: =IF($F$19="dinner",IF(AB34=0,,(AB34/$E$18)*'Customer Info'!$H$21),) -> 0 | CX34: 0 | CY34: 60.37617555 | CZ34: 0 | DA34: =IF(Q34=0,,I34*(L34/K34)) -> 115.2636079 | DB34: 60.37617555 | DC34: lunch
A35: lunch | C35: cafeteria | D35: landfill | E35: plate waste | F35: Pizza, French fries, pasta, roast beef | G35: 2 | H35: 11 | K35: 9 | L35: 61.16896552 | M35: 9 | N35: 0 | O35: 9 | P35: 0 | Q35: 0 | R35: 0 | S35: 0 | T35: 0 | U35: 0 | V35: 0 | W35: 9 | X35: 0 | Y35: 0 | Z35: 0 | AA35: 0 | AB35: 0 | AC35: 0 | AD35: 0 | AE35: 0 | AF35: 0 | AG35: 0 | AH35: =IF((OR($F$4=0,$F$4="none")),IF(R35=0,,IF(OR($E$4='Customer Info'!$D$18,$E$4=0),R35,(R35/$E$4)*'Customer Info'!$D$18)),) -> 0 | AI35: =IF((OR($F$5=0,$F$5="none")),IF(S35=0,,IF(OR($E$5='Customer Info'!$D$18,$E$5=0),S35,(S35/$E$5)*'Customer Info'!$D$19)),) -> 0 | AJ35: =IF((OR($F$6=0,$F$6="none")),IF(T35=0,,IF(OR($E$6='Customer Info'!$D$18,$E$6=0),T35,(T35/$E$6)*'Customer Info'!$D$20)),) -> 0 | AK35: =IF((OR($F$7=0,$F$7="none")),IF(U35=0,,IF(OR($E$7='Customer Info'!$D$18,$E$7=0),U35,(U35/$E$7)*'Customer Info'!$D$21)),) -> 0 | AL35: =IF((OR($F$10=0,$F$10="none")),IF(V35=0,,IF(OR($E$10='Customer Info'!$F$18,$E$10=0),V35,(V35/$E$10)*'Customer Info'!$F$18)),) -> 0 | AM35: =IF((OR($F$11=0,$F$11="none")),IF(W35=0,,IF(OR($E$11='Customer Info'!$F$19,$E$11=0),W35,(W35/$E$11)*'Customer Info'!$F$19)),) -> 73 | AN35: =IF((OR($F$12=0,$F$12="none")),IF(X35=0,,IF(OR($E$12='Customer Info'!$F$20,$E$12=0),X35,(X35/$E$12)*'Customer Info'!$F$20)),) -> 0 | AO35: =IF((OR($F$13=0,$F$13="none")),IF(Y35=0,,IF(OR($E$13='Customer Info'!$F$21,$E$13=0),Y35,(Y35/$E$13)*'Customer Info'!$F$21)),) -> 0 | AP35: =IF((OR($F$16=0,$F$16="none")),IF(Z35=0,,IF(OR($E$16='Customer Info'!$H$18,$E$16=0),Z35,(Z35/$E$16)*'Customer Info'!$H$18)),) -> 0 | AQ35: =IF((OR($F$17=0,$F$17="none")),IF(AA35=0,,IF(OR($E$17='Customer Info'!$H$19,$E$17=0),AA35,(AA35/$E$17)*'Customer Info'!$H$19)),) -> 0 | AR35: =IF((OR($F$18=0,$F$18="none")),IF(AB35=0,,IF(OR($E$18='Customer Info'!$H$20,$E$18=0),AB35,(AB35/$E$18)*'Customer Info'!$H$20)),) -> 0 | AS35: =IF((OR($F$19=0,$F$19="none")),IF(AC35=0,,IF(OR($E$19='Customer Info'!$H$21,$E$19=0),AC35,(AC35/$E$19)*'Customer Info'!$H$21)),) -> 0 | AT35: =IF((OR($F$4=0,$F$4="none")),IF(AD35=0,,IF(OR($E$4='Customer Info'!$D$18,$E$4=0),AD35,(AD35/$E$4)*'Customer Info'!$D$18)),) -> 0 | AU35: =IF((OR($F$5=0,$F$5="none")),IF(AE35=0,,IF(OR($E$5='Customer Info'!$D$19,$E$5=0),AE35,(AE35/$E$5)*'Customer Info'!$D$19)),) -> 0 | AV35: =IF((OR($F$6=0,$F$6="none")),IF(AF35=0,,IF(OR($E$6='Customer Info'!$D$20,$E$6=0),AF35,(AF35/$E$6)*'Customer Info'!$D$20)),) -> 0 | AW35: =IF((OR($F$7=0,$F$7="none")),IF(AG35=0,,IF(OR($E$7='Customer Info'!$D$21,$E$7=0),AG35,(AG35/$E$7)*'Customer Info'!$D$21)),) -> 0 | AX35: 73 | AY35: 73 | AZ35: =IF(E35="plate waste",,IF('Customer Info'!$M$18=0,'Log Sheet'!AY35,'Customer Info'!$M$18*'Log Sheet'!AY35)) -> 0 | BA35: =IF(E35="plate waste",IF(OR(C35="patient",C35="patient beverages"),IF('Customer Info'!$M$27=0,AY35*'Customer Info'!$M$18,AY35*'Customer Info'!$M$27),IF(C35="cafeteria",IF('Customer Info'!$M$28=0,AY35*'Customer Info'!$M$18,AY35*'Customer Info'!$M$28),IF(C35="other1",IF('Customer Info'!$M$29=0,AY35*'Customer Info'!$M$18,AY35*'Customer Info'!$M$29),))),) -> 61.16896552 | BB35: 61.16896552 | BC35: =IF($F$4="lunch",IF(S35=0,,(S35/$E$5)*'Customer Info'!$D$18),) -> 0 | BD35: =IF($F$4="dinner",IF(T35=0,,(T35/$E$6)*'Customer Info'!$D$18),) -> 0 | BE35: =IF($F$4="other",IF(U35=0,,(U35/$E$7)*'Customer Info'!$D$18),) -> 0 | BF35: 0 | BG35: =IF($F$5="breakfast",IF(R35=0,,(R35/$E$4)*'Customer Info'!$D$19),) -> 0 | BH35: =IF($F$5="dinner",IF(T35=0,,(T35/$E$6)*'Customer Info'!$D$19),) -> 0 | BI35: =IF($F$5="other",IF(U35=0,,(U35/$E$7)*'Customer Info'!$D$19),) -> 0 | BJ35: 0 | BK35: =IF($F$6="breakfast",IF(R35=0,,(R35/$E$4)*'Customer Info'!$D$20),) -> 0 | BL35: =IF($F$6="lunch",IF(S35=0,,(S35/$E$5)*'Customer Info'!$D$20),) -> 0 | BM35: =IF($F$6="other",IF(U35=0,,(U35/$E$7)*'Customer Info'!$D$20),) -> 0 | BN35: 0 | BO35: =IF($F$7="breakfast",IF(R35=0,,(R35/$E$4)*'Customer Info'!$D$21),) -> 0 | BP35: =IF($F$7="lunch",IF(S35=0,,(S35/$E$5)*'Customer Info'!$D$21),) -> 0 | BQ35: =IF($F$7="dinner",IF(T35=0,,(T35/$E$6)*'Customer Info'!$D$21),) -> 0 | BR35: 0 | BS35: =IF($F$10="lunch",IF(W35=0,,(W35/$E$11)*'Customer Info'!$F$18),) -> 36.6 | BT35: =IF($F$10="dinner",IF(X35=0,,(X35/$E$12)*'Customer Info'!$F$18),) -> 0 | BU35: =IF($F$10="other",IF(Y35=0,,(Y35/$E$13)*'Customer Info'!$F$18),) -> 0 | BV35: 36.6 | BW35: =IF($F$11="breakfast",IF(V35=0,,(V35/$E$10)*'Customer Info'!$F$19),) -> 0 | BX35: =IF($F$11="dinner",IF(X35=0,,(X35/$E$12)*'Customer Info'!$F$19),) -> 0 | BY35: =IF($F$11="other",IF(Y35=0,,(Y35/$E$13)*'Customer Info'!$F$19),) -> 0 | BZ35: 0 | CA35: =IF($F$12="breakfast",IF(V35=0,,(V35/$E$10)*'Customer Info'!$F$20),) -> 0 | CB35: =IF($F$12="lunch",IF(W35=0,,(W35/$E$11)*'Customer Info'!$F$20),) -> 0 | CC35: =IF($F$12="other",IF(Y35=0,,(Y35/$E$13)*'Customer Info'!$F$20),) -> 0 | CD35: 0 | CE35: =IF($F$13="breakfast",IF(V35=0,,(V35/$E$10)*'Customer Info'!$F$21),) -> 0 | CF35: =IF($F$13="lunch",IF(W35=0,,(W35/$E$11)*'Customer Info'!$F$21),) -> 0 | CG35: =IF($F$13="dinner",IF(X35=0,,(X35/$E$12)*'Customer Info'!$F$21),) -> 0 | CH35: 0 | CI35: =IF($F$16="lunch",IF(AA35=0,,(AA35/$E$17)*'Customer Info'!$H$18),) -> 0 | CJ35: =IF($F$16="dinner",IF(AB35=0,,(AB35/$E$18)*'Customer Info'!$H$18),) -> 0 | CK35: =IF($F$16="other",IF(AC35=0,,(AC35/$E$19)*'Customer Info'!$H$18),) -> 0 | CL35: 0 | CM35: =IF($F$17="breakfast",IF(Z35=0,,(Z35/$E$16)*'Customer Info'!$H$19),) -> 0 | CN35: =IF($F$17="dinner",IF(AB35=0,,(AB35/$E$18)*'Customer Info'!$H$19),) -> 0 | CO35: =IF($F$17="other",IF(AC35=0,,(AC35/$E$19)*'Customer Info'!$H$19),) -> 0 | CP35: 0 | CQ35: =IF($F$18="breakfast",IF(Z35=0,,(Z35/$E$16)*'Customer Info'!$H$20),) -> 0 | CR35: =IF($F$18="lunch",IF(AA35=0,,(AA35/$E$17)*'Customer Info'!$H$20),) -> 0 | CS35: =IF($F$18="other",IF(AC35=0,,(AC35/$E$19)*'Customer Info'!$H$20),) -> 0 | CT35: 0 | CU35: =IF($F$19="breakfast",IF(Z35=0,,(Z35/$E$16)*'Customer Info'!$H$21),) -> 0 | CV35: =IF($F$19="lunch",IF(AA35=0,,(AA35/$E$17)*'Customer Info'!$H$21),) -> 0 | CW35: =IF($F$19="dinner",IF(AB35=0,,(AB35/$E$18)*'Customer Info'!$H$21),) -> 0 | CX35: 0 | CY35: 61.16896552 | CZ35: 0 | DA35: 0 | DB35: 0
A36: lunch | C36: patient | D36: landfill | E36: plate waste | F36: Refused meal (patient non-selected, ER) – sandwich, salad & dressing, milk | G36: 2 | H36: 3.2 | K36: 1.2 | L36: 3.293245939 | M36: 1.2 | N36: 1.2 | O36: 0 | P36: 0 | Q36: 0 | R36: 0 | S36: 1.2 | T36: 0 | U36: 0 | V36: 0 | W36: 0 | X36: 0 | Y36: 0 | Z36: 0 | AA36: 0 | AB36: 0 | AC36: 0 | AD36: 0 | AE36: 0 | AF36: 0 | AG36: 0 | AH36: =IF((OR($F$4=0,$F$4="none")),IF(R36=0,,IF(OR($E$4='Customer Info'!$D$18,$E$4=0),R36,(R36/$E$4)*'Customer Info'!$D$18)),) -> 0 | AI36: =IF((OR($F$5=0,$F$5="none")),IF(S36=0,,IF(OR($E$5='Customer Info'!$D$18,$E$5=0),S36,(S36/$E$5)*'Customer Info'!$D$19)),) -> 2.918181818 | AJ36: =IF((OR($F$6=0,$F$6="none")),IF(T36=0,,IF(OR($E$6='Customer Info'!$D$18,$E$6=0),T36,(T36/$E$6)*'Customer Info'!$D$20)),) -> 0 | AK36: =IF((OR($F$7=0,$F$7="none")),IF(U36=0,,IF(OR($E$7='Customer Info'!$D$18,$E$7=0),U36,(U36/$E$7)*'Customer Info'!$D$21)),) -> 0 | AL36: =IF((OR($F$10=0,$F$10="none")),IF(V36=0,,IF(OR($E$10='Customer Info'!$F$18,$E$10=0),V36,(V36/$E$10)*'Customer Info'!$F$18)),) -> 0 | AM36: =IF((OR($F$11=0,$F$11="none")),IF(W36=0,,IF(OR($E$11='Customer Info'!$F$19,$E$11=0),W36,(W36/$E$11)*'Customer Info'!$F$19)),) -> 0 | AN36: =IF((OR($F$12=0,$F$12="none")),IF(X36=0,,IF(OR($E$12='Customer Info'!$F$20,$E$12=0),X36,(X36/$E$12)*'Customer Info'!$F$20)),) -> 0 | AO36: =IF((OR($F$13=0,$F$13="none")),IF(Y36=0,,IF(OR($E$13='Customer Info'!$F$21,$E$13=0),Y36,(Y36/$E$13)*'Customer Info'!$F$21)),) -> 0 | AP36: =IF((OR($F$16=0,$F$16="none")),IF(Z36=0,,IF(OR($E$16='Customer Info'!$H$18,$E$16=0),Z36,(Z36/$E$16)*'Customer Info'!$H$18)),) -> 0 | AQ36: =IF((OR($F$17=0,$F$17="none")),IF(AA36=0,,IF(OR($E$17='Customer Info'!$H$19,$E$17=0),AA36,(AA36/$E$17)*'Customer Info'!$H$19)),) -> 0 | AR36: =IF((OR($F$18=0,$F$18="none")),IF(AB36=0,,IF(OR($E$18='Customer Info'!$H$20,$E$18=0),AB36,(AB36/$E$18)*'Customer Info'!$H$20)),) -> 0 | AS36: =IF((OR($F$19=0,$F$19="none")),IF(AC36=0,,IF(OR($E$19='Customer Info'!$H$21,$E$19=0),AC36,(AC36/$E$19)*'Customer Info'!$H$21)),) -> 0 | AT36: =IF((OR($F$4=0,$F$4="none")),IF(AD36=0,,IF(OR($E$4='Customer Info'!$D$18,$E$4=0),AD36,(AD36/$E$4)*'Customer Info'!$D$18)),) -> 0 | AU36: =IF((OR($F$5=0,$F$5="none")),IF(AE36=0,,IF(OR($E$5='Customer Info'!$D$19,$E$5=0),AE36,(AE36/$E$5)*'Customer Info'!$D$19)),) -> 0 | AV36: =IF((OR($F$6=0,$F$6="none")),IF(AF36=0,,IF(OR($E$6='Customer Info'!$D$20,$E$6=0),AF36,(AF36/$E$6)*'Customer Info'!$D$20)),) -> 0 | AW36: =IF((OR($F$7=0,$F$7="none")),IF(AG36=0,,IF(OR($E$7='Customer Info'!$D$21,$E$7=0),AG36,(AG36/$E$7)*'Customer Info'!$D$21)),) -> 0 | AX36: 2.918181818 | AY36: 2.918181818 | AZ36: =IF(E36="plate waste",,IF('Customer Info'!$M$18=0,'Log Sheet'!AY36,'Customer Info'!$M$18*'Log Sheet'!AY36)) -> 0 | BA36: =IF(E36="plate waste",IF(OR(C36="patient",C36="patient beverages"),IF('Customer Info'!$M$27=0,AY36*'Customer Info'!$M$18,AY36*'Customer Info'!$M$27),IF(C36="cafeteria",IF('Customer Info'!$M$28=0,AY36*'Customer Info'!$M$18,AY36*'Customer Info'!$M$28),IF(C36="other1",IF('Customer Info'!$M$29=0,AY36*'Customer Info'!$M$18,AY36*'Customer Info'!$M$29),))),) -> 3.293245939 | BB36: 3.293245939 | BC36: =IF($F$4="lunch",IF(S36=0,,(S36/$E$5)*'Customer Info'!$D$18),) -> 0 | BD36: =IF($F$4="dinner",IF(T36=0,,(T36/$E$6)*'Customer Info'!$D$18),) -> 0 | BE36: =IF($F$4="other",IF(U36=0,,(U36/$E$7)*'Customer Info'!$D$18),) -> 0 | BF36: 0 | BG36: =IF($F$5="breakfast",IF(R36=0,,(R36/$E$4)*'Customer Info'!$D$19),) -> 0 | BH36: =IF($F$5="dinner",IF(T36=0,,(T36/$E$6)*'Customer Info'!$D$19),) -> 0 | BI36: =IF($F$5="other",IF(U36=0,,(U36/$E$7)*'Customer Info'!$D$19),) -> 0 | BJ36: 0 | BK36: =IF($F$6="breakfast",IF(R36=0,,(R36/$E$4)*'Customer Info'!$D$20),) -> 0 | BL36: =IF($F$6="lunch",IF(S36=0,,(S36/$E$5)*'Customer Info'!$D$20),) -> 0 | BM36: =IF($F$6="other",IF(U36=0,,(U36/$E$7)*'Customer Info'!$D$20),) -> 0 | BN36: 0 | BO36: =IF($F$7="breakfast",IF(R36=0,,(R36/$E$4)*'Customer Info'!$D$21),) -> 0 | BP36: =IF($F$7="lunch",IF(S36=0,,(S36/$E$5)*'Customer Info'!$D$21),) -> 0 | BQ36: =IF($F$7="dinner",IF(T36=0,,(T36/$E$6)*'Customer Info'!$D$21),) -> 0 | BR36: 0 | BS36: =IF($F$10="lunch",IF(W36=0,,(W36/$E$11)*'Customer Info'!$F$18),) -> 0 | BT36: =IF($F$10="dinner",IF(X36=0,,(X36/$E$12)*'Customer Info'!$F$18),) -> 0 | BU36: =IF($F$10="other",IF(Y36=0,,(Y36/$E$13)*'Customer Info'!$F$18),) -> 0 | BV36: 0 | BW36: =IF($F$11="breakfast",IF(V36=0,,(V36/$E$10)*'Customer Info'!$F$19),) -> 0 | BX36: =IF($F$11="dinner",IF(X36=0,,(X36/$E$12)*'Customer Info'!$F$19),) -> 0 | BY36: =IF($F$11="other",IF(Y36=0,,(Y36/$E$13)*'Customer Info'!$F$19),) -> 0 | BZ36: 0 | CA36: =IF($F$12="breakfast",IF(V36=0,,(V36/$E$10)*'Customer Info'!$F$20),) -> 0 | CB36: =IF($F$12="lunch",IF(W36=0,,(W36/$E$11)*'Customer Info'!$F$20),) -> 0 | CC36: =IF($F$12="other",IF(Y36=0,,(Y36/$E$13)*'Customer Info'!$F$20),) -> 0 | CD36: 0 | CE36: =IF($F$13="breakfast",IF(V36=0,,(V36/$E$10)*'Customer Info'!$F$21),) -> 0 | CF36: =IF($F$13="lunch",IF(W36=0,,(W36/$E$11)*'Customer Info'!$F$21),) -> 0 | CG36: =IF($F$13="dinner",IF(X36=0,,(X36/$E$12)*'Customer Info'!$F$21),) -> 0 | CH36: 0 | CI36: =IF($F$16="lunch",IF(AA36=0,,(AA36/$E$17)*'Customer Info'!$H$18),) -> 0 | CJ36: =IF($F$16="dinner",IF(AB36=0,,(AB36/$E$18)*'Customer Info'!$H$18),) -> 0 | CK36: =IF($F$16="other",IF(AC36=0,,(AC36/$E$19)*'Customer Info'!$H$18),) -> 0 | CL36: 0 | CM36: =IF($F$17="breakfast",IF(Z36=0,,(Z36/$E$16)*'Customer Info'!$H$19),) -> 0 | CN36: =IF($F$17="dinner",IF(AB36=0,,(AB36/$E$18)*'Customer Info'!$H$19),) -> 0 | CO36: =IF($F$17="other",IF(AC36=0,,(AC36/$E$19)*'Customer Info'!$H$19),) -> 0 | CP36: 0 | CQ36: =IF($F$18="breakfast",IF(Z36=0,,(Z36/$E$16)*'Customer Info'!$H$20),) -> 0 | CR36: =IF($F$18="lunch",IF(AA36=0,,(AA36/$E$17)*'Customer Info'!$H$20),) -> 0 | CS36: =IF($F$18="other",IF(AC36=0,,(AC36/$E$19)*'Customer Info'!$H$20),) -> 0 | CT36: 0 | CU36: =IF($F$19="breakfast",IF(Z36=0,,(Z36/$E$16)*'Customer Info'!$H$21),) -> 0 | CV36: =IF($F$19="lunch",IF(AA36=0,,(AA36/$E$17)*'Customer Info'!$H$21),) -> 0 | CW36: =IF($F$19="dinner",IF(AB36=0,,(AB36/$E$18)*'Customer Info'!$H$21),) -> 0 | CX36: 0 | CY36: 3.293245939 | CZ36: 0 | DA36: 0 | DB36: 0
A37: dinner | C37: cafeteria | D37: landfill | E37: plate waste | F37: Pizza, French fries, rice, chicken | G37: 2 | H37: 11 | K37: 9 | L37: 110.3783699 | M37: 9 | N37: 0 | O37: 9 | P37: 0 | Q37: 0 | R37: 0 | S37: 0 | T37: 0 | U37: 0 | V37: 0 | W37: 0 | X37: 9 | Y37: 0 | Z37: 0 | AA37: 0 | AB37: 0 | AC37: 0 | AD37: 0 | AE37: 0 | AF37: 0 | AG37: 0 | AH37: =IF((OR($F$4=0,$F$4="none")),IF(R37=0,,IF(OR($E$4='Customer Info'!$D$18,$E$4=0),R37,(R37/$E$4)*'Customer Info'!$D$18)),) -> 0 | AI37: =IF((OR($F$5=0,$F$5="none")),IF(S37=0,,IF(OR($E$5='Customer Info'!$D$18,$E$5=0),S37,(S37/$E$5)*'Customer Info'!$D$19)),) -> 0 | AJ37: =IF((OR($F$6=0,$F$6="none")),IF(T37=0,,IF(OR($E$6='Customer Info'!$D$18,$E$6=0),T37,(T37/$E$6)*'Customer Info'!$D$20)),) -> 0 | AK37: =IF((OR($F$7=0,$F$7="none")),IF(U37=0,,IF(OR($E$7='Customer Info'!$D$18,$E$7=0),U37,(U37/$E$7)*'Customer Info'!$D$21)),) -> 0 | AL37: =IF((OR($F$10=0,$F$10="none")),IF(V37=0,,IF(OR($E$10='Customer Info'!$F$18,$E$10=0),V37,(V37/$E$10)*'Customer Info'!$F$18)),) -> 0 | AM37: =IF((OR($F$11=0,$F$11="none")),IF(W37=0,,IF(OR($E$11='Customer Info'!$F$19,$E$11=0),W37,(W37/$E$11)*'Customer Info'!$F$19)),) -> 0 | AN37: =IF((OR($F$12=0,$F$12="none")),IF(X37=0,,IF(OR($E$12='Customer Info'!$F$20,$E$12=0),X37,(X37/$E$12)*'Customer Info'!$F$20)),) -> 131.7272727 | AO37: =IF((OR($F$13=0,$F$13="none")),IF(Y37=0,,IF(OR($E$13='Customer Info'!$F$21,$E$13=0),Y37,(Y37/$E$13)*'Customer Info'!$F$21)),) -> 0 | AP37: =IF((OR($F$16=0,$F$16="none")),IF(Z37=0,,IF(OR($E$16='Customer Info'!$H$18,$E$16=0),Z37,(Z37/$E$16)*'Customer Info'!$H$18)),) -> 0 | AQ37: =IF((OR($F$17=0,$F$17="none")),IF(AA37=0,,IF(OR($E$17='Customer Info'!$H$19,$E$17=0),AA37,(AA37/$E$17)*'Customer Info'!$H$19)),) -> 0 | AR37: =IF((OR($F$18=0,$F$18="none")),IF(AB37=0,,IF(OR($E$18='Customer Info'!$H$20,$E$18=0),AB37,(AB37/$E$18)*'Customer Info'!$H$20)),) -> 0 | AS37: =IF((OR($F$19=0,$F$19="none")),IF(AC37=0,,IF(OR($E$19='Customer Info'!$H$21,$E$19=0),AC37,(AC37/$E$19)*'Customer Info'!$H$21)),) -> 0 | AT37: =IF((OR($F$4=0,$F$4="none")),IF(AD37=0,,IF(OR($E$4='Customer Info'!$D$18,$E$4=0),AD37,(AD37/$E$4)*'Customer Info'!$D$18)),) -> 0 | AU37: =IF((OR($F$5=0,$F$5="none")),IF(AE37=0,,IF(OR($E$5='Customer Info'!$D$19,$E$5=0),AE37,(AE37/$E$5)*'Customer Info'!$D$19)),) -> 0 | AV37: =IF((OR($F$6=0,$F$6="none")),IF(AF37=0,,IF(OR($E$6='Customer Info'!$D$20,$E$6=0),AF37,(AF37/$E$6)*'Customer Info'!$D$20)),) -> 0 | AW37: =IF((OR($F$7=0,$F$7="none")),IF(AG37=0,,IF(OR($E$7='Customer Info'!$D$21,$E$7=0),AG37,(AG37/$E$7)*'Customer Info'!$D$21)),) -> 0 | AX37: 131.7272727 | AY37: 131.7272727 | AZ37: =IF(E37="plate waste",,IF('Customer Info'!$M$18=0,'Log Sheet'!AY37,'Customer Info'!$M$18*'Log Sheet'!AY37)) -> 0 | BA37: =IF(E37="plate waste",IF(OR(C37="patient",C37="patient beverages"),IF('Customer Info'!$M$27=0,AY37*'Customer Info'!$M$18,AY37*'Customer Info'!$M$27),IF(C37="cafeteria",IF('Customer Info'!$M$28=0,AY37*'Customer Info'!$M$18,AY37*'Customer Info'!$M$28),IF(C37="other1",IF('Customer Info'!$M$29=0,AY37*'Customer Info'!$M$18,AY37*'Customer Info'!$M$29),))),) -> 110.3783699 | BB37: 110.3783699 | BC37: =IF($F$4="lunch",IF(S37=0,,(S37/$E$5)*'Customer Info'!$D$18),) -> 0 | BD37: =IF($F$4="dinner",IF(T37=0,,(T37/$E$6)*'Customer Info'!$D$18),) -> 0 | BE37: =IF($F$4="other",IF(U37=0,,(U37/$E$7)*'Customer Info'!$D$18),) -> 0 | BF37: 0 | BG37: =IF($F$5="breakfast",IF(R37=0,,(R37/$E$4)*'Customer Info'!$D$19),) -> 0 | BH37: =IF($F$5="dinner",IF(T37=0,,(T37/$E$6)*'Customer Info'!$D$19),) -> 0 | BI37: =IF($F$5="other",IF(U37=0,,(U37/$E$7)*'Customer Info'!$D$19),) -> 0 | BJ37: 0 | BK37: =IF($F$6="breakfast",IF(R37=0,,(R37/$E$4)*'Customer Info'!$D$20),) -> 0 | BL37: =IF($F$6="lunch",IF(S37=0,,(S37/$E$5)*'Customer Info'!$D$20),) -> 0 | BM37: =IF($F$6="other",IF(U37=0,,(U37/$E$7)*'Customer Info'!$D$20),) -> 0 | BN37: 0 | BO37: =IF($F$7="breakfast",IF(R37=0,,(R37/$E$4)*'Customer Info'!$D$21),) -> 0 | BP37: =IF($F$7="lunch",IF(S37=0,,(S37/$E$5)*'Customer Info'!$D$21),) -> 0 | BQ37: =IF($F$7="dinner",IF(T37=0,,(T37/$E$6)*'Customer Info'!$D$21),) -> 0 | BR37: 0 | BS37: =IF($F$10="lunch",IF(W37=0,,(W37/$E$11)*'Customer Info'!$F$18),) -> 0 | BT37: =IF($F$10="dinner",IF(X37=0,,(X37/$E$12)*'Customer Info'!$F$18),) -> 0 | BU37: =IF($F$10="other",IF(Y37=0,,(Y37/$E$13)*'Customer Info'!$F$18),) -> 0 | BV37: 0 | BW37: =IF($F$11="breakfast",IF(V37=0,,(V37/$E$10)*'Customer Info'!$F$19),) -> 0 | BX37: =IF($F$11="dinner",IF(X37=0,,(X37/$E$12)*'Customer Info'!$F$19),) -> 0 | BY37: =IF($F$11="other",IF(Y37=0,,(Y37/$E$13)*'Customer Info'!$F$19),) -> 0 | BZ37: 0 | CA37: =IF($F$12="breakfast",IF(V37=0,,(V37/$E$10)*'Customer Info'!$F$20),) -> 0 | CB37: =IF($F$12="lunch",IF(W37=0,,(W37/$E$11)*'Customer Info'!$F$20),) -> 0 | CC37: =IF($F$12="other",IF(Y37=0,,(Y37/$E$13)*'Customer Info'!$F$20),) -> 0 | CD37: 0 | CE37: =IF($F$13="breakfast",IF(V37=0,,(V37/$E$10)*'Customer Info'!$F$21),) -> 0 | CF37: =IF($F$13="lunch",IF(W37=0,,(W37/$E$11)*'Customer Info'!$F$21),) -> 0 | CG37: =IF($F$13="dinner",IF(X37=0,,(X37/$E$12)*'Customer Info'!$F$21),) -> 0 | CH37: 0 | CI37: =IF($F$16="lunch",IF(AA37=0,,(AA37/$E$17)*'Customer Info'!$H$18),) -> 0 | CJ37: =IF($F$16="dinner",IF(AB37=0,,(AB37/$E$18)*'Customer Info'!$H$18),) -> 0 | CK37: =IF($F$16="other",IF(AC37=0,,(AC37/$E$19)*'Customer Info'!$H$18),) -> 0 | CL37: 0 | CM37: =IF($F$17="breakfast",IF(Z37=0,,(Z37/$E$16)*'Customer Info'!$H$19),) -> 0 | CN37: =IF($F$17="dinner",IF(AB37=0,,(AB37/$E$18)*'Customer Info'!$H$19),) -> 0 | CO37: =IF($F$17="other",IF(AC37=0,,(AC37/$E$19)*'Customer Info'!$H$19),) -> 0 | CP37: 0 | CQ37: =IF($F$18="breakfast",IF(Z37=0,,(Z37/$E$16)*'Customer Info'!$H$20),) -> 0 | CR37: =IF($F$18="lunch",IF(AA37=0,,(AA37/$E$17)*'Customer Info'!$H$20),) -> 0 | CS37: =IF($F$18="other",IF(AC37=0,,(AC37/$E$19)*'Customer Info'!$H$20),) -> 0 | CT37: 0 | CU37: =IF($F$19="breakfast",IF(Z37=0,,(Z37/$E$16)*'Customer Info'!$H$21),) -> 0 | CV37: =IF($F$19="lunch",IF(AA37=0,,(AA37/$E$17)*'Customer Info'!$H$21),) -> 0 | CW37: =IF($F$19="dinner",IF(AB37=0,,(AB37/$E$18)*'Customer Info'!$H$21),) -> 0 | CX37: 0 | CY37: 110.3783699 | CZ37: 0 | DA37: 0 | DB37: 0
A38: dinner | C38: patient | D38: landfill | E38: plate waste | F38: Pasta, bread, salad, salmon | G38: 2 | H38: 35 | K38: 33 | L38: 81.2539185 | M38: 33 | N38: 33 | O38: 0 | P38: 0 | Q38: 0 | R38: 0 | S38: 0 | T38: 33 | U38: 0 | V38: 0 | W38: 0 | X38: 0 | Y38: 0 | Z38: 0 | AA38: 0 | AB38: 0 | AC38: 0 | AD38: 0 | AE38: 0 | AF38: 0 | AG38: 0 | AH38: =IF((OR($F$4=0,$F$4="none")),IF(R38=0,,IF(OR($E$4='Customer Info'!$D$18,$E$4=0),R38,(R38/$E$4)*'Customer Info'!$D$18)),) -> 0 | AI38: =IF((OR($F$5=0,$F$5="none")),IF(S38=0,,IF(OR($E$5='Customer Info'!$D$18,$E$5=0),S38,(S38/$E$5)*'Customer Info'!$D$19)),) -> 0 | AJ38: =IF((OR($F$6=0,$F$6="none")),IF(T38=0,,IF(OR($E$6='Customer Info'!$D$18,$E$6=0),T38,(T38/$E$6)*'Customer Info'!$D$20)),) -> 72 | AK38: =IF((OR($F$7=0,$F$7="none")),IF(U38=0,,IF(OR($E$7='Customer Info'!$D$18,$E$7=0),U38,(U38/$E$7)*'Customer Info'!$D$21)),) -> 0 | AL38: =IF((OR($F$10=0,$F$10="none")),IF(V38=0,,IF(OR($E$10='Customer Info'!$F$18,$E$10=0),V38,(V38/$E$10)*'Customer Info'!$F$18)),) -> 0 | AM38: =IF((OR($F$11=0,$F$11="none")),IF(W38=0,,IF(OR($E$11='Customer Info'!$F$19,$E$11=0),W38,(W38/$E$11)*'Customer Info'!$F$19)),) -> 0 | AN38: =IF((OR($F$12=0,$F$12="none")),IF(X38=0,,IF(OR($E$12='Customer Info'!$F$20,$E$12=0),X38,(X38/$E$12)*'Customer Info'!$F$20)),) -> 0 | AO38: =IF((OR($F$13=0,$F$13="none")),IF(Y38=0,,IF(OR($E$13='Customer Info'!$F$21,$E$13=0),Y38,(Y38/$E$13)*'Customer Info'!$F$21)),) -> 0 | AP38: =IF((OR($F$16=0,$F$16="none")),IF(Z38=0,,IF(OR($E$16='Customer Info'!$H$18,$E$16=0),Z38,(Z38/$E$16)*'Customer Info'!$H$18)),) -> 0 | AQ38: =IF((OR($F$17=0,$F$17="none")),IF(AA38=0,,IF(OR($E$17='Customer Info'!$H$19,$E$17=0),AA38,(AA38/$E$17)*'Customer Info'!$H$19)),) -> 0 | AR38: =IF((OR($F$18=0,$F$18="none")),IF(AB38=0,,IF(OR($E$18='Customer Info'!$H$20,$E$18=0),AB38,(AB38/$E$18)*'Customer Info'!$H$20)),) -> 0 | AS38: =IF((OR($F$19=0,$F$19="none")),IF(AC38=0,,IF(OR($E$19='Customer Info'!$H$21,$E$19=0),AC38,(AC38/$E$19)*'Customer Info'!$H$21)),) -> 0 | AT38: =IF((OR($F$4=0,$F$4="none")),IF(AD38=0,,IF(OR($E$4='Customer Info'!$D$18,$E$4=0),AD38,(AD38/$E$4)*'Customer Info'!$D$18)),) -> 0 | AU38: =IF((OR($F$5=0,$F$5="none")),IF(AE38=0,,IF(OR($E$5='Customer Info'!$D$19,$E$5=0),AE38,(AE38/$E$5)*'Customer Info'!$D$19)),) -> 0 | AV38: =IF((OR($F$6=0,$F$6="none")),IF(AF38=0,,IF(OR($E$6='Customer Info'!$D$20,$E$6=0),AF38,(AF38/$E$6)*'Customer Info'!$D$20)),) -> 0 | AW38: =IF((OR($F$7=0,$F$7="none")),IF(AG38=0,,IF(OR($E$7='Customer Info'!$D$21,$E$7=0),AG38,(AG38/$E$7)*'Customer Info'!$D$21)),) -> 0 | AX38: 72 | AY38: 72 | AZ38: =IF(E38="plate waste",,IF('Customer Info'!$M$18=0,'Log Sheet'!AY38,'Customer Info'!$M$18*'Log Sheet'!AY38)) -> 0 | BA38: =IF(E38="plate waste",IF(OR(C38="patient",C38="patient beverages"),IF('Customer Info'!$M$27=0,AY38*'Customer Info'!$M$18,AY38*'Customer Info'!$M$27),IF(C38="cafeteria",IF('Customer Info'!$M$28=0,AY38*'Customer Info'!$M$18,AY38*'Customer Info'!$M$28),IF(C38="other1",IF('Customer Info'!$M$29=0,AY38*'Customer Info'!$M$18,AY38*'Customer Info'!$M$29),))),) -> 81.2539185 | BB38: 81.2539185 | BC38: =IF($F$4="lunch",IF(S38=0,,(S38/$E$5)*'Customer Info'!$D$18),) -> 0 | BD38: =IF($F$4="dinner",IF(T38=0,,(T38/$E$6)*'Customer Info'!$D$18),) -> 0 | BE38: =IF($F$4="other",IF(U38=0,,(U38/$E$7)*'Customer Info'!$D$18),) -> 0 | BF38: 0 | BG38: =IF($F$5="breakfast",IF(R38=0,,(R38/$E$4)*'Customer Info'!$D$19),) -> 0 | BH38: =IF($F$5="dinner",IF(T38=0,,(T38/$E$6)*'Customer Info'!$D$19),) -> 0 | BI38: =IF($F$5="other",IF(U38=0,,(U38/$E$7)*'Customer Info'!$D$19),) -> 0 | BJ38: 0 | BK38: =IF($F$6="breakfast",IF(R38=0,,(R38/$E$4)*'Customer Info'!$D$20),) -> 0 | BL38: =IF($F$6="lunch",IF(S38=0,,(S38/$E$5)*'Customer Info'!$D$20),) -> 0 | BM38: =IF($F$6="other",IF(U38=0,,(U38/$E$7)*'Customer Info'!$D$20),) -> 0 | BN38: 0 | BO38: =IF($F$7="breakfast",IF(R38=0,,(R38/$E$4)*'Customer Info'!$D$21),) -> 0 | BP38: =IF($F$7="lunch",IF(S38=0,,(S38/$E$5)*'Customer Info'!$D$21),) -> 0 | BQ38: =IF($F$7="dinner",IF(T38=0,,(T38/$E$6)*'Customer Info'!$D$21),) -> 0 | BR38: 0 | BS38: =IF($F$10="lunch",IF(W38=0,,(W38/$E$11)*'Customer Info'!$F$18),) -> 0 | BT38: =IF($F$10="dinner",IF(X38=0,,(X38/$E$12)*'Customer Info'!$F$18),) -> 0 | BU38: =IF($F$10="other",IF(Y38=0,,(Y38/$E$13)*'Customer Info'!$F$18),) -> 0 | BV38: 0 | BW38: =IF($F$11="breakfast",IF(V38=0,,(V38/$E$10)*'Customer Info'!$F$19),) -> 0 | BX38: =IF($F$11="dinner",IF(X38=0,,(X38/$E$12)*'Customer Info'!$F$19),) -> 0 | BY38: =IF($F$11="other",IF(Y38=0,,(Y38/$E$13)*'Customer Info'!$F$19),) -> 0 | BZ38: 0 | CA38: =IF($F$12="breakfast",IF(V38=0,,(V38/$E$10)*'Customer Info'!$F$20),) -> 0 | CB38: =IF($F$12="lunch",IF(W38=0,,(W38/$E$11)*'Customer Info'!$F$20),) -> 0 | CC38: =IF($F$12="other",IF(Y38=0,,(Y38/$E$13)*'Customer Info'!$F$20),) -> 0 | CD38: 0 | CE38: =IF($F$13="breakfast",IF(V38=0,,(V38/$E$10)*'Customer Info'!$F$21),) -> 0 | CF38: =IF($F$13="lunch",IF(W38=0,,(W38/$E$11)*'Customer Info'!$F$21),) -> 0 | CG38: =IF($F$13="dinner",IF(X38=0,,(X38/$E$12)*'Customer Info'!$F$21),) -> 0 | CH38: 0 | CI38: =IF($F$16="lunch",IF(AA38=0,,(AA38/$E$17)*'Customer Info'!$H$18),) -> 0 | CJ38: =IF($F$16="dinner",IF(AB38=0,,(AB38/$E$18)*'Customer Info'!$H$18),) -> 0 | CK38: =IF($F$16="other",IF(AC38=0,,(AC38/$E$19)*'Customer Info'!$H$18),) -> 0 | CL38: 0 | CM38: =IF($F$17="breakfast",IF(Z38=0,,(Z38/$E$16)*'Customer Info'!$H$19),) -> 0 | CN38: =IF($F$17="dinner",IF(AB38=0,,(AB38/$E$18)*'Customer Info'!$H$19),) -> 0 | CO38: =IF($F$17="other",IF(AC38=0,,(AC38/$E$19)*'Customer Info'!$H$19),) -> 0 | CP38: 0 | CQ38: =IF($F$18="breakfast",IF(Z38=0,,(Z38/$E$16)*'Customer Info'!$H$20),) -> 0 | CR38: =IF($F$18="lunch",IF(AA38=0,,(AA38/$E$17)*'Customer Info'!$H$20),) -> 0 | CS38: =IF($F$18="other",IF(AC38=0,,(AC38/$E$19)*'Customer Info'!$H$20),) -> 0 | CT38: 0 | CU38: =IF($F$19="breakfast",IF(Z38=0,,(Z38/$E$16)*'Customer Info'!$H$21),) -> 0 | CV38: =IF($F$19="lunch",IF(AA38=0,,(AA38/$E$17)*'Customer Info'!$H$21),) -> 0 | CW38: =IF($F$19="dinner",IF(AB38=0,,(AB38/$E$18)*'Customer Info'!$H$21),) -> 0 | CX38: 0 | CY38: 81.2539185 | CZ38: 0 | DA38: 0 | DB38: 0
K39: 0 | L39: 0 | M39: 0 | N39: 0 | O39: 0 | P39: 0 | Q39: 0 | R39: 0 | S39: 0 | T39: 0 | U39: 0 | V39: 0 | W39: 0 | X39: 0 | Y39: 0 | Z39: 0 | AA39: 0 | AB39: 0 | AC39: 0 | AD39: 0 | AE39: 0 | AF39: 0 | AG39: 0 | AH39: =IF((OR($F$4=0,$F$4="none")),IF(R39=0,,IF(OR($E$4='Customer Info'!$D$18,$E$4=0),R39,(R39/$E$4)*'Customer Info'!$D$18)),) -> 0 | AI39: =IF((OR($F$5=0,$F$5="none")),IF(S39=0,,IF(OR($E$5='Customer Info'!$D$18,$E$5=0),S39,(S39/$E$5)*'Customer Info'!$D$19)),) -> 0 | AJ39: =IF((OR($F$6=0,$F$6="none")),IF(T39=0,,IF(OR($E$6='Customer Info'!$D$18,$E$6=0),T39,(T39/$E$6)*'Customer Info'!$D$20)),) -> 0 | AK39: =IF((OR($F$7=0,$F$7="none")),IF(U39=0,,IF(OR($E$7='Customer Info'!$D$18,$E$7=0),U39,(U39/$E$7)*'Customer Info'!$D$21)),) -> 0 | AL39: =IF((OR($F$10=0,$F$10="none")),IF(V39=0,,IF(OR($E$10='Customer Info'!$F$18,$E$10=0),V39,(V39/$E$10)*'Customer Info'!$F$18)),) -> 0 | AM39: =IF((OR($F$11=0,$F$11="none")),IF(W39=0,,IF(OR($E$11='Customer Info'!$F$19,$E$11=0),W39,(W39/$E$11)*'Customer Info'!$F$19)),) -> 0 | AN39: =IF((OR($F$12=0,$F$12="none")),IF(X39=0,,IF(OR($E$12='Customer Info'!$F$20,$E$12=0),X39,(X39/$E$12)*'Customer Info'!$F$20)),) -> 0 | AO39: =IF((OR($F$13=0,$F$13="none")),IF(Y39=0,,IF(OR($E$13='Customer Info'!$F$21,$E$13=0),Y39,(Y39/$E$13)*'Customer Info'!$F$21)),) -> 0 | AP39: =IF((OR($F$16=0,$F$16="none")),IF(Z39=0,,IF(OR($E$16='Customer Info'!$H$18,$E$16=0),Z39,(Z39/$E$16)*'Customer Info'!$H$18)),) -> 0 | AQ39: =IF((OR($F$17=0,$F$17="none")),IF(AA39=0,,IF(OR($E$17='Customer Info'!$H$19,$E$17=0),AA39,(AA39/$E$17)*'Customer Info'!$H$19)),) -> 0 | AR39: =IF((OR($F$18=0,$F$18="none")),IF(AB39=0,,IF(OR($E$18='Customer Info'!$H$20,$E$18=0),AB39,(AB39/$E$18)*'Customer Info'!$H$20)),) -> 0 | AS39: =IF((OR($F$19=0,$F$19="none")),IF(AC39=0,,IF(OR($E$19='Customer Info'!$H$21,$E$19=0),AC39,(AC39/$E$19)*'Customer Info'!$H$21)),) -> 0 | AT39: =IF((OR($F$4=0,$F$4="none")),IF(AD39=0,,IF(OR($E$4='Customer Info'!$D$18,$E$4=0),AD39,(AD39/$E$4)*'Customer Info'!$D$18)),) -> 0 | AU39: =IF((OR($F$5=0,$F$5="none")),IF(AE39=0,,IF(OR($E$5='Customer Info'!$D$19,$E$5=0),AE39,(AE39/$E$5)*'Customer Info'!$D$19)),) -> 0 | AV39: =IF((OR($F$6=0,$F$6="none")),IF(AF39=0,,IF(OR($E$6='Customer Info'!$D$20,$E$6=0),AF39,(AF39/$E$6)*'Customer Info'!$D$20)),) -> 0 | AW39: =IF((OR($F$7=0,$F$7="none")),IF(AG39=0,,IF(OR($E$7='Customer Info'!$D$21,$E$7=0),AG39,(AG39/$E$7)*'Customer Info'!$D$21)),) -> 0 | AX39: 0 | AY39: 0 | AZ39: =IF(E39="plate waste",,IF('Customer Info'!$M$18=0,'Log Sheet'!AY39,'Customer Info'!$M$18*'Log Sheet'!AY39)) -> 0 | BA39: =IF(E39="plate waste",IF(OR(C39="patient",C39="patient beverages"),IF('Customer Info'!$M$27=0,AY39*'Customer Info'!$M$18,AY39*'Customer Info'!$M$27),IF(C39="cafeteria",IF('Customer Info'!$M$28=0,AY39*'Customer Info'!$M$18,AY39*'Customer Info'!$M$28),IF(C39="other1",IF('Customer Info'!$M$29=0,AY39*'Customer Info'!$M$18,AY39*'Customer Info'!$M$29),))),) -> 0 | BB39: 0 | BC39: =IF($F$4="lunch",IF(S39=0,,(S39/$E$5)*'Customer Info'!$D$18),) -> 0 | BD39: =IF($F$4="dinner",IF(T39=0,,(T39/$E$6)*'Customer Info'!$D$18),) -> 0 | BE39: =IF($F$4="other",IF(U39=0,,(U39/$E$7)*'Customer Info'!$D$18),) -> 0 | BF39: 0 | BG39: =IF($F$5="breakfast",IF(R39=0,,(R39/$E$4)*'Customer Info'!$D$19),) -> 0 | BH39: =IF($F$5="dinner",IF(T39=0,,(T39/$E$6)*'Customer Info'!$D$19),) -> 0 | BI39: =IF($F$5="other",IF(U39=0,,(U39/$E$7)*'Customer Info'!$D$19),) -> 0 | BJ39: 0 | BK39: =IF($F$6="breakfast",IF(R39=0,,(R39/$E$4)*'Customer Info'!$D$20),) -> 0 | BL39: =IF($F$6="lunch",IF(S39=0,,(S39/$E$5)*'Customer Info'!$D$20),) -> 0 | BM39: =IF($F$6="other",IF(U39=0,,(U39/$E$7)*'Customer Info'!$D$20),) -> 0 | BN39: 0 | BO39: =IF($F$7="breakfast",IF(R39=0,,(R39/$E$4)*'Customer Info'!$D$21),) -> 0 | BP39: =IF($F$7="lunch",IF(S39=0,,(S39/$E$5)*'Customer Info'!$D$21),) -> 0 | BQ39: =IF($F$7="dinner",IF(T39=0,,(T39/$E$6)*'Customer Info'!$D$21),) -> 0 | BR39: 0 | BS39: =IF($F$10="lunch",IF(W39=0,,(W39/$E$11)*'Customer Info'!$F$18),) -> 0 | BT39: =IF($F$10="dinner",IF(X39=0,,(X39/$E$12)*'Customer Info'!$F$18),) -> 0 | BU39: =IF($F$10="other",IF(Y39=0,,(Y39/$E$13)*'Customer Info'!$F$18),) -> 0 | BV39: 0 | BW39: =IF($F$11="breakfast",IF(V39=0,,(V39/$E$10)*'Customer Info'!$F$19),) -> 0 | BX39: =IF($F$11="dinner",IF(X39=0,,(X39/$E$12)*'Customer Info'!$F$19),) -> 0 | BY39: =IF($F$11="other",IF(Y39=0,,(Y39/$E$13)*'Customer Info'!$F$19),) -> 0 | BZ39: 0 | CA39: =IF($F$12="breakfast",IF(V39=0,,(V39/$E$10)*'Customer Info'!$F$20),) -> 0 | CB39: =IF($F$12="lunch",IF(W39=0,,(W39/$E$11)*'Customer Info'!$F$20),) -> 0 | CC39: =IF($F$12="other",IF(Y39=0,,(Y39/$E$13)*'Customer Info'!$F$20),) -> 0 | CD39: 0 | CE39: =IF($F$13="breakfast",IF(V39=0,,(V39/$E$10)*'Customer Info'!$F$21),) -> 0 | CF39: =IF($F$13="lunch",IF(W39=0,,(W39/$E$11)*'Customer Info'!$F$21),) -> 0 | CG39: =IF($F$13="dinner",IF(X39=0,,(X39/$E$12)*'Customer Info'!$F$21),) -> 0 | CH39: 0 | CI39: =IF($F$16="lunch",IF(AA39=0,,(AA39/$E$17)*'Customer Info'!$H$18),) -> 0 | CJ39: =IF($F$16="dinner",IF(AB39=0,,(AB39/$E$18)*'Customer Info'!$H$18),) -> 0 | CK39: =IF($F$16="other",IF(AC39=0,,(AC39/$E$19)*'Customer Info'!$H$18),) -> 0 | CL39: 0 | CM39: =IF($F$17="breakfast",IF(Z39=0,,(Z39/$E$16)*'Customer Info'!$H$19),) -> 0 | CN39: =IF($F$17="dinner",IF(AB39=0,,(AB39/$E$18)*'Customer Info'!$H$19),) -> 0 | CO39: =IF($F$17="other",IF(AC39=0,,(AC39/$E$19)*'Customer Info'!$H$19),) -> 0 | CP39: 0 | CQ39: =IF($F$18="breakfast",IF(Z39=0,,(Z39/$E$16)*'Customer Info'!$H$20),) -> 0 | CR39: =IF($F$18="lunch",IF(AA39=0,,(AA39/$E$17)*'Customer Info'!$H$20),) -> 0 | CS39: =IF($F$18="other",IF(AC39=0,,(AC39/$E$19)*'Customer Info'!$H$20),) -> 0 | CT39: 0 | CU39: =IF($F$19="breakfast",IF(Z39=0,,(Z39/$E$16)*'Customer Info'!$H$21),) -> 0 | CV39: =IF($F$19="lunch",IF(AA39=0,,(AA39/$E$17)*'Customer Info'!$H$21),) -> 0 | CW39: =IF($F$19="dinner",IF(AB39=0,,(AB39/$E$18)*'Customer Info'!$H$21),) -> 0 | CX39: 0 | CY39: 0 | CZ39: 0 | DA39: 0 | DB39: 0
K40: 0 | L40: 0 | M40: 0 | N40: 0 | O40: 0 | P40: 0 | Q40: 0 | R40: 0 | S40: 0 | T40: 0 | U40: 0 | V40: 0 | W40: 0 | X40: 0 | Y40: 0 | Z40: 0 | AA40: 0 | AB40: 0 | AC40: 0 | AD40: 0 | AE40: 0 | AF40: 0 | AG40: 0 | AH40: =IF((OR($F$4=0,$F$4="none")),IF(R40=0,,IF(OR($E$4='Customer Info'!$D$18,$E$4=0),R40,(R40/$E$4)*'Customer Info'!$D$18)),) -> 0 | AI40: =IF((OR($F$5=0,$F$5="none")),IF(S40=0,,IF(OR($E$5='Customer Info'!$D$18,$E$5=0),S40,(S40/$E$5)*'Customer Info'!$D$19)),) -> 0 | AJ40: =IF((OR($F$6=0,$F$6="none")),IF(T40=0,,IF(OR($E$6='Customer Info'!$D$18,$E$6=0),T40,(T40/$E$6)*'Customer Info'!$D$20)),) -> 0 | AK40: =IF((OR($F$7=0,$F$7="none")),IF(U40=0,,IF(OR($E$7='Customer Info'!$D$18,$E$7=0),U40,(U40/$E$7)*'Customer Info'!$D$21)),) -> 0 | AL40: =IF((OR($F$10=0,$F$10="none")),IF(V40=0,,IF(OR($E$10='Customer Info'!$F$18,$E$10=0),V40,(V40/$E$10)*'Customer Info'!$F$18)),) -> 0 | AM40: =IF((OR($F$11=0,$F$11="none")),IF(W40=0,,IF(OR($E$11='Customer Info'!$F$19,$E$11=0),W40,(W40/$E$11)*'Customer Info'!$F$19)),) -> 0 | AN40: =IF((OR($F$12=0,$F$12="none")),IF(X40=0,,IF(OR($E$12='Customer Info'!$F$20,$E$12=0),X40,(X40/$E$12)*'Customer Info'!$F$20)),) -> 0 | AO40: =IF((OR($F$13=0,$F$13="none")),IF(Y40=0,,IF(OR($E$13='Customer Info'!$F$21,$E$13=0),Y40,(Y40/$E$13)*'Customer Info'!$F$21)),) -> 0 | AP40: =IF((OR($F$16=0,$F$16="none")),IF(Z40=0,,IF(OR($E$16='Customer Info'!$H$18,$E$16=0),Z40,(Z40/$E$16)*'Customer Info'!$H$18)),) -> 0 | AQ40: =IF((OR($F$17=0,$F$17="none")),IF(AA40=0,,IF(OR($E$17='Customer Info'!$H$19,$E$17=0),AA40,(AA40/$E$17)*'Customer Info'!$H$19)),) -> 0 | AR40: =IF((OR($F$18=0,$F$18="none")),IF(AB40=0,,IF(OR($E$18='Customer Info'!$H$20,$E$18=0),AB40,(AB40/$E$18)*'Customer Info'!$H$20)),) -> 0 | AS40: =IF((OR($F$19=0,$F$19="none")),IF(AC40=0,,IF(OR($E$19='Customer Info'!$H$21,$E$19=0),AC40,(AC40/$E$19)*'Customer Info'!$H$21)),) -> 0 | AT40: =IF((OR($F$4=0,$F$4="none")),IF(AD40=0,,IF(OR($E$4='Customer Info'!$D$18,$E$4=0),AD40,(AD40/$E$4)*'Customer Info'!$D$18)),) -> 0 | AU40: =IF((OR($F$5=0,$F$5="none")),IF(AE40=0,,IF(OR($E$5='Customer Info'!$D$19,$E$5=0),AE40,(AE40/$E$5)*'Customer Info'!$D$19)),) -> 0 | AV40: =IF((OR($F$6=0,$F$6="none")),IF(AF40=0,,IF(OR($E$6='Customer Info'!$D$20,$E$6=0),AF40,(AF40/$E$6)*'Customer Info'!$D$20)),) -> 0 | AW40: =IF((OR($F$7=0,$F$7="none")),IF(AG40=0,,IF(OR($E$7='Customer Info'!$D$21,$E$7=0),AG40,(AG40/$E$7)*'Customer Info'!$D$21)),) -> 0 | AX40: 0 | AY40: 0 | AZ40: =IF(E40="plate waste",,IF('Customer Info'!$M$18=0,'Log Sheet'!AY40,'Customer Info'!$M$18*'Log Sheet'!AY40)) -> 0 | BA40: =IF(E40="plate waste",IF(OR(C40="patient",C40="patient beverages"),IF('Customer Info'!$M$27=0,AY40*'Customer Info'!$M$18,AY40*'Customer Info'!$M$27),IF(C40="cafeteria",IF('Customer Info'!$M$28=0,AY40*'Customer Info'!$M$18,AY40*'Customer Info'!$M$28),IF(C40="other1",IF('Customer Info'!$M$29=0,AY40*'Customer Info'!$M$18,AY40*'Customer Info'!$M$29),))),) -> 0 | BB40: 0 | BC40: =IF($F$4="lunch",IF(S40=0,,(S40/$E$5)*'Customer Info'!$D$18),) -> 0 | BD40: =IF($F$4="dinner",IF(T40=0,,(T40/$E$6)*'Customer Info'!$D$18),) -> 0 | BE40: =IF($F$4="other",IF(U40=0,,(U40/$E$7)*'Customer Info'!$D$18),) -> 0 | BF40: 0 | BG40: =IF($F$5="breakfast",IF(R40=0,,(R40/$E$4)*'Customer Info'!$D$19),) -> 0 | BH40: =IF($F$5="dinner",IF(T40=0,,(T40/$E$6)*'Customer Info'!$D$19),) -> 0 | BI40: =IF($F$5="other",IF(U40=0,,(U40/$E$7)*'Customer Info'!$D$19),) -> 0 | BJ40: 0 | BK40: =IF($F$6="breakfast",IF(R40=0,,(R40/$E$4)*'Customer Info'!$D$20),) -> 0 | BL40: =IF($F$6="lunch",IF(S40=0,,(S40/$E$5)*'Customer Info'!$D$20),) -> 0 | BM40: =IF($F$6="other",IF(U40=0,,(U40/$E$7)*'Customer Info'!$D$20),) -> 0 | BN40: 0 | BO40: =IF($F$7="breakfast",IF(R40=0,,(R40/$E$4)*'Customer Info'!$D$21),) -> 0 | BP40: =IF($F$7="lunch",IF(S40=0,,(S40/$E$5)*'Customer Info'!$D$21),) -> 0 | BQ40: =IF($F$7="dinner",IF(T40=0,,(T40/$E$6)*'Customer Info'!$D$21),) -> 0 | BR40: 0 | BS40: =IF($F$10="lunch",IF(W40=0,,(W40/$E$11)*'Customer Info'!$F$18),) -> 0 | BT40: =IF($F$10="dinner",IF(X40=0,,(X40/$E$12)*'Customer Info'!$F$18),) -> 0 | BU40: =IF($F$10="other",IF(Y40=0,,(Y40/$E$13)*'Customer Info'!$F$18),) -> 0 | BV40: 0 | BW40: =IF($F$11="breakfast",IF(V40=0,,(V40/$E$10)*'Customer Info'!$F$19),) -> 0 | BX40: =IF($F$11="dinner",IF(X40=0,,(X40/$E$12)*'Customer Info'!$F$19),) -> 0 | BY40: =IF($F$11="other",IF(Y40=0,,(Y40/$E$13)*'Customer Info'!$F$19),) -> 0 | BZ40: 0 | CA40: =IF($F$12="breakfast",IF(V40=0,,(V40/$E$10)*'Customer Info'!$F$20),) -> 0 | CB40: =IF($F$12="lunch",IF(W40=0,,(W40/$E$11)*'Customer Info'!$F$20),) -> 0 | CC40: =IF($F$12="other",IF(Y40=0,,(Y40/$E$13)*'Customer Info'!$F$20),) -> 0 | CD40: 0 | CE40: =IF($F$13="breakfast",IF(V40=0,,(V40/$E$10)*'Customer Info'!$F$21),) -> 0 | CF40: =IF($F$13="lunch",IF(W40=0,,(W40/$E$11)*'Customer Info'!$F$21),) -> 0 | CG40: =IF($F$13="dinner",IF(X40=0,,(X40/$E$12)*'Customer Info'!$F$21),) -> 0 | CH40: 0 | CI40: =IF($F$16="lunch",IF(AA40=0,,(AA40/$E$17)*'Customer Info'!$H$18),) -> 0 | CJ40: =IF($F$16="dinner",IF(AB40=0,,(AB40/$E$18)*'Customer Info'!$H$18),) -> 0 | CK40: =IF($F$16="other",IF(AC40=0,,(AC40/$E$19)*'Customer Info'!$H$18),) -> 0 | CL40: 0 | CM40: =IF($F$17="breakfast",IF(Z40=0,,(Z40/$E$16)*'Customer Info'!$H$19),) -> 0 | CN40: =IF($F$17="dinner",IF(AB40=0,,(AB40/$E$18)*'Customer Info'!$H$19),) -> 0 | CO40: =IF($F$17="other",IF(AC40=0,,(AC40/$E$19)*'Customer Info'!$H$19),) -> 0 | CP40: 0 | CQ40: =IF($F$18="breakfast",IF(Z40=0,,(Z40/$E$16)*'Customer Info'!$H$20),) -> 0 | CR40: =IF($F$18="lunch",IF(AA40=0,,(AA40/$E$17)*'Customer Info'!$H$20),) -> 0 | CS40: =IF($F$18="other",IF(AC40=0,,(AC40/$E$19)*'Customer Info'!$H$20),) -> 0 | CT40: 0 | CU40: =IF($F$19="breakfast",IF(Z40=0,,(Z40/$E$16)*'Customer Info'!$H$21),) -> 0 | CV40: =IF($F$19="lunch",IF(AA40=0,,(AA40/$E$17)*'Customer Info'!$H$21),) -> 0 | CW40: =IF($F$19="dinner",IF(AB40=0,,(AB40/$E$18)*'Customer Info'!$H$21),) -> 0 | CX40: 0 | CY40: 0 | CZ40: 0 | DA40: 0 | DB40: 0
K41: 0 | L41: 0 | M41: 0 | N41: 0 | O41: 0 | P41: 0 | Q41: 0 | R41: 0 | S41: 0 | T41: 0 | U41: 0 | V41: 0 | W41: 0 | X41: 0 | Y41: 0 | Z41: 0 | AA41: 0 | AB41: 0 | AC41: 0 | AD41: 0 | AE41: 0 | AF41: 0 | AG41: 0 | AH41: =IF((OR($F$4=0,$F$4="none")),IF(R41=0,,IF(OR($E$4='Customer Info'!$D$18,$E$4=0),R41,(R41/$E$4)*'Customer Info'!$D$18)),) -> 0 | AI41: =IF((OR($F$5=0,$F$5="none")),IF(S41=0,,IF(OR($E$5='Customer Info'!$D$18,$E$5=0),S41,(S41/$E$5)*'Customer Info'!$D$19)),) -> 0 | AJ41: =IF((OR($F$6=0,$F$6="none")),IF(T41=0,,IF(OR($E$6='Customer Info'!$D$18,$E$6=0),T41,(T41/$E$6)*'Customer Info'!$D$20)),) -> 0 | AK41: =IF((OR($F$7=0,$F$7="none")),IF(U41=0,,IF(OR($E$7='Customer Info'!$D$18,$E$7=0),U41,(U41/$E$7)*'Customer Info'!$D$21)),) -> 0 | AL41: =IF((OR($F$10=0,$F$10="none")),IF(V41=0,,IF(OR($E$10='Customer Info'!$F$18,$E$10=0),V41,(V41/$E$10)*'Customer Info'!$F$18)),) -> 0 | AM41: =IF((OR($F$11=0,$F$11="none")),IF(W41=0,,IF(OR($E$11='Customer Info'!$F$19,$E$11=0),W41,(W41/$E$11)*'Customer Info'!$F$19)),) -> 0 | AN41: =IF((OR($F$12=0,$F$12="none")),IF(X41=0,,IF(OR($E$12='Customer Info'!$F$20,$E$12=0),X41,(X41/$E$12)*'Customer Info'!$F$20)),) -> 0 | AO41: =IF((OR($F$13=0,$F$13="none")),IF(Y41=0,,IF(OR($E$13='Customer Info'!$F$21,$E$13=0),Y41,(Y41/$E$13)*'Customer Info'!$F$21)),) -> 0 | AP41: =IF((OR($F$16=0,$F$16="none")),IF(Z41=0,,IF(OR($E$16='Customer Info'!$H$18,$E$16=0),Z41,(Z41/$E$16)*'Customer Info'!$H$18)),) -> 0 | AQ41: =IF((OR($F$17=0,$F$17="none")),IF(AA41=0,,IF(OR($E$17='Customer Info'!$H$19,$E$17=0),AA41,(AA41/$E$17)*'Customer Info'!$H$19)),) -> 0 | AR41: =IF((OR($F$18=0,$F$18="none")),IF(AB41=0,,IF(OR($E$18='Customer Info'!$H$20,$E$18=0),AB41,(AB41/$E$18)*'Customer Info'!$H$20)),) -> 0 | AS41: =IF((OR($F$19=0,$F$19="none")),IF(AC41=0,,IF(OR($E$19='Customer Info'!$H$21,$E$19=0),AC41,(AC41/$E$19)*'Customer Info'!$H$21)),) -> 0 | AT41: =IF((OR($F$4=0,$F$4="none")),IF(AD41=0,,IF(OR($E$4='Customer Info'!$D$18,$E$4=0),AD41,(AD41/$E$4)*'Customer Info'!$D$18)),) -> 0 | AU41: =IF((OR($F$5=0,$F$5="none")),IF(AE41=0,,IF(OR($E$5='Customer Info'!$D$19,$E$5=0),AE41,(AE41/$E$5)*'Customer Info'!$D$19)),) -> 0 | AV41: =IF((OR($F$6=0,$F$6="none")),IF(AF41=0,,IF(OR($E$6='Customer Info'!$D$20,$E$6=0),AF41,(AF41/$E$6)*'Customer Info'!$D$20)),) -> 0 | AW41: =IF((OR($F$7=0,$F$7="none")),IF(AG41=0,,IF(OR($E$7='Customer Info'!$D$21,$E$7=0),AG41,(AG41/$E$7)*'Customer Info'!$D$21)),) -> 0 | AX41: 0 | AY41: 0 | AZ41: =IF(E41="plate waste",,IF('Customer Info'!$M$18=0,'Log Sheet'!AY41,'Customer Info'!$M$18*'Log Sheet'!AY41)) -> 0 | BA41: =IF(E41="plate waste",IF(OR(C41="patient",C41="patient beverages"),IF('Customer Info'!$M$27=0,AY41*'Customer Info'!$M$18,AY41*'Customer Info'!$M$27),IF(C41="cafeteria",IF('Customer Info'!$M$28=0,AY41*'Customer Info'!$M$18,AY41*'Customer Info'!$M$28),IF(C41="other1",IF('Customer Info'!$M$29=0,AY41*'Customer Info'!$M$18,AY41*'Customer Info'!$M$29),))),) -> 0 | BB41: 0 | BC41: =IF($F$4="lunch",IF(S41=0,,(S41/$E$5)*'Customer Info'!$D$18),) -> 0 | BD41: =IF($F$4="dinner",IF(T41=0,,(T41/$E$6)*'Customer Info'!$D$18),) -> 0 | BE41: =IF($F$4="other",IF(U41=0,,(U41/$E$7)*'Customer Info'!$D$18),) -> 0 | BF41: 0 | BG41: =IF($F$5="breakfast",IF(R41=0,,(R41/$E$4)*'Customer Info'!$D$19),) -> 0 | BH41: =IF($F$5="dinner",IF(T41=0,,(T41/$E$6)*'Customer Info'!$D$19),) -> 0 | BI41: =IF($F$5="other",IF(U41=0,,(U41/$E$7)*'Customer Info'!$D$19),) -> 0 | BJ41: 0 | BK41: =IF($F$6="breakfast",IF(R41=0,,(R41/$E$4)*'Customer Info'!$D$20),) -> 0 | BL41: =IF($F$6="lunch",IF(S41=0,,(S41/$E$5)*'Customer Info'!$D$20),) -> 0 | BM41: =IF($F$6="other",IF(U41=0,,(U41/$E$7)*'Customer Info'!$D$20),) -> 0 | BN41: 0 | BO41: =IF($F$7="breakfast",IF(R41=0,,(R41/$E$4)*'Customer Info'!$D$21),) -> 0 | BP41: =IF($F$7="lunch",IF(S41=0,,(S41/$E$5)*'Customer Info'!$D$21),) -> 0 | BQ41: =IF($F$7="dinner",IF(T41=0,,(T41/$E$6)*'Customer Info'!$D$21),) -> 0 | BR41: 0 | BS41: =IF($F$10="lunch",IF(W41=0,,(W41/$E$11)*'Customer Info'!$F$18),) -> 0 | BT41: =IF($F$10="dinner",IF(X41=0,,(X41/$E$12)*'Customer Info'!$F$18),) -> 0 | BU41: =IF($F$10="other",IF(Y41=0,,(Y41/$E$13)*'Customer Info'!$F$18),) -> 0 | BV41: 0 | BW41: =IF($F$11="breakfast",IF(V41=0,,(V41/$E$10)*'Customer Info'!$F$19),) -> 0 | BX41: =IF($F$11="dinner",IF(X41=0,,(X41/$E$12)*'Customer Info'!$F$19),) -> 0 | BY41: =IF($F$11="other",IF(Y41=0,,(Y41/$E$13)*'Customer Info'!$F$19),) -> 0 | BZ41: 0 | CA41: =IF($F$12="breakfast",IF(V41=0,,(V41/$E$10)*'Customer Info'!$F$20),) -> 0 | CB41: =IF($F$12="lunch",IF(W41=0,,(W41/$E$11)*'Customer Info'!$F$20),) -> 0 | CC41: =IF($F$12="other",IF(Y41=0,,(Y41/$E$13)*'Customer Info'!$F$20),) -> 0 | CD41: 0 | CE41: =IF($F$13="breakfast",IF(V41=0,,(V41/$E$10)*'Customer Info'!$F$21),) -> 0 | CF41: =IF($F$13="lunch",IF(W41=0,,(W41/$E$11)*'Customer Info'!$F$21),) -> 0 | CG41: =IF($F$13="dinner",IF(X41=0,,(X41/$E$12)*'Customer Info'!$F$21),) -> 0 | CH41: 0 | CI41: =IF($F$16="lunch",IF(AA41=0,,(AA41/$E$17)*'Customer Info'!$H$18),) -> 0 | CJ41: =IF($F$16="dinner",IF(AB41=0,,(AB41/$E$18)*'Customer Info'!$H$18),) -> 0 | CK41: =IF($F$16="other",IF(AC41=0,,(AC41/$E$19)*'Customer Info'!$H$18),) -> 0 | CL41: 0 | CM41: =IF($F$17="breakfast",IF(Z41=0,,(Z41/$E$16)*'Customer Info'!$H$19),) -> 0 | CN41: =IF($F$17="dinner",IF(AB41=0,,(AB41/$E$18)*'Customer Info'!$H$19),) -> 0 | CO41: =IF($F$17="other",IF(AC41=0,,(AC41/$E$19)*'Customer Info'!$H$19),) -> 0 | CP41: 0 | CQ41: =IF($F$18="breakfast",IF(Z41=0,,(Z41/$E$16)*'Customer Info'!$H$20),) -> 0 | CR41: =IF($F$18="lunch",IF(AA41=0,,(AA41/$E$17)*'Customer Info'!$H$20),) -> 0 | CS41: =IF($F$18="other",IF(AC41=0,,(AC41/$E$19)*'Customer Info'!$H$20),) -> 0 | CT41: 0 | CU41: =IF($F$19="breakfast",IF(Z41=0,,(Z41/$E$16)*'Customer Info'!$H$21),) -> 0 | CV41: =IF($F$19="lunch",IF(AA41=0,,(AA41/$E$17)*'Customer Info'!$H$21),) -> 0 | CW41: =IF($F$19="dinner",IF(AB41=0,,(AB41/$E$18)*'Customer Info'!$H$21),) -> 0 | CX41: 0 | CY41: 0 | CZ41: 0 | DA41: 0 | DB41: 0
K42: 0 | L42: 0 | M42: 0 | N42: 0 | O42: 0 | P42: 0 | Q42: 0 | R42: 0 | S42: 0 | T42: 0 | U42: 0 | V42: 0 | W42: 0 | X42: 0 | Y42: 0 | Z42: 0 | AA42: 0 | AB42: 0 | AC42: 0 | AD42: 0 | AE42: 0 | AF42: 0 | AG42: 0 | AH42: =IF((OR($F$4=0,$F$4="none")),IF(R42=0,,IF(OR($E$4='Customer Info'!$D$18,$E$4=0),R42,(R42/$E$4)*'Customer Info'!$D$18)),) -> 0 | AI42: =IF((OR($F$5=0,$F$5="none")),IF(S42=0,,IF(OR($E$5='Customer Info'!$D$18,$E$5=0),S42,(S42/$E$5)*'Customer Info'!$D$19)),) -> 0 | AJ42: =IF((OR($F$6=0,$F$6="none")),IF(T42=0,,IF(OR($E$6='Customer Info'!$D$18,$E$6=0),T42,(T42/$E$6)*'Customer Info'!$D$20)),) -> 0 | AK42: =IF((OR($F$7=0,$F$7="none")),IF(U42=0,,IF(OR($E$7='Customer Info'!$D$18,$E$7=0),U42,(U42/$E$7)*'Customer Info'!$D$21)),) -> 0 | AL42: =IF((OR($F$10=0,$F$10="none")),IF(V42=0,,IF(OR($E$10='Customer Info'!$F$18,$E$10=0),V42,(V42/$E$10)*'Customer Info'!$F$18)),) -> 0 | AM42: =IF((OR($F$11=0,$F$11="none")),IF(W42=0,,IF(OR($E$11='Customer Info'!$F$19,$E$11=0),W42,(W42/$E$11)*'Customer Info'!$F$19)),) -> 0 | AN42: =IF((OR($F$12=0,$F$12="none")),IF(X42=0,,IF(OR($E$12='Customer Info'!$F$20,$E$12=0),X42,(X42/$E$12)*'Customer Info'!$F$20)),) -> 0 | AO42: =IF((OR($F$13=0,$F$13="none")),IF(Y42=0,,IF(OR($E$13='Customer Info'!$F$21,$E$13=0),Y42,(Y42/$E$13)*'Customer Info'!$F$21)),) -> 0 | AP42: =IF((OR($F$16=0,$F$16="none")),IF(Z42=0,,IF(OR($E$16='Customer Info'!$H$18,$E$16=0),Z42,(Z42/$E$16)*'Customer Info'!$H$18)),) -> 0 | AQ42: =IF((OR($F$17=0,$F$17="none")),IF(AA42=0,,IF(OR($E$17='Customer Info'!$H$19,$E$17=0),AA42,(AA42/$E$17)*'Customer Info'!$H$19)),) -> 0 | AR42: =IF((OR($F$18=0,$F$18="none")),IF(AB42=0,,IF(OR($E$18='Customer Info'!$H$20,$E$18=0),AB42,(AB42/$E$18)*'Customer Info'!$H$20)),) -> 0 | AS42: =IF((OR($F$19=0,$F$19="none")),IF(AC42=0,,IF(OR($E$19='Customer Info'!$H$21,$E$19=0),AC42,(AC42/$E$19)*'Customer Info'!$H$21)),) -> 0 | AT42: =IF((OR($F$4=0,$F$4="none")),IF(AD42=0,,IF(OR($E$4='Customer Info'!$D$18,$E$4=0),AD42,(AD42/$E$4)*'Customer Info'!$D$18)),) -> 0 | AU42: =IF((OR($F$5=0,$F$5="none")),IF(AE42=0,,IF(OR($E$5='Customer Info'!$D$19,$E$5=0),AE42,(AE42/$E$5)*'Customer Info'!$D$19)),) -> 0 | AV42: =IF((OR($F$6=0,$F$6="none")),IF(AF42=0,,IF(OR($E$6='Customer Info'!$D$20,$E$6=0),AF42,(AF42/$E$6)*'Customer Info'!$D$20)),) -> 0 | AW42: =IF((OR($F$7=0,$F$7="none")),IF(AG42=0,,IF(OR($E$7='Customer Info'!$D$21,$E$7=0),AG42,(AG42/$E$7)*'Customer Info'!$D$21)),) -> 0 | AX42: 0 | AY42: 0 | AZ42: =IF(E42="plate waste",,IF('Customer Info'!$M$18=0,'Log Sheet'!AY42,'Customer Info'!$M$18*'Log Sheet'!AY42)) -> 0 | BA42: =IF(E42="plate waste",IF(OR(C42="patient",C42="patient beverages"),IF('Customer Info'!$M$27=0,AY42*'Customer Info'!$M$18,AY42*'Customer Info'!$M$27),IF(C42="cafeteria",IF('Customer Info'!$M$28=0,AY42*'Customer Info'!$M$18,AY42*'Customer Info'!$M$28),IF(C42="other1",IF('Customer Info'!$M$29=0,AY42*'Customer Info'!$M$18,AY42*'Customer Info'!$M$29),))),) -> 0 | BB42: 0 | BC42: =IF($F$4="lunch",IF(S42=0,,(S42/$E$5)*'Customer Info'!$D$18),) -> 0 | BD42: =IF($F$4="dinner",IF(T42=0,,(T42/$E$6)*'Customer Info'!$D$18),) -> 0 | BE42: =IF($F$4="other",IF(U42=0,,(U42/$E$7)*'Customer Info'!$D$18),) -> 0 | BF42: 0 | BG42: =IF($F$5="breakfast",IF(R42=0,,(R42/$E$4)*'Customer Info'!$D$19),) -> 0 | BH42: =IF($F$5="dinner",IF(T42=0,,(T42/$E$6)*'Customer Info'!$D$19),) -> 0 | BI42: =IF($F$5="other",IF(U42=0,,(U42/$E$7)*'Customer Info'!$D$19),) -> 0 | BJ42: 0 | BK42: =IF($F$6="breakfast",IF(R42=0,,(R42/$E$4)*'Customer Info'!$D$20),) -> 0 | BL42: =IF($F$6="lunch",IF(S42=0,,(S42/$E$5)*'Customer Info'!$D$20),) -> 0 | BM42: =IF($F$6="other",IF(U42=0,,(U42/$E$7)*'Customer Info'!$D$20),) -> 0 | BN42: 0 | BO42: =IF($F$7="breakfast",IF(R42=0,,(R42/$E$4)*'Customer Info'!$D$21),) -> 0 | BP42: =IF($F$7="lunch",IF(S42=0,,(S42/$E$5)*'Customer Info'!$D$21),) -> 0 | BQ42: =IF($F$7="dinner",IF(T42=0,,(T42/$E$6)*'Customer Info'!$D$21),) -> 0 | BR42: 0 | BS42: =IF($F$10="lunch",IF(W42=0,,(W42/$E$11)*'Customer Info'!$F$18),) -> 0 | BT42: =IF($F$10="dinner",IF(X42=0,,(X42/$E$12)*'Customer Info'!$F$18),) -> 0 | BU42: =IF($F$10="other",IF(Y42=0,,(Y42/$E$13)*'Customer Info'!$F$18),) -> 0 | BV42: 0 | BW42: =IF($F$11="breakfast",IF(V42=0,,(V42/$E$10)*'Customer Info'!$F$19),) -> 0 | BX42: =IF($F$11="dinner",IF(X42=0,,(X42/$E$12)*'Customer Info'!$F$19),) -> 0 | BY42: =IF($F$11="other",IF(Y42=0,,(Y42/$E$13)*'Customer Info'!$F$19),) -> 0 | BZ42: 0 | CA42: =IF($F$12="breakfast",IF(V42=0,,(V42/$E$10)*'Customer Info'!$F$20),) -> 0 | CB42: =IF($F$12="lunch",IF(W42=0,,(W42/$E$11)*'Customer Info'!$F$20),) -> 0 | CC42: =IF($F$12="other",IF(Y42=0,,(Y42/$E$13)*'Customer Info'!$F$20),) -> 0 | CD42: 0 | CE42: =IF($F$13="breakfast",IF(V42=0,,(V42/$E$10)*'Customer Info'!$F$21),) -> 0 | CF42: =IF($F$13="lunch",IF(W42=0,,(W42/$E$11)*'Customer Info'!$F$21),) -> 0 | CG42: =IF($F$13="dinner",IF(X42=0,,(X42/$E$12)*'Customer Info'!$F$21),) -> 0 | CH42: 0 | CI42: =IF($F$16="lunch",IF(AA42=0,,(AA42/$E$17)*'Customer Info'!$H$18),) -> 0 | CJ42: =IF($F$16="dinner",IF(AB42=0,,(AB42/$E$18)*'Customer Info'!$H$18),) -> 0 | CK42: =IF($F$16="other",IF(AC42=0,,(AC42/$E$19)*'Customer Info'!$H$18),) -> 0 | CL42: 0 | CM42: =IF($F$17="breakfast",IF(Z42=0,,(Z42/$E$16)*'Customer Info'!$H$19),) -> 0 | CN42: =IF($F$17="dinner",IF(AB42=0,,(AB42/$E$18)*'Customer Info'!$H$19),) -> 0 | CO42: =IF($F$17="other",IF(AC42=0,,(AC42/$E$19)*'Customer Info'!$H$19),) -> 0 | CP42: 0 | CQ42: =IF($F$18="breakfast",IF(Z42=0,,(Z42/$E$16)*'Customer Info'!$H$20),) -> 0 | CR42: =IF($F$18="lunch",IF(AA42=0,,(AA42/$E$17)*'Customer Info'!$H$20),) -> 0 | CS42: =IF($F$18="other",IF(AC42=0,,(AC42/$E$19)*'Customer Info'!$H$20),) -> 0 | CT42: 0 | CU42: =IF($F$19="breakfast",IF(Z42=0,,(Z42/$E$16)*'Customer Info'!$H$21),) -> 0 | CV42: =IF($F$19="lunch",IF(AA42=0,,(AA42/$E$17)*'Customer Info'!$H$21),) -> 0 | CW42: =IF($F$19="dinner",IF(AB42=0,,(AB42/$E$18)*'Customer Info'!$H$21),) -> 0 | CX42: 0 | CY42: 0 | CZ42: 0 | DA42: 0 | DB42: 0
K43: 0 | L43: 0 | M43: 0 | N43: 0 | O43: 0 | P43: 0 | Q43: 0 | R43: 0 | S43: 0 | T43: 0 | U43: 0 | V43: 0 | W43: 0 | X43: 0 | Y43: 0 | Z43: 0 | AA43: 0 | AB43: 0 | AC43: 0 | AD43: 0 | AE43: 0 | AF43: 0 | AG43: 0 | AH43: =IF((OR($F$4=0,$F$4="none")),IF(R43=0,,IF(OR($E$4='Customer Info'!$D$18,$E$4=0),R43,(R43/$E$4)*'Customer Info'!$D$18)),) -> 0 | AI43: =IF((OR($F$5=0,$F$5="none")),IF(S43=0,,IF(OR($E$5='Customer Info'!$D$18,$E$5=0),S43,(S43/$E$5)*'Customer Info'!$D$19)),) -> 0 | AJ43: =IF((OR($F$6=0,$F$6="none")),IF(T43=0,,IF(OR($E$6='Customer Info'!$D$18,$E$6=0),T43,(T43/$E$6)*'Customer Info'!$D$20)),) -> 0 | AK43: =IF((OR($F$7=0,$F$7="none")),IF(U43=0,,IF(OR($E$7='Customer Info'!$D$18,$E$7=0),U43,(U43/$E$7)*'Customer Info'!$D$21)),) -> 0 | AL43: =IF((OR($F$10=0,$F$10="none")),IF(V43=0,,IF(OR($E$10='Customer Info'!$F$18,$E$10=0),V43,(V43/$E$10)*'Customer Info'!$F$18)),) -> 0 | AM43: =IF((OR($F$11=0,$F$11="none")),IF(W43=0,,IF(OR($E$11='Customer Info'!$F$19,$E$11=0),W43,(W43/$E$11)*'Customer Info'!$F$19)),) -> 0 | AN43: =IF((OR($F$12=0,$F$12="none")),IF(X43=0,,IF(OR($E$12='Customer Info'!$F$20,$E$12=0),X43,(X43/$E$12)*'Customer Info'!$F$20)),) -> 0 | AO43: =IF((OR($F$13=0,$F$13="none")),IF(Y43=0,,IF(OR($E$13='Customer Info'!$F$21,$E$13=0),Y43,(Y43/$E$13)*'Customer Info'!$F$21)),) -> 0 | AP43: =IF((OR($F$16=0,$F$16="none")),IF(Z43=0,,IF(OR($E$16='Customer Info'!$H$18,$E$16=0),Z43,(Z43/$E$16)*'Customer Info'!$H$18)),) -> 0 | AQ43: =IF((OR($F$17=0,$F$17="none")),IF(AA43=0,,IF(OR($E$17='Customer Info'!$H$19,$E$17=0),AA43,(AA43/$E$17)*'Customer Info'!$H$19)),) -> 0 | AR43: =IF((OR($F$18=0,$F$18="none")),IF(AB43=0,,IF(OR($E$18='Customer Info'!$H$20,$E$18=0),AB43,(AB43/$E$18)*'Customer Info'!$H$20)),) -> 0 | AS43: =IF((OR($F$19=0,$F$19="none")),IF(AC43=0,,IF(OR($E$19='Customer Info'!$H$21,$E$19=0),AC43,(AC43/$E$19)*'Customer Info'!$H$21)),) -> 0 | AT43: =IF((OR($F$4=0,$F$4="none")),IF(AD43=0,,IF(OR($E$4='Customer Info'!$D$18,$E$4=0),AD43,(AD43/$E$4)*'Customer Info'!$D$18)),) -> 0 | AU43: =IF((OR($F$5=0,$F$5="none")),IF(AE43=0,,IF(OR($E$5='Customer Info'!$D$19,$E$5=0),AE43,(AE43/$E$5)*'Customer Info'!$D$19)),) -> 0 | AV43: =IF((OR($F$6=0,$F$6="none")),IF(AF43=0,,IF(OR($E$6='Customer Info'!$D$20,$E$6=0),AF43,(AF43/$E$6)*'Customer Info'!$D$20)),) -> 0 | AW43: =IF((OR($F$7=0,$F$7="none")),IF(AG43=0,,IF(OR($E$7='Customer Info'!$D$21,$E$7=0),AG43,(AG43/$E$7)*'Customer Info'!$D$21)),) -> 0 | AX43: 0 | AY43: 0 | AZ43: =IF(E43="plate waste",,IF('Customer Info'!$M$18=0,'Log Sheet'!AY43,'Customer Info'!$M$18*'Log Sheet'!AY43)) -> 0 | BA43: =IF(E43="plate waste",IF(OR(C43="patient",C43="patient beverages"),IF('Customer Info'!$M$27=0,AY43*'Customer Info'!$M$18,AY43*'Customer Info'!$M$27),IF(C43="cafeteria",IF('Customer Info'!$M$28=0,AY43*'Customer Info'!$M$18,AY43*'Customer Info'!$M$28),IF(C43="other1",IF('Customer Info'!$M$29=0,AY43*'Customer Info'!$M$18,AY43*'Customer Info'!$M$29),))),) -> 0 | BB43: 0 | BC43: =IF($F$4="lunch",IF(S43=0,,(S43/$E$5)*'Customer Info'!$D$18),) -> 0 | BD43: =IF($F$4="dinner",IF(T43=0,,(T43/$E$6)*'Customer Info'!$D$18),) -> 0 | BE43: =IF($F$4="other",IF(U43=0,,(U43/$E$7)*'Customer Info'!$D$18),) -> 0 | BF43: 0 | BG43: =IF($F$5="breakfast",IF(R43=0,,(R43/$E$4)*'Customer Info'!$D$19),) -> 0 | BH43: =IF($F$5="dinner",IF(T43=0,,(T43/$E$6)*'Customer Info'!$D$19),) -> 0 | BI43: =IF($F$5="other",IF(U43=0,,(U43/$E$7)*'Customer Info'!$D$19),) -> 0 | BJ43: 0 | BK43: =IF($F$6="breakfast",IF(R43=0,,(R43/$E$4)*'Customer Info'!$D$20),) -> 0 | BL43: =IF($F$6="lunch",IF(S43=0,,(S43/$E$5)*'Customer Info'!$D$20),) -> 0 | BM43: =IF($F$6="other",IF(U43=0,,(U43/$E$7)*'Customer Info'!$D$20),) -> 0 | BN43: 0 | BO43: =IF($F$7="breakfast",IF(R43=0,,(R43/$E$4)*'Customer Info'!$D$21),) -> 0 | BP43: =IF($F$7="lunch",IF(S43=0,,(S43/$E$5)*'Customer Info'!$D$21),) -> 0 | BQ43: =IF($F$7="dinner",IF(T43=0,,(T43/$E$6)*'Customer Info'!$D$21),) -> 0 | BR43: 0 | BS43: =IF($F$10="lunch",IF(W43=0,,(W43/$E$11)*'Customer Info'!$F$18),) -> 0 | BT43: =IF($F$10="dinner",IF(X43=0,,(X43/$E$12)*'Customer Info'!$F$18),) -> 0 | BU43: =IF($F$10="other",IF(Y43=0,,(Y43/$E$13)*'Customer Info'!$F$18),) -> 0 | BV43: 0 | BW43: =IF($F$11="breakfast",IF(V43=0,,(V43/$E$10)*'Customer Info'!$F$19),) -> 0 | BX43: =IF($F$11="dinner",IF(X43=0,,(X43/$E$12)*'Customer Info'!$F$19),) -> 0 | BY43: =IF($F$11="other",IF(Y43=0,,(Y43/$E$13)*'Customer Info'!$F$19),) -> 0 | BZ43: 0 | CA43: =IF($F$12="breakfast",IF(V43=0,,(V43/$E$10)*'Customer Info'!$F$20),) -> 0 | CB43: =IF($F$12="lunch",IF(W43=0,,(W43/$E$11)*'Customer Info'!$F$20),) -> 0 | CC43: =IF($F$12="other",IF(Y43=0,,(Y43/$E$13)*'Customer Info'!$F$20),) -> 0 | CD43: 0 | CE43: =IF($F$13="breakfast",IF(V43=0,,(V43/$E$10)*'Customer Info'!$F$21),) -> 0 | CF43: =IF($F$13="lunch",IF(W43=0,,(W43/$E$11)*'Customer Info'!$F$21),) -> 0 | CG43: =IF($F$13="dinner",IF(X43=0,,(X43/$E$12)*'Customer Info'!$F$21),) -> 0 | CH43: 0 | CI43: =IF($F$16="lunch",IF(AA43=0,,(AA43/$E$17)*'Customer Info'!$H$18),) -> 0 | CJ43: =IF($F$16="dinner",IF(AB43=0,,(AB43/$E$18)*'Customer Info'!$H$18),) -> 0 | CK43: =IF($F$16="other",IF(AC43=0,,(AC43/$E$19)*'Customer Info'!$H$18),) -> 0 | CL43: 0 | CM43: =IF($F$17="breakfast",IF(Z43=0,,(Z43/$E$16)*'Customer Info'!$H$19),) -> 0 | CN43: =IF($F$17="dinner",IF(AB43=0,,(AB43/$E$18)*'Customer Info'!$H$19),) -> 0 | CO43: =IF($F$17="other",IF(AC43=0,,(AC43/$E$19)*'Customer Info'!$H$19),) -> 0 | CP43: 0 | CQ43: =IF($F$18="breakfast",IF(Z43=0,,(Z43/$E$16)*'Customer Info'!$H$20),) -> 0 | CR43: =IF($F$18="lunch",IF(AA43=0,,(AA43/$E$17)*'Customer Info'!$H$20),) -> 0 | CS43: =IF($F$18="other",IF(AC43=0,,(AC43/$E$19)*'Customer Info'!$H$20),) -> 0 | CT43: 0 | CU43: =IF($F$19="breakfast",IF(Z43=0,,(Z43/$E$16)*'Customer Info'!$H$21),) -> 0 | CV43: =IF($F$19="lunch",IF(AA43=0,,(AA43/$E$17)*'Customer Info'!$H$21),) -> 0 | CW43: =IF($F$19="dinner",IF(AB43=0,,(AB43/$E$18)*'Customer Info'!$H$21),) -> 0 | CX43: 0 | CY43: 0 | CZ43: 0 | DA43: 0 | DB43: 0
K44: 0 | L44: =BB44 -> 0 | M44: 0 | N44: 0 | O44: 0 | P44: 0 | Q44: 0 | R44: 0 | S44: 0 | T44: 0 | U44: 0 | V44: 0 | W44: 0 | X44: 0 | Y44: 0 | Z44: 0 | AA44: 0 | AB44: 0 | AC44: 0 | AD44: 0 | AE44: 0 | AF44: 0 | AG44: 0 | AH44: =IF((OR($F$4=0,$F$4="none")),IF(R44=0,,IF(OR($E$4='Customer Info'!$D$18,$E$4=0),R44,(R44/$E$4)*'Customer Info'!$D$18)),) -> 0 | AI44: =IF((OR($F$5=0,$F$5="none")),IF(S44=0,,IF(OR($E$5='Customer Info'!$D$18,$E$5=0),S44,(S44/$E$5)*'Customer Info'!$D$19)),) -> 0 | AJ44: =IF((OR($F$6=0,$F$6="none")),IF(T44=0,,IF(OR($E$6='Customer Info'!$D$18,$E$6=0),T44,(T44/$E$6)*'Customer Info'!$D$20)),) -> 0 | AK44: =IF((OR($F$7=0,$F$7="none")),IF(U44=0,,IF(OR($E$7='Customer Info'!$D$18,$E$7=0),U44,(U44/$E$7)*'Customer Info'!$D$21)),) -> 0 | AL44: =IF((OR($F$10=0,$F$10="none")),IF(V44=0,,IF(OR($E$10='Customer Info'!$F$18,$E$10=0),V44,(V44/$E$10)*'Customer Info'!$F$18)),) -> 0 | AM44: =IF((OR($F$11=0,$F$11="none")),IF(W44=0,,IF(OR($E$11='Customer Info'!$F$19,$E$11=0),W44,(W44/$E$11)*'Customer Info'!$F$19)),) -> 0 | AN44: =IF((OR($F$12=0,$F$12="none")),IF(X44=0,,IF(OR($E$12='Customer Info'!$F$20,$E$12=0),X44,(X44/$E$12)*'Customer Info'!$F$20)),) -> 0 | AO44: =IF((OR($F$13=0,$F$13="none")),IF(Y44=0,,IF(OR($E$13='Customer Info'!$F$21,$E$13=0),Y44,(Y44/$E$13)*'Customer Info'!$F$21)),) -> 0 | AP44: =IF((OR($F$16=0,$F$16="none")),IF(Z44=0,,IF(OR($E$16='Customer Info'!$H$18,$E$16=0),Z44,(Z44/$E$16)*'Customer Info'!$H$18)),) -> 0 | AQ44: =IF((OR($F$17=0,$F$17="none")),IF(AA44=0,,IF(OR($E$17='Customer Info'!$H$19,$E$17=0),AA44,(AA44/$E$17)*'Customer Info'!$H$19)),) -> 0 | AR44: =IF((OR($F$18=0,$F$18="none")),IF(AB44=0,,IF(OR($E$18='Customer Info'!$H$20,$E$18=0),AB44,(AB44/$E$18)*'Customer Info'!$H$20)),) -> 0 | AS44: =IF((OR($F$19=0,$F$19="none")),IF(AC44=0,,IF(OR($E$19='Customer Info'!$H$21,$E$19=0),AC44,(AC44/$E$19)*'Customer Info'!$H$21)),) -> 0 | AT44: =IF((OR($F$4=0,$F$4="none")),IF(AD44=0,,IF(OR($E$4='Customer Info'!$D$18,$E$4=0),AD44,(AD44/$E$4)*'Customer Info'!$D$18)),) -> 0 | AU44: =IF((OR($F$5=0,$F$5="none")),IF(AE44=0,,IF(OR($E$5='Customer Info'!$D$19,$E$5=0),AE44,(AE44/$E$5)*'Customer Info'!$D$19)),) -> 0 | AV44: =IF((OR($F$6=0,$F$6="none")),IF(AF44=0,,IF(OR($E$6='Customer Info'!$D$20,$E$6=0),AF44,(AF44/$E$6)*'Customer Info'!$D$20)),) -> 0 | AW44: =IF((OR($F$7=0,$F$7="none")),IF(AG44=0,,IF(OR($E$7='Customer Info'!$D$21,$E$7=0),AG44,(AG44/$E$7)*'Customer Info'!$D$21)),) -> 0 | AX44: =SUM(AH44:AW44) -> 0 | AY44: 0 | AZ44: =IF(E44="plate waste",,IF('Customer Info'!$M$18=0,'Log Sheet'!AY44,'Customer Info'!$M$18*'Log Sheet'!AY44)) -> 0 | BA44: =IF(E44="plate waste",IF(OR(C44="patient",C44="patient beverages"),IF('Customer Info'!$M$27=0,AY44*'Customer Info'!$M$18,AY44*'Customer Info'!$M$27),IF(C44="cafeteria",IF('Customer Info'!$M$28=0,AY44*'Customer Info'!$M$18,AY44*'Customer Info'!$M$28),IF(C44="other1",IF('Customer Info'!$M$29=0,AY44*'Customer Info'!$M$18,AY44*'Customer Info'!$M$29),))),) -> 0 | BB44: =SUM(AZ44:BA44) -> 0 | BC44: =IF($F$4="lunch",IF(S44=0,,(S44/$E$5)*'Customer Info'!$D$18),) -> 0 | BD44: =IF($F$4="dinner",IF(T44=0,,(T44/$E$6)*'Customer Info'!$D$18),) -> 0 | BE44: =IF($F$4="other",IF(U44=0,,(U44/$E$7)*'Customer Info'!$D$18),) -> 0 | BF44: 0 | BG44: =IF($F$5="breakfast",IF(R44=0,,(R44/$E$4)*'Customer Info'!$D$19),) -> 0 | BH44: =IF($F$5="dinner",IF(T44=0,,(T44/$E$6)*'Customer Info'!$D$19),) -> 0 | BI44: =IF($F$5="other",IF(U44=0,,(U44/$E$7)*'Customer Info'!$D$19),) -> 0 | BJ44: 0 | BK44: =IF($F$6="breakfast",IF(R44=0,,(R44/$E$4)*'Customer Info'!$D$20),) -> 0 | BL44: =IF($F$6="lunch",IF(S44=0,,(S44/$E$5)*'Customer Info'!$D$20),) -> 0 | BM44: =IF($F$6="other",IF(U44=0,,(U44/$E$7)*'Customer Info'!$D$20),) -> 0 | BN44: 0 | BO44: =IF($F$7="breakfast",IF(R44=0,,(R44/$E$4)*'Customer Info'!$D$21),) -> 0 | BP44: =IF($F$7="lunch",IF(S44=0,,(S44/$E$5)*'Customer Info'!$D$21),) -> 0 | BQ44: =IF($F$7="dinner",IF(T44=0,,(T44/$E$6)*'Customer Info'!$D$21),) -> 0 | BR44: 0 | BS44: =IF($F$10="lunch",IF(W44=0,,(W44/$E$11)*'Customer Info'!$F$18),) -> 0 | BT44: =IF($F$10="dinner",IF(X44=0,,(X44/$E$12)*'Customer Info'!$F$18),) -> 0 | BU44: =IF($F$10="other",IF(Y44=0,,(Y44/$E$13)*'Customer Info'!$F$18),) -> 0 | BV44: 0 | BW44: =IF($F$11="breakfast",IF(V44=0,,(V44/$E$10)*'Customer Info'!$F$19),) -> 0 | BX44: =IF($F$11="dinner",IF(X44=0,,(X44/$E$12)*'Customer Info'!$F$19),) -> 0 | BY44: =IF($F$11="other",IF(Y44=0,,(Y44/$E$13)*'Customer Info'!$F$19),) -> 0 | BZ44: 0 | CA44: =IF($F$12="breakfast",IF(V44=0,,(V44/$E$10)*'Customer Info'!$F$20),) -> 0 | CB44: =IF($F$12="lunch",IF(W44=0,,(W44/$E$11)*'Customer Info'!$F$20),) -> 0 | CC44: =IF($F$12="other",IF(Y44=0,,(Y44/$E$13)*'Customer Info'!$F$20),) -> 0 | CD44: 0 | CE44: =IF($F$13="breakfast",IF(V44=0,,(V44/$E$10)*'Customer Info'!$F$21),) -> 0 | CF44: =IF($F$13="lunch",IF(W44=0,,(W44/$E$11)*'Customer Info'!$F$21),) -> 0 | CG44: =IF($F$13="dinner",IF(X44=0,,(X44/$E$12)*'Customer Info'!$F$21),) -> 0 | CH44: 0 | CI44: =IF($F$16="lunch",IF(AA44=0,,(AA44/$E$17)*'Customer Info'!$H$18),) -> 0 | CJ44: =IF($F$16="dinner",IF(AB44=0,,(AB44/$E$18)*'Customer Info'!$H$18),) -> 0 | CK44: =IF($F$16="other",IF(AC44=0,,(AC44/$E$19)*'Customer Info'!$H$18),) -> 0 | CL44: 0 | CM44: =IF($F$17="breakfast",IF(Z44=0,,(Z44/$E$16)*'Customer Info'!$H$19),) -> 0 | CN44: =IF($F$17="dinner",IF(AB44=0,,(AB44/$E$18)*'Customer Info'!$H$19),) -> 0 | CO44: =IF($F$17="other",IF(AC44=0,,(AC44/$E$19)*'Customer Info'!$H$19),) -> 0 | CP44: 0 | CQ44: =IF($F$18="breakfast",IF(Z44=0,,(Z44/$E$16)*'Customer Info'!$H$20),) -> 0 | CR44: =IF($F$18="lunch",IF(AA44=0,,(AA44/$E$17)*'Customer Info'!$H$20),) -> 0 | CS44: =IF($F$18="other",IF(AC44=0,,(AC44/$E$19)*'Customer Info'!$H$20),) -> 0 | CT44: 0 | CU44: =IF($F$19="breakfast",IF(Z44=0,,(Z44/$E$16)*'Customer Info'!$H$21),) -> 0 | CV44: =IF($F$19="lunch",IF(AA44=0,,(AA44/$E$17)*'Customer Info'!$H$21),) -> 0 | CW44: =IF($F$19="dinner",IF(AB44=0,,(AB44/$E$18)*'Customer Info'!$H$21),) -> 0 | CX44: 0 | CY44: 0 | CZ44: 0 | DA44: 0 | DB44: 0
K45: 0 | L45: 0 | M45: 0 | N45: 0 | O45: 0 | P45: 0 | Q45: 0 | R45: 0 | S45: 0 | T45: 0 | U45: 0 | V45: 0 | W45: 0 | X45: 0 | Y45: 0 | Z45: 0 | AA45: 0 | AB45: 0 | AC45: 0 | AD45: 0 | AE45: 0 | AF45: 0 | AG45: 0 | AH45: =IF((OR($F$4=0,$F$4="none")),IF(R45=0,,IF(OR($E$4='Customer Info'!$D$18,$E$4=0),R45,(R45/$E$4)*'Customer Info'!$D$18)),) -> 0 | AI45: =IF((OR($F$5=0,$F$5="none")),IF(S45=0,,IF(OR($E$5='Customer Info'!$D$18,$E$5=0),S45,(S45/$E$5)*'Customer Info'!$D$19)),) -> 0 | AJ45: =IF((OR($F$6=0,$F$6="none")),IF(T45=0,,IF(OR($E$6='Customer Info'!$D$18,$E$6=0),T45,(T45/$E$6)*'Customer Info'!$D$20)),) -> 0 | AK45: =IF((OR($F$7=0,$F$7="none")),IF(U45=0,,IF(OR($E$7='Customer Info'!$D$18,$E$7=0),U45,(U45/$E$7)*'Customer Info'!$D$21)),) -> 0 | AL45: =IF((OR($F$10=0,$F$10="none")),IF(V45=0,,IF(OR($E$10='Customer Info'!$F$18,$E$10=0),V45,(V45/$E$10)*'Customer Info'!$F$18)),) -> 0 | AM45: =IF((OR($F$11=0,$F$11="none")),IF(W45=0,,IF(OR($E$11='Customer Info'!$F$19,$E$11=0),W45,(W45/$E$11)*'Customer Info'!$F$19)),) -> 0 | AN45: =IF((OR($F$12=0,$F$12="none")),IF(X45=0,,IF(OR($E$12='Customer Info'!$F$20,$E$12=0),X45,(X45/$E$12)*'Customer Info'!$F$20)),) -> 0 | AO45: =IF((OR($F$13=0,$F$13="none")),IF(Y45=0,,IF(OR($E$13='Customer Info'!$F$21,$E$13=0),Y45,(Y45/$E$13)*'Customer Info'!$F$21)),) -> 0 | AP45: =IF((OR($F$16=0,$F$16="none")),IF(Z45=0,,IF(OR($E$16='Customer Info'!$H$18,$E$16=0),Z45,(Z45/$E$16)*'Customer Info'!$H$18)),) -> 0 | AQ45: =IF((OR($F$17=0,$F$17="none")),IF(AA45=0,,IF(OR($E$17='Customer Info'!$H$19,$E$17=0),AA45,(AA45/$E$17)*'Customer Info'!$H$19)),) -> 0 | AR45: =IF((OR($F$18=0,$F$18="none")),IF(AB45=0,,IF(OR($E$18='Customer Info'!$H$20,$E$18=0),AB45,(AB45/$E$18)*'Customer Info'!$H$20)),) -> 0 | AS45: =IF((OR($F$19=0,$F$19="none")),IF(AC45=0,,IF(OR($E$19='Customer Info'!$H$21,$E$19=0),AC45,(AC45/$E$19)*'Customer Info'!$H$21)),) -> 0 | AT45: =IF((OR($F$4=0,$F$4="none")),IF(AD45=0,,IF(OR($E$4='Customer Info'!$D$18,$E$4=0),AD45,(AD45/$E$4)*'Customer Info'!$D$18)),) -> 0 | AU45: =IF((OR($F$5=0,$F$5="none")),IF(AE45=0,,IF(OR($E$5='Customer Info'!$D$19,$E$5=0),AE45,(AE45/$E$5)*'Customer Info'!$D$19)),) -> 0 | AV45: =IF((OR($F$6=0,$F$6="none")),IF(AF45=0,,IF(OR($E$6='Customer Info'!$D$20,$E$6=0),AF45,(AF45/$E$6)*'Customer Info'!$D$20)),) -> 0 | AW45: =IF((OR($F$7=0,$F$7="none")),IF(AG45=0,,IF(OR($E$7='Customer Info'!$D$21,$E$7=0),AG45,(AG45/$E$7)*'Customer Info'!$D$21)),) -> 0 | AX45: 0 | AY45: 0 | AZ45: =IF(E45="plate waste",,IF('Customer Info'!$M$18=0,'Log Sheet'!AY45,'Customer Info'!$M$18*'Log Sheet'!AY45)) -> 0 | BA45: =IF(E45="plate waste",IF(OR(C45="patient",C45="patient beverages"),IF('Customer Info'!$M$27=0,AY45*'Customer Info'!$M$18,AY45*'Customer Info'!$M$27),IF(C45="cafeteria",IF('Customer Info'!$M$28=0,AY45*'Customer Info'!$M$18,AY45*'Customer Info'!$M$28),IF(C45="other1",IF('Customer Info'!$M$29=0,AY45*'Customer Info'!$M$18,AY45*'Customer Info'!$M$29),))),) -> 0 | BB45: 0 | BC45: =IF($F$4="lunch",IF(S45=0,,(S45/$E$5)*'Customer Info'!$D$18),) -> 0 | BD45: =IF($F$4="dinner",IF(T45=0,,(T45/$E$6)*'Customer Info'!$D$18),) -> 0 | BE45: =IF($F$4="other",IF(U45=0,,(U45/$E$7)*'Customer Info'!$D$18),) -> 0 | BF45: 0 | BG45: =IF($F$5="breakfast",IF(R45=0,,(R45/$E$4)*'Customer Info'!$D$19),) -> 0 | BH45: =IF($F$5="dinner",IF(T45=0,,(T45/$E$6)*'Customer Info'!$D$19),) -> 0 | BI45: =IF($F$5="other",IF(U45=0,,(U45/$E$7)*'Customer Info'!$D$19),) -> 0 | BJ45: 0 | BK45: =IF($F$6="breakfast",IF(R45=0,,(R45/$E$4)*'Customer Info'!$D$20),) -> 0 | BL45: =IF($F$6="lunch",IF(S45=0,,(S45/$E$5)*'Customer Info'!$D$20),) -> 0 | BM45: =IF($F$6="other",IF(U45=0,,(U45/$E$7)*'Customer Info'!$D$20),) -> 0 | BN45: 0 | BO45: =IF($F$7="breakfast",IF(R45=0,,(R45/$E$4)*'Customer Info'!$D$21),) -> 0 | BP45: =IF($F$7="lunch",IF(S45=0,,(S45/$E$5)*'Customer Info'!$D$21),) -> 0 | BQ45: =IF($F$7="dinner",IF(T45=0,,(T45/$E$6)*'Customer Info'!$D$21),) -> 0 | BR45: 0 | BS45: =IF($F$10="lunch",IF(W45=0,,(W45/$E$11)*'Customer Info'!$F$18),) -> 0 | BT45: =IF($F$10="dinner",IF(X45=0,,(X45/$E$12)*'Customer Info'!$F$18),) -> 0 | BU45: =IF($F$10="other",IF(Y45=0,,(Y45/$E$13)*'Customer Info'!$F$18),) -> 0 | BV45: 0 | BW45: =IF($F$11="breakfast",IF(V45=0,,(V45/$E$10)*'Customer Info'!$F$19),) -> 0 | BX45: =IF($F$11="dinner",IF(X45=0,,(X45/$E$12)*'Customer Info'!$F$19),) -> 0 | BY45: =IF($F$11="other",IF(Y45=0,,(Y45/$E$13)*'Customer Info'!$F$19),) -> 0 | BZ45: 0 | CA45: =IF($F$12="breakfast",IF(V45=0,,(V45/$E$10)*'Customer Info'!$F$20),) -> 0 | CB45: =IF($F$12="lunch",IF(W45=0,,(W45/$E$11)*'Customer Info'!$F$20),) -> 0 | CC45: =IF($F$12="other",IF(Y45=0,,(Y45/$E$13)*'Customer Info'!$F$20),) -> 0 | CD45: 0 | CE45: =IF($F$13="breakfast",IF(V45=0,,(V45/$E$10)*'Customer Info'!$F$21),) -> 0 | CF45: =IF($F$13="lunch",IF(W45=0,,(W45/$E$11)*'Customer Info'!$F$21),) -> 0 | CG45: =IF($F$13="dinner",IF(X45=0,,(X45/$E$12)*'Customer Info'!$F$21),) -> 0 | CH45: 0 | CI45: =IF($F$16="lunch",IF(AA45=0,,(AA45/$E$17)*'Customer Info'!$H$18),) -> 0 | CJ45: =IF($F$16="dinner",IF(AB45=0,,(AB45/$E$18)*'Customer Info'!$H$18),) -> 0 | CK45: =IF($F$16="other",IF(AC45=0,,(AC45/$E$19)*'Customer Info'!$H$18),) -> 0 | CL45: 0 | CM45: =IF($F$17="breakfast",IF(Z45=0,,(Z45/$E$16)*'Customer Info'!$H$19),) -> 0 | CN45: =IF($F$17="dinner",IF(AB45=0,,(AB45/$E$18)*'Customer Info'!$H$19),) -> 0 | CO45: =IF($F$17="other",IF(AC45=0,,(AC45/$E$19)*'Customer Info'!$H$19),) -> 0 | CP45: 0 | CQ45: =IF($F$18="breakfast",IF(Z45=0,,(Z45/$E$16)*'Customer Info'!$H$20),) -> 0 | CR45: =IF($F$18="lunch",IF(AA45=0,,(AA45/$E$17)*'Customer Info'!$H$20),) -> 0 | CS45: =IF($F$18="other",IF(AC45=0,,(AC45/$E$19)*'Customer Info'!$H$20),) -> 0 | CT45: 0 | CU45: =IF($F$19="breakfast",IF(Z45=0,,(Z45/$E$16)*'Customer Info'!$H$21),) -> 0 | CV45: =IF($F$19="lunch",IF(AA45=0,,(AA45/$E$17)*'Customer Info'!$H$21),) -> 0 | CW45: =IF($F$19="dinner",IF(AB45=0,,(AB45/$E$18)*'Customer Info'!$H$21),) -> 0 | CX45: 0 | CY45: 0 | CZ45: 0 | DA45: 0 | DB45: 0
K46: 0 | L46: 0 | M46: 0 | N46: 0 | O46: 0 | P46: 0 | Q46: 0 | R46: 0 | S46: 0 | T46: 0 | U46: 0 | V46: 0 | W46: 0 | X46: 0 | Y46: 0 | Z46: 0 | AA46: 0 | AB46: 0 | AC46: 0 | AD46: 0 | AE46: 0 | AF46: 0 | AG46: 0 | AH46: =IF((OR($F$4=0,$F$4="none")),IF(R46=0,,IF(OR($E$4='Customer Info'!$D$18,$E$4=0),R46,(R46/$E$4)*'Customer Info'!$D$18)),) -> 0 | AI46: =IF((OR($F$5=0,$F$5="none")),IF(S46=0,,IF(OR($E$5='Customer Info'!$D$18,$E$5=0),S46,(S46/$E$5)*'Customer Info'!$D$19)),) -> 0 | AJ46: =IF((OR($F$6=0,$F$6="none")),IF(T46=0,,IF(OR($E$6='Customer Info'!$D$18,$E$6=0),T46,(T46/$E$6)*'Customer Info'!$D$20)),) -> 0 | AK46: =IF((OR($F$7=0,$F$7="none")),IF(U46=0,,IF(OR($E$7='Customer Info'!$D$18,$E$7=0),U46,(U46/$E$7)*'Customer Info'!$D$21)),) -> 0 | AL46: =IF((OR($F$10=0,$F$10="none")),IF(V46=0,,IF(OR($E$10='Customer Info'!$F$18,$E$10=0),V46,(V46/$E$10)*'Customer Info'!$F$18)),) -> 0 | AM46: =IF((OR($F$11=0,$F$11="none")),IF(W46=0,,IF(OR($E$11='Customer Info'!$F$19,$E$11=0),W46,(W46/$E$11)*'Customer Info'!$F$19)),) -> 0 | AN46: =IF((OR($F$12=0,$F$12="none")),IF(X46=0,,IF(OR($E$12='Customer Info'!$F$20,$E$12=0),X46,(X46/$E$12)*'Customer Info'!$F$20)),) -> 0 | AO46: =IF((OR($F$13=0,$F$13="none")),IF(Y46=0,,IF(OR($E$13='Customer Info'!$F$21,$E$13=0),Y46,(Y46/$E$13)*'Customer Info'!$F$21)),) -> 0 | AP46: =IF((OR($F$16=0,$F$16="none")),IF(Z46=0,,IF(OR($E$16='Customer Info'!$H$18,$E$16=0),Z46,(Z46/$E$16)*'Customer Info'!$H$18)),) -> 0 | AQ46: =IF((OR($F$17=0,$F$17="none")),IF(AA46=0,,IF(OR($E$17='Customer Info'!$H$19,$E$17=0),AA46,(AA46/$E$17)*'Customer Info'!$H$19)),) -> 0 | AR46: =IF((OR($F$18=0,$F$18="none")),IF(AB46=0,,IF(OR($E$18='Customer Info'!$H$20,$E$18=0),AB46,(AB46/$E$18)*'Customer Info'!$H$20)),) -> 0 | AS46: =IF((OR($F$19=0,$F$19="none")),IF(AC46=0,,IF(OR($E$19='Customer Info'!$H$21,$E$19=0),AC46,(AC46/$E$19)*'Customer Info'!$H$21)),) -> 0 | AT46: =IF((OR($F$4=0,$F$4="none")),IF(AD46=0,,IF(OR($E$4='Customer Info'!$D$18,$E$4=0),AD46,(AD46/$E$4)*'Customer Info'!$D$18)),) -> 0 | AU46: =IF((OR($F$5=0,$F$5="none")),IF(AE46=0,,IF(OR($E$5='Customer Info'!$D$19,$E$5=0),AE46,(AE46/$E$5)*'Customer Info'!$D$19)),) -> 0 | AV46: =IF((OR($F$6=0,$F$6="none")),IF(AF46=0,,IF(OR($E$6='Customer Info'!$D$20,$E$6=0),AF46,(AF46/$E$6)*'Customer Info'!$D$20)),) -> 0 | AW46: =IF((OR($F$7=0,$F$7="none")),IF(AG46=0,,IF(OR($E$7='Customer Info'!$D$21,$E$7=0),AG46,(AG46/$E$7)*'Customer Info'!$D$21)),) -> 0 | AX46: 0 | AY46: 0 | AZ46: =IF(E46="plate waste",,IF('Customer Info'!$M$18=0,'Log Sheet'!AY46,'Customer Info'!$M$18*'Log Sheet'!AY46)) -> 0 | BA46: =IF(E46="plate waste",IF(OR(C46="patient",C46="patient beverages"),IF('Customer Info'!$M$27=0,AY46*'Customer Info'!$M$18,AY46*'Customer Info'!$M$27),IF(C46="cafeteria",IF('Customer Info'!$M$28=0,AY46*'Customer Info'!$M$18,AY46*'Customer Info'!$M$28),IF(C46="other1",IF('Customer Info'!$M$29=0,AY46*'Customer Info'!$M$18,AY46*'Customer Info'!$M$29),))),) -> 0 | BB46: 0 | BC46: =IF($F$4="lunch",IF(S46=0,,(S46/$E$5)*'Customer Info'!$D$18),) -> 0 | BD46: =IF($F$4="dinner",IF(T46=0,,(T46/$E$6)*'Customer Info'!$D$18),) -> 0 | BE46: =IF($F$4="other",IF(U46=0,,(U46/$E$7)*'Customer Info'!$D$18),) -> 0 | BF46: 0 | BG46: =IF($F$5="breakfast",IF(R46=0,,(R46/$E$4)*'Customer Info'!$D$19),) -> 0 | BH46: =IF($F$5="dinner",IF(T46=0,,(T46/$E$6)*'Customer Info'!$D$19),) -> 0 | BI46: =IF($F$5="other",IF(U46=0,,(U46/$E$7)*'Customer Info'!$D$19),) -> 0 | BJ46: 0 | BK46: =IF($F$6="breakfast",IF(R46=0,,(R46/$E$4)*'Customer Info'!$D$20),) -> 0 | BL46: =IF($F$6="lunch",IF(S46=0,,(S46/$E$5)*'Customer Info'!$D$20),) -> 0 | BM46: =IF($F$6="other",IF(U46=0,,(U46/$E$7)*'Customer Info'!$D$20),) -> 0 | BN46: 0 | BO46: =IF($F$7="breakfast",IF(R46=0,,(R46/$E$4)*'Customer Info'!$D$21),) -> 0 | BP46: =IF($F$7="lunch",IF(S46=0,,(S46/$E$5)*'Customer Info'!$D$21),) -> 0 | BQ46: =IF($F$7="dinner",IF(T46=0,,(T46/$E$6)*'Customer Info'!$D$21),) -> 0 | BR46: 0 | BS46: =IF($F$10="lunch",IF(W46=0,,(W46/$E$11)*'Customer Info'!$F$18),) -> 0 | BT46: =IF($F$10="dinner",IF(X46=0,,(X46/$E$12)*'Customer Info'!$F$18),) -> 0 | BU46: =IF($F$10="other",IF(Y46=0,,(Y46/$E$13)*'Customer Info'!$F$18),) -> 0 | BV46: 0 | BW46: =IF($F$11="breakfast",IF(V46=0,,(V46/$E$10)*'Customer Info'!$F$19),) -> 0 | BX46: =IF($F$11="dinner",IF(X46=0,,(X46/$E$12)*'Customer Info'!$F$19),) -> 0 | BY46: =IF($F$11="other",IF(Y46=0,,(Y46/$E$13)*'Customer Info'!$F$19),) -> 0 | BZ46: 0 | CA46: =IF($F$12="breakfast",IF(V46=0,,(V46/$E$10)*'Customer Info'!$F$20),) -> 0 | CB46: =IF($F$12="lunch",IF(W46=0,,(W46/$E$11)*'Customer Info'!$F$20),) -> 0 | CC46: =IF($F$12="other",IF(Y46=0,,(Y46/$E$13)*'Customer Info'!$F$20),) -> 0 | CD46: 0 | CE46: =IF($F$13="breakfast",IF(V46=0,,(V46/$E$10)*'Customer Info'!$F$21),) -> 0 | CF46: =IF($F$13="lunch",IF(W46=0,,(W46/$E$11)*'Customer Info'!$F$21),) -> 0 | CG46: =IF($F$13="dinner",IF(X46=0,,(X46/$E$12)*'Customer Info'!$F$21),) -> 0 | CH46: 0 | CI46: =IF($F$16="lunch",IF(AA46=0,,(AA46/$E$17)*'Customer Info'!$H$18),) -> 0 | CJ46: =IF($F$16="dinner",IF(AB46=0,,(AB46/$E$18)*'Customer Info'!$H$18),) -> 0 | CK46: =IF($F$16="other",IF(AC46=0,,(AC46/$E$19)*'Customer Info'!$H$18),) -> 0 | CL46: 0 | CM46: =IF($F$17="breakfast",IF(Z46=0,,(Z46/$E$16)*'Customer Info'!$H$19),) -> 0 | CN46: =IF($F$17="dinner",IF(AB46=0,,(AB46/$E$18)*'Customer Info'!$H$19),) -> 0 | CO46: =IF($F$17="other",IF(AC46=0,,(AC46/$E$19)*'Customer Info'!$H$19),) -> 0 | CP46: 0 | CQ46: =IF($F$18="breakfast",IF(Z46=0,,(Z46/$E$16)*'Customer Info'!$H$20),) -> 0 | CR46: =IF($F$18="lunch",IF(AA46=0,,(AA46/$E$17)*'Customer Info'!$H$20),) -> 0 | CS46: =IF($F$18="other",IF(AC46=0,,(AC46/$E$19)*'Customer Info'!$H$20),) -> 0 | CT46: 0 | CU46: =IF($F$19="breakfast",IF(Z46=0,,(Z46/$E$16)*'Customer Info'!$H$21),) -> 0 | CV46: =IF($F$19="lunch",IF(AA46=0,,(AA46/$E$17)*'Customer Info'!$H$21),) -> 0 | CW46: =IF($F$19="dinner",IF(AB46=0,,(AB46/$E$18)*'Customer Info'!$H$21),) -> 0 | CX46: 0 | CY46: 0 | CZ46: 0 | DA46: 0 | DB46: 0
K47: 0 | L47: =BB47 -> 0 | M47: 0 | N47: 0 | O47: 0 | P47: 0 | Q47: 0 | R47: 0 | S47: 0 | T47: 0 | U47: 0 | V47: 0 | W47: 0 | X47: 0 | Y47: 0 | Z47: 0 | AA47: 0 | AB47: 0 | AC47: 0 | AD47: 0 | AE47: 0 | AF47: 0 | AG47: 0 | AH47: =IF((OR($F$4=0,$F$4="none")),IF(R47=0,,IF(OR($E$4='Customer Info'!$D$18,$E$4=0),R47,(R47/$E$4)*'Customer Info'!$D$18)),) -> 0 | AI47: =IF((OR($F$5=0,$F$5="none")),IF(S47=0,,IF(OR($E$5='Customer Info'!$D$18,$E$5=0),S47,(S47/$E$5)*'Customer Info'!$D$19)),) -> 0 | AJ47: =IF((OR($F$6=0,$F$6="none")),IF(T47=0,,IF(OR($E$6='Customer Info'!$D$18,$E$6=0),T47,(T47/$E$6)*'Customer Info'!$D$20)),) -> 0 | AK47: =IF((OR($F$7=0,$F$7="none")),IF(U47=0,,IF(OR($E$7='Customer Info'!$D$18,$E$7=0),U47,(U47/$E$7)*'Customer Info'!$D$21)),) -> 0 | AL47: =IF((OR($F$10=0,$F$10="none")),IF(V47=0,,IF(OR($E$10='Customer Info'!$F$18,$E$10=0),V47,(V47/$E$10)*'Customer Info'!$F$18)),) -> 0 | AM47: =IF((OR($F$11=0,$F$11="none")),IF(W47=0,,IF(OR($E$11='Customer Info'!$F$19,$E$11=0),W47,(W47/$E$11)*'Customer Info'!$F$19)),) -> 0 | AN47: =IF((OR($F$12=0,$F$12="none")),IF(X47=0,,IF(OR($E$12='Customer Info'!$F$20,$E$12=0),X47,(X47/$E$12)*'Customer Info'!$F$20)),) -> 0 | AO47: =IF((OR($F$13=0,$F$13="none")),IF(Y47=0,,IF(OR($E$13='Customer Info'!$F$21,$E$13=0),Y47,(Y47/$E$13)*'Customer Info'!$F$21)),) -> 0 | AP47: =IF((OR($F$16=0,$F$16="none")),IF(Z47=0,,IF(OR($E$16='Customer Info'!$H$18,$E$16=0),Z47,(Z47/$E$16)*'Customer Info'!$H$18)),) -> 0 | AQ47: =IF((OR($F$17=0,$F$17="none")),IF(AA47=0,,IF(OR($E$17='Customer Info'!$H$19,$E$17=0),AA47,(AA47/$E$17)*'Customer Info'!$H$19)),) -> 0 | AR47: =IF((OR($F$18=0,$F$18="none")),IF(AB47=0,,IF(OR($E$18='Customer Info'!$H$20,$E$18=0),AB47,(AB47/$E$18)*'Customer Info'!$H$20)),) -> 0 | AS47: =IF((OR($F$19=0,$F$19="none")),IF(AC47=0,,IF(OR($E$19='Customer Info'!$H$21,$E$19=0),AC47,(AC47/$E$19)*'Customer Info'!$H$21)),) -> 0 | AT47: =IF((OR($F$4=0,$F$4="none")),IF(AD47=0,,IF(OR($E$4='Customer Info'!$D$18,$E$4=0),AD47,(AD47/$E$4)*'Customer Info'!$D$18)),) -> 0 | AU47: =IF((OR($F$5=0,$F$5="none")),IF(AE47=0,,IF(OR($E$5='Customer Info'!$D$19,$E$5=0),AE47,(AE47/$E$5)*'Customer Info'!$D$19)),) -> 0 | AV47: =IF((OR($F$6=0,$F$6="none")),IF(AF47=0,,IF(OR($E$6='Customer Info'!$D$20,$E$6=0),AF47,(AF47/$E$6)*'Customer Info'!$D$20)),) -> 0 | AW47: =IF((OR($F$7=0,$F$7="none")),IF(AG47=0,,IF(OR($E$7='Customer Info'!$D$21,$E$7=0),AG47,(AG47/$E$7)*'Customer Info'!$D$21)),) -> 0 | AX47: =SUM(AH47:AW47) -> 0 | AY47: 0 | AZ47: =IF(E47="plate waste",,IF('Customer Info'!$M$18=0,'Log Sheet'!AY47,'Customer Info'!$M$18*'Log Sheet'!AY47)) -> 0 | BA47: =IF(E47="plate waste",IF(OR(C47="patient",C47="patient beverages"),IF('Customer Info'!$M$27=0,AY47*'Customer Info'!$M$18,AY47*'Customer Info'!$M$27),IF(C47="cafeteria",IF('Customer Info'!$M$28=0,AY47*'Customer Info'!$M$18,AY47*'Customer Info'!$M$28),IF(C47="other1",IF('Customer Info'!$M$29=0,AY47*'Customer Info'!$M$18,AY47*'Customer Info'!$M$29),))),) -> 0 | BB47: =SUM(AZ47:BA47) -> 0 | BC47: =IF($F$4="lunch",IF(S47=0,,(S47/$E$5)*'Customer Info'!$D$18),) -> 0 | BD47: =IF($F$4="dinner",IF(T47=0,,(T47/$E$6)*'Customer Info'!$D$18),) -> 0 | BE47: =IF($F$4="other",IF(U47=0,,(U47/$E$7)*'Customer Info'!$D$18),) -> 0 | BF47: 0 | BG47: =IF($F$5="breakfast",IF(R47=0,,(R47/$E$4)*'Customer Info'!$D$19),) -> 0 | BH47: =IF($F$5="dinner",IF(T47=0,,(T47/$E$6)*'Customer Info'!$D$19),) -> 0 | BI47: =IF($F$5="other",IF(U47=0,,(U47/$E$7)*'Customer Info'!$D$19),) -> 0 | BJ47: 0 | BK47: =IF($F$6="breakfast",IF(R47=0,,(R47/$E$4)*'Customer Info'!$D$20),) -> 0 | BL47: =IF($F$6="lunch",IF(S47=0,,(S47/$E$5)*'Customer Info'!$D$20),) -> 0 | BM47: =IF($F$6="other",IF(U47=0,,(U47/$E$7)*'Customer Info'!$D$20),) -> 0 | BN47: 0 | BO47: =IF($F$7="breakfast",IF(R47=0,,(R47/$E$4)*'Customer Info'!$D$21),) -> 0 | BP47: =IF($F$7="lunch",IF(S47=0,,(S47/$E$5)*'Customer Info'!$D$21),) -> 0 | BQ47: =IF($F$7="dinner",IF(T47=0,,(T47/$E$6)*'Customer Info'!$D$21),) -> 0 | BR47: 0 | BS47: =IF($F$10="lunch",IF(W47=0,,(W47/$E$11)*'Customer Info'!$F$18),) -> 0 | BT47: =IF($F$10="dinner",IF(X47=0,,(X47/$E$12)*'Customer Info'!$F$18),) -> 0 | BU47: =IF($F$10="other",IF(Y47=0,,(Y47/$E$13)*'Customer Info'!$F$18),) -> 0 | BV47: 0 | BW47: =IF($F$11="breakfast",IF(V47=0,,(V47/$E$10)*'Customer Info'!$F$19),) -> 0 | BX47: =IF($F$11="dinner",IF(X47=0,,(X47/$E$12)*'Customer Info'!$F$19),) -> 0 | BY47: =IF($F$11="other",IF(Y47=0,,(Y47/$E$13)*'Customer Info'!$F$19),) -> 0 | BZ47: 0 | CA47: =IF($F$12="breakfast",IF(V47=0,,(V47/$E$10)*'Customer Info'!$F$20),) -> 0 | CB47: =IF($F$12="lunch",IF(W47=0,,(W47/$E$11)*'Customer Info'!$F$20),) -> 0 | CC47: =IF($F$12="other",IF(Y47=0,,(Y47/$E$13)*'Customer Info'!$F$20),) -> 0 | CD47: 0 | CE47: =IF($F$13="breakfast",IF(V47=0,,(V47/$E$10)*'Customer Info'!$F$21),) -> 0 | CF47: =IF($F$13="lunch",IF(W47=0,,(W47/$E$11)*'Customer Info'!$F$21),) -> 0 | CG47: =IF($F$13="dinner",IF(X47=0,,(X47/$E$12)*'Customer Info'!$F$21),) -> 0 | CH47: 0 | CI47: =IF($F$16="lunch",IF(AA47=0,,(AA47/$E$17)*'Customer Info'!$H$18),) -> 0 | CJ47: =IF($F$16="dinner",IF(AB47=0,,(AB47/$E$18)*'Customer Info'!$H$18),) -> 0 | CK47: =IF($F$16="other",IF(AC47=0,,(AC47/$E$19)*'Customer Info'!$H$18),) -> 0 | CL47: 0 | CM47: =IF($F$17="breakfast",IF(Z47=0,,(Z47/$E$16)*'Customer Info'!$H$19),) -> 0 | CN47: =IF($F$17="dinner",IF(AB47=0,,(AB47/$E$18)*'Customer Info'!$H$19),) -> 0 | CO47: =IF($F$17="other",IF(AC47=0,,(AC47/$E$19)*'Customer Info'!$H$19),) -> 0 | CP47: 0 | CQ47: =IF($F$18="breakfast",IF(Z47=0,,(Z47/$E$16)*'Customer Info'!$H$20),) -> 0 | CR47: =IF($F$18="lunch",IF(AA47=0,,(AA47/$E$17)*'Customer Info'!$H$20),) -> 0 | CS47: =IF($F$18="other",IF(AC47=0,,(AC47/$E$19)*'Customer Info'!$H$20),) -> 0 | CT47: 0 | CU47: =IF($F$19="breakfast",IF(Z47=0,,(Z47/$E$16)*'Customer Info'!$H$21),) -> 0 | CV47: =IF($F$19="lunch",IF(AA47=0,,(AA47/$E$17)*'Customer Info'!$H$21),) -> 0 | CW47: =IF($F$19="dinner",IF(AB47=0,,(AB47/$E$18)*'Customer Info'!$H$21),) -> 0 | CX47: 0 | CY47: 0 | CZ47: 0 | DA47: 0 | DB47: 0
K48: 0 | L48: 0 | M48: 0 | N48: 0 | O48: 0 | P48: 0 | Q48: 0 | R48: 0 | S48: 0 | T48: 0 | U48: 0 | V48: 0 | W48: 0 | X48: 0 | Y48: 0 | Z48: 0 | AA48: 0 | AB48: 0 | AC48: 0 | AD48: 0 | AE48: 0 | AF48: 0 | AG48: 0 | AH48: =IF((OR($F$4=0,$F$4="none")),IF(R48=0,,IF(OR($E$4='Customer Info'!$D$18,$E$4=0),R48,(R48/$E$4)*'Customer Info'!$D$18)),) -> 0 | AI48: =IF((OR($F$5=0,$F$5="none")),IF(S48=0,,IF(OR($E$5='Customer Info'!$D$18,$E$5=0),S48,(S48/$E$5)*'Customer Info'!$D$19)),) -> 0 | AJ48: =IF((OR($F$6=0,$F$6="none")),IF(T48=0,,IF(OR($E$6='Customer Info'!$D$18,$E$6=0),T48,(T48/$E$6)*'Customer Info'!$D$20)),) -> 0 | AK48: =IF((OR($F$7=0,$F$7="none")),IF(U48=0,,IF(OR($E$7='Customer Info'!$D$18,$E$7=0),U48,(U48/$E$7)*'Customer Info'!$D$21)),) -> 0 | AL48: =IF((OR($F$10=0,$F$10="none")),IF(V48=0,,IF(OR($E$10='Customer Info'!$F$18,$E$10=0),V48,(V48/$E$10)*'Customer Info'!$F$18)),) -> 0 | AM48: =IF((OR($F$11=0,$F$11="none")),IF(W48=0,,IF(OR($E$11='Customer Info'!$F$19,$E$11=0),W48,(W48/$E$11)*'Customer Info'!$F$19)),) -> 0 | AN48: =IF((OR($F$12=0,$F$12="none")),IF(X48=0,,IF(OR($E$12='Customer Info'!$F$20,$E$12=0),X48,(X48/$E$12)*'Customer Info'!$F$20)),) -> 0 | AO48: =IF((OR($F$13=0,$F$13="none")),IF(Y48=0,,IF(OR($E$13='Customer Info'!$F$21,$E$13=0),Y48,(Y48/$E$13)*'Customer Info'!$F$21)),) -> 0 | AP48: =IF((OR($F$16=0,$F$16="none")),IF(Z48=0,,IF(OR($E$16='Customer Info'!$H$18,$E$16=0),Z48,(Z48/$E$16)*'Customer Info'!$H$18)),) -> 0 | AQ48: =IF((OR($F$17=0,$F$17="none")),IF(AA48=0,,IF(OR($E$17='Customer Info'!$H$19,$E$17=0),AA48,(AA48/$E$17)*'Customer Info'!$H$19)),) -> 0 | AR48: =IF((OR($F$18=0,$F$18="none")),IF(AB48=0,,IF(OR($E$18='Customer Info'!$H$20,$E$18=0),AB48,(AB48/$E$18)*'Customer Info'!$H$20)),) -> 0 | AS48: =IF((OR($F$19=0,$F$19="none")),IF(AC48=0,,IF(OR($E$19='Customer Info'!$H$21,$E$19=0),AC48,(AC48/$E$19)*'Customer Info'!$H$21)),) -> 0 | AT48: =IF((OR($F$4=0,$F$4="none")),IF(AD48=0,,IF(OR($E$4='Customer Info'!$D$18,$E$4=0),AD48,(AD48/$E$4)*'Customer Info'!$D$18)),) -> 0 | AU48: =IF((OR($F$5=0,$F$5="none")),IF(AE48=0,,IF(OR($E$5='Customer Info'!$D$19,$E$5=0),AE48,(AE48/$E$5)*'Customer Info'!$D$19)),) -> 0 | AV48: =IF((OR($F$6=0,$F$6="none")),IF(AF48=0,,IF(OR($E$6='Customer Info'!$D$20,$E$6=0),AF48,(AF48/$E$6)*'Customer Info'!$D$20)),) -> 0 | AW48: =IF((OR($F$7=0,$F$7="none")),IF(AG48=0,,IF(OR($E$7='Customer Info'!$D$21,$E$7=0),AG48,(AG48/$E$7)*'Customer Info'!$D$21)),) -> 0 | AX48: 0 | AY48: 0 | AZ48: =IF(E48="plate waste",,IF('Customer Info'!$M$18=0,'Log Sheet'!AY48,'Customer Info'!$M$18*'Log Sheet'!AY48)) -> 0 | BA48: =IF(E48="plate waste",IF(OR(C48="patient",C48="patient beverages"),IF('Customer Info'!$M$27=0,AY48*'Customer Info'!$M$18,AY48*'Customer Info'!$M$27),IF(C48="cafeteria",IF('Customer Info'!$M$28=0,AY48*'Customer Info'!$M$18,AY48*'Customer Info'!$M$28),IF(C48="other1",IF('Customer Info'!$M$29=0,AY48*'Customer Info'!$M$18,AY48*'Customer Info'!$M$29),))),) -> 0 | BB48: 0 | BC48: =IF($F$4="lunch",IF(S48=0,,(S48/$E$5)*'Customer Info'!$D$18),) -> 0 | BD48: =IF($F$4="dinner",IF(T48=0,,(T48/$E$6)*'Customer Info'!$D$18),) -> 0 | BE48: =IF($F$4="other",IF(U48=0,,(U48/$E$7)*'Customer Info'!$D$18),) -> 0 | BF48: 0 | BG48: =IF($F$5="breakfast",IF(R48=0,,(R48/$E$4)*'Customer Info'!$D$19),) -> 0 | BH48: =IF($F$5="dinner",IF(T48=0,,(T48/$E$6)*'Customer Info'!$D$19),) -> 0 | BI48: =IF($F$5="other",IF(U48=0,,(U48/$E$7)*'Customer Info'!$D$19),) -> 0 | BJ48: 0 | BK48: =IF($F$6="breakfast",IF(R48=0,,(R48/$E$4)*'Customer Info'!$D$20),) -> 0 | BL48: =IF($F$6="lunch",IF(S48=0,,(S48/$E$5)*'Customer Info'!$D$20),) -> 0 | BM48: =IF($F$6="other",IF(U48=0,,(U48/$E$7)*'Customer Info'!$D$20),) -> 0 | BN48: 0 | BO48: =IF($F$7="breakfast",IF(R48=0,,(R48/$E$4)*'Customer Info'!$D$21),) -> 0 | BP48: =IF($F$7="lunch",IF(S48=0,,(S48/$E$5)*'Customer Info'!$D$21),) -> 0 | BQ48: =IF($F$7="dinner",IF(T48=0,,(T48/$E$6)*'Customer Info'!$D$21),) -> 0 | BR48: 0 | BS48: =IF($F$10="lunch",IF(W48=0,,(W48/$E$11)*'Customer Info'!$F$18),) -> 0 | BT48: =IF($F$10="dinner",IF(X48=0,,(X48/$E$12)*'Customer Info'!$F$18),) -> 0 | BU48: =IF($F$10="other",IF(Y48=0,,(Y48/$E$13)*'Customer Info'!$F$18),) -> 0 | BV48: 0 | BW48: =IF($F$11="breakfast",IF(V48=0,,(V48/$E$10)*'Customer Info'!$F$19),) -> 0 | BX48: =IF($F$11="dinner",IF(X48=0,,(X48/$E$12)*'Customer Info'!$F$19),) -> 0 | BY48: =IF($F$11="other",IF(Y48=0,,(Y48/$E$13)*'Customer Info'!$F$19),) -> 0 | BZ48: 0 | CA48: =IF($F$12="breakfast",IF(V48=0,,(V48/$E$10)*'Customer Info'!$F$20),) -> 0 | CB48: =IF($F$12="lunch",IF(W48=0,,(W48/$E$11)*'Customer Info'!$F$20),) -> 0 | CC48: =IF($F$12="other",IF(Y48=0,,(Y48/$E$13)*'Customer Info'!$F$20),) -> 0 | CD48: 0 | CE48: =IF($F$13="breakfast",IF(V48=0,,(V48/$E$10)*'Customer Info'!$F$21),) -> 0 | CF48: =IF($F$13="lunch",IF(W48=0,,(W48/$E$11)*'Customer Info'!$F$21),) -> 0 | CG48: =IF($F$13="dinner",IF(X48=0,,(X48/$E$12)*'Customer Info'!$F$21),) -> 0 | CH48: 0 | CI48: =IF($F$16="lunch",IF(AA48=0,,(AA48/$E$17)*'Customer Info'!$H$18),) -> 0 | CJ48: =IF($F$16="dinner",IF(AB48=0,,(AB48/$E$18)*'Customer Info'!$H$18),) -> 0 | CK48: =IF($F$16="other",IF(AC48=0,,(AC48/$E$19)*'Customer Info'!$H$18),) -> 0 | CL48: 0 | CM48: =IF($F$17="breakfast",IF(Z48=0,,(Z48/$E$16)*'Customer Info'!$H$19),) -> 0 | CN48: =IF($F$17="dinner",IF(AB48=0,,(AB48/$E$18)*'Customer Info'!$H$19),) -> 0 | CO48: =IF($F$17="other",IF(AC48=0,,(AC48/$E$19)*'Customer Info'!$H$19),) -> 0 | CP48: 0 | CQ48: =IF($F$18="breakfast",IF(Z48=0,,(Z48/$E$16)*'Customer Info'!$H$20),) -> 0 | CR48: =IF($F$18="lunch",IF(AA48=0,,(AA48/$E$17)*'Customer Info'!$H$20),) -> 0 | CS48: =IF($F$18="other",IF(AC48=0,,(AC48/$E$19)*'Customer Info'!$H$20),) -> 0 | CT48: 0 | CU48: =IF($F$19="breakfast",IF(Z48=0,,(Z48/$E$16)*'Customer Info'!$H$21),) -> 0 | CV48: =IF($F$19="lunch",IF(AA48=0,,(AA48/$E$17)*'Customer Info'!$H$21),) -> 0 | CW48: =IF($F$19="dinner",IF(AB48=0,,(AB48/$E$18)*'Customer Info'!$H$21),) -> 0 | CX48: 0 | CY48: 0 | CZ48: 0 | DA48: 0 | DB48: 0
K49: 0 | L49: 0 | M49: 0 | N49: 0 | O49: 0 | P49: 0 | Q49: 0 | R49: 0 | S49: 0 | T49: 0 | U49: 0 | V49: 0 | W49: 0 | X49: 0 | Y49: 0 | Z49: 0 | AA49: 0 | AB49: 0 | AC49: 0 | AD49: 0 | AE49: 0 | AF49: 0 | AG49: 0 | AH49: =IF((OR($F$4=0,$F$4="none")),IF(R49=0,,IF(OR($E$4='Customer Info'!$D$18,$E$4=0),R49,(R49/$E$4)*'Customer Info'!$D$18)),) -> 0 | AI49: =IF((OR($F$5=0,$F$5="none")),IF(S49=0,,IF(OR($E$5='Customer Info'!$D$18,$E$5=0),S49,(S49/$E$5)*'Customer Info'!$D$19)),) -> 0 | AJ49: =IF((OR($F$6=0,$F$6="none")),IF(T49=0,,IF(OR($E$6='Customer Info'!$D$18,$E$6=0),T49,(T49/$E$6)*'Customer Info'!$D$20)),) -> 0 | AK49: =IF((OR($F$7=0,$F$7="none")),IF(U49=0,,IF(OR($E$7='Customer Info'!$D$18,$E$7=0),U49,(U49/$E$7)*'Customer Info'!$D$21)),) -> 0 | AL49: =IF((OR($F$10=0,$F$10="none")),IF(V49=0,,IF(OR($E$10='Customer Info'!$F$18,$E$10=0),V49,(V49/$E$10)*'Customer Info'!$F$18)),) -> 0 | AM49: =IF((OR($F$11=0,$F$11="none")),IF(W49=0,,IF(OR($E$11='Customer Info'!$F$19,$E$11=0),W49,(W49/$E$11)*'Customer Info'!$F$19)),) -> 0 | AN49: =IF((OR($F$12=0,$F$12="none")),IF(X49=0,,IF(OR($E$12='Customer Info'!$F$20,$E$12=0),X49,(X49/$E$12)*'Customer Info'!$F$20)),) -> 0 | AO49: =IF((OR($F$13=0,$F$13="none")),IF(Y49=0,,IF(OR($E$13='Customer Info'!$F$21,$E$13=0),Y49,(Y49/$E$13)*'Customer Info'!$F$21)),) -> 0 | AP49: =IF((OR($F$16=0,$F$16="none")),IF(Z49=0,,IF(OR($E$16='Customer Info'!$H$18,$E$16=0),Z49,(Z49/$E$16)*'Customer Info'!$H$18)),) -> 0 | AQ49: =IF((OR($F$17=0,$F$17="none")),IF(AA49=0,,IF(OR($E$17='Customer Info'!$H$19,$E$17=0),AA49,(AA49/$E$17)*'Customer Info'!$H$19)),) -> 0 | AR49: =IF((OR($F$18=0,$F$18="none")),IF(AB49=0,,IF(OR($E$18='Customer Info'!$H$20,$E$18=0),AB49,(AB49/$E$18)*'Customer Info'!$H$20)),) -> 0 | AS49: =IF((OR($F$19=0,$F$19="none")),IF(AC49=0,,IF(OR($E$19='Customer Info'!$H$21,$E$19=0),AC49,(AC49/$E$19)*'Customer Info'!$H$21)),) -> 0 | AT49: =IF((OR($F$4=0,$F$4="none")),IF(AD49=0,,IF(OR($E$4='Customer Info'!$D$18,$E$4=0),AD49,(AD49/$E$4)*'Customer Info'!$D$18)),) -> 0 | AU49: =IF((OR($F$5=0,$F$5="none")),IF(AE49=0,,IF(OR($E$5='Customer Info'!$D$19,$E$5=0),AE49,(AE49/$E$5)*'Customer Info'!$D$19)),) -> 0 | AV49: =IF((OR($F$6=0,$F$6="none")),IF(AF49=0,,IF(OR($E$6='Customer Info'!$D$20,$E$6=0),AF49,(AF49/$E$6)*'Customer Info'!$D$20)),) -> 0 | AW49: =IF((OR($F$7=0,$F$7="none")),IF(AG49=0,,IF(OR($E$7='Customer Info'!$D$21,$E$7=0),AG49,(AG49/$E$7)*'Customer Info'!$D$21)),) -> 0 | AX49: 0 | AY49: 0 | AZ49: =IF(E49="plate waste",,IF('Customer Info'!$M$18=0,'Log Sheet'!AY49,'Customer Info'!$M$18*'Log Sheet'!AY49)) -> 0 | BA49: =IF(E49="plate waste",IF(OR(C49="patient",C49="patient beverages"),IF('Customer Info'!$M$27=0,AY49*'Customer Info'!$M$18,AY49*'Customer Info'!$M$27),IF(C49="cafeteria",IF('Customer Info'!$M$28=0,AY49*'Customer Info'!$M$18,AY49*'Customer Info'!$M$28),IF(C49="other1",IF('Customer Info'!$M$29=0,AY49*'Customer Info'!$M$18,AY49*'Customer Info'!$M$29),))),) -> 0 | BB49: 0 | BC49: =IF($F$4="lunch",IF(S49=0,,(S49/$E$5)*'Customer Info'!$D$18),) -> 0 | BD49: =IF($F$4="dinner",IF(T49=0,,(T49/$E$6)*'Customer Info'!$D$18),) -> 0 | BE49: =IF($F$4="other",IF(U49=0,,(U49/$E$7)*'Customer Info'!$D$18),) -> 0 | BF49: 0 | BG49: =IF($F$5="breakfast",IF(R49=0,,(R49/$E$4)*'Customer Info'!$D$19),) -> 0 | BH49: =IF($F$5="dinner",IF(T49=0,,(T49/$E$6)*'Customer Info'!$D$19),) -> 0 | BI49: =IF($F$5="other",IF(U49=0,,(U49/$E$7)*'Customer Info'!$D$19),) -> 0 | BJ49: 0 | BK49: =IF($F$6="breakfast",IF(R49=0,,(R49/$E$4)*'Customer Info'!$D$20),) -> 0 | BL49: =IF($F$6="lunch",IF(S49=0,,(S49/$E$5)*'Customer Info'!$D$20),) -> 0 | BM49: =IF($F$6="other",IF(U49=0,,(U49/$E$7)*'Customer Info'!$D$20),) -> 0 | BN49: 0 | BO49: =IF($F$7="breakfast",IF(R49=0,,(R49/$E$4)*'Customer Info'!$D$21),) -> 0 | BP49: =IF($F$7="lunch",IF(S49=0,,(S49/$E$5)*'Customer Info'!$D$21),) -> 0 | BQ49: =IF($F$7="dinner",IF(T49=0,,(T49/$E$6)*'Customer Info'!$D$21),) -> 0 | BR49: 0 | BS49: =IF($F$10="lunch",IF(W49=0,,(W49/$E$11)*'Customer Info'!$F$18),) -> 0 | BT49: =IF($F$10="dinner",IF(X49=0,,(X49/$E$12)*'Customer Info'!$F$18),) -> 0 | BU49: =IF($F$10="other",IF(Y49=0,,(Y49/$E$13)*'Customer Info'!$F$18),) -> 0 | BV49: 0 | BW49: =IF($F$11="breakfast",IF(V49=0,,(V49/$E$10)*'Customer Info'!$F$19),) -> 0 | BX49: =IF($F$11="dinner",IF(X49=0,,(X49/$E$12)*'Customer Info'!$F$19),) -> 0 | BY49: =IF($F$11="other",IF(Y49=0,,(Y49/$E$13)*'Customer Info'!$F$19),) -> 0 | BZ49: 0 | CA49: =IF($F$12="breakfast",IF(V49=0,,(V49/$E$10)*'Customer Info'!$F$20),) -> 0 | CB49: =IF($F$12="lunch",IF(W49=0,,(W49/$E$11)*'Customer Info'!$F$20),) -> 0 | CC49: =IF($F$12="other",IF(Y49=0,,(Y49/$E$13)*'Customer Info'!$F$20),) -> 0 | CD49: 0 | CE49: =IF($F$13="breakfast",IF(V49=0,,(V49/$E$10)*'Customer Info'!$F$21),) -> 0 | CF49: =IF($F$13="lunch",IF(W49=0,,(W49/$E$11)*'Customer Info'!$F$21),) -> 0 | CG49: =IF($F$13="dinner",IF(X49=0,,(X49/$E$12)*'Customer Info'!$F$21),) -> 0 | CH49: 0 | CI49: =IF($F$16="lunch",IF(AA49=0,,(AA49/$E$17)*'Customer Info'!$H$18),) -> 0 | CJ49: =IF($F$16="dinner",IF(AB49=0,,(AB49/$E$18)*'Customer Info'!$H$18),) -> 0 | CK49: =IF($F$16="other",IF(AC49=0,,(AC49/$E$19)*'Customer Info'!$H$18),) -> 0 | CL49: 0 | CM49: =IF($F$17="breakfast",IF(Z49=0,,(Z49/$E$16)*'Customer Info'!$H$19),) -> 0 | CN49: =IF($F$17="dinner",IF(AB49=0,,(AB49/$E$18)*'Customer Info'!$H$19),) -> 0 | CO49: =IF($F$17="other",IF(AC49=0,,(AC49/$E$19)*'Customer Info'!$H$19),) -> 0 | CP49: 0 | CQ49: =IF($F$18="breakfast",IF(Z49=0,,(Z49/$E$16)*'Customer Info'!$H$20),) -> 0 | CR49: =IF($F$18="lunch",IF(AA49=0,,(AA49/$E$17)*'Customer Info'!$H$20),) -> 0 | CS49: =IF($F$18="other",IF(AC49=0,,(AC49/$E$19)*'Customer Info'!$H$20),) -> 0 | CT49: 0 | CU49: =IF($F$19="breakfast",IF(Z49=0,,(Z49/$E$16)*'Customer Info'!$H$21),) -> 0 | CV49: =IF($F$19="lunch",IF(AA49=0,,(AA49/$E$17)*'Customer Info'!$H$21),) -> 0 | CW49: =IF($F$19="dinner",IF(AB49=0,,(AB49/$E$18)*'Customer Info'!$H$21),) -> 0 | CX49: 0 | CY49: 0 | CZ49: 0 | DA49: 0 | DB49: 0
K50: 0 | L50: 0 | M50: 0 | N50: 0 | O50: 0 | P50: 0 | Q50: 0 | R50: 0 | S50: 0 | T50: 0 | U50: 0 | V50: 0 | W50: 0 | X50: 0 | Y50: 0 | Z50: 0 | AA50: 0 | AB50: 0 | AC50: 0 | AD50: 0 | AE50: 0 | AF50: 0 | AG50: 0 | AH50: =IF((OR($F$4=0,$F$4="none")),IF(R50=0,,IF(OR($E$4='Customer Info'!$D$18,$E$4=0),R50,(R50/$E$4)*'Customer Info'!$D$18)),) -> 0 | AI50: =IF((OR($F$5=0,$F$5="none")),IF(S50=0,,IF(OR($E$5='Customer Info'!$D$18,$E$5=0),S50,(S50/$E$5)*'Customer Info'!$D$19)),) -> 0 | AJ50: =IF((OR($F$6=0,$F$6="none")),IF(T50=0,,IF(OR($E$6='Customer Info'!$D$18,$E$6=0),T50,(T50/$E$6)*'Customer Info'!$D$20)),) -> 0 | AK50: =IF((OR($F$7=0,$F$7="none")),IF(U50=0,,IF(OR($E$7='Customer Info'!$D$18,$E$7=0),U50,(U50/$E$7)*'Customer Info'!$D$21)),) -> 0 | AL50: =IF((OR($F$10=0,$F$10="none")),IF(V50=0,,IF(OR($E$10='Customer Info'!$F$18,$E$10=0),V50,(V50/$E$10)*'Customer Info'!$F$18)),) -> 0 | AM50: =IF((OR($F$11=0,$F$11="none")),IF(W50=0,,IF(OR($E$11='Customer Info'!$F$19,$E$11=0),W50,(W50/$E$11)*'Customer Info'!$F$19)),) -> 0 | AN50: =IF((OR($F$12=0,$F$12="none")),IF(X50=0,,IF(OR($E$12='Customer Info'!$F$20,$E$12=0),X50,(X50/$E$12)*'Customer Info'!$F$20)),) -> 0 | AO50: =IF((OR($F$13=0,$F$13="none")),IF(Y50=0,,IF(OR($E$13='Customer Info'!$F$21,$E$13=0),Y50,(Y50/$E$13)*'Customer Info'!$F$21)),) -> 0 | AP50: =IF((OR($F$16=0,$F$16="none")),IF(Z50=0,,IF(OR($E$16='Customer Info'!$H$18,$E$16=0),Z50,(Z50/$E$16)*'Customer Info'!$H$18)),) -> 0 | AQ50: =IF((OR($F$17=0,$F$17="none")),IF(AA50=0,,IF(OR($E$17='Customer Info'!$H$19,$E$17=0),AA50,(AA50/$E$17)*'Customer Info'!$H$19)),) -> 0 | AR50: =IF((OR($F$18=0,$F$18="none")),IF(AB50=0,,IF(OR($E$18='Customer Info'!$H$20,$E$18=0),AB50,(AB50/$E$18)*'Customer Info'!$H$20)),) -> 0 | AS50: =IF((OR($F$19=0,$F$19="none")),IF(AC50=0,,IF(OR($E$19='Customer Info'!$H$21,$E$19=0),AC50,(AC50/$E$19)*'Customer Info'!$H$21)),) -> 0 | AT50: =IF((OR($F$4=0,$F$4="none")),IF(AD50=0,,IF(OR($E$4='Customer Info'!$D$18,$E$4=0),AD50,(AD50/$E$4)*'Customer Info'!$D$18)),) -> 0 | AU50: =IF((OR($F$5=0,$F$5="none")),IF(AE50=0,,IF(OR($E$5='Customer Info'!$D$19,$E$5=0),AE50,(AE50/$E$5)*'Customer Info'!$D$19)),) -> 0 | AV50: =IF((OR($F$6=0,$F$6="none")),IF(AF50=0,,IF(OR($E$6='Customer Info'!$D$20,$E$6=0),AF50,(AF50/$E$6)*'Customer Info'!$D$20)),) -> 0 | AW50: =IF((OR($F$7=0,$F$7="none")),IF(AG50=0,,IF(OR($E$7='Customer Info'!$D$21,$E$7=0),AG50,(AG50/$E$7)*'Customer Info'!$D$21)),) -> 0 | AX50: 0 | AY50: 0 | AZ50: =IF(E50="plate waste",,IF('Customer Info'!$M$18=0,'Log Sheet'!AY50,'Customer Info'!$M$18*'Log Sheet'!AY50)) -> 0 | BA50: =IF(E50="plate waste",IF(OR(C50="patient",C50="patient beverages"),IF('Customer Info'!$M$27=0,AY50*'Customer Info'!$M$18,AY50*'Customer Info'!$M$27),IF(C50="cafeteria",IF('Customer Info'!$M$28=0,AY50*'Customer Info'!$M$18,AY50*'Customer Info'!$M$28),IF(C50="other1",IF('Customer Info'!$M$29=0,AY50*'Customer Info'!$M$18,AY50*'Customer Info'!$M$29),))),) -> 0 | BB50: 0 | BC50: =IF($F$4="lunch",IF(S50=0,,(S50/$E$5)*'Customer Info'!$D$18),) -> 0 | BD50: =IF($F$4="dinner",IF(T50=0,,(T50/$E$6)*'Customer Info'!$D$18),) -> 0 | BE50: =IF($F$4="other",IF(U50=0,,(U50/$E$7)*'Customer Info'!$D$18),) -> 0 | BF50: 0 | BG50: =IF($F$5="breakfast",IF(R50=0,,(R50/$E$4)*'Customer Info'!$D$19),) -> 0 | BH50: =IF($F$5="dinner",IF(T50=0,,(T50/$E$6)*'Customer Info'!$D$19),) -> 0 | BI50: =IF($F$5="other",IF(U50=0,,(U50/$E$7)*'Customer Info'!$D$19),) -> 0 | BJ50: 0 | BK50: =IF($F$6="breakfast",IF(R50=0,,(R50/$E$4)*'Customer Info'!$D$20),) -> 0 | BL50: =IF($F$6="lunch",IF(S50=0,,(S50/$E$5)*'Customer Info'!$D$20),) -> 0 | BM50: =IF($F$6="other",IF(U50=0,,(U50/$E$7)*'Customer Info'!$D$20),) -> 0 | BN50: 0 | BO50: =IF($F$7="breakfast",IF(R50=0,,(R50/$E$4)*'Customer Info'!$D$21),) -> 0 | BP50: =IF($F$7="lunch",IF(S50=0,,(S50/$E$5)*'Customer Info'!$D$21),) -> 0 | BQ50: =IF($F$7="dinner",IF(T50=0,,(T50/$E$6)*'Customer Info'!$D$21),) -> 0 | BR50: 0 | BS50: =IF($F$10="lunch",IF(W50=0,,(W50/$E$11)*'Customer Info'!$F$18),) -> 0 | BT50: =IF($F$10="dinner",IF(X50=0,,(X50/$E$12)*'Customer Info'!$F$18),) -> 0 | BU50: =IF($F$10="other",IF(Y50=0,,(Y50/$E$13)*'Customer Info'!$F$18),) -> 0 | BV50: 0 | BW50: =IF($F$11="breakfast",IF(V50=0,,(V50/$E$10)*'Customer Info'!$F$19),) -> 0 | BX50: =IF($F$11="dinner",IF(X50=0,,(X50/$E$12)*'Customer Info'!$F$19),) -> 0 | BY50: =IF($F$11="other",IF(Y50=0,,(Y50/$E$13)*'Customer Info'!$F$19),) -> 0 | BZ50: 0 | CA50: =IF($F$12="breakfast",IF(V50=0,,(V50/$E$10)*'Customer Info'!$F$20),) -> 0 | CB50: =IF($F$12="lunch",IF(W50=0,,(W50/$E$11)*'Customer Info'!$F$20),) -> 0 | CC50: =IF($F$12="other",IF(Y50=0,,(Y50/$E$13)*'Customer Info'!$F$20),) -> 0 | CD50: 0 | CE50: =IF($F$13="breakfast",IF(V50=0,,(V50/$E$10)*'Customer Info'!$F$21),) -> 0 | CF50: =IF($F$13="lunch",IF(W50=0,,(W50/$E$11)*'Customer Info'!$F$21),) -> 0 | CG50: =IF($F$13="dinner",IF(X50=0,,(X50/$E$12)*'Customer Info'!$F$21),) -> 0 | CH50: 0 | CI50: =IF($F$16="lunch",IF(AA50=0,,(AA50/$E$17)*'Customer Info'!$H$18),) -> 0 | CJ50: =IF($F$16="dinner",IF(AB50=0,,(AB50/$E$18)*'Customer Info'!$H$18),) -> 0 | CK50: =IF($F$16="other",IF(AC50=0,,(AC50/$E$19)*'Customer Info'!$H$18),) -> 0 | CL50: 0 | CM50: =IF($F$17="breakfast",IF(Z50=0,,(Z50/$E$16)*'Customer Info'!$H$19),) -> 0 | CN50: =IF($F$17="dinner",IF(AB50=0,,(AB50/$E$18)*'Customer Info'!$H$19),) -> 0 | CO50: =IF($F$17="other",IF(AC50=0,,(AC50/$E$19)*'Customer Info'!$H$19),) -> 0 | CP50: 0 | CQ50: =IF($F$18="breakfast",IF(Z50=0,,(Z50/$E$16)*'Customer Info'!$H$20),) -> 0 | CR50: =IF($F$18="lunch",IF(AA50=0,,(AA50/$E$17)*'Customer Info'!$H$20),) -> 0 | CS50: =IF($F$18="other",IF(AC50=0,,(AC50/$E$19)*'Customer Info'!$H$20),) -> 0 | CT50: 0 | CU50: =IF($F$19="breakfast",IF(Z50=0,,(Z50/$E$16)*'Customer Info'!$H$21),) -> 0 | CV50: =IF($F$19="lunch",IF(AA50=0,,(AA50/$E$17)*'Customer Info'!$H$21),) -> 0 | CW50: =IF($F$19="dinner",IF(AB50=0,,(AB50/$E$18)*'Customer Info'!$H$21),) -> 0 | CX50: 0 | CY50: 0 | CZ50: 0 | DA50: 0 | DB50: 0
K51: 0 | L51: 0 | M51: 0 | N51: 0 | O51: 0 | P51: 0 | Q51: 0 | R51: 0 | S51: 0 | T51: 0 | U51: 0 | V51: 0 | W51: 0 | X51: 0 | Y51: 0 | Z51: 0 | AA51: 0 | AB51: 0 | AC51: 0 | AD51: 0 | AE51: 0 | AF51: 0 | AG51: 0 | AH51: =IF((OR($F$4=0,$F$4="none")),IF(R51=0,,IF(OR($E$4='Customer Info'!$D$18,$E$4=0),R51,(R51/$E$4)*'Customer Info'!$D$18)),) -> 0 | AI51: =IF((OR($F$5=0,$F$5="none")),IF(S51=0,,IF(OR($E$5='Customer Info'!$D$18,$E$5=0),S51,(S51/$E$5)*'Customer Info'!$D$19)),) -> 0 | AJ51: =IF((OR($F$6=0,$F$6="none")),IF(T51=0,,IF(OR($E$6='Customer Info'!$D$18,$E$6=0),T51,(T51/$E$6)*'Customer Info'!$D$20)),) -> 0 | AK51: =IF((OR($F$7=0,$F$7="none")),IF(U51=0,,IF(OR($E$7='Customer Info'!$D$18,$E$7=0),U51,(U51/$E$7)*'Customer Info'!$D$21)),) -> 0 | AL51: =IF((OR($F$10=0,$F$10="none")),IF(V51=0,,IF(OR($E$10='Customer Info'!$F$18,$E$10=0),V51,(V51/$E$10)*'Customer Info'!$F$18)),) -> 0 | AM51: =IF((OR($F$11=0,$F$11="none")),IF(W51=0,,IF(OR($E$11='Customer Info'!$F$19,$E$11=0),W51,(W51/$E$11)*'Customer Info'!$F$19)),) -> 0 | AN51: =IF((OR($F$12=0,$F$12="none")),IF(X51=0,,IF(OR($E$12='Customer Info'!$F$20,$E$12=0),X51,(X51/$E$12)*'Customer Info'!$F$20)),) -> 0 | AO51: =IF((OR($F$13=0,$F$13="none")),IF(Y51=0,,IF(OR($E$13='Customer Info'!$F$21,$E$13=0),Y51,(Y51/$E$13)*'Customer Info'!$F$21)),) -> 0 | AP51: =IF((OR($F$16=0,$F$16="none")),IF(Z51=0,,IF(OR($E$16='Customer Info'!$H$18,$E$16=0),Z51,(Z51/$E$16)*'Customer Info'!$H$18)),) -> 0 | AQ51: =IF((OR($F$17=0,$F$17="none")),IF(AA51=0,,IF(OR($E$17='Customer Info'!$H$19,$E$17=0),AA51,(AA51/$E$17)*'Customer Info'!$H$19)),) -> 0 | AR51: =IF((OR($F$18=0,$F$18="none")),IF(AB51=0,,IF(OR($E$18='Customer Info'!$H$20,$E$18=0),AB51,(AB51/$E$18)*'Customer Info'!$H$20)),) -> 0 | AS51: =IF((OR($F$19=0,$F$19="none")),IF(AC51=0,,IF(OR($E$19='Customer Info'!$H$21,$E$19=0),AC51,(AC51/$E$19)*'Customer Info'!$H$21)),) -> 0 | AT51: =IF((OR($F$4=0,$F$4="none")),IF(AD51=0,,IF(OR($E$4='Customer Info'!$D$18,$E$4=0),AD51,(AD51/$E$4)*'Customer Info'!$D$18)),) -> 0 | AU51: =IF((OR($F$5=0,$F$5="none")),IF(AE51=0,,IF(OR($E$5='Customer Info'!$D$19,$E$5=0),AE51,(AE51/$E$5)*'Customer Info'!$D$19)),) -> 0 | AV51: =IF((OR($F$6=0,$F$6="none")),IF(AF51=0,,IF(OR($E$6='Customer Info'!$D$20,$E$6=0),AF51,(AF51/$E$6)*'Customer Info'!$D$20)),) -> 0 | AW51: =IF((OR($F$7=0,$F$7="none")),IF(AG51=0,,IF(OR($E$7='Customer Info'!$D$21,$E$7=0),AG51,(AG51/$E$7)*'Customer Info'!$D$21)),) -> 0 | AX51: 0 | AY51: 0 | AZ51: =IF(E51="plate waste",,IF('Customer Info'!$M$18=0,'Log Sheet'!AY51,'Customer Info'!$M$18*'Log Sheet'!AY51)) -> 0 | BA51: =IF(E51="plate waste",IF(OR(C51="patient",C51="patient beverages"),IF('Customer Info'!$M$27=0,AY51*'Customer Info'!$M$18,AY51*'Customer Info'!$M$27),IF(C51="cafeteria",IF('Customer Info'!$M$28=0,AY51*'Customer Info'!$M$18,AY51*'Customer Info'!$M$28),IF(C51="other1",IF('Customer Info'!$M$29=0,AY51*'Customer Info'!$M$18,AY51*'Customer Info'!$M$29),))),) -> 0 | BB51: 0 | BC51: =IF($F$4="lunch",IF(S51=0,,(S51/$E$5)*'Customer Info'!$D$18),) -> 0 | BD51: =IF($F$4="dinner",IF(T51=0,,(T51/$E$6)*'Customer Info'!$D$18),) -> 0 | BE51: =IF($F$4="other",IF(U51=0,,(U51/$E$7)*'Customer Info'!$D$18),) -> 0 | BF51: 0 | BG51: =IF($F$5="breakfast",IF(R51=0,,(R51/$E$4)*'Customer Info'!$D$19),) -> 0 | BH51: =IF($F$5="dinner",IF(T51=0,,(T51/$E$6)*'Customer Info'!$D$19),) -> 0 | BI51: =IF($F$5="other",IF(U51=0,,(U51/$E$7)*'Customer Info'!$D$19),) -> 0 | BJ51: 0 | BK51: =IF($F$6="breakfast",IF(R51=0,,(R51/$E$4)*'Customer Info'!$D$20),) -> 0 | BL51: =IF($F$6="lunch",IF(S51=0,,(S51/$E$5)*'Customer Info'!$D$20),) -> 0 | BM51: =IF($F$6="other",IF(U51=0,,(U51/$E$7)*'Customer Info'!$D$20),) -> 0 | BN51: 0 | BO51: =IF($F$7="breakfast",IF(R51=0,,(R51/$E$4)*'Customer Info'!$D$21),) -> 0 | BP51: =IF($F$7="lunch",IF(S51=0,,(S51/$E$5)*'Customer Info'!$D$21),) -> 0 | BQ51: =IF($F$7="dinner",IF(T51=0,,(T51/$E$6)*'Customer Info'!$D$21),) -> 0 | BR51: 0 | BS51: =IF($F$10="lunch",IF(W51=0,,(W51/$E$11)*'Customer Info'!$F$18),) -> 0 | BT51: =IF($F$10="dinner",IF(X51=0,,(X51/$E$12)*'Customer Info'!$F$18),) -> 0 | BU51: =IF($F$10="other",IF(Y51=0,,(Y51/$E$13)*'Customer Info'!$F$18),) -> 0 | BV51: 0 | BW51: =IF($F$11="breakfast",IF(V51=0,,(V51/$E$10)*'Customer Info'!$F$19),) -> 0 | BX51: =IF($F$11="dinner",IF(X51=0,,(X51/$E$12)*'Customer Info'!$F$19),) -> 0 | BY51: =IF($F$11="other",IF(Y51=0,,(Y51/$E$13)*'Customer Info'!$F$19),) -> 0 | BZ51: 0 | CA51: =IF($F$12="breakfast",IF(V51=0,,(V51/$E$10)*'Customer Info'!$F$20),) -> 0 | CB51: =IF($F$12="lunch",IF(W51=0,,(W51/$E$11)*'Customer Info'!$F$20),) -> 0 | CC51: =IF($F$12="other",IF(Y51=0,,(Y51/$E$13)*'Customer Info'!$F$20),) -> 0 | CD51: 0 | CE51: =IF($F$13="breakfast",IF(V51=0,,(V51/$E$10)*'Customer Info'!$F$21),) -> 0 | CF51: =IF($F$13="lunch",IF(W51=0,,(W51/$E$11)*'Customer Info'!$F$21),) -> 0 | CG51: =IF($F$13="dinner",IF(X51=0,,(X51/$E$12)*'Customer Info'!$F$21),) -> 0 | CH51: 0 | CI51: =IF($F$16="lunch",IF(AA51=0,,(AA51/$E$17)*'Customer Info'!$H$18),) -> 0 | CJ51: =IF($F$16="dinner",IF(AB51=0,,(AB51/$E$18)*'Customer Info'!$H$18),) -> 0 | CK51: =IF($F$16="other",IF(AC51=0,,(AC51/$E$19)*'Customer Info'!$H$18),) -> 0 | CL51: 0 | CM51: =IF($F$17="breakfast",IF(Z51=0,,(Z51/$E$16)*'Customer Info'!$H$19),) -> 0 | CN51: =IF($F$17="dinner",IF(AB51=0,,(AB51/$E$18)*'Customer Info'!$H$19),) -> 0 | CO51: =IF($F$17="other",IF(AC51=0,,(AC51/$E$19)*'Customer Info'!$H$19),) -> 0 | CP51: 0 | CQ51: =IF($F$18="breakfast",IF(Z51=0,,(Z51/$E$16)*'Customer Info'!$H$20),) -> 0 | CR51: =IF($F$18="lunch",IF(AA51=0,,(AA51/$E$17)*'Customer Info'!$H$20),) -> 0 | CS51: =IF($F$18="other",IF(AC51=0,,(AC51/$E$19)*'Customer Info'!$H$20),) -> 0 | CT51: 0 | CU51: =IF($F$19="breakfast",IF(Z51=0,,(Z51/$E$16)*'Customer Info'!$H$21),) -> 0 | CV51: =IF($F$19="lunch",IF(AA51=0,,(AA51/$E$17)*'Customer Info'!$H$21),) -> 0 | CW51: =IF($F$19="dinner",IF(AB51=0,,(AB51/$E$18)*'Customer Info'!$H$21),) -> 0 | CX51: 0 | CY51: 0 | CZ51: 0 | DA51: 0 | DB51: 0
K52: 0 | L52: 0 | M52: 0 | N52: 0 | O52: 0 | P52: 0 | Q52: 0 | R52: 0 | S52: 0 | T52: 0 | U52: 0 | V52: 0 | W52: 0 | X52: 0 | Y52: 0 | Z52: 0 | AA52: 0 | AB52: 0 | AC52: 0 | AD52: 0 | AE52: 0 | AF52: 0 | AG52: 0 | AH52: =IF((OR($F$4=0,$F$4="none")),IF(R52=0,,IF(OR($E$4='Customer Info'!$D$18,$E$4=0),R52,(R52/$E$4)*'Customer Info'!$D$18)),) -> 0 | AI52: =IF((OR($F$5=0,$F$5="none")),IF(S52=0,,IF(OR($E$5='Customer Info'!$D$18,$E$5=0),S52,(S52/$E$5)*'Customer Info'!$D$19)),) -> 0 | AJ52: =IF((OR($F$6=0,$F$6="none")),IF(T52=0,,IF(OR($E$6='Customer Info'!$D$18,$E$6=0),T52,(T52/$E$6)*'Customer Info'!$D$20)),) -> 0 | AK52: =IF((OR($F$7=0,$F$7="none")),IF(U52=0,,IF(OR($E$7='Customer Info'!$D$18,$E$7=0),U52,(U52/$E$7)*'Customer Info'!$D$21)),) -> 0 | AL52: =IF((OR($F$10=0,$F$10="none")),IF(V52=0,,IF(OR($E$10='Customer Info'!$F$18,$E$10=0),V52,(V52/$E$10)*'Customer Info'!$F$18)),) -> 0 | AM52: =IF((OR($F$11=0,$F$11="none")),IF(W52=0,,IF(OR($E$11='Customer Info'!$F$19,$E$11=0),W52,(W52/$E$11)*'Customer Info'!$F$19)),) -> 0 | AN52: =IF((OR($F$12=0,$F$12="none")),IF(X52=0,,IF(OR($E$12='Customer Info'!$F$20,$E$12=0),X52,(X52/$E$12)*'Customer Info'!$F$20)),) -> 0 | AO52: =IF((OR($F$13=0,$F$13="none")),IF(Y52=0,,IF(OR($E$13='Customer Info'!$F$21,$E$13=0),Y52,(Y52/$E$13)*'Customer Info'!$F$21)),) -> 0 | AP52: =IF((OR($F$16=0,$F$16="none")),IF(Z52=0,,IF(OR($E$16='Customer Info'!$H$18,$E$16=0),Z52,(Z52/$E$16)*'Customer Info'!$H$18)),) -> 0 | AQ52: =IF((OR($F$17=0,$F$17="none")),IF(AA52=0,,IF(OR($E$17='Customer Info'!$H$19,$E$17=0),AA52,(AA52/$E$17)*'Customer Info'!$H$19)),) -> 0 | AR52: =IF((OR($F$18=0,$F$18="none")),IF(AB52=0,,IF(OR($E$18='Customer Info'!$H$20,$E$18=0),AB52,(AB52/$E$18)*'Customer Info'!$H$20)),) -> 0 | AS52: =IF((OR($F$19=0,$F$19="none")),IF(AC52=0,,IF(OR($E$19='Customer Info'!$H$21,$E$19=0),AC52,(AC52/$E$19)*'Customer Info'!$H$21)),) -> 0 | AT52: =IF((OR($F$4=0,$F$4="none")),IF(AD52=0,,IF(OR($E$4='Customer Info'!$D$18,$E$4=0),AD52,(AD52/$E$4)*'Customer Info'!$D$18)),) -> 0 | AU52: =IF((OR($F$5=0,$F$5="none")),IF(AE52=0,,IF(OR($E$5='Customer Info'!$D$19,$E$5=0),AE52,(AE52/$E$5)*'Customer Info'!$D$19)),) -> 0 | AV52: =IF((OR($F$6=0,$F$6="none")),IF(AF52=0,,IF(OR($E$6='Customer Info'!$D$20,$E$6=0),AF52,(AF52/$E$6)*'Customer Info'!$D$20)),) -> 0 | AW52: =IF((OR($F$7=0,$F$7="none")),IF(AG52=0,,IF(OR($E$7='Customer Info'!$D$21,$E$7=0),AG52,(AG52/$E$7)*'Customer Info'!$D$21)),) -> 0 | AX52: 0 | AY52: 0 | AZ52: =IF(E52="plate waste",,IF('Customer Info'!$M$18=0,'Log Sheet'!AY52,'Customer Info'!$M$18*'Log Sheet'!AY52)) -> 0 | BA52: =IF(E52="plate waste",IF(OR(C52="patient",C52="patient beverages"),IF('Customer Info'!$M$27=0,AY52*'Customer Info'!$M$18,AY52*'Customer Info'!$M$27),IF(C52="cafeteria",IF('Customer Info'!$M$28=0,AY52*'Customer Info'!$M$18,AY52*'Customer Info'!$M$28),IF(C52="other1",IF('Customer Info'!$M$29=0,AY52*'Customer Info'!$M$18,AY52*'Customer Info'!$M$29),))),) -> 0 | BB52: 0 | BC52: =IF($F$4="lunch",IF(S52=0,,(S52/$E$5)*'Customer Info'!$D$18),) -> 0 | BD52: =IF($F$4="dinner",IF(T52=0,,(T52/$E$6)*'Customer Info'!$D$18),) -> 0 | BE52: =IF($F$4="other",IF(U52=0,,(U52/$E$7)*'Customer Info'!$D$18),) -> 0 | BF52: 0 | BG52: =IF($F$5="breakfast",IF(R52=0,,(R52/$E$4)*'Customer Info'!$D$19),) -> 0 | BH52: =IF($F$5="dinner",IF(T52=0,,(T52/$E$6)*'Customer Info'!$D$19),) -> 0 | BI52: =IF($F$5="other",IF(U52=0,,(U52/$E$7)*'Customer Info'!$D$19),) -> 0 | BJ52: 0 | BK52: =IF($F$6="breakfast",IF(R52=0,,(R52/$E$4)*'Customer Info'!$D$20),) -> 0 | BL52: =IF($F$6="lunch",IF(S52=0,,(S52/$E$5)*'Customer Info'!$D$20),) -> 0 | BM52: =IF($F$6="other",IF(U52=0,,(U52/$E$7)*'Customer Info'!$D$20),) -> 0 | BN52: 0 | BO52: =IF($F$7="breakfast",IF(R52=0,,(R52/$E$4)*'Customer Info'!$D$21),) -> 0 | BP52: =IF($F$7="lunch",IF(S52=0,,(S52/$E$5)*'Customer Info'!$D$21),) -> 0 | BQ52: =IF($F$7="dinner",IF(T52=0,,(T52/$E$6)*'Customer Info'!$D$21),) -> 0 | BR52: 0 | BS52: =IF($F$10="lunch",IF(W52=0,,(W52/$E$11)*'Customer Info'!$F$18),) -> 0 | BT52: =IF($F$10="dinner",IF(X52=0,,(X52/$E$12)*'Customer Info'!$F$18),) -> 0 | BU52: =IF($F$10="other",IF(Y52=0,,(Y52/$E$13)*'Customer Info'!$F$18),) -> 0 | BV52: 0 | BW52: =IF($F$11="breakfast",IF(V52=0,,(V52/$E$10)*'Customer Info'!$F$19),) -> 0 | BX52: =IF($F$11="dinner",IF(X52=0,,(X52/$E$12)*'Customer Info'!$F$19),) -> 0 | BY52: =IF($F$11="other",IF(Y52=0,,(Y52/$E$13)*'Customer Info'!$F$19),) -> 0 | BZ52: 0 | CA52: =IF($F$12="breakfast",IF(V52=0,,(V52/$E$10)*'Customer Info'!$F$20),) -> 0 | CB52: =IF($F$12="lunch",IF(W52=0,,(W52/$E$11)*'Customer Info'!$F$20),) -> 0 | CC52: =IF($F$12="other",IF(Y52=0,,(Y52/$E$13)*'Customer Info'!$F$20),) -> 0 | CD52: 0 | CE52: =IF($F$13="breakfast",IF(V52=0,,(V52/$E$10)*'Customer Info'!$F$21),) -> 0 | CF52: =IF($F$13="lunch",IF(W52=0,,(W52/$E$11)*'Customer Info'!$F$21),) -> 0 | CG52: =IF($F$13="dinner",IF(X52=0,,(X52/$E$12)*'Customer Info'!$F$21),) -> 0 | CH52: 0 | CI52: =IF($F$16="lunch",IF(AA52=0,,(AA52/$E$17)*'Customer Info'!$H$18),) -> 0 | CJ52: =IF($F$16="dinner",IF(AB52=0,,(AB52/$E$18)*'Customer Info'!$H$18),) -> 0 | CK52: =IF($F$16="other",IF(AC52=0,,(AC52/$E$19)*'Customer Info'!$H$18),) -> 0 | CL52: 0 | CM52: =IF($F$17="breakfast",IF(Z52=0,,(Z52/$E$16)*'Customer Info'!$H$19),) -> 0 | CN52: =IF($F$17="dinner",IF(AB52=0,,(AB52/$E$18)*'Customer Info'!$H$19),) -> 0 | CO52: =IF($F$17="other",IF(AC52=0,,(AC52/$E$19)*'Customer Info'!$H$19),) -> 0 | CP52: 0 | CQ52: =IF($F$18="breakfast",IF(Z52=0,,(Z52/$E$16)*'Customer Info'!$H$20),) -> 0 | CR52: =IF($F$18="lunch",IF(AA52=0,,(AA52/$E$17)*'Customer Info'!$H$20),) -> 0 | CS52: =IF($F$18="other",IF(AC52=0,,(AC52/$E$19)*'Customer Info'!$H$20),) -> 0 | CT52: 0 | CU52: =IF($F$19="breakfast",IF(Z52=0,,(Z52/$E$16)*'Customer Info'!$H$21),) -> 0 | CV52: =IF($F$19="lunch",IF(AA52=0,,(AA52/$E$17)*'Customer Info'!$H$21),) -> 0 | CW52: =IF($F$19="dinner",IF(AB52=0,,(AB52/$E$18)*'Customer Info'!$H$21),) -> 0 | CX52: 0 | CY52: 0 | CZ52: 0 | DA52: 0 | DB52: 0
K53: 0 | L53: 0 | M53: 0 | N53: 0 | O53: 0 | P53: 0 | Q53: 0 | R53: 0 | S53: 0 | T53: 0 | U53: 0 | V53: 0 | W53: 0 | X53: 0 | Y53: 0 | Z53: 0 | AA53: 0 | AB53: 0 | AC53: 0 | AD53: 0 | AE53: 0 | AF53: 0 | AG53: 0 | AH53: =IF((OR($F$4=0,$F$4="none")),IF(R53=0,,IF(OR($E$4='Customer Info'!$D$18,$E$4=0),R53,(R53/$E$4)*'Customer Info'!$D$18)),) -> 0 | AI53: =IF((OR($F$5=0,$F$5="none")),IF(S53=0,,IF(OR($E$5='Customer Info'!$D$18,$E$5=0),S53,(S53/$E$5)*'Customer Info'!$D$19)),) -> 0 | AJ53: =IF((OR($F$6=0,$F$6="none")),IF(T53=0,,IF(OR($E$6='Customer Info'!$D$18,$E$6=0),T53,(T53/$E$6)*'Customer Info'!$D$20)),) -> 0 | AK53: =IF((OR($F$7=0,$F$7="none")),IF(U53=0,,IF(OR($E$7='Customer Info'!$D$18,$E$7=0),U53,(U53/$E$7)*'Customer Info'!$D$21)),) -> 0 | AL53: =IF((OR($F$10=0,$F$10="none")),IF(V53=0,,IF(OR($E$10='Customer Info'!$F$18,$E$10=0),V53,(V53/$E$10)*'Customer Info'!$F$18)),) -> 0 | AM53: =IF((OR($F$11=0,$F$11="none")),IF(W53=0,,IF(OR($E$11='Customer Info'!$F$19,$E$11=0),W53,(W53/$E$11)*'Customer Info'!$F$19)),) -> 0 | AN53: =IF((OR($F$12=0,$F$12="none")),IF(X53=0,,IF(OR($E$12='Customer Info'!$F$20,$E$12=0),X53,(X53/$E$12)*'Customer Info'!$F$20)),) -> 0 | AO53: =IF((OR($F$13=0,$F$13="none")),IF(Y53=0,,IF(OR($E$13='Customer Info'!$F$21,$E$13=0),Y53,(Y53/$E$13)*'Customer Info'!$F$21)),) -> 0 | AP53: =IF((OR($F$16=0,$F$16="none")),IF(Z53=0,,IF(OR($E$16='Customer Info'!$H$18,$E$16=0),Z53,(Z53/$E$16)*'Customer Info'!$H$18)),) -> 0 | AQ53: =IF((OR($F$17=0,$F$17="none")),IF(AA53=0,,IF(OR($E$17='Customer Info'!$H$19,$E$17=0),AA53,(AA53/$E$17)*'Customer Info'!$H$19)),) -> 0 | AR53: =IF((OR($F$18=0,$F$18="none")),IF(AB53=0,,IF(OR($E$18='Customer Info'!$H$20,$E$18=0),AB53,(AB53/$E$18)*'Customer Info'!$H$20)),) -> 0 | AS53: =IF((OR($F$19=0,$F$19="none")),IF(AC53=0,,IF(OR($E$19='Customer Info'!$H$21,$E$19=0),AC53,(AC53/$E$19)*'Customer Info'!$H$21)),) -> 0 | AT53: =IF((OR($F$4=0,$F$4="none")),IF(AD53=0,,IF(OR($E$4='Customer Info'!$D$18,$E$4=0),AD53,(AD53/$E$4)*'Customer Info'!$D$18)),) -> 0 | AU53: =IF((OR($F$5=0,$F$5="none")),IF(AE53=0,,IF(OR($E$5='Customer Info'!$D$19,$E$5=0),AE53,(AE53/$E$5)*'Customer Info'!$D$19)),) -> 0 | AV53: =IF((OR($F$6=0,$F$6="none")),IF(AF53=0,,IF(OR($E$6='Customer Info'!$D$20,$E$6=0),AF53,(AF53/$E$6)*'Customer Info'!$D$20)),) -> 0 | AW53: =IF((OR($F$7=0,$F$7="none")),IF(AG53=0,,IF(OR($E$7='Customer Info'!$D$21,$E$7=0),AG53,(AG53/$E$7)*'Customer Info'!$D$21)),) -> 0 | AX53: 0 | AY53: 0 | AZ53: =IF(E53="plate waste",,IF('Customer Info'!$M$18=0,'Log Sheet'!AY53,'Customer Info'!$M$18*'Log Sheet'!AY53)) -> 0 | BA53: =IF(E53="plate waste",IF(OR(C53="patient",C53="patient beverages"),IF('Customer Info'!$M$27=0,AY53*'Customer Info'!$M$18,AY53*'Customer Info'!$M$27),IF(C53="cafeteria",IF('Customer Info'!$M$28=0,AY53*'Customer Info'!$M$18,AY53*'Customer Info'!$M$28),IF(C53="other1",IF('Customer Info'!$M$29=0,AY53*'Customer Info'!$M$18,AY53*'Customer Info'!$M$29),))),) -> 0 | BB53: 0 | BC53: =IF($F$4="lunch",IF(S53=0,,(S53/$E$5)*'Customer Info'!$D$18),) -> 0 | BD53: =IF($F$4="dinner",IF(T53=0,,(T53/$E$6)*'Customer Info'!$D$18),) -> 0 | BE53: =IF($F$4="other",IF(U53=0,,(U53/$E$7)*'Customer Info'!$D$18),) -> 0 | BF53: 0 | BG53: =IF($F$5="breakfast",IF(R53=0,,(R53/$E$4)*'Customer Info'!$D$19),) -> 0 | BH53: =IF($F$5="dinner",IF(T53=0,,(T53/$E$6)*'Customer Info'!$D$19),) -> 0 | BI53: =IF($F$5="other",IF(U53=0,,(U53/$E$7)*'Customer Info'!$D$19),) -> 0 | BJ53: 0 | BK53: =IF($F$6="breakfast",IF(R53=0,,(R53/$E$4)*'Customer Info'!$D$20),) -> 0 | BL53: =IF($F$6="lunch",IF(S53=0,,(S53/$E$5)*'Customer Info'!$D$20),) -> 0 | BM53: =IF($F$6="other",IF(U53=0,,(U53/$E$7)*'Customer Info'!$D$20),) -> 0 | BN53: 0 | BO53: =IF($F$7="breakfast",IF(R53=0,,(R53/$E$4)*'Customer Info'!$D$21),) -> 0 | BP53: =IF($F$7="lunch",IF(S53=0,,(S53/$E$5)*'Customer Info'!$D$21),) -> 0 | BQ53: =IF($F$7="dinner",IF(T53=0,,(T53/$E$6)*'Customer Info'!$D$21),) -> 0 | BR53: 0 | BS53: =IF($F$10="lunch",IF(W53=0,,(W53/$E$11)*'Customer Info'!$F$18),) -> 0 | BT53: =IF($F$10="dinner",IF(X53=0,,(X53/$E$12)*'Customer Info'!$F$18),) -> 0 | BU53: =IF($F$10="other",IF(Y53=0,,(Y53/$E$13)*'Customer Info'!$F$18),) -> 0 | BV53: 0 | BW53: =IF($F$11="breakfast",IF(V53=0,,(V53/$E$10)*'Customer Info'!$F$19),) -> 0 | BX53: =IF($F$11="dinner",IF(X53=0,,(X53/$E$12)*'Customer Info'!$F$19),) -> 0 | BY53: =IF($F$11="other",IF(Y53=0,,(Y53/$E$13)*'Customer Info'!$F$19),) -> 0 | BZ53: 0 | CA53: =IF($F$12="breakfast",IF(V53=0,,(V53/$E$10)*'Customer Info'!$F$20),) -> 0 | CB53: =IF($F$12="lunch",IF(W53=0,,(W53/$E$11)*'Customer Info'!$F$20),) -> 0 | CC53: =IF($F$12="other",IF(Y53=0,,(Y53/$E$13)*'Customer Info'!$F$20),) -> 0 | CD53: 0 | CE53: =IF($F$13="breakfast",IF(V53=0,,(V53/$E$10)*'Customer Info'!$F$21),) -> 0 | CF53: =IF($F$13="lunch",IF(W53=0,,(W53/$E$11)*'Customer Info'!$F$21),) -> 0 | CG53: =IF($F$13="dinner",IF(X53=0,,(X53/$E$12)*'Customer Info'!$F$21),) -> 0 | CH53: 0 | CI53: =IF($F$16="lunch",IF(AA53=0,,(AA53/$E$17)*'Customer Info'!$H$18),) -> 0 | CJ53: =IF($F$16="dinner",IF(AB53=0,,(AB53/$E$18)*'Customer Info'!$H$18),) -> 0 | CK53: =IF($F$16="other",IF(AC53=0,,(AC53/$E$19)*'Customer Info'!$H$18),) -> 0 | CL53: 0 | CM53: =IF($F$17="breakfast",IF(Z53=0,,(Z53/$E$16)*'Customer Info'!$H$19),) -> 0 | CN53: =IF($F$17="dinner",IF(AB53=0,,(AB53/$E$18)*'Customer Info'!$H$19),) -> 0 | CO53: =IF($F$17="other",IF(AC53=0,,(AC53/$E$19)*'Customer Info'!$H$19),) -> 0 | CP53: 0 | CQ53: =IF($F$18="breakfast",IF(Z53=0,,(Z53/$E$16)*'Customer Info'!$H$20),) -> 0 | CR53: =IF($F$18="lunch",IF(AA53=0,,(AA53/$E$17)*'Customer Info'!$H$20),) -> 0 | CS53: =IF($F$18="other",IF(AC53=0,,(AC53/$E$19)*'Customer Info'!$H$20),) -> 0 | CT53: 0 | CU53: =IF($F$19="breakfast",IF(Z53=0,,(Z53/$E$16)*'Customer Info'!$H$21),) -> 0 | CV53: =IF($F$19="lunch",IF(AA53=0,,(AA53/$E$17)*'Customer Info'!$H$21),) -> 0 | CW53: =IF($F$19="dinner",IF(AB53=0,,(AB53/$E$18)*'Customer Info'!$H$21),) -> 0 | CX53: 0 | CY53: 0 | CZ53: 0 | DA53: 0 | DB53: 0
K54: 0 | L54: 0 | M54: 0 | N54: 0 | O54: 0 | P54: 0 | Q54: 0 | R54: 0 | S54: 0 | T54: 0 | U54: 0 | V54: 0 | W54: 0 | X54: 0 | Y54: 0 | Z54: 0 | AA54: 0 | AB54: 0 | AC54: 0 | AD54: 0 | AE54: 0 | AF54: 0 | AG54: 0 | AH54: =IF((OR($F$4=0,$F$4="none")),IF(R54=0,,IF(OR($E$4='Customer Info'!$D$18,$E$4=0),R54,(R54/$E$4)*'Customer Info'!$D$18)),) -> 0 | AI54: =IF((OR($F$5=0,$F$5="none")),IF(S54=0,,IF(OR($E$5='Customer Info'!$D$18,$E$5=0),S54,(S54/$E$5)*'Customer Info'!$D$19)),) -> 0 | AJ54: =IF((OR($F$6=0,$F$6="none")),IF(T54=0,,IF(OR($E$6='Customer Info'!$D$18,$E$6=0),T54,(T54/$E$6)*'Customer Info'!$D$20)),) -> 0 | AK54: =IF((OR($F$7=0,$F$7="none")),IF(U54=0,,IF(OR($E$7='Customer Info'!$D$18,$E$7=0),U54,(U54/$E$7)*'Customer Info'!$D$21)),) -> 0 | AL54: =IF((OR($F$10=0,$F$10="none")),IF(V54=0,,IF(OR($E$10='Customer Info'!$F$18,$E$10=0),V54,(V54/$E$10)*'Customer Info'!$F$18)),) -> 0 | AM54: =IF((OR($F$11=0,$F$11="none")),IF(W54=0,,IF(OR($E$11='Customer Info'!$F$19,$E$11=0),W54,(W54/$E$11)*'Customer Info'!$F$19)),) -> 0 | AN54: =IF((OR($F$12=0,$F$12="none")),IF(X54=0,,IF(OR($E$12='Customer Info'!$F$20,$E$12=0),X54,(X54/$E$12)*'Customer Info'!$F$20)),) -> 0 | AO54: =IF((OR($F$13=0,$F$13="none")),IF(Y54=0,,IF(OR($E$13='Customer Info'!$F$21,$E$13=0),Y54,(Y54/$E$13)*'Customer Info'!$F$21)),) -> 0 | AP54: =IF((OR($F$16=0,$F$16="none")),IF(Z54=0,,IF(OR($E$16='Customer Info'!$H$18,$E$16=0),Z54,(Z54/$E$16)*'Customer Info'!$H$18)),) -> 0 | AQ54: =IF((OR($F$17=0,$F$17="none")),IF(AA54=0,,IF(OR($E$17='Customer Info'!$H$19,$E$17=0),AA54,(AA54/$E$17)*'Customer Info'!$H$19)),) -> 0 | AR54: =IF((OR($F$18=0,$F$18="none")),IF(AB54=0,,IF(OR($E$18='Customer Info'!$H$20,$E$18=0),AB54,(AB54/$E$18)*'Customer Info'!$H$20)),) -> 0 | AS54: =IF((OR($F$19=0,$F$19="none")),IF(AC54=0,,IF(OR($E$19='Customer Info'!$H$21,$E$19=0),AC54,(AC54/$E$19)*'Customer Info'!$H$21)),) -> 0 | AT54: =IF((OR($F$4=0,$F$4="none")),IF(AD54=0,,IF(OR($E$4='Customer Info'!$D$18,$E$4=0),AD54,(AD54/$E$4)*'Customer Info'!$D$18)),) -> 0 | AU54: =IF((OR($F$5=0,$F$5="none")),IF(AE54=0,,IF(OR($E$5='Customer Info'!$D$19,$E$5=0),AE54,(AE54/$E$5)*'Customer Info'!$D$19)),) -> 0 | AV54: =IF((OR($F$6=0,$F$6="none")),IF(AF54=0,,IF(OR($E$6='Customer Info'!$D$20,$E$6=0),AF54,(AF54/$E$6)*'Customer Info'!$D$20)),) -> 0 | AW54: =IF((OR($F$7=0,$F$7="none")),IF(AG54=0,,IF(OR($E$7='Customer Info'!$D$21,$E$7=0),AG54,(AG54/$E$7)*'Customer Info'!$D$21)),) -> 0 | AX54: 0 | AY54: 0 | AZ54: =IF(E54="plate waste",,IF('Customer Info'!$M$18=0,'Log Sheet'!AY54,'Customer Info'!$M$18*'Log Sheet'!AY54)) -> 0 | BA54: =IF(E54="plate waste",IF(OR(C54="patient",C54="patient beverages"),IF('Customer Info'!$M$27=0,AY54*'Customer Info'!$M$18,AY54*'Customer Info'!$M$27),IF(C54="cafeteria",IF('Customer Info'!$M$28=0,AY54*'Customer Info'!$M$18,AY54*'Customer Info'!$M$28),IF(C54="other1",IF('Customer Info'!$M$29=0,AY54*'Customer Info'!$M$18,AY54*'Customer Info'!$M$29),))),) -> 0 | BB54: 0 | BC54: =IF($F$4="lunch",IF(S54=0,,(S54/$E$5)*'Customer Info'!$D$18),) -> 0 | BD54: =IF($F$4="dinner",IF(T54=0,,(T54/$E$6)*'Customer Info'!$D$18),) -> 0 | BE54: =IF($F$4="other",IF(U54=0,,(U54/$E$7)*'Customer Info'!$D$18),) -> 0 | BF54: 0 | BG54: =IF($F$5="breakfast",IF(R54=0,,(R54/$E$4)*'Customer Info'!$D$19),) -> 0 | BH54: =IF($F$5="dinner",IF(T54=0,,(T54/$E$6)*'Customer Info'!$D$19),) -> 0 | BI54: =IF($F$5="other",IF(U54=0,,(U54/$E$7)*'Customer Info'!$D$19),) -> 0 | BJ54: 0 | BK54: =IF($F$6="breakfast",IF(R54=0,,(R54/$E$4)*'Customer Info'!$D$20),) -> 0 | BL54: =IF($F$6="lunch",IF(S54=0,,(S54/$E$5)*'Customer Info'!$D$20),) -> 0 | BM54: =IF($F$6="other",IF(U54=0,,(U54/$E$7)*'Customer Info'!$D$20),) -> 0 | BN54: 0 | BO54: =IF($F$7="breakfast",IF(R54=0,,(R54/$E$4)*'Customer Info'!$D$21),) -> 0 | BP54: =IF($F$7="lunch",IF(S54=0,,(S54/$E$5)*'Customer Info'!$D$21),) -> 0 | BQ54: =IF($F$7="dinner",IF(T54=0,,(T54/$E$6)*'Customer Info'!$D$21),) -> 0 | BR54: 0 | BS54: =IF($F$10="lunch",IF(W54=0,,(W54/$E$11)*'Customer Info'!$F$18),) -> 0 | BT54: =IF($F$10="dinner",IF(X54=0,,(X54/$E$12)*'Customer Info'!$F$18),) -> 0 | BU54: =IF($F$10="other",IF(Y54=0,,(Y54/$E$13)*'Customer Info'!$F$18),) -> 0 | BV54: 0 | BW54: =IF($F$11="breakfast",IF(V54=0,,(V54/$E$10)*'Customer Info'!$F$19),) -> 0 | BX54: =IF($F$11="dinner",IF(X54=0,,(X54/$E$12)*'Customer Info'!$F$19),) -> 0 | BY54: =IF($F$11="other",IF(Y54=0,,(Y54/$E$13)*'Customer Info'!$F$19),) -> 0 | BZ54: 0 | CA54: =IF($F$12="breakfast",IF(V54=0,,(V54/$E$10)*'Customer Info'!$F$20),) -> 0 | CB54: =IF($F$12="lunch",IF(W54=0,,(W54/$E$11)*'Customer Info'!$F$20),) -> 0 | CC54: =IF($F$12="other",IF(Y54=0,,(Y54/$E$13)*'Customer Info'!$F$20),) -> 0 | CD54: 0 | CE54: =IF($F$13="breakfast",IF(V54=0,,(V54/$E$10)*'Customer Info'!$F$21),) -> 0 | CF54: =IF($F$13="lunch",IF(W54=0,,(W54/$E$11)*'Customer Info'!$F$21),) -> 0 | CG54: =IF($F$13="dinner",IF(X54=0,,(X54/$E$12)*'Customer Info'!$F$21),) -> 0 | CH54: 0 | CI54: =IF($F$16="lunch",IF(AA54=0,,(AA54/$E$17)*'Customer Info'!$H$18),) -> 0 | CJ54: =IF($F$16="dinner",IF(AB54=0,,(AB54/$E$18)*'Customer Info'!$H$18),) -> 0 | CK54: =IF($F$16="other",IF(AC54=0,,(AC54/$E$19)*'Customer Info'!$H$18),) -> 0 | CL54: 0 | CM54: =IF($F$17="breakfast",IF(Z54=0,,(Z54/$E$16)*'Customer Info'!$H$19),) -> 0 | CN54: =IF($F$17="dinner",IF(AB54=0,,(AB54/$E$18)*'Customer Info'!$H$19),) -> 0 | CO54: =IF($F$17="other",IF(AC54=0,,(AC54/$E$19)*'Customer Info'!$H$19),) -> 0 | CP54: 0 | CQ54: =IF($F$18="breakfast",IF(Z54=0,,(Z54/$E$16)*'Customer Info'!$H$20),) -> 0 | CR54: =IF($F$18="lunch",IF(AA54=0,,(AA54/$E$17)*'Customer Info'!$H$20),) -> 0 | CS54: =IF($F$18="other",IF(AC54=0,,(AC54/$E$19)*'Customer Info'!$H$20),) -> 0 | CT54: 0 | CU54: =IF($F$19="breakfast",IF(Z54=0,,(Z54/$E$16)*'Customer Info'!$H$21),) -> 0 | CV54: =IF($F$19="lunch",IF(AA54=0,,(AA54/$E$17)*'Customer Info'!$H$21),) -> 0 | CW54: =IF($F$19="dinner",IF(AB54=0,,(AB54/$E$18)*'Customer Info'!$H$21),) -> 0 | CX54: 0 | CY54: 0 | CZ54: 0 | DA54: 0 | DB54: 0
K55: 0 | L55: 0 | M55: 0 | N55: 0 | O55: 0 | P55: 0 | Q55: 0 | R55: 0 | S55: 0 | T55: 0 | U55: 0 | V55: 0 | W55: 0 | X55: 0 | Y55: 0 | Z55: 0 | AA55: 0 | AB55: 0 | AC55: 0 | AD55: 0 | AE55: 0 | AF55: 0 | AG55: 0 | AH55: =IF((OR($F$4=0,$F$4="none")),IF(R55=0,,IF(OR($E$4='Customer Info'!$D$18,$E$4=0),R55,(R55/$E$4)*'Customer Info'!$D$18)),) -> 0 | AI55: =IF((OR($F$5=0,$F$5="none")),IF(S55=0,,IF(OR($E$5='Customer Info'!$D$18,$E$5=0),S55,(S55/$E$5)*'Customer Info'!$D$19)),) -> 0 | AJ55: =IF((OR($F$6=0,$F$6="none")),IF(T55=0,,IF(OR($E$6='Customer Info'!$D$18,$E$6=0),T55,(T55/$E$6)*'Customer Info'!$D$20)),) -> 0 | AK55: =IF((OR($F$7=0,$F$7="none")),IF(U55=0,,IF(OR($E$7='Customer Info'!$D$18,$E$7=0),U55,(U55/$E$7)*'Customer Info'!$D$21)),) -> 0 | AL55: =IF((OR($F$10=0,$F$10="none")),IF(V55=0,,IF(OR($E$10='Customer Info'!$F$18,$E$10=0),V55,(V55/$E$10)*'Customer Info'!$F$18)),) -> 0 | AM55: =IF((OR($F$11=0,$F$11="none")),IF(W55=0,,IF(OR($E$11='Customer Info'!$F$19,$E$11=0),W55,(W55/$E$11)*'Customer Info'!$F$19)),) -> 0 | AN55: =IF((OR($F$12=0,$F$12="none")),IF(X55=0,,IF(OR($E$12='Customer Info'!$F$20,$E$12=0),X55,(X55/$E$12)*'Customer Info'!$F$20)),) -> 0 | AO55: =IF((OR($F$13=0,$F$13="none")),IF(Y55=0,,IF(OR($E$13='Customer Info'!$F$21,$E$13=0),Y55,(Y55/$E$13)*'Customer Info'!$F$21)),) -> 0 | AP55: =IF((OR($F$16=0,$F$16="none")),IF(Z55=0,,IF(OR($E$16='Customer Info'!$H$18,$E$16=0),Z55,(Z55/$E$16)*'Customer Info'!$H$18)),) -> 0 | AQ55: =IF((OR($F$17=0,$F$17="none")),IF(AA55=0,,IF(OR($E$17='Customer Info'!$H$19,$E$17=0),AA55,(AA55/$E$17)*'Customer Info'!$H$19)),) -> 0 | AR55: =IF((OR($F$18=0,$F$18="none")),IF(AB55=0,,IF(OR($E$18='Customer Info'!$H$20,$E$18=0),AB55,(AB55/$E$18)*'Customer Info'!$H$20)),) -> 0 | AS55: =IF((OR($F$19=0,$F$19="none")),IF(AC55=0,,IF(OR($E$19='Customer Info'!$H$21,$E$19=0),AC55,(AC55/$E$19)*'Customer Info'!$H$21)),) -> 0 | AT55: =IF((OR($F$4=0,$F$4="none")),IF(AD55=0,,IF(OR($E$4='Customer Info'!$D$18,$E$4=0),AD55,(AD55/$E$4)*'Customer Info'!$D$18)),) -> 0 | AU55: =IF((OR($F$5=0,$F$5="none")),IF(AE55=0,,IF(OR($E$5='Customer Info'!$D$19,$E$5=0),AE55,(AE55/$E$5)*'Customer Info'!$D$19)),) -> 0 | AV55: =IF((OR($F$6=0,$F$6="none")),IF(AF55=0,,IF(OR($E$6='Customer Info'!$D$20,$E$6=0),AF55,(AF55/$E$6)*'Customer Info'!$D$20)),) -> 0 | AW55: =IF((OR($F$7=0,$F$7="none")),IF(AG55=0,,IF(OR($E$7='Customer Info'!$D$21,$E$7=0),AG55,(AG55/$E$7)*'Customer Info'!$D$21)),) -> 0 | AX55: 0 | AY55: 0 | AZ55: =IF(E55="plate waste",,IF('Customer Info'!$M$18=0,'Log Sheet'!AY55,'Customer Info'!$M$18*'Log Sheet'!AY55)) -> 0 | BA55: =IF(E55="plate waste",IF(OR(C55="patient",C55="patient beverages"),IF('Customer Info'!$M$27=0,AY55*'Customer Info'!$M$18,AY55*'Customer Info'!$M$27),IF(C55="cafeteria",IF('Customer Info'!$M$28=0,AY55*'Customer Info'!$M$18,AY55*'Customer Info'!$M$28),IF(C55="other1",IF('Customer Info'!$M$29=0,AY55*'Customer Info'!$M$18,AY55*'Customer Info'!$M$29),))),) -> 0 | BB55: 0 | BC55: =IF($F$4="lunch",IF(S55=0,,(S55/$E$5)*'Customer Info'!$D$18),) -> 0 | BD55: =IF($F$4="dinner",IF(T55=0,,(T55/$E$6)*'Customer Info'!$D$18),) -> 0 | BE55: =IF($F$4="other",IF(U55=0,,(U55/$E$7)*'Customer Info'!$D$18),) -> 0 | BF55: 0 | BG55: =IF($F$5="breakfast",IF(R55=0,,(R55/$E$4)*'Customer Info'!$D$19),) -> 0 | BH55: =IF($F$5="dinner",IF(T55=0,,(T55/$E$6)*'Customer Info'!$D$19),) -> 0 | BI55: =IF($F$5="other",IF(U55=0,,(U55/$E$7)*'Customer Info'!$D$19),) -> 0 | BJ55: 0 | BK55: =IF($F$6="breakfast",IF(R55=0,,(R55/$E$4)*'Customer Info'!$D$20),) -> 0 | BL55: =IF($F$6="lunch",IF(S55=0,,(S55/$E$5)*'Customer Info'!$D$20),) -> 0 | BM55: =IF($F$6="other",IF(U55=0,,(U55/$E$7)*'Customer Info'!$D$20),) -> 0 | BN55: 0 | BO55: =IF($F$7="breakfast",IF(R55=0,,(R55/$E$4)*'Customer Info'!$D$21),) -> 0 | BP55: =IF($F$7="lunch",IF(S55=0,,(S55/$E$5)*'Customer Info'!$D$21),) -> 0 | BQ55: =IF($F$7="dinner",IF(T55=0,,(T55/$E$6)*'Customer Info'!$D$21),) -> 0 | BR55: 0 | BS55: =IF($F$10="lunch",IF(W55=0,,(W55/$E$11)*'Customer Info'!$F$18),) -> 0 | BT55: =IF($F$10="dinner",IF(X55=0,,(X55/$E$12)*'Customer Info'!$F$18),) -> 0 | BU55: =IF($F$10="other",IF(Y55=0,,(Y55/$E$13)*'Customer Info'!$F$18),) -> 0 | BV55: 0 | BW55: =IF($F$11="breakfast",IF(V55=0,,(V55/$E$10)*'Customer Info'!$F$19),) -> 0 | BX55: =IF($F$11="dinner",IF(X55=0,,(X55/$E$12)*'Customer Info'!$F$19),) -> 0 | BY55: =IF($F$11="other",IF(Y55=0,,(Y55/$E$13)*'Customer Info'!$F$19),) -> 0 | BZ55: 0 | CA55: =IF($F$12="breakfast",IF(V55=0,,(V55/$E$10)*'Customer Info'!$F$20),) -> 0 | CB55: =IF($F$12="lunch",IF(W55=0,,(W55/$E$11)*'Customer Info'!$F$20),) -> 0 | CC55: =IF($F$12="other",IF(Y55=0,,(Y55/$E$13)*'Customer Info'!$F$20),) -> 0 | CD55: 0 | CE55: =IF($F$13="breakfast",IF(V55=0,,(V55/$E$10)*'Customer Info'!$F$21),) -> 0 | CF55: =IF($F$13="lunch",IF(W55=0,,(W55/$E$11)*'Customer Info'!$F$21),) -> 0 | CG55: =IF($F$13="dinner",IF(X55=0,,(X55/$E$12)*'Customer Info'!$F$21),) -> 0 | CH55: 0 | CI55: =IF($F$16="lunch",IF(AA55=0,,(AA55/$E$17)*'Customer Info'!$H$18),) -> 0 | CJ55: =IF($F$16="dinner",IF(AB55=0,,(AB55/$E$18)*'Customer Info'!$H$18),) -> 0 | CK55: =IF($F$16="other",IF(AC55=0,,(AC55/$E$19)*'Customer Info'!$H$18),) -> 0 | CL55: 0 | CM55: =IF($F$17="breakfast",IF(Z55=0,,(Z55/$E$16)*'Customer Info'!$H$19),) -> 0 | CN55: =IF($F$17="dinner",IF(AB55=0,,(AB55/$E$18)*'Customer Info'!$H$19),) -> 0 | CO55: =IF($F$17="other",IF(AC55=0,,(AC55/$E$19)*'Customer Info'!$H$19),) -> 0 | CP55: 0 | CQ55: =IF($F$18="breakfast",IF(Z55=0,,(Z55/$E$16)*'Customer Info'!$H$20),) -> 0 | CR55: =IF($F$18="lunch",IF(AA55=0,,(AA55/$E$17)*'Customer Info'!$H$20),) -> 0 | CS55: =IF($F$18="other",IF(AC55=0,,(AC55/$E$19)*'Customer Info'!$H$20),) -> 0 | CT55: 0 | CU55: =IF($F$19="breakfast",IF(Z55=0,,(Z55/$E$16)*'Customer Info'!$H$21),) -> 0 | CV55: =IF($F$19="lunch",IF(AA55=0,,(AA55/$E$17)*'Customer Info'!$H$21),) -> 0 | CW55: =IF($F$19="dinner",IF(AB55=0,,(AB55/$E$18)*'Customer Info'!$H$21),) -> 0 | CX55: 0 | CY55: 0 | CZ55: 0 | DA55: 0 | DB55: 0
K56: 0 | L56: 0 | M56: 0 | N56: 0 | O56: 0 | P56: 0 | Q56: 0 | R56: 0 | S56: 0 | T56: 0 | U56: 0 | V56: 0 | W56: 0 | X56: 0 | Y56: 0 | Z56: 0 | AA56: 0 | AB56: 0 | AC56: 0 | AD56: 0 | AE56: 0 | AF56: 0 | AG56: 0 | AH56: =IF((OR($F$4=0,$F$4="none")),IF(R56=0,,IF(OR($E$4='Customer Info'!$D$18,$E$4=0),R56,(R56/$E$4)*'Customer Info'!$D$18)),) -> 0 | AI56: =IF((OR($F$5=0,$F$5="none")),IF(S56=0,,IF(OR($E$5='Customer Info'!$D$18,$E$5=0),S56,(S56/$E$5)*'Customer Info'!$D$19)),) -> 0 | AJ56: =IF((OR($F$6=0,$F$6="none")),IF(T56=0,,IF(OR($E$6='Customer Info'!$D$18,$E$6=0),T56,(T56/$E$6)*'Customer Info'!$D$20)),) -> 0 | AK56: =IF((OR($F$7=0,$F$7="none")),IF(U56=0,,IF(OR($E$7='Customer Info'!$D$18,$E$7=0),U56,(U56/$E$7)*'Customer Info'!$D$21)),) -> 0 | AL56: =IF((OR($F$10=0,$F$10="none")),IF(V56=0,,IF(OR($E$10='Customer Info'!$F$18,$E$10=0),V56,(V56/$E$10)*'Customer Info'!$F$18)),) -> 0 | AM56: =IF((OR($F$11=0,$F$11="none")),IF(W56=0,,IF(OR($E$11='Customer Info'!$F$19,$E$11=0),W56,(W56/$E$11)*'Customer Info'!$F$19)),) -> 0 | AN56: =IF((OR($F$12=0,$F$12="none")),IF(X56=0,,IF(OR($E$12='Customer Info'!$F$20,$E$12=0),X56,(X56/$E$12)*'Customer Info'!$F$20)),) -> 0 | AO56: =IF((OR($F$13=0,$F$13="none")),IF(Y56=0,,IF(OR($E$13='Customer Info'!$F$21,$E$13=0),Y56,(Y56/$E$13)*'Customer Info'!$F$21)),) -> 0 | AP56: =IF((OR($F$16=0,$F$16="none")),IF(Z56=0,,IF(OR($E$16='Customer Info'!$H$18,$E$16=0),Z56,(Z56/$E$16)*'Customer Info'!$H$18)),) -> 0 | AQ56: =IF((OR($F$17=0,$F$17="none")),IF(AA56=0,,IF(OR($E$17='Customer Info'!$H$19,$E$17=0),AA56,(AA56/$E$17)*'Customer Info'!$H$19)),) -> 0 | AR56: =IF((OR($F$18=0,$F$18="none")),IF(AB56=0,,IF(OR($E$18='Customer Info'!$H$20,$E$18=0),AB56,(AB56/$E$18)*'Customer Info'!$H$20)),) -> 0 | AS56: =IF((OR($F$19=0,$F$19="none")),IF(AC56=0,,IF(OR($E$19='Customer Info'!$H$21,$E$19=0),AC56,(AC56/$E$19)*'Customer Info'!$H$21)),) -> 0 | AT56: =IF((OR($F$4=0,$F$4="none")),IF(AD56=0,,IF(OR($E$4='Customer Info'!$D$18,$E$4=0),AD56,(AD56/$E$4)*'Customer Info'!$D$18)),) -> 0 | AU56: =IF((OR($F$5=0,$F$5="none")),IF(AE56=0,,IF(OR($E$5='Customer Info'!$D$19,$E$5=0),AE56,(AE56/$E$5)*'Customer Info'!$D$19)),) -> 0 | AV56: =IF((OR($F$6=0,$F$6="none")),IF(AF56=0,,IF(OR($E$6='Customer Info'!$D$20,$E$6=0),AF56,(AF56/$E$6)*'Customer Info'!$D$20)),) -> 0 | AW56: =IF((OR($F$7=0,$F$7="none")),IF(AG56=0,,IF(OR($E$7='Customer Info'!$D$21,$E$7=0),AG56,(AG56/$E$7)*'Customer Info'!$D$21)),) -> 0 | AX56: 0 | AY56: 0 | AZ56: =IF(E56="plate waste",,IF('Customer Info'!$M$18=0,'Log Sheet'!AY56,'Customer Info'!$M$18*'Log Sheet'!AY56)) -> 0 | BA56: =IF(E56="plate waste",IF(OR(C56="patient",C56="patient beverages"),IF('Customer Info'!$M$27=0,AY56*'Customer Info'!$M$18,AY56*'Customer Info'!$M$27),IF(C56="cafeteria",IF('Customer Info'!$M$28=0,AY56*'Customer Info'!$M$18,AY56*'Customer Info'!$M$28),IF(C56="other1",IF('Customer Info'!$M$29=0,AY56*'Customer Info'!$M$18,AY56*'Customer Info'!$M$29),))),) -> 0 | BB56: 0 | BC56: =IF($F$4="lunch",IF(S56=0,,(S56/$E$5)*'Customer Info'!$D$18),) -> 0 | BD56: =IF($F$4="dinner",IF(T56=0,,(T56/$E$6)*'Customer Info'!$D$18),) -> 0 | BE56: =IF($F$4="other",IF(U56=0,,(U56/$E$7)*'Customer Info'!$D$18),) -> 0 | BF56: 0 | BG56: =IF($F$5="breakfast",IF(R56=0,,(R56/$E$4)*'Customer Info'!$D$19),) -> 0 | BH56: =IF($F$5="dinner",IF(T56=0,,(T56/$E$6)*'Customer Info'!$D$19),) -> 0 | BI56: =IF($F$5="other",IF(U56=0,,(U56/$E$7)*'Customer Info'!$D$19),) -> 0 | BJ56: 0 | BK56: =IF($F$6="breakfast",IF(R56=0,,(R56/$E$4)*'Customer Info'!$D$20),) -> 0 | BL56: =IF($F$6="lunch",IF(S56=0,,(S56/$E$5)*'Customer Info'!$D$20),) -> 0 | BM56: =IF($F$6="other",IF(U56=0,,(U56/$E$7)*'Customer Info'!$D$20),) -> 0 | BN56: 0 | BO56: =IF($F$7="breakfast",IF(R56=0,,(R56/$E$4)*'Customer Info'!$D$21),) -> 0 | BP56: =IF($F$7="lunch",IF(S56=0,,(S56/$E$5)*'Customer Info'!$D$21),) -> 0 | BQ56: =IF($F$7="dinner",IF(T56=0,,(T56/$E$6)*'Customer Info'!$D$21),) -> 0 | BR56: 0 | BS56: =IF($F$10="lunch",IF(W56=0,,(W56/$E$11)*'Customer Info'!$F$18),) -> 0 | BT56: =IF($F$10="dinner",IF(X56=0,,(X56/$E$12)*'Customer Info'!$F$18),) -> 0 | BU56: =IF($F$10="other",IF(Y56=0,,(Y56/$E$13)*'Customer Info'!$F$18),) -> 0 | BV56: 0 | BW56: =IF($F$11="breakfast",IF(V56=0,,(V56/$E$10)*'Customer Info'!$F$19),) -> 0 | BX56: =IF($F$11="dinner",IF(X56=0,,(X56/$E$12)*'Customer Info'!$F$19),) -> 0 | BY56: =IF($F$11="other",IF(Y56=0,,(Y56/$E$13)*'Customer Info'!$F$19),) -> 0 | BZ56: 0 | CA56: =IF($F$12="breakfast",IF(V56=0,,(V56/$E$10)*'Customer Info'!$F$20),) -> 0 | CB56: =IF($F$12="lunch",IF(W56=0,,(W56/$E$11)*'Customer Info'!$F$20),) -> 0 | CC56: =IF($F$12="other",IF(Y56=0,,(Y56/$E$13)*'Customer Info'!$F$20),) -> 0 | CD56: 0 | CE56: =IF($F$13="breakfast",IF(V56=0,,(V56/$E$10)*'Customer Info'!$F$21),) -> 0 | CF56: =IF($F$13="lunch",IF(W56=0,,(W56/$E$11)*'Customer Info'!$F$21),) -> 0 | CG56: =IF($F$13="dinner",IF(X56=0,,(X56/$E$12)*'Customer Info'!$F$21),) -> 0 | CH56: 0 | CI56: =IF($F$16="lunch",IF(AA56=0,,(AA56/$E$17)*'Customer Info'!$H$18),) -> 0 | CJ56: =IF($F$16="dinner",IF(AB56=0,,(AB56/$E$18)*'Customer Info'!$H$18),) -> 0 | CK56: =IF($F$16="other",IF(AC56=0,,(AC56/$E$19)*'Customer Info'!$H$18),) -> 0 | CL56: 0 | CM56: =IF($F$17="breakfast",IF(Z56=0,,(Z56/$E$16)*'Customer Info'!$H$19),) -> 0 | CN56: =IF($F$17="dinner",IF(AB56=0,,(AB56/$E$18)*'Customer Info'!$H$19),) -> 0 | CO56: =IF($F$17="other",IF(AC56=0,,(AC56/$E$19)*'Customer Info'!$H$19),) -> 0 | CP56: 0 | CQ56: =IF($F$18="breakfast",IF(Z56=0,,(Z56/$E$16)*'Customer Info'!$H$20),) -> 0 | CR56: =IF($F$18="lunch",IF(AA56=0,,(AA56/$E$17)*'Customer Info'!$H$20),) -> 0 | CS56: =IF($F$18="other",IF(AC56=0,,(AC56/$E$19)*'Customer Info'!$H$20),) -> 0 | CT56: 0 | CU56: =IF($F$19="breakfast",IF(Z56=0,,(Z56/$E$16)*'Customer Info'!$H$21),) -> 0 | CV56: =IF($F$19="lunch",IF(AA56=0,,(AA56/$E$17)*'Customer Info'!$H$21),) -> 0 | CW56: =IF($F$19="dinner",IF(AB56=0,,(AB56/$E$18)*'Customer Info'!$H$21),) -> 0 | CX56: 0 | CY56: 0 | CZ56: 0 | DA56: 0 | DB56: 0
K57: 0 | L57: 0 | M57: 0 | N57: 0 | O57: 0 | P57: 0 | Q57: 0 | R57: 0 | S57: 0 | T57: 0 | U57: 0 | V57: 0 | W57: 0 | X57: 0 | Y57: 0 | Z57: 0 | AA57: 0 | AB57: 0 | AC57: 0 | AD57: 0 | AE57: 0 | AF57: 0 | AG57: 0 | AH57: =IF((OR($F$4=0,$F$4="none")),IF(R57=0,,IF(OR($E$4='Customer Info'!$D$18,$E$4=0),R57,(R57/$E$4)*'Customer Info'!$D$18)),) -> 0 | AI57: =IF((OR($F$5=0,$F$5="none")),IF(S57=0,,IF(OR($E$5='Customer Info'!$D$18,$E$5=0),S57,(S57/$E$5)*'Customer Info'!$D$19)),) -> 0 | AJ57: =IF((OR($F$6=0,$F$6="none")),IF(T57=0,,IF(OR($E$6='Customer Info'!$D$18,$E$6=0),T57,(T57/$E$6)*'Customer Info'!$D$20)),) -> 0 | AK57: =IF((OR($F$7=0,$F$7="none")),IF(U57=0,,IF(OR($E$7='Customer Info'!$D$18,$E$7=0),U57,(U57/$E$7)*'Customer Info'!$D$21)),) -> 0 | AL57: =IF((OR($F$10=0,$F$10="none")),IF(V57=0,,IF(OR($E$10='Customer Info'!$F$18,$E$10=0),V57,(V57/$E$10)*'Customer Info'!$F$18)),) -> 0 | AM57: =IF((OR($F$11=0,$F$11="none")),IF(W57=0,,IF(OR($E$11='Customer Info'!$F$19,$E$11=0),W57,(W57/$E$11)*'Customer Info'!$F$19)),) -> 0 | AN57: =IF((OR($F$12=0,$F$12="none")),IF(X57=0,,IF(OR($E$12='Customer Info'!$F$20,$E$12=0),X57,(X57/$E$12)*'Customer Info'!$F$20)),) -> 0 | AO57: =IF((OR($F$13=0,$F$13="none")),IF(Y57=0,,IF(OR($E$13='Customer Info'!$F$21,$E$13=0),Y57,(Y57/$E$13)*'Customer Info'!$F$21)),) -> 0 | AP57: =IF((OR($F$16=0,$F$16="none")),IF(Z57=0,,IF(OR($E$16='Customer Info'!$H$18,$E$16=0),Z57,(Z57/$E$16)*'Customer Info'!$H$18)),) -> 0 | AQ57: =IF((OR($F$17=0,$F$17="none")),IF(AA57=0,,IF(OR($E$17='Customer Info'!$H$19,$E$17=0),AA57,(AA57/$E$17)*'Customer Info'!$H$19)),) -> 0 | AR57: =IF((OR($F$18=0,$F$18="none")),IF(AB57=0,,IF(OR($E$18='Customer Info'!$H$20,$E$18=0),AB57,(AB57/$E$18)*'Customer Info'!$H$20)),) -> 0 | AS57: =IF((OR($F$19=0,$F$19="none")),IF(AC57=0,,IF(OR($E$19='Customer Info'!$H$21,$E$19=0),AC57,(AC57/$E$19)*'Customer Info'!$H$21)),) -> 0 | AT57: =IF((OR($F$4=0,$F$4="none")),IF(AD57=0,,IF(OR($E$4='Customer Info'!$D$18,$E$4=0),AD57,(AD57/$E$4)*'Customer Info'!$D$18)),) -> 0 | AU57: =IF((OR($F$5=0,$F$5="none")),IF(AE57=0,,IF(OR($E$5='Customer Info'!$D$19,$E$5=0),AE57,(AE57/$E$5)*'Customer Info'!$D$19)),) -> 0 | AV57: =IF((OR($F$6=0,$F$6="none")),IF(AF57=0,,IF(OR($E$6='Customer Info'!$D$20,$E$6=0),AF57,(AF57/$E$6)*'Customer Info'!$D$20)),) -> 0 | AW57: =IF((OR($F$7=0,$F$7="none")),IF(AG57=0,,IF(OR($E$7='Customer Info'!$D$21,$E$7=0),AG57,(AG57/$E$7)*'Customer Info'!$D$21)),) -> 0 | AX57: 0 | AY57: 0 | AZ57: =IF(E57="plate waste",,IF('Customer Info'!$M$18=0,'Log Sheet'!AY57,'Customer Info'!$M$18*'Log Sheet'!AY57)) -> 0 | BA57: =IF(E57="plate waste",IF(OR(C57="patient",C57="patient beverages"),IF('Customer Info'!$M$27=0,AY57*'Customer Info'!$M$18,AY57*'Customer Info'!$M$27),IF(C57="cafeteria",IF('Customer Info'!$M$28=0,AY57*'Customer Info'!$M$18,AY57*'Customer Info'!$M$28),IF(C57="other1",IF('Customer Info'!$M$29=0,AY57*'Customer Info'!$M$18,AY57*'Customer Info'!$M$29),))),) -> 0 | BB57: 0 | BC57: =IF($F$4="lunch",IF(S57=0,,(S57/$E$5)*'Customer Info'!$D$18),) -> 0 | BD57: =IF($F$4="dinner",IF(T57=0,,(T57/$E$6)*'Customer Info'!$D$18),) -> 0 | BE57: =IF($F$4="other",IF(U57=0,,(U57/$E$7)*'Customer Info'!$D$18),) -> 0 | BF57: 0 | BG57: =IF($F$5="breakfast",IF(R57=0,,(R57/$E$4)*'Customer Info'!$D$19),) -> 0 | BH57: =IF($F$5="dinner",IF(T57=0,,(T57/$E$6)*'Customer Info'!$D$19),) -> 0 | BI57: =IF($F$5="other",IF(U57=0,,(U57/$E$7)*'Customer Info'!$D$19),) -> 0 | BJ57: 0 | BK57: =IF($F$6="breakfast",IF(R57=0,,(R57/$E$4)*'Customer Info'!$D$20),) -> 0 | BL57: =IF($F$6="lunch",IF(S57=0,,(S57/$E$5)*'Customer Info'!$D$20),) -> 0 | BM57: =IF($F$6="other",IF(U57=0,,(U57/$E$7)*'Customer Info'!$D$20),) -> 0 | BN57: 0 | BO57: =IF($F$7="breakfast",IF(R57=0,,(R57/$E$4)*'Customer Info'!$D$21),) -> 0 | BP57: =IF($F$7="lunch",IF(S57=0,,(S57/$E$5)*'Customer Info'!$D$21),) -> 0 | BQ57: =IF($F$7="dinner",IF(T57=0,,(T57/$E$6)*'Customer Info'!$D$21),) -> 0 | BR57: 0 | BS57: =IF($F$10="lunch",IF(W57=0,,(W57/$E$11)*'Customer Info'!$F$18),) -> 0 | BT57: =IF($F$10="dinner",IF(X57=0,,(X57/$E$12)*'Customer Info'!$F$18),) -> 0 | BU57: =IF($F$10="other",IF(Y57=0,,(Y57/$E$13)*'Customer Info'!$F$18),) -> 0 | BV57: 0 | BW57: =IF($F$11="breakfast",IF(V57=0,,(V57/$E$10)*'Customer Info'!$F$19),) -> 0 | BX57: =IF($F$11="dinner",IF(X57=0,,(X57/$E$12)*'Customer Info'!$F$19),) -> 0 | BY57: =IF($F$11="other",IF(Y57=0,,(Y57/$E$13)*'Customer Info'!$F$19),) -> 0 | BZ57: 0 | CA57: =IF($F$12="breakfast",IF(V57=0,,(V57/$E$10)*'Customer Info'!$F$20),) -> 0 | CB57: =IF($F$12="lunch",IF(W57=0,,(W57/$E$11)*'Customer Info'!$F$20),) -> 0 | CC57: =IF($F$12="other",IF(Y57=0,,(Y57/$E$13)*'Customer Info'!$F$20),) -> 0 | CD57: 0 | CE57: =IF($F$13="breakfast",IF(V57=0,,(V57/$E$10)*'Customer Info'!$F$21),) -> 0 | CF57: =IF($F$13="lunch",IF(W57=0,,(W57/$E$11)*'Customer Info'!$F$21),) -> 0 | CG57: =IF($F$13="dinner",IF(X57=0,,(X57/$E$12)*'Customer Info'!$F$21),) -> 0 | CH57: 0 | CI57: =IF($F$16="lunch",IF(AA57=0,,(AA57/$E$17)*'Customer Info'!$H$18),) -> 0 | CJ57: =IF($F$16="dinner",IF(AB57=0,,(AB57/$E$18)*'Customer Info'!$H$18),) -> 0 | CK57: =IF($F$16="other",IF(AC57=0,,(AC57/$E$19)*'Customer Info'!$H$18),) -> 0 | CL57: 0 | CM57: =IF($F$17="breakfast",IF(Z57=0,,(Z57/$E$16)*'Customer Info'!$H$19),) -> 0 | CN57: =IF($F$17="dinner",IF(AB57=0,,(AB57/$E$18)*'Customer Info'!$H$19),) -> 0 | CO57: =IF($F$17="other",IF(AC57=0,,(AC57/$E$19)*'Customer Info'!$H$19),) -> 0 | CP57: 0 | CQ57: =IF($F$18="breakfast",IF(Z57=0,,(Z57/$E$16)*'Customer Info'!$H$20),) -> 0 | CR57: =IF($F$18="lunch",IF(AA57=0,,(AA57/$E$17)*'Customer Info'!$H$20),) -> 0 | CS57: =IF($F$18="other",IF(AC57=0,,(AC57/$E$19)*'Customer Info'!$H$20),) -> 0 | CT57: 0 | CU57: =IF($F$19="breakfast",IF(Z57=0,,(Z57/$E$16)*'Customer Info'!$H$21),) -> 0 | CV57: =IF($F$19="lunch",IF(AA57=0,,(AA57/$E$17)*'Customer Info'!$H$21),) -> 0 | CW57: =IF($F$19="dinner",IF(AB57=0,,(AB57/$E$18)*'Customer Info'!$H$21),) -> 0 | CX57: 0 | CY57: 0 | CZ57: 0 | DA57: 0 | DB57: 0
K58: 0 | L58: 0 | M58: 0 | N58: 0 | O58: 0 | P58: 0 | Q58: 0 | R58: 0 | S58: 0 | T58: 0 | U58: 0 | V58: 0 | W58: 0 | X58: 0 | Y58: 0 | Z58: 0 | AA58: 0 | AB58: 0 | AC58: 0 | AD58: 0 | AE58: 0 | AF58: 0 | AG58: 0 | AH58: =IF((OR($F$4=0,$F$4="none")),IF(R58=0,,IF(OR($E$4='Customer Info'!$D$18,$E$4=0),R58,(R58/$E$4)*'Customer Info'!$D$18)),) -> 0 | AI58: =IF((OR($F$5=0,$F$5="none")),IF(S58=0,,IF(OR($E$5='Customer Info'!$D$18,$E$5=0),S58,(S58/$E$5)*'Customer Info'!$D$19)),) -> 0 | AJ58: =IF((OR($F$6=0,$F$6="none")),IF(T58=0,,IF(OR($E$6='Customer Info'!$D$18,$E$6=0),T58,(T58/$E$6)*'Customer Info'!$D$20)),) -> 0 | AK58: =IF((OR($F$7=0,$F$7="none")),IF(U58=0,,IF(OR($E$7='Customer Info'!$D$18,$E$7=0),U58,(U58/$E$7)*'Customer Info'!$D$21)),) -> 0 | AL58: =IF((OR($F$10=0,$F$10="none")),IF(V58=0,,IF(OR($E$10='Customer Info'!$F$18,$E$10=0),V58,(V58/$E$10)*'Customer Info'!$F$18)),) -> 0 | AM58: =IF((OR($F$11=0,$F$11="none")),IF(W58=0,,IF(OR($E$11='Customer Info'!$F$19,$E$11=0),W58,(W58/$E$11)*'Customer Info'!$F$19)),) -> 0 | AN58: =IF((OR($F$12=0,$F$12="none")),IF(X58=0,,IF(OR($E$12='Customer Info'!$F$20,$E$12=0),X58,(X58/$E$12)*'Customer Info'!$F$20)),) -> 0 | AO58: =IF((OR($F$13=0,$F$13="none")),IF(Y58=0,,IF(OR($E$13='Customer Info'!$F$21,$E$13=0),Y58,(Y58/$E$13)*'Customer Info'!$F$21)),) -> 0 | AP58: =IF((OR($F$16=0,$F$16="none")),IF(Z58=0,,IF(OR($E$16='Customer Info'!$H$18,$E$16=0),Z58,(Z58/$E$16)*'Customer Info'!$H$18)),) -> 0 | AQ58: =IF((OR($F$17=0,$F$17="none")),IF(AA58=0,,IF(OR($E$17='Customer Info'!$H$19,$E$17=0),AA58,(AA58/$E$17)*'Customer Info'!$H$19)),) -> 0 | AR58: =IF((OR($F$18=0,$F$18="none")),IF(AB58=0,,IF(OR($E$18='Customer Info'!$H$20,$E$18=0),AB58,(AB58/$E$18)*'Customer Info'!$H$20)),) -> 0 | AS58: =IF((OR($F$19=0,$F$19="none")),IF(AC58=0,,IF(OR($E$19='Customer Info'!$H$21,$E$19=0),AC58,(AC58/$E$19)*'Customer Info'!$H$21)),) -> 0 | AT58: =IF((OR($F$4=0,$F$4="none")),IF(AD58=0,,IF(OR($E$4='Customer Info'!$D$18,$E$4=0),AD58,(AD58/$E$4)*'Customer Info'!$D$18)),) -> 0 | AU58: =IF((OR($F$5=0,$F$5="none")),IF(AE58=0,,IF(OR($E$5='Customer Info'!$D$19,$E$5=0),AE58,(AE58/$E$5)*'Customer Info'!$D$19)),) -> 0 | AV58: =IF((OR($F$6=0,$F$6="none")),IF(AF58=0,,IF(OR($E$6='Customer Info'!$D$20,$E$6=0),AF58,(AF58/$E$6)*'Customer Info'!$D$20)),) -> 0 | AW58: =IF((OR($F$7=0,$F$7="none")),IF(AG58=0,,IF(OR($E$7='Customer Info'!$D$21,$E$7=0),AG58,(AG58/$E$7)*'Customer Info'!$D$21)),) -> 0 | AX58: 0 | AY58: 0 | AZ58: =IF(E58="plate waste",,IF('Customer Info'!$M$18=0,'Log Sheet'!AY58,'Customer Info'!$M$18*'Log Sheet'!AY58)) -> 0 | BA58: =IF(E58="plate waste",IF(OR(C58="patient",C58="patient beverages"),IF('Customer Info'!$M$27=0,AY58*'Customer Info'!$M$18,AY58*'Customer Info'!$M$27),IF(C58="cafeteria",IF('Customer Info'!$M$28=0,AY58*'Customer Info'!$M$18,AY58*'Customer Info'!$M$28),IF(C58="other1",IF('Customer Info'!$M$29=0,AY58*'Customer Info'!$M$18,AY58*'Customer Info'!$M$29),))),) -> 0 | BB58: 0 | BC58: =IF($F$4="lunch",IF(S58=0,,(S58/$E$5)*'Customer Info'!$D$18),) -> 0 | BD58: =IF($F$4="dinner",IF(T58=0,,(T58/$E$6)*'Customer Info'!$D$18),) -> 0 | BE58: =IF($F$4="other",IF(U58=0,,(U58/$E$7)*'Customer Info'!$D$18),) -> 0 | BF58: 0 | BG58: =IF($F$5="breakfast",IF(R58=0,,(R58/$E$4)*'Customer Info'!$D$19),) -> 0 | BH58: =IF($F$5="dinner",IF(T58=0,,(T58/$E$6)*'Customer Info'!$D$19),) -> 0 | BI58: =IF($F$5="other",IF(U58=0,,(U58/$E$7)*'Customer Info'!$D$19),) -> 0 | BJ58: 0 | BK58: =IF($F$6="breakfast",IF(R58=0,,(R58/$E$4)*'Customer Info'!$D$20),) -> 0 | BL58: =IF($F$6="lunch",IF(S58=0,,(S58/$E$5)*'Customer Info'!$D$20),) -> 0 | BM58: =IF($F$6="other",IF(U58=0,,(U58/$E$7)*'Customer Info'!$D$20),) -> 0 | BN58: 0 | BO58: =IF($F$7="breakfast",IF(R58=0,,(R58/$E$4)*'Customer Info'!$D$21),) -> 0 | BP58: =IF($F$7="lunch",IF(S58=0,,(S58/$E$5)*'Customer Info'!$D$21),) -> 0 | BQ58: =IF($F$7="dinner",IF(T58=0,,(T58/$E$6)*'Customer Info'!$D$21),) -> 0 | BR58: 0 | BS58: =IF($F$10="lunch",IF(W58=0,,(W58/$E$11)*'Customer Info'!$F$18),) -> 0 | BT58: =IF($F$10="dinner",IF(X58=0,,(X58/$E$12)*'Customer Info'!$F$18),) -> 0 | BU58: =IF($F$10="other",IF(Y58=0,,(Y58/$E$13)*'Customer Info'!$F$18),) -> 0 | BV58: 0 | BW58: =IF($F$11="breakfast",IF(V58=0,,(V58/$E$10)*'Customer Info'!$F$19),) -> 0 | BX58: =IF($F$11="dinner",IF(X58=0,,(X58/$E$12)*'Customer Info'!$F$19),) -> 0 | BY58: =IF($F$11="other",IF(Y58=0,,(Y58/$E$13)*'Customer Info'!$F$19),) -> 0 | BZ58: 0 | CA58: =IF($F$12="breakfast",IF(V58=0,,(V58/$E$10)*'Customer Info'!$F$20),) -> 0 | CB58: =IF($F$12="lunch",IF(W58=0,,(W58/$E$11)*'Customer Info'!$F$20),) -> 0 | CC58: =IF($F$12="other",IF(Y58=0,,(Y58/$E$13)*'Customer Info'!$F$20),) -> 0 | CD58: 0 | CE58: =IF($F$13="breakfast",IF(V58=0,,(V58/$E$10)*'Customer Info'!$F$21),) -> 0 | CF58: =IF($F$13="lunch",IF(W58=0,,(W58/$E$11)*'Customer Info'!$F$21),) -> 0 | CG58: =IF($F$13="dinner",IF(X58=0,,(X58/$E$12)*'Customer Info'!$F$21),) -> 0 | CH58: 0 | CI58: =IF($F$16="lunch",IF(AA58=0,,(AA58/$E$17)*'Customer Info'!$H$18),) -> 0 | CJ58: =IF($F$16="dinner",IF(AB58=0,,(AB58/$E$18)*'Customer Info'!$H$18),) -> 0 | CK58: =IF($F$16="other",IF(AC58=0,,(AC58/$E$19)*'Customer Info'!$H$18),) -> 0 | CL58: 0 | CM58: =IF($F$17="breakfast",IF(Z58=0,,(Z58/$E$16)*'Customer Info'!$H$19),) -> 0 | CN58: =IF($F$17="dinner",IF(AB58=0,,(AB58/$E$18)*'Customer Info'!$H$19),) -> 0 | CO58: =IF($F$17="other",IF(AC58=0,,(AC58/$E$19)*'Customer Info'!$H$19),) -> 0 | CP58: 0 | CQ58: =IF($F$18="breakfast",IF(Z58=0,,(Z58/$E$16)*'Customer Info'!$H$20),) -> 0 | CR58: =IF($F$18="lunch",IF(AA58=0,,(AA58/$E$17)*'Customer Info'!$H$20),) -> 0 | CS58: =IF($F$18="other",IF(AC58=0,,(AC58/$E$19)*'Customer Info'!$H$20),) -> 0 | CT58: 0 | CU58: =IF($F$19="breakfast",IF(Z58=0,,(Z58/$E$16)*'Customer Info'!$H$21),) -> 0 | CV58: =IF($F$19="lunch",IF(AA58=0,,(AA58/$E$17)*'Customer Info'!$H$21),) -> 0 | CW58: =IF($F$19="dinner",IF(AB58=0,,(AB58/$E$18)*'Customer Info'!$H$21),) -> 0 | CX58: 0 | CY58: 0 | CZ58: 0 | DA58: 0 | DB58: 0
K59: 0 | L59: 0 | M59: 0 | N59: 0 | O59: 0 | P59: 0 | Q59: 0 | R59: 0 | S59: 0 | T59: 0 | U59: 0 | V59: 0 | W59: 0 | X59: 0 | Y59: 0 | Z59: 0 | AA59: 0 | AB59: 0 | AC59: 0 | AD59: 0 | AE59: 0 | AF59: 0 | AG59: 0 | AH59: =IF((OR($F$4=0,$F$4="none")),IF(R59=0,,IF(OR($E$4='Customer Info'!$D$18,$E$4=0),R59,(R59/$E$4)*'Customer Info'!$D$18)),) -> 0 | AI59: =IF((OR($F$5=0,$F$5="none")),IF(S59=0,,IF(OR($E$5='Customer Info'!$D$18,$E$5=0),S59,(S59/$E$5)*'Customer Info'!$D$19)),) -> 0 | AJ59: =IF((OR($F$6=0,$F$6="none")),IF(T59=0,,IF(OR($E$6='Customer Info'!$D$18,$E$6=0),T59,(T59/$E$6)*'Customer Info'!$D$20)),) -> 0 | AK59: =IF((OR($F$7=0,$F$7="none")),IF(U59=0,,IF(OR($E$7='Customer Info'!$D$18,$E$7=0),U59,(U59/$E$7)*'Customer Info'!$D$21)),) -> 0 | AL59: =IF((OR($F$10=0,$F$10="none")),IF(V59=0,,IF(OR($E$10='Customer Info'!$F$18,$E$10=0),V59,(V59/$E$10)*'Customer Info'!$F$18)),) -> 0 | AM59: =IF((OR($F$11=0,$F$11="none")),IF(W59=0,,IF(OR($E$11='Customer Info'!$F$19,$E$11=0),W59,(W59/$E$11)*'Customer Info'!$F$19)),) -> 0 | AN59: =IF((OR($F$12=0,$F$12="none")),IF(X59=0,,IF(OR($E$12='Customer Info'!$F$20,$E$12=0),X59,(X59/$E$12)*'Customer Info'!$F$20)),) -> 0 | AO59: =IF((OR($F$13=0,$F$13="none")),IF(Y59=0,,IF(OR($E$13='Customer Info'!$F$21,$E$13=0),Y59,(Y59/$E$13)*'Customer Info'!$F$21)),) -> 0 | AP59: =IF((OR($F$16=0,$F$16="none")),IF(Z59=0,,IF(OR($E$16='Customer Info'!$H$18,$E$16=0),Z59,(Z59/$E$16)*'Customer Info'!$H$18)),) -> 0 | AQ59: =IF((OR($F$17=0,$F$17="none")),IF(AA59=0,,IF(OR($E$17='Customer Info'!$H$19,$E$17=0),AA59,(AA59/$E$17)*'Customer Info'!$H$19)),) -> 0 | AR59: =IF((OR($F$18=0,$F$18="none")),IF(AB59=0,,IF(OR($E$18='Customer Info'!$H$20,$E$18=0),AB59,(AB59/$E$18)*'Customer Info'!$H$20)),) -> 0 | AS59: =IF((OR($F$19=0,$F$19="none")),IF(AC59=0,,IF(OR($E$19='Customer Info'!$H$21,$E$19=0),AC59,(AC59/$E$19)*'Customer Info'!$H$21)),) -> 0 | AT59: =IF((OR($F$4=0,$F$4="none")),IF(AD59=0,,IF(OR($E$4='Customer Info'!$D$18,$E$4=0),AD59,(AD59/$E$4)*'Customer Info'!$D$18)),) -> 0 | AU59: =IF((OR($F$5=0,$F$5="none")),IF(AE59=0,,IF(OR($E$5='Customer Info'!$D$19,$E$5=0),AE59,(AE59/$E$5)*'Customer Info'!$D$19)),) -> 0 | AV59: =IF((OR($F$6=0,$F$6="none")),IF(AF59=0,,IF(OR($E$6='Customer Info'!$D$20,$E$6=0),AF59,(AF59/$E$6)*'Customer Info'!$D$20)),) -> 0 | AW59: =IF((OR($F$7=0,$F$7="none")),IF(AG59=0,,IF(OR($E$7='Customer Info'!$D$21,$E$7=0),AG59,(AG59/$E$7)*'Customer Info'!$D$21)),) -> 0 | AX59: 0 | AY59: 0 | AZ59: =IF(E59="plate waste",,IF('Customer Info'!$M$18=0,'Log Sheet'!AY59,'Customer Info'!$M$18*'Log Sheet'!AY59)) -> 0 | BA59: =IF(E59="plate waste",IF(OR(C59="patient",C59="patient beverages"),IF('Customer Info'!$M$27=0,AY59*'Customer Info'!$M$18,AY59*'Customer Info'!$M$27),IF(C59="cafeteria",IF('Customer Info'!$M$28=0,AY59*'Customer Info'!$M$18,AY59*'Customer Info'!$M$28),IF(C59="other1",IF('Customer Info'!$M$29=0,AY59*'Customer Info'!$M$18,AY59*'Customer Info'!$M$29),))),) -> 0 | BB59: 0 | BC59: =IF($F$4="lunch",IF(S59=0,,(S59/$E$5)*'Customer Info'!$D$18),) -> 0 | BD59: =IF($F$4="dinner",IF(T59=0,,(T59/$E$6)*'Customer Info'!$D$18),) -> 0 | BE59: =IF($F$4="other",IF(U59=0,,(U59/$E$7)*'Customer Info'!$D$18),) -> 0 | BF59: 0 | BG59: =IF($F$5="breakfast",IF(R59=0,,(R59/$E$4)*'Customer Info'!$D$19),) -> 0 | BH59: =IF($F$5="dinner",IF(T59=0,,(T59/$E$6)*'Customer Info'!$D$19),) -> 0 | BI59: =IF($F$5="other",IF(U59=0,,(U59/$E$7)*'Customer Info'!$D$19),) -> 0 | BJ59: 0 | BK59: =IF($F$6="breakfast",IF(R59=0,,(R59/$E$4)*'Customer Info'!$D$20),) -> 0 | BL59: =IF($F$6="lunch",IF(S59=0,,(S59/$E$5)*'Customer Info'!$D$20),) -> 0 | BM59: =IF($F$6="other",IF(U59=0,,(U59/$E$7)*'Customer Info'!$D$20),) -> 0 | BN59: 0 | BO59: =IF($F$7="breakfast",IF(R59=0,,(R59/$E$4)*'Customer Info'!$D$21),) -> 0 | BP59: =IF($F$7="lunch",IF(S59=0,,(S59/$E$5)*'Customer Info'!$D$21),) -> 0 | BQ59: =IF($F$7="dinner",IF(T59=0,,(T59/$E$6)*'Customer Info'!$D$21),) -> 0 | BR59: 0 | BS59: =IF($F$10="lunch",IF(W59=0,,(W59/$E$11)*'Customer Info'!$F$18),) -> 0 | BT59: =IF($F$10="dinner",IF(X59=0,,(X59/$E$12)*'Customer Info'!$F$18),) -> 0 | BU59: =IF($F$10="other",IF(Y59=0,,(Y59/$E$13)*'Customer Info'!$F$18),) -> 0 | BV59: 0 | BW59: =IF($F$11="breakfast",IF(V59=0,,(V59/$E$10)*'Customer Info'!$F$19),) -> 0 | BX59: =IF($F$11="dinner",IF(X59=0,,(X59/$E$12)*'Customer Info'!$F$19),) -> 0 | BY59: =IF($F$11="other",IF(Y59=0,,(Y59/$E$13)*'Customer Info'!$F$19),) -> 0 | BZ59: 0 | CA59: =IF($F$12="breakfast",IF(V59=0,,(V59/$E$10)*'Customer Info'!$F$20),) -> 0 | CB59: =IF($F$12="lunch",IF(W59=0,,(W59/$E$11)*'Customer Info'!$F$20),) -> 0 | CC59: =IF($F$12="other",IF(Y59=0,,(Y59/$E$13)*'Customer Info'!$F$20),) -> 0 | CD59: 0 | CE59: =IF($F$13="breakfast",IF(V59=0,,(V59/$E$10)*'Customer Info'!$F$21),) -> 0 | CF59: =IF($F$13="lunch",IF(W59=0,,(W59/$E$11)*'Customer Info'!$F$21),) -> 0 | CG59: =IF($F$13="dinner",IF(X59=0,,(X59/$E$12)*'Customer Info'!$F$21),) -> 0 | CH59: 0 | CI59: =IF($F$16="lunch",IF(AA59=0,,(AA59/$E$17)*'Customer Info'!$H$18),) -> 0 | CJ59: =IF($F$16="dinner",IF(AB59=0,,(AB59/$E$18)*'Customer Info'!$H$18),) -> 0 | CK59: =IF($F$16="other",IF(AC59=0,,(AC59/$E$19)*'Customer Info'!$H$18),) -> 0 | CL59: 0 | CM59: =IF($F$17="breakfast",IF(Z59=0,,(Z59/$E$16)*'Customer Info'!$H$19),) -> 0 | CN59: =IF($F$17="dinner",IF(AB59=0,,(AB59/$E$18)*'Customer Info'!$H$19),) -> 0 | CO59: =IF($F$17="other",IF(AC59=0,,(AC59/$E$19)*'Customer Info'!$H$19),) -> 0 | CP59: 0 | CQ59: =IF($F$18="breakfast",IF(Z59=0,,(Z59/$E$16)*'Customer Info'!$H$20),) -> 0 | CR59: =IF($F$18="lunch",IF(AA59=0,,(AA59/$E$17)*'Customer Info'!$H$20),) -> 0 | CS59: =IF($F$18="other",IF(AC59=0,,(AC59/$E$19)*'Customer Info'!$H$20),) -> 0 | CT59: 0 | CU59: =IF($F$19="breakfast",IF(Z59=0,,(Z59/$E$16)*'Customer Info'!$H$21),) -> 0 | CV59: =IF($F$19="lunch",IF(AA59=0,,(AA59/$E$17)*'Customer Info'!$H$21),) -> 0 | CW59: =IF($F$19="dinner",IF(AB59=0,,(AB59/$E$18)*'Customer Info'!$H$21),) -> 0 | CX59: 0 | CY59: 0 | CZ59: 0 | DA59: 0 | DB59: 0
K60: 0 | L60: 0 | M60: 0 | N60: 0 | O60: 0 | P60: 0 | Q60: 0 | R60: 0 | S60: 0 | T60: 0 | U60: 0 | V60: 0 | W60: 0 | X60: 0 | Y60: 0 | Z60: 0 | AA60: 0 | AB60: 0 | AC60: 0 | AD60: 0 | AE60: 0 | AF60: 0 | AG60: 0 | AH60: =IF((OR($F$4=0,$F$4="none")),IF(R60=0,,IF(OR($E$4='Customer Info'!$D$18,$E$4=0),R60,(R60/$E$4)*'Customer Info'!$D$18)),) -> 0 | AI60: =IF((OR($F$5=0,$F$5="none")),IF(S60=0,,IF(OR($E$5='Customer Info'!$D$18,$E$5=0),S60,(S60/$E$5)*'Customer Info'!$D$19)),) -> 0 | AJ60: =IF((OR($F$6=0,$F$6="none")),IF(T60=0,,IF(OR($E$6='Customer Info'!$D$18,$E$6=0),T60,(T60/$E$6)*'Customer Info'!$D$20)),) -> 0 | AK60: =IF((OR($F$7=0,$F$7="none")),IF(U60=0,,IF(OR($E$7='Customer Info'!$D$18,$E$7=0),U60,(U60/$E$7)*'Customer Info'!$D$21)),) -> 0 | AL60: =IF((OR($F$10=0,$F$10="none")),IF(V60=0,,IF(OR($E$10='Customer Info'!$F$18,$E$10=0),V60,(V60/$E$10)*'Customer Info'!$F$18)),) -> 0 | AM60: =IF((OR($F$11=0,$F$11="none")),IF(W60=0,,IF(OR($E$11='Customer Info'!$F$19,$E$11=0),W60,(W60/$E$11)*'Customer Info'!$F$19)),) -> 0 | AN60: =IF((OR($F$12=0,$F$12="none")),IF(X60=0,,IF(OR($E$12='Customer Info'!$F$20,$E$12=0),X60,(X60/$E$12)*'Customer Info'!$F$20)),) -> 0 | AO60: =IF((OR($F$13=0,$F$13="none")),IF(Y60=0,,IF(OR($E$13='Customer Info'!$F$21,$E$13=0),Y60,(Y60/$E$13)*'Customer Info'!$F$21)),) -> 0 | AP60: =IF((OR($F$16=0,$F$16="none")),IF(Z60=0,,IF(OR($E$16='Customer Info'!$H$18,$E$16=0),Z60,(Z60/$E$16)*'Customer Info'!$H$18)),) -> 0 | AQ60: =IF((OR($F$17=0,$F$17="none")),IF(AA60=0,,IF(OR($E$17='Customer Info'!$H$19,$E$17=0),AA60,(AA60/$E$17)*'Customer Info'!$H$19)),) -> 0 | AR60: =IF((OR($F$18=0,$F$18="none")),IF(AB60=0,,IF(OR($E$18='Customer Info'!$H$20,$E$18=0),AB60,(AB60/$E$18)*'Customer Info'!$H$20)),) -> 0 | AS60: =IF((OR($F$19=0,$F$19="none")),IF(AC60=0,,IF(OR($E$19='Customer Info'!$H$21,$E$19=0),AC60,(AC60/$E$19)*'Customer Info'!$H$21)),) -> 0 | AT60: =IF((OR($F$4=0,$F$4="none")),IF(AD60=0,,IF(OR($E$4='Customer Info'!$D$18,$E$4=0),AD60,(AD60/$E$4)*'Customer Info'!$D$18)),) -> 0 | AU60: =IF((OR($F$5=0,$F$5="none")),IF(AE60=0,,IF(OR($E$5='Customer Info'!$D$19,$E$5=0),AE60,(AE60/$E$5)*'Customer Info'!$D$19)),) -> 0 | AV60: =IF((OR($F$6=0,$F$6="none")),IF(AF60=0,,IF(OR($E$6='Customer Info'!$D$20,$E$6=0),AF60,(AF60/$E$6)*'Customer Info'!$D$20)),) -> 0 | AW60: =IF((OR($F$7=0,$F$7="none")),IF(AG60=0,,IF(OR($E$7='Customer Info'!$D$21,$E$7=0),AG60,(AG60/$E$7)*'Customer Info'!$D$21)),) -> 0 | AX60: 0 | AY60: 0 | AZ60: =IF(E60="plate waste",,IF('Customer Info'!$M$18=0,'Log Sheet'!AY60,'Customer Info'!$M$18*'Log Sheet'!AY60)) -> 0 | BA60: =IF(E60="plate waste",IF(OR(C60="patient",C60="patient beverages"),IF('Customer Info'!$M$27=0,AY60*'Customer Info'!$M$18,AY60*'Customer Info'!$M$27),IF(C60="cafeteria",IF('Customer Info'!$M$28=0,AY60*'Customer Info'!$M$18,AY60*'Customer Info'!$M$28),IF(C60="other1",IF('Customer Info'!$M$29=0,AY60*'Customer Info'!$M$18,AY60*'Customer Info'!$M$29),))),) -> 0 | BB60: 0 | BC60: =IF($F$4="lunch",IF(S60=0,,(S60/$E$5)*'Customer Info'!$D$18),) -> 0 | BD60: =IF($F$4="dinner",IF(T60=0,,(T60/$E$6)*'Customer Info'!$D$18),) -> 0 | BE60: =IF($F$4="other",IF(U60=0,,(U60/$E$7)*'Customer Info'!$D$18),) -> 0 | BF60: 0 | BG60: =IF($F$5="breakfast",IF(R60=0,,(R60/$E$4)*'Customer Info'!$D$19),) -> 0 | BH60: =IF($F$5="dinner",IF(T60=0,,(T60/$E$6)*'Customer Info'!$D$19),) -> 0 | BI60: =IF($F$5="other",IF(U60=0,,(U60/$E$7)*'Customer Info'!$D$19),) -> 0 | BJ60: 0 | BK60: =IF($F$6="breakfast",IF(R60=0,,(R60/$E$4)*'Customer Info'!$D$20),) -> 0 | BL60: =IF($F$6="lunch",IF(S60=0,,(S60/$E$5)*'Customer Info'!$D$20),) -> 0 | BM60: =IF($F$6="other",IF(U60=0,,(U60/$E$7)*'Customer Info'!$D$20),) -> 0 | BN60: 0 | BO60: =IF($F$7="breakfast",IF(R60=0,,(R60/$E$4)*'Customer Info'!$D$21),) -> 0 | BP60: =IF($F$7="lunch",IF(S60=0,,(S60/$E$5)*'Customer Info'!$D$21),) -> 0 | BQ60: =IF($F$7="dinner",IF(T60=0,,(T60/$E$6)*'Customer Info'!$D$21),) -> 0 | BR60: 0 | BS60: =IF($F$10="lunch",IF(W60=0,,(W60/$E$11)*'Customer Info'!$F$18),) -> 0 | BT60: =IF($F$10="dinner",IF(X60=0,,(X60/$E$12)*'Customer Info'!$F$18),) -> 0 | BU60: =IF($F$10="other",IF(Y60=0,,(Y60/$E$13)*'Customer Info'!$F$18),) -> 0 | BV60: 0 | BW60: =IF($F$11="breakfast",IF(V60=0,,(V60/$E$10)*'Customer Info'!$F$19),) -> 0 | BX60: =IF($F$11="dinner",IF(X60=0,,(X60/$E$12)*'Customer Info'!$F$19),) -> 0 | BY60: =IF($F$11="other",IF(Y60=0,,(Y60/$E$13)*'Customer Info'!$F$19),) -> 0 | BZ60: 0 | CA60: =IF($F$12="breakfast",IF(V60=0,,(V60/$E$10)*'Customer Info'!$F$20),) -> 0 | CB60: =IF($F$12="lunch",IF(W60=0,,(W60/$E$11)*'Customer Info'!$F$20),) -> 0 | CC60: =IF($F$12="other",IF(Y60=0,,(Y60/$E$13)*'Customer Info'!$F$20),) -> 0 | CD60: 0 | CE60: =IF($F$13="breakfast",IF(V60=0,,(V60/$E$10)*'Customer Info'!$F$21),) -> 0 | CF60: =IF($F$13="lunch",IF(W60=0,,(W60/$E$11)*'Customer Info'!$F$21),) -> 0 | CG60: =IF($F$13="dinner",IF(X60=0,,(X60/$E$12)*'Customer Info'!$F$21),) -> 0 | CH60: 0 | CI60: =IF($F$16="lunch",IF(AA60=0,,(AA60/$E$17)*'Customer Info'!$H$18),) -> 0 | CJ60: =IF($F$16="dinner",IF(AB60=0,,(AB60/$E$18)*'Customer Info'!$H$18),) -> 0 | CK60: =IF($F$16="other",IF(AC60=0,,(AC60/$E$19)*'Customer Info'!$H$18),) -> 0 | CL60: 0 | CM60: =IF($F$17="breakfast",IF(Z60=0,,(Z60/$E$16)*'Customer Info'!$H$19),) -> 0 | CN60: =IF($F$17="dinner",IF(AB60=0,,(AB60/$E$18)*'Customer Info'!$H$19),) -> 0 | CO60: =IF($F$17="other",IF(AC60=0,,(AC60/$E$19)*'Customer Info'!$H$19),) -> 0 | CP60: 0 | CQ60: =IF($F$18="breakfast",IF(Z60=0,,(Z60/$E$16)*'Customer Info'!$H$20),) -> 0 | CR60: =IF($F$18="lunch",IF(AA60=0,,(AA60/$E$17)*'Customer Info'!$H$20),) -> 0 | CS60: =IF($F$18="other",IF(AC60=0,,(AC60/$E$19)*'Customer Info'!$H$20),) -> 0 | CT60: 0 | CU60: =IF($F$19="breakfast",IF(Z60=0,,(Z60/$E$16)*'Customer Info'!$H$21),) -> 0 | CV60: =IF($F$19="lunch",IF(AA60=0,,(AA60/$E$17)*'Customer Info'!$H$21),) -> 0 | CW60: =IF($F$19="dinner",IF(AB60=0,,(AB60/$E$18)*'Customer Info'!$H$21),) -> 0 | CX60: 0 | CY60: 0 | CZ60: 0 | DA60: 0 | DB60: 0
K61: 0 | L61: 0 | M61: 0 | N61: 0 | O61: 0 | P61: 0 | Q61: 0 | R61: 0 | S61: 0 | T61: 0 | U61: 0 | V61: 0 | W61: 0 | X61: 0 | Y61: 0 | Z61: 0 | AA61: 0 | AB61: 0 | AC61: 0 | AD61: 0 | AE61: 0 | AF61: 0 | AG61: 0 | AH61: =IF((OR($F$4=0,$F$4="none")),IF(R61=0,,IF(OR($E$4='Customer Info'!$D$18,$E$4=0),R61,(R61/$E$4)*'Customer Info'!$D$18)),) -> 0 | AI61: =IF((OR($F$5=0,$F$5="none")),IF(S61=0,,IF(OR($E$5='Customer Info'!$D$18,$E$5=0),S61,(S61/$E$5)*'Customer Info'!$D$19)),) -> 0 | AJ61: =IF((OR($F$6=0,$F$6="none")),IF(T61=0,,IF(OR($E$6='Customer Info'!$D$18,$E$6=0),T61,(T61/$E$6)*'Customer Info'!$D$20)),) -> 0 | AK61: =IF((OR($F$7=0,$F$7="none")),IF(U61=0,,IF(OR($E$7='Customer Info'!$D$18,$E$7=0),U61,(U61/$E$7)*'Customer Info'!$D$21)),) -> 0 | AL61: =IF((OR($F$10=0,$F$10="none")),IF(V61=0,,IF(OR($E$10='Customer Info'!$F$18,$E$10=0),V61,(V61/$E$10)*'Customer Info'!$F$18)),) -> 0 | AM61: =IF((OR($F$11=0,$F$11="none")),IF(W61=0,,IF(OR($E$11='Customer Info'!$F$19,$E$11=0),W61,(W61/$E$11)*'Customer Info'!$F$19)),) -> 0 | AN61: =IF((OR($F$12=0,$F$12="none")),IF(X61=0,,IF(OR($E$12='Customer Info'!$F$20,$E$12=0),X61,(X61/$E$12)*'Customer Info'!$F$20)),) -> 0 | AO61: =IF((OR($F$13=0,$F$13="none")),IF(Y61=0,,IF(OR($E$13='Customer Info'!$F$21,$E$13=0),Y61,(Y61/$E$13)*'Customer Info'!$F$21)),) -> 0 | AP61: =IF((OR($F$16=0,$F$16="none")),IF(Z61=0,,IF(OR($E$16='Customer Info'!$H$18,$E$16=0),Z61,(Z61/$E$16)*'Customer Info'!$H$18)),) -> 0 | AQ61: =IF((OR($F$17=0,$F$17="none")),IF(AA61=0,,IF(OR($E$17='Customer Info'!$H$19,$E$17=0),AA61,(AA61/$E$17)*'Customer Info'!$H$19)),) -> 0 | AR61: =IF((OR($F$18=0,$F$18="none")),IF(AB61=0,,IF(OR($E$18='Customer Info'!$H$20,$E$18=0),AB61,(AB61/$E$18)*'Customer Info'!$H$20)),) -> 0 | AS61: =IF((OR($F$19=0,$F$19="none")),IF(AC61=0,,IF(OR($E$19='Customer Info'!$H$21,$E$19=0),AC61,(AC61/$E$19)*'Customer Info'!$H$21)),) -> 0 | AT61: =IF((OR($F$4=0,$F$4="none")),IF(AD61=0,,IF(OR($E$4='Customer Info'!$D$18,$E$4=0),AD61,(AD61/$E$4)*'Customer Info'!$D$18)),) -> 0 | AU61: =IF((OR($F$5=0,$F$5="none")),IF(AE61=0,,IF(OR($E$5='Customer Info'!$D$19,$E$5=0),AE61,(AE61/$E$5)*'Customer Info'!$D$19)),) -> 0 | AV61: =IF((OR($F$6=0,$F$6="none")),IF(AF61=0,,IF(OR($E$6='Customer Info'!$D$20,$E$6=0),AF61,(AF61/$E$6)*'Customer Info'!$D$20)),) -> 0 | AW61: =IF((OR($F$7=0,$F$7="none")),IF(AG61=0,,IF(OR($E$7='Customer Info'!$D$21,$E$7=0),AG61,(AG61/$E$7)*'Customer Info'!$D$21)),) -> 0 | AX61: 0 | AY61: 0 | AZ61: =IF(E61="plate waste",,IF('Customer Info'!$M$18=0,'Log Sheet'!AY61,'Customer Info'!$M$18*'Log Sheet'!AY61)) -> 0 | BA61: =IF(E61="plate waste",IF(OR(C61="patient",C61="patient beverages"),IF('Customer Info'!$M$27=0,AY61*'Customer Info'!$M$18,AY61*'Customer Info'!$M$27),IF(C61="cafeteria",IF('Customer Info'!$M$28=0,AY61*'Customer Info'!$M$18,AY61*'Customer Info'!$M$28),IF(C61="other1",IF('Customer Info'!$M$29=0,AY61*'Customer Info'!$M$18,AY61*'Customer Info'!$M$29),))),) -> 0 | BB61: 0 | BC61: =IF($F$4="lunch",IF(S61=0,,(S61/$E$5)*'Customer Info'!$D$18),) -> 0 | BD61: =IF($F$4="dinner",IF(T61=0,,(T61/$E$6)*'Customer Info'!$D$18),) -> 0 | BE61: =IF($F$4="other",IF(U61=0,,(U61/$E$7)*'Customer Info'!$D$18),) -> 0 | BF61: 0 | BG61: =IF($F$5="breakfast",IF(R61=0,,(R61/$E$4)*'Customer Info'!$D$19),) -> 0 | BH61: =IF($F$5="dinner",IF(T61=0,,(T61/$E$6)*'Customer Info'!$D$19),) -> 0 | BI61: =IF($F$5="other",IF(U61=0,,(U61/$E$7)*'Customer Info'!$D$19),) -> 0 | BJ61: 0 | BK61: =IF($F$6="breakfast",IF(R61=0,,(R61/$E$4)*'Customer Info'!$D$20),) -> 0 | BL61: =IF($F$6="lunch",IF(S61=0,,(S61/$E$5)*'Customer Info'!$D$20),) -> 0 | BM61: =IF($F$6="other",IF(U61=0,,(U61/$E$7)*'Customer Info'!$D$20),) -> 0 | BN61: 0 | BO61: =IF($F$7="breakfast",IF(R61=0,,(R61/$E$4)*'Customer Info'!$D$21),) -> 0 | BP61: =IF($F$7="lunch",IF(S61=0,,(S61/$E$5)*'Customer Info'!$D$21),) -> 0 | BQ61: =IF($F$7="dinner",IF(T61=0,,(T61/$E$6)*'Customer Info'!$D$21),) -> 0 | BR61: 0 | BS61: =IF($F$10="lunch",IF(W61=0,,(W61/$E$11)*'Customer Info'!$F$18),) -> 0 | BT61: =IF($F$10="dinner",IF(X61=0,,(X61/$E$12)*'Customer Info'!$F$18),) -> 0 | BU61: =IF($F$10="other",IF(Y61=0,,(Y61/$E$13)*'Customer Info'!$F$18),) -> 0 | BV61: 0 | BW61: =IF($F$11="breakfast",IF(V61=0,,(V61/$E$10)*'Customer Info'!$F$19),) -> 0 | BX61: =IF($F$11="dinner",IF(X61=0,,(X61/$E$12)*'Customer Info'!$F$19),) -> 0 | BY61: =IF($F$11="other",IF(Y61=0,,(Y61/$E$13)*'Customer Info'!$F$19),) -> 0 | BZ61: 0 | CA61: =IF($F$12="breakfast",IF(V61=0,,(V61/$E$10)*'Customer Info'!$F$20),) -> 0 | CB61: =IF($F$12="lunch",IF(W61=0,,(W61/$E$11)*'Customer Info'!$F$20),) -> 0 | CC61: =IF($F$12="other",IF(Y61=0,,(Y61/$E$13)*'Customer Info'!$F$20),) -> 0 | CD61: 0 | CE61: =IF($F$13="breakfast",IF(V61=0,,(V61/$E$10)*'Customer Info'!$F$21),) -> 0 | CF61: =IF($F$13="lunch",IF(W61=0,,(W61/$E$11)*'Customer Info'!$F$21),) -> 0 | CG61: =IF($F$13="dinner",IF(X61=0,,(X61/$E$12)*'Customer Info'!$F$21),) -> 0 | CH61: 0 | CI61: =IF($F$16="lunch",IF(AA61=0,,(AA61/$E$17)*'Customer Info'!$H$18),) -> 0 | CJ61: =IF($F$16="dinner",IF(AB61=0,,(AB61/$E$18)*'Customer Info'!$H$18),) -> 0 | CK61: =IF($F$16="other",IF(AC61=0,,(AC61/$E$19)*'Customer Info'!$H$18),) -> 0 | CL61: 0 | CM61: =IF($F$17="breakfast",IF(Z61=0,,(Z61/$E$16)*'Customer Info'!$H$19),) -> 0 | CN61: =IF($F$17="dinner",IF(AB61=0,,(AB61/$E$18)*'Customer Info'!$H$19),) -> 0 | CO61: =IF($F$17="other",IF(AC61=0,,(AC61/$E$19)*'Customer Info'!$H$19),) -> 0 | CP61: 0 | CQ61: =IF($F$18="breakfast",IF(Z61=0,,(Z61/$E$16)*'Customer Info'!$H$20),) -> 0 | CR61: =IF($F$18="lunch",IF(AA61=0,,(AA61/$E$17)*'Customer Info'!$H$20),) -> 0 | CS61: =IF($F$18="other",IF(AC61=0,,(AC61/$E$19)*'Customer Info'!$H$20),) -> 0 | CT61: 0 | CU61: =IF($F$19="breakfast",IF(Z61=0,,(Z61/$E$16)*'Customer Info'!$H$21),) -> 0 | CV61: =IF($F$19="lunch",IF(AA61=0,,(AA61/$E$17)*'Customer Info'!$H$21),) -> 0 | CW61: =IF($F$19="dinner",IF(AB61=0,,(AB61/$E$18)*'Customer Info'!$H$21),) -> 0 | CX61: 0 | CY61: 0 | CZ61: 0 | DA61: 0 | DB61: 0
K62: 0 | L62: 0 | M62: 0 | N62: 0 | O62: 0 | P62: 0 | Q62: 0 | R62: 0 | S62: 0 | T62: 0 | U62: 0 | V62: 0 | W62: 0 | X62: 0 | Y62: 0 | Z62: 0 | AA62: 0 | AB62: 0 | AC62: 0 | AD62: 0 | AE62: 0 | AF62: 0 | AG62: 0 | AH62: =IF((OR($F$4=0,$F$4="none")),IF(R62=0,,IF(OR($E$4='Customer Info'!$D$18,$E$4=0),R62,(R62/$E$4)*'Customer Info'!$D$18)),) -> 0 | AI62: =IF((OR($F$5=0,$F$5="none")),IF(S62=0,,IF(OR($E$5='Customer Info'!$D$18,$E$5=0),S62,(S62/$E$5)*'Customer Info'!$D$19)),) -> 0 | AJ62: =IF((OR($F$6=0,$F$6="none")),IF(T62=0,,IF(OR($E$6='Customer Info'!$D$18,$E$6=0),T62,(T62/$E$6)*'Customer Info'!$D$20)),) -> 0 | AK62: =IF((OR($F$7=0,$F$7="none")),IF(U62=0,,IF(OR($E$7='Customer Info'!$D$18,$E$7=0),U62,(U62/$E$7)*'Customer Info'!$D$21)),) -> 0 | AL62: =IF((OR($F$10=0,$F$10="none")),IF(V62=0,,IF(OR($E$10='Customer Info'!$F$18,$E$10=0),V62,(V62/$E$10)*'Customer Info'!$F$18)),) -> 0 | AM62: =IF((OR($F$11=0,$F$11="none")),IF(W62=0,,IF(OR($E$11='Customer Info'!$F$19,$E$11=0),W62,(W62/$E$11)*'Customer Info'!$F$19)),) -> 0 | AN62: =IF((OR($F$12=0,$F$12="none")),IF(X62=0,,IF(OR($E$12='Customer Info'!$F$20,$E$12=0),X62,(X62/$E$12)*'Customer Info'!$F$20)),) -> 0 | AO62: =IF((OR($F$13=0,$F$13="none")),IF(Y62=0,,IF(OR($E$13='Customer Info'!$F$21,$E$13=0),Y62,(Y62/$E$13)*'Customer Info'!$F$21)),) -> 0 | AP62: =IF((OR($F$16=0,$F$16="none")),IF(Z62=0,,IF(OR($E$16='Customer Info'!$H$18,$E$16=0),Z62,(Z62/$E$16)*'Customer Info'!$H$18)),) -> 0 | AQ62: =IF((OR($F$17=0,$F$17="none")),IF(AA62=0,,IF(OR($E$17='Customer Info'!$H$19,$E$17=0),AA62,(AA62/$E$17)*'Customer Info'!$H$19)),) -> 0 | AR62: =IF((OR($F$18=0,$F$18="none")),IF(AB62=0,,IF(OR($E$18='Customer Info'!$H$20,$E$18=0),AB62,(AB62/$E$18)*'Customer Info'!$H$20)),) -> 0 | AS62: =IF((OR($F$19=0,$F$19="none")),IF(AC62=0,,IF(OR($E$19='Customer Info'!$H$21,$E$19=0),AC62,(AC62/$E$19)*'Customer Info'!$H$21)),) -> 0 | AT62: =IF((OR($F$4=0,$F$4="none")),IF(AD62=0,,IF(OR($E$4='Customer Info'!$D$18,$E$4=0),AD62,(AD62/$E$4)*'Customer Info'!$D$18)),) -> 0 | AU62: =IF((OR($F$5=0,$F$5="none")),IF(AE62=0,,IF(OR($E$5='Customer Info'!$D$19,$E$5=0),AE62,(AE62/$E$5)*'Customer Info'!$D$19)),) -> 0 | AV62: =IF((OR($F$6=0,$F$6="none")),IF(AF62=0,,IF(OR($E$6='Customer Info'!$D$20,$E$6=0),AF62,(AF62/$E$6)*'Customer Info'!$D$20)),) -> 0 | AW62: =IF((OR($F$7=0,$F$7="none")),IF(AG62=0,,IF(OR($E$7='Customer Info'!$D$21,$E$7=0),AG62,(AG62/$E$7)*'Customer Info'!$D$21)),) -> 0 | AX62: 0 | AY62: 0 | AZ62: =IF(E62="plate waste",,IF('Customer Info'!$M$18=0,'Log Sheet'!AY62,'Customer Info'!$M$18*'Log Sheet'!AY62)) -> 0 | BA62: =IF(E62="plate waste",IF(OR(C62="patient",C62="patient beverages"),IF('Customer Info'!$M$27=0,AY62*'Customer Info'!$M$18,AY62*'Customer Info'!$M$27),IF(C62="cafeteria",IF('Customer Info'!$M$28=0,AY62*'Customer Info'!$M$18,AY62*'Customer Info'!$M$28),IF(C62="other1",IF('Customer Info'!$M$29=0,AY62*'Customer Info'!$M$18,AY62*'Customer Info'!$M$29),))),) -> 0 | BB62: 0 | BC62: =IF($F$4="lunch",IF(S62=0,,(S62/$E$5)*'Customer Info'!$D$18),) -> 0 | BD62: =IF($F$4="dinner",IF(T62=0,,(T62/$E$6)*'Customer Info'!$D$18),) -> 0 | BE62: =IF($F$4="other",IF(U62=0,,(U62/$E$7)*'Customer Info'!$D$18),) -> 0 | BF62: 0 | BG62: =IF($F$5="breakfast",IF(R62=0,,(R62/$E$4)*'Customer Info'!$D$19),) -> 0 | BH62: =IF($F$5="dinner",IF(T62=0,,(T62/$E$6)*'Customer Info'!$D$19),) -> 0 | BI62: =IF($F$5="other",IF(U62=0,,(U62/$E$7)*'Customer Info'!$D$19),) -> 0 | BJ62: 0 | BK62: =IF($F$6="breakfast",IF(R62=0,,(R62/$E$4)*'Customer Info'!$D$20),) -> 0 | BL62: =IF($F$6="lunch",IF(S62=0,,(S62/$E$5)*'Customer Info'!$D$20),) -> 0 | BM62: =IF($F$6="other",IF(U62=0,,(U62/$E$7)*'Customer Info'!$D$20),) -> 0 | BN62: 0 | BO62: =IF($F$7="breakfast",IF(R62=0,,(R62/$E$4)*'Customer Info'!$D$21),) -> 0 | BP62: =IF($F$7="lunch",IF(S62=0,,(S62/$E$5)*'Customer Info'!$D$21),) -> 0 | BQ62: =IF($F$7="dinner",IF(T62=0,,(T62/$E$6)*'Customer Info'!$D$21),) -> 0 | BR62: 0 | BS62: =IF($F$10="lunch",IF(W62=0,,(W62/$E$11)*'Customer Info'!$F$18),) -> 0 | BT62: =IF($F$10="dinner",IF(X62=0,,(X62/$E$12)*'Customer Info'!$F$18),) -> 0 | BU62: =IF($F$10="other",IF(Y62=0,,(Y62/$E$13)*'Customer Info'!$F$18),) -> 0 | BV62: 0 | BW62: =IF($F$11="breakfast",IF(V62=0,,(V62/$E$10)*'Customer Info'!$F$19),) -> 0 | BX62: =IF($F$11="dinner",IF(X62=0,,(X62/$E$12)*'Customer Info'!$F$19),) -> 0 | BY62: =IF($F$11="other",IF(Y62=0,,(Y62/$E$13)*'Customer Info'!$F$19),) -> 0 | BZ62: 0 | CA62: =IF($F$12="breakfast",IF(V62=0,,(V62/$E$10)*'Customer Info'!$F$20),) -> 0 | CB62: =IF($F$12="lunch",IF(W62=0,,(W62/$E$11)*'Customer Info'!$F$20),) -> 0 | CC62: =IF($F$12="other",IF(Y62=0,,(Y62/$E$13)*'Customer Info'!$F$20),) -> 0 | CD62: 0 | CE62: =IF($F$13="breakfast",IF(V62=0,,(V62/$E$10)*'Customer Info'!$F$21),) -> 0 | CF62: =IF($F$13="lunch",IF(W62=0,,(W62/$E$11)*'Customer Info'!$F$21),) -> 0 | CG62: =IF($F$13="dinner",IF(X62=0,,(X62/$E$12)*'Customer Info'!$F$21),) -> 0 | CH62: 0 | CI62: =IF($F$16="lunch",IF(AA62=0,,(AA62/$E$17)*'Customer Info'!$H$18),) -> 0 | CJ62: =IF($F$16="dinner",IF(AB62=0,,(AB62/$E$18)*'Customer Info'!$H$18),) -> 0 | CK62: =IF($F$16="other",IF(AC62=0,,(AC62/$E$19)*'Customer Info'!$H$18),) -> 0 | CL62: 0 | CM62: =IF($F$17="breakfast",IF(Z62=0,,(Z62/$E$16)*'Customer Info'!$H$19),) -> 0 | CN62: =IF($F$17="dinner",IF(AB62=0,,(AB62/$E$18)*'Customer Info'!$H$19),) -> 0 | CO62: =IF($F$17="other",IF(AC62=0,,(AC62/$E$19)*'Customer Info'!$H$19),) -> 0 | CP62: 0 | CQ62: =IF($F$18="breakfast",IF(Z62=0,,(Z62/$E$16)*'Customer Info'!$H$20),) -> 0 | CR62: =IF($F$18="lunch",IF(AA62=0,,(AA62/$E$17)*'Customer Info'!$H$20),) -> 0 | CS62: =IF($F$18="other",IF(AC62=0,,(AC62/$E$19)*'Customer Info'!$H$20),) -> 0 | CT62: 0 | CU62: =IF($F$19="breakfast",IF(Z62=0,,(Z62/$E$16)*'Customer Info'!$H$21),) -> 0 | CV62: =IF($F$19="lunch",IF(AA62=0,,(AA62/$E$17)*'Customer Info'!$H$21),) -> 0 | CW62: =IF($F$19="dinner",IF(AB62=0,,(AB62/$E$18)*'Customer Info'!$H$21),) -> 0 | CX62: 0 | CY62: 0 | CZ62: 0 | DA62: 0 | DB62: 0
K63: 0 | L63: 0 | M63: 0 | N63: 0 | O63: 0 | P63: 0 | Q63: 0 | R63: 0 | S63: 0 | T63: 0 | U63: 0 | V63: 0 | W63: 0 | X63: 0 | Y63: 0 | Z63: 0 | AA63: 0 | AB63: 0 | AC63: 0 | AD63: 0 | AE63: 0 | AF63: 0 | AG63: 0 | AH63: =IF((OR($F$4=0,$F$4="none")),IF(R63=0,,IF(OR($E$4='Customer Info'!$D$18,$E$4=0),R63,(R63/$E$4)*'Customer Info'!$D$18)),) -> 0 | AI63: =IF((OR($F$5=0,$F$5="none")),IF(S63=0,,IF(OR($E$5='Customer Info'!$D$18,$E$5=0),S63,(S63/$E$5)*'Customer Info'!$D$19)),) -> 0 | AJ63: =IF((OR($F$6=0,$F$6="none")),IF(T63=0,,IF(OR($E$6='Customer Info'!$D$18,$E$6=0),T63,(T63/$E$6)*'Customer Info'!$D$20)),) -> 0 | AK63: =IF((OR($F$7=0,$F$7="none")),IF(U63=0,,IF(OR($E$7='Customer Info'!$D$18,$E$7=0),U63,(U63/$E$7)*'Customer Info'!$D$21)),) -> 0 | AL63: =IF((OR($F$10=0,$F$10="none")),IF(V63=0,,IF(OR($E$10='Customer Info'!$F$18,$E$10=0),V63,(V63/$E$10)*'Customer Info'!$F$18)),) -> 0 | AM63: =IF((OR($F$11=0,$F$11="none")),IF(W63=0,,IF(OR($E$11='Customer Info'!$F$19,$E$11=0),W63,(W63/$E$11)*'Customer Info'!$F$19)),) -> 0 | AN63: =IF((OR($F$12=0,$F$12="none")),IF(X63=0,,IF(OR($E$12='Customer Info'!$F$20,$E$12=0),X63,(X63/$E$12)*'Customer Info'!$F$20)),) -> 0 | AO63: =IF((OR($F$13=0,$F$13="none")),IF(Y63=0,,IF(OR($E$13='Customer Info'!$F$21,$E$13=0),Y63,(Y63/$E$13)*'Customer Info'!$F$21)),) -> 0 | AP63: =IF((OR($F$16=0,$F$16="none")),IF(Z63=0,,IF(OR($E$16='Customer Info'!$H$18,$E$16=0),Z63,(Z63/$E$16)*'Customer Info'!$H$18)),) -> 0 | AQ63: =IF((OR($F$17=0,$F$17="none")),IF(AA63=0,,IF(OR($E$17='Customer Info'!$H$19,$E$17=0),AA63,(AA63/$E$17)*'Customer Info'!$H$19)),) -> 0 | AR63: =IF((OR($F$18=0,$F$18="none")),IF(AB63=0,,IF(OR($E$18='Customer Info'!$H$20,$E$18=0),AB63,(AB63/$E$18)*'Customer Info'!$H$20)),) -> 0 | AS63: =IF((OR($F$19=0,$F$19="none")),IF(AC63=0,,IF(OR($E$19='Customer Info'!$H$21,$E$19=0),AC63,(AC63/$E$19)*'Customer Info'!$H$21)),) -> 0 | AT63: =IF((OR($F$4=0,$F$4="none")),IF(AD63=0,,IF(OR($E$4='Customer Info'!$D$18,$E$4=0),AD63,(AD63/$E$4)*'Customer Info'!$D$18)),) -> 0 | AU63: =IF((OR($F$5=0,$F$5="none")),IF(AE63=0,,IF(OR($E$5='Customer Info'!$D$19,$E$5=0),AE63,(AE63/$E$5)*'Customer Info'!$D$19)),) -> 0 | AV63: =IF((OR($F$6=0,$F$6="none")),IF(AF63=0,,IF(OR($E$6='Customer Info'!$D$20,$E$6=0),AF63,(AF63/$E$6)*'Customer Info'!$D$20)),) -> 0 | AW63: =IF((OR($F$7=0,$F$7="none")),IF(AG63=0,,IF(OR($E$7='Customer Info'!$D$21,$E$7=0),AG63,(AG63/$E$7)*'Customer Info'!$D$21)),) -> 0 | AX63: 0 | AY63: 0 | AZ63: =IF(E63="plate waste",,IF('Customer Info'!$M$18=0,'Log Sheet'!AY63,'Customer Info'!$M$18*'Log Sheet'!AY63)) -> 0 | BA63: =IF(E63="plate waste",IF(OR(C63="patient",C63="patient beverages"),IF('Customer Info'!$M$27=0,AY63*'Customer Info'!$M$18,AY63*'Customer Info'!$M$27),IF(C63="cafeteria",IF('Customer Info'!$M$28=0,AY63*'Customer Info'!$M$18,AY63*'Customer Info'!$M$28),IF(C63="other1",IF('Customer Info'!$M$29=0,AY63*'Customer Info'!$M$18,AY63*'Customer Info'!$M$29),))),) -> 0 | BB63: 0 | BC63: =IF($F$4="lunch",IF(S63=0,,(S63/$E$5)*'Customer Info'!$D$18),) -> 0 | BD63: =IF($F$4="dinner",IF(T63=0,,(T63/$E$6)*'Customer Info'!$D$18),) -> 0 | BE63: =IF($F$4="other",IF(U63=0,,(U63/$E$7)*'Customer Info'!$D$18),) -> 0 | BF63: 0 | BG63: =IF($F$5="breakfast",IF(R63=0,,(R63/$E$4)*'Customer Info'!$D$19),) -> 0 | BH63: =IF($F$5="dinner",IF(T63=0,,(T63/$E$6)*'Customer Info'!$D$19),) -> 0 | BI63: =IF($F$5="other",IF(U63=0,,(U63/$E$7)*'Customer Info'!$D$19),) -> 0 | BJ63: 0 | BK63: =IF($F$6="breakfast",IF(R63=0,,(R63/$E$4)*'Customer Info'!$D$20),) -> 0 | BL63: =IF($F$6="lunch",IF(S63=0,,(S63/$E$5)*'Customer Info'!$D$20),) -> 0 | BM63: =IF($F$6="other",IF(U63=0,,(U63/$E$7)*'Customer Info'!$D$20),) -> 0 | BN63: 0 | BO63: =IF($F$7="breakfast",IF(R63=0,,(R63/$E$4)*'Customer Info'!$D$21),) -> 0 | BP63: =IF($F$7="lunch",IF(S63=0,,(S63/$E$5)*'Customer Info'!$D$21),) -> 0 | BQ63: =IF($F$7="dinner",IF(T63=0,,(T63/$E$6)*'Customer Info'!$D$21),) -> 0 | BR63: 0 | BS63: =IF($F$10="lunch",IF(W63=0,,(W63/$E$11)*'Customer Info'!$F$18),) -> 0 | BT63: =IF($F$10="dinner",IF(X63=0,,(X63/$E$12)*'Customer Info'!$F$18),) -> 0 | BU63: =IF($F$10="other",IF(Y63=0,,(Y63/$E$13)*'Customer Info'!$F$18),) -> 0 | BV63: 0 | BW63: =IF($F$11="breakfast",IF(V63=0,,(V63/$E$10)*'Customer Info'!$F$19),) -> 0 | BX63: =IF($F$11="dinner",IF(X63=0,,(X63/$E$12)*'Customer Info'!$F$19),) -> 0 | BY63: =IF($F$11="other",IF(Y63=0,,(Y63/$E$13)*'Customer Info'!$F$19),) -> 0 | BZ63: 0 | CA63: =IF($F$12="breakfast",IF(V63=0,,(V63/$E$10)*'Customer Info'!$F$20),) -> 0 | CB63: =IF($F$12="lunch",IF(W63=0,,(W63/$E$11)*'Customer Info'!$F$20),) -> 0 | CC63: =IF($F$12="other",IF(Y63=0,,(Y63/$E$13)*'Customer Info'!$F$20),) -> 0 | CD63: 0 | CE63: =IF($F$13="breakfast",IF(V63=0,,(V63/$E$10)*'Customer Info'!$F$21),) -> 0 | CF63: =IF($F$13="lunch",IF(W63=0,,(W63/$E$11)*'Customer Info'!$F$21),) -> 0 | CG63: =IF($F$13="dinner",IF(X63=0,,(X63/$E$12)*'Customer Info'!$F$21),) -> 0 | CH63: 0 | CI63: =IF($F$16="lunch",IF(AA63=0,,(AA63/$E$17)*'Customer Info'!$H$18),) -> 0 | CJ63: =IF($F$16="dinner",IF(AB63=0,,(AB63/$E$18)*'Customer Info'!$H$18),) -> 0 | CK63: =IF($F$16="other",IF(AC63=0,,(AC63/$E$19)*'Customer Info'!$H$18),) -> 0 | CL63: 0 | CM63: =IF($F$17="breakfast",IF(Z63=0,,(Z63/$E$16)*'Customer Info'!$H$19),) -> 0 | CN63: =IF($F$17="dinner",IF(AB63=0,,(AB63/$E$18)*'Customer Info'!$H$19),) -> 0 | CO63: =IF($F$17="other",IF(AC63=0,,(AC63/$E$19)*'Customer Info'!$H$19),) -> 0 | CP63: 0 | CQ63: =IF($F$18="breakfast",IF(Z63=0,,(Z63/$E$16)*'Customer Info'!$H$20),) -> 0 | CR63: =IF($F$18="lunch",IF(AA63=0,,(AA63/$E$17)*'Customer Info'!$H$20),) -> 0 | CS63: =IF($F$18="other",IF(AC63=0,,(AC63/$E$19)*'Customer Info'!$H$20),) -> 0 | CT63: 0 | CU63: =IF($F$19="breakfast",IF(Z63=0,,(Z63/$E$16)*'Customer Info'!$H$21),) -> 0 | CV63: =IF($F$19="lunch",IF(AA63=0,,(AA63/$E$17)*'Customer Info'!$H$21),) -> 0 | CW63: =IF($F$19="dinner",IF(AB63=0,,(AB63/$E$18)*'Customer Info'!$H$21),) -> 0 | CX63: 0 | CY63: 0 | CZ63: 0 | DA63: 0 | DB63: 0
K64: 0 | L64: 0 | M64: 0 | N64: 0 | O64: 0 | P64: 0 | Q64: 0 | R64: 0 | S64: 0 | T64: 0 | U64: 0 | V64: 0 | W64: 0 | X64: 0 | Y64: 0 | Z64: 0 | AA64: 0 | AB64: 0 | AC64: 0 | AD64: 0 | AE64: 0 | AF64: 0 | AG64: 0 | AH64: =IF((OR($F$4=0,$F$4="none")),IF(R64=0,,IF(OR($E$4='Customer Info'!$D$18,$E$4=0),R64,(R64/$E$4)*'Customer Info'!$D$18)),) -> 0 | AI64: =IF((OR($F$5=0,$F$5="none")),IF(S64=0,,IF(OR($E$5='Customer Info'!$D$18,$E$5=0),S64,(S64/$E$5)*'Customer Info'!$D$19)),) -> 0 | AJ64: =IF((OR($F$6=0,$F$6="none")),IF(T64=0,,IF(OR($E$6='Customer Info'!$D$18,$E$6=0),T64,(T64/$E$6)*'Customer Info'!$D$20)),) -> 0 | AK64: =IF((OR($F$7=0,$F$7="none")),IF(U64=0,,IF(OR($E$7='Customer Info'!$D$18,$E$7=0),U64,(U64/$E$7)*'Customer Info'!$D$21)),) -> 0 | AL64: =IF((OR($F$10=0,$F$10="none")),IF(V64=0,,IF(OR($E$10='Customer Info'!$F$18,$E$10=0),V64,(V64/$E$10)*'Customer Info'!$F$18)),) -> 0 | AM64: =IF((OR($F$11=0,$F$11="none")),IF(W64=0,,IF(OR($E$11='Customer Info'!$F$19,$E$11=0),W64,(W64/$E$11)*'Customer Info'!$F$19)),) -> 0 | AN64: =IF((OR($F$12=0,$F$12="none")),IF(X64=0,,IF(OR($E$12='Customer Info'!$F$20,$E$12=0),X64,(X64/$E$12)*'Customer Info'!$F$20)),) -> 0 | AO64: =IF((OR($F$13=0,$F$13="none")),IF(Y64=0,,IF(OR($E$13='Customer Info'!$F$21,$E$13=0),Y64,(Y64/$E$13)*'Customer Info'!$F$21)),) -> 0 | AP64: =IF((OR($F$16=0,$F$16="none")),IF(Z64=0,,IF(OR($E$16='Customer Info'!$H$18,$E$16=0),Z64,(Z64/$E$16)*'Customer Info'!$H$18)),) -> 0 | AQ64: =IF((OR($F$17=0,$F$17="none")),IF(AA64=0,,IF(OR($E$17='Customer Info'!$H$19,$E$17=0),AA64,(AA64/$E$17)*'Customer Info'!$H$19)),) -> 0 | AR64: =IF((OR($F$18=0,$F$18="none")),IF(AB64=0,,IF(OR($E$18='Customer Info'!$H$20,$E$18=0),AB64,(AB64/$E$18)*'Customer Info'!$H$20)),) -> 0 | AS64: =IF((OR($F$19=0,$F$19="none")),IF(AC64=0,,IF(OR($E$19='Customer Info'!$H$21,$E$19=0),AC64,(AC64/$E$19)*'Customer Info'!$H$21)),) -> 0 | AT64: =IF((OR($F$4=0,$F$4="none")),IF(AD64=0,,IF(OR($E$4='Customer Info'!$D$18,$E$4=0),AD64,(AD64/$E$4)*'Customer Info'!$D$18)),) -> 0 | AU64: =IF((OR($F$5=0,$F$5="none")),IF(AE64=0,,IF(OR($E$5='Customer Info'!$D$19,$E$5=0),AE64,(AE64/$E$5)*'Customer Info'!$D$19)),) -> 0 | AV64: =IF((OR($F$6=0,$F$6="none")),IF(AF64=0,,IF(OR($E$6='Customer Info'!$D$20,$E$6=0),AF64,(AF64/$E$6)*'Customer Info'!$D$20)),) -> 0 | AW64: =IF((OR($F$7=0,$F$7="none")),IF(AG64=0,,IF(OR($E$7='Customer Info'!$D$21,$E$7=0),AG64,(AG64/$E$7)*'Customer Info'!$D$21)),) -> 0 | AX64: 0 | AY64: 0 | AZ64: =IF(E64="plate waste",,IF('Customer Info'!$M$18=0,'Log Sheet'!AY64,'Customer Info'!$M$18*'Log Sheet'!AY64)) -> 0 | BA64: =IF(E64="plate waste",IF(OR(C64="patient",C64="patient beverages"),IF('Customer Info'!$M$27=0,AY64*'Customer Info'!$M$18,AY64*'Customer Info'!$M$27),IF(C64="cafeteria",IF('Customer Info'!$M$28=0,AY64*'Customer Info'!$M$18,AY64*'Customer Info'!$M$28),IF(C64="other1",IF('Customer Info'!$M$29=0,AY64*'Customer Info'!$M$18,AY64*'Customer Info'!$M$29),))),) -> 0 | BB64: 0 | BC64: =IF($F$4="lunch",IF(S64=0,,(S64/$E$5)*'Customer Info'!$D$18),) -> 0 | BD64: =IF($F$4="dinner",IF(T64=0,,(T64/$E$6)*'Customer Info'!$D$18),) -> 0 | BE64: =IF($F$4="other",IF(U64=0,,(U64/$E$7)*'Customer Info'!$D$18),) -> 0 | BF64: 0 | BG64: =IF($F$5="breakfast",IF(R64=0,,(R64/$E$4)*'Customer Info'!$D$19),) -> 0 | BH64: =IF($F$5="dinner",IF(T64=0,,(T64/$E$6)*'Customer Info'!$D$19),) -> 0 | BI64: =IF($F$5="other",IF(U64=0,,(U64/$E$7)*'Customer Info'!$D$19),) -> 0 | BJ64: 0 | BK64: =IF($F$6="breakfast",IF(R64=0,,(R64/$E$4)*'Customer Info'!$D$20),) -> 0 | BL64: =IF($F$6="lunch",IF(S64=0,,(S64/$E$5)*'Customer Info'!$D$20),) -> 0 | BM64: =IF($F$6="other",IF(U64=0,,(U64/$E$7)*'Customer Info'!$D$20),) -> 0 | BN64: 0 | BO64: =IF($F$7="breakfast",IF(R64=0,,(R64/$E$4)*'Customer Info'!$D$21),) -> 0 | BP64: =IF($F$7="lunch",IF(S64=0,,(S64/$E$5)*'Customer Info'!$D$21),) -> 0 | BQ64: =IF($F$7="dinner",IF(T64=0,,(T64/$E$6)*'Customer Info'!$D$21),) -> 0 | BR64: 0 | BS64: =IF($F$10="lunch",IF(W64=0,,(W64/$E$11)*'Customer Info'!$F$18),) -> 0 | BT64: =IF($F$10="dinner",IF(X64=0,,(X64/$E$12)*'Customer Info'!$F$18),) -> 0 | BU64: =IF($F$10="other",IF(Y64=0,,(Y64/$E$13)*'Customer Info'!$F$18),) -> 0 | BV64: 0 | BW64: =IF($F$11="breakfast",IF(V64=0,,(V64/$E$10)*'Customer Info'!$F$19),) -> 0 | BX64: =IF($F$11="dinner",IF(X64=0,,(X64/$E$12)*'Customer Info'!$F$19),) -> 0 | BY64: =IF($F$11="other",IF(Y64=0,,(Y64/$E$13)*'Customer Info'!$F$19),) -> 0 | BZ64: 0 | CA64: =IF($F$12="breakfast",IF(V64=0,,(V64/$E$10)*'Customer Info'!$F$20),) -> 0 | CB64: =IF($F$12="lunch",IF(W64=0,,(W64/$E$11)*'Customer Info'!$F$20),) -> 0 | CC64: =IF($F$12="other",IF(Y64=0,,(Y64/$E$13)*'Customer Info'!$F$20),) -> 0 | CD64: 0 | CE64: =IF($F$13="breakfast",IF(V64=0,,(V64/$E$10)*'Customer Info'!$F$21),) -> 0 | CF64: =IF($F$13="lunch",IF(W64=0,,(W64/$E$11)*'Customer Info'!$F$21),) -> 0 | CG64: =IF($F$13="dinner",IF(X64=0,,(X64/$E$12)*'Customer Info'!$F$21),) -> 0 | CH64: 0 | CI64: =IF($F$16="lunch",IF(AA64=0,,(AA64/$E$17)*'Customer Info'!$H$18),) -> 0 | CJ64: =IF($F$16="dinner",IF(AB64=0,,(AB64/$E$18)*'Customer Info'!$H$18),) -> 0 | CK64: =IF($F$16="other",IF(AC64=0,,(AC64/$E$19)*'Customer Info'!$H$18),) -> 0 | CL64: 0 | CM64: =IF($F$17="breakfast",IF(Z64=0,,(Z64/$E$16)*'Customer Info'!$H$19),) -> 0 | CN64: =IF($F$17="dinner",IF(AB64=0,,(AB64/$E$18)*'Customer Info'!$H$19),) -> 0 | CO64: =IF($F$17="other",IF(AC64=0,,(AC64/$E$19)*'Customer Info'!$H$19),) -> 0 | CP64: 0 | CQ64: =IF($F$18="breakfast",IF(Z64=0,,(Z64/$E$16)*'Customer Info'!$H$20),) -> 0 | CR64: =IF($F$18="lunch",IF(AA64=0,,(AA64/$E$17)*'Customer Info'!$H$20),) -> 0 | CS64: =IF($F$18="other",IF(AC64=0,,(AC64/$E$19)*'Customer Info'!$H$20),) -> 0 | CT64: 0 | CU64: =IF($F$19="breakfast",IF(Z64=0,,(Z64/$E$16)*'Customer Info'!$H$21),) -> 0 | CV64: =IF($F$19="lunch",IF(AA64=0,,(AA64/$E$17)*'Customer Info'!$H$21),) -> 0 | CW64: =IF($F$19="dinner",IF(AB64=0,,(AB64/$E$18)*'Customer Info'!$H$21),) -> 0 | CX64: 0 | CY64: 0 | CZ64: 0 | DA64: 0 | DB64: 0
K65: 0 | L65: 0 | M65: 0 | N65: 0 | O65: 0 | P65: 0 | Q65: 0 | R65: 0 | S65: 0 | T65: 0 | U65: 0 | V65: 0 | W65: 0 | X65: 0 | Y65: 0 | Z65: 0 | AA65: 0 | AB65: 0 | AC65: 0 | AD65: 0 | AE65: 0 | AF65: 0 | AG65: 0 | AH65: =IF((OR($F$4=0,$F$4="none")),IF(R65=0,,IF(OR($E$4='Customer Info'!$D$18,$E$4=0),R65,(R65/$E$4)*'Customer Info'!$D$18)),) -> 0 | AI65: =IF((OR($F$5=0,$F$5="none")),IF(S65=0,,IF(OR($E$5='Customer Info'!$D$18,$E$5=0),S65,(S65/$E$5)*'Customer Info'!$D$19)),) -> 0 | AJ65: =IF((OR($F$6=0,$F$6="none")),IF(T65=0,,IF(OR($E$6='Customer Info'!$D$18,$E$6=0),T65,(T65/$E$6)*'Customer Info'!$D$20)),) -> 0 | AK65: =IF((OR($F$7=0,$F$7="none")),IF(U65=0,,IF(OR($E$7='Customer Info'!$D$18,$E$7=0),U65,(U65/$E$7)*'Customer Info'!$D$21)),) -> 0 | AL65: =IF((OR($F$10=0,$F$10="none")),IF(V65=0,,IF(OR($E$10='Customer Info'!$F$18,$E$10=0),V65,(V65/$E$10)*'Customer Info'!$F$18)),) -> 0 | AM65: =IF((OR($F$11=0,$F$11="none")),IF(W65=0,,IF(OR($E$11='Customer Info'!$F$19,$E$11=0),W65,(W65/$E$11)*'Customer Info'!$F$19)),) -> 0 | AN65: =IF((OR($F$12=0,$F$12="none")),IF(X65=0,,IF(OR($E$12='Customer Info'!$F$20,$E$12=0),X65,(X65/$E$12)*'Customer Info'!$F$20)),) -> 0 | AO65: =IF((OR($F$13=0,$F$13="none")),IF(Y65=0,,IF(OR($E$13='Customer Info'!$F$21,$E$13=0),Y65,(Y65/$E$13)*'Customer Info'!$F$21)),) -> 0 | AP65: =IF((OR($F$16=0,$F$16="none")),IF(Z65=0,,IF(OR($E$16='Customer Info'!$H$18,$E$16=0),Z65,(Z65/$E$16)*'Customer Info'!$H$18)),) -> 0 | AQ65: =IF((OR($F$17=0,$F$17="none")),IF(AA65=0,,IF(OR($E$17='Customer Info'!$H$19,$E$17=0),AA65,(AA65/$E$17)*'Customer Info'!$H$19)),) -> 0 | AR65: =IF((OR($F$18=0,$F$18="none")),IF(AB65=0,,IF(OR($E$18='Customer Info'!$H$20,$E$18=0),AB65,(AB65/$E$18)*'Customer Info'!$H$20)),) -> 0 | AS65: =IF((OR($F$19=0,$F$19="none")),IF(AC65=0,,IF(OR($E$19='Customer Info'!$H$21,$E$19=0),AC65,(AC65/$E$19)*'Customer Info'!$H$21)),) -> 0 | AT65: =IF((OR($F$4=0,$F$4="none")),IF(AD65=0,,IF(OR($E$4='Customer Info'!$D$18,$E$4=0),AD65,(AD65/$E$4)*'Customer Info'!$D$18)),) -> 0 | AU65: =IF((OR($F$5=0,$F$5="none")),IF(AE65=0,,IF(OR($E$5='Customer Info'!$D$19,$E$5=0),AE65,(AE65/$E$5)*'Customer Info'!$D$19)),) -> 0 | AV65: =IF((OR($F$6=0,$F$6="none")),IF(AF65=0,,IF(OR($E$6='Customer Info'!$D$20,$E$6=0),AF65,(AF65/$E$6)*'Customer Info'!$D$20)),) -> 0 | AW65: =IF((OR($F$7=0,$F$7="none")),IF(AG65=0,,IF(OR($E$7='Customer Info'!$D$21,$E$7=0),AG65,(AG65/$E$7)*'Customer Info'!$D$21)),) -> 0 | AX65: 0 | AY65: 0 | AZ65: =IF(E65="plate waste",,IF('Customer Info'!$M$18=0,'Log Sheet'!AY65,'Customer Info'!$M$18*'Log Sheet'!AY65)) -> 0 | BA65: =IF(E65="plate waste",IF(OR(C65="patient",C65="patient beverages"),IF('Customer Info'!$M$27=0,AY65*'Customer Info'!$M$18,AY65*'Customer Info'!$M$27),IF(C65="cafeteria",IF('Customer Info'!$M$28=0,AY65*'Customer Info'!$M$18,AY65*'Customer Info'!$M$28),IF(C65="other1",IF('Customer Info'!$M$29=0,AY65*'Customer Info'!$M$18,AY65*'Customer Info'!$M$29),))),) -> 0 | BB65: 0 | BC65: =IF($F$4="lunch",IF(S65=0,,(S65/$E$5)*'Customer Info'!$D$18),) -> 0 | BD65: =IF($F$4="dinner",IF(T65=0,,(T65/$E$6)*'Customer Info'!$D$18),) -> 0 | BE65: =IF($F$4="other",IF(U65=0,,(U65/$E$7)*'Customer Info'!$D$18),) -> 0 | BF65: 0 | BG65: =IF($F$5="breakfast",IF(R65=0,,(R65/$E$4)*'Customer Info'!$D$19),) -> 0 | BH65: =IF($F$5="dinner",IF(T65=0,,(T65/$E$6)*'Customer Info'!$D$19),) -> 0 | BI65: =IF($F$5="other",IF(U65=0,,(U65/$E$7)*'Customer Info'!$D$19),) -> 0 | BJ65: 0 | BK65: =IF($F$6="breakfast",IF(R65=0,,(R65/$E$4)*'Customer Info'!$D$20),) -> 0 | BL65: =IF($F$6="lunch",IF(S65=0,,(S65/$E$5)*'Customer Info'!$D$20),) -> 0 | BM65: =IF($F$6="other",IF(U65=0,,(U65/$E$7)*'Customer Info'!$D$20),) -> 0 | BN65: 0 | BO65: =IF($F$7="breakfast",IF(R65=0,,(R65/$E$4)*'Customer Info'!$D$21),) -> 0 | BP65: =IF($F$7="lunch",IF(S65=0,,(S65/$E$5)*'Customer Info'!$D$21),) -> 0 | BQ65: =IF($F$7="dinner",IF(T65=0,,(T65/$E$6)*'Customer Info'!$D$21),) -> 0 | BR65: 0 | BS65: =IF($F$10="lunch",IF(W65=0,,(W65/$E$11)*'Customer Info'!$F$18),) -> 0 | BT65: =IF($F$10="dinner",IF(X65=0,,(X65/$E$12)*'Customer Info'!$F$18),) -> 0 | BU65: =IF($F$10="other",IF(Y65=0,,(Y65/$E$13)*'Customer Info'!$F$18),) -> 0 | BV65: 0 | BW65: =IF($F$11="breakfast",IF(V65=0,,(V65/$E$10)*'Customer Info'!$F$19),) -> 0 | BX65: =IF($F$11="dinner",IF(X65=0,,(X65/$E$12)*'Customer Info'!$F$19),) -> 0 | BY65: =IF($F$11="other",IF(Y65=0,,(Y65/$E$13)*'Customer Info'!$F$19),) -> 0 | BZ65: 0 | CA65: =IF($F$12="breakfast",IF(V65=0,,(V65/$E$10)*'Customer Info'!$F$20),) -> 0 | CB65: =IF($F$12="lunch",IF(W65=0,,(W65/$E$11)*'Customer Info'!$F$20),) -> 0 | CC65: =IF($F$12="other",IF(Y65=0,,(Y65/$E$13)*'Customer Info'!$F$20),) -> 0 | CD65: 0 | CE65: =IF($F$13="breakfast",IF(V65=0,,(V65/$E$10)*'Customer Info'!$F$21),) -> 0 | CF65: =IF($F$13="lunch",IF(W65=0,,(W65/$E$11)*'Customer Info'!$F$21),) -> 0 | CG65: =IF($F$13="dinner",IF(X65=0,,(X65/$E$12)*'Customer Info'!$F$21),) -> 0 | CH65: 0 | CI65: =IF($F$16="lunch",IF(AA65=0,,(AA65/$E$17)*'Customer Info'!$H$18),) -> 0 | CJ65: =IF($F$16="dinner",IF(AB65=0,,(AB65/$E$18)*'Customer Info'!$H$18),) -> 0 | CK65: =IF($F$16="other",IF(AC65=0,,(AC65/$E$19)*'Customer Info'!$H$18),) -> 0 | CL65: 0 | CM65: =IF($F$17="breakfast",IF(Z65=0,,(Z65/$E$16)*'Customer Info'!$H$19),) -> 0 | CN65: =IF($F$17="dinner",IF(AB65=0,,(AB65/$E$18)*'Customer Info'!$H$19),) -> 0 | CO65: =IF($F$17="other",IF(AC65=0,,(AC65/$E$19)*'Customer Info'!$H$19),) -> 0 | CP65: 0 | CQ65: =IF($F$18="breakfast",IF(Z65=0,,(Z65/$E$16)*'Customer Info'!$H$20),) -> 0 | CR65: =IF($F$18="lunch",IF(AA65=0,,(AA65/$E$17)*'Customer Info'!$H$20),) -> 0 | CS65: =IF($F$18="other",IF(AC65=0,,(AC65/$E$19)*'Customer Info'!$H$20),) -> 0 | CT65: 0 | CU65: =IF($F$19="breakfast",IF(Z65=0,,(Z65/$E$16)*'Customer Info'!$H$21),) -> 0 | CV65: =IF($F$19="lunch",IF(AA65=0,,(AA65/$E$17)*'Customer Info'!$H$21),) -> 0 | CW65: =IF($F$19="dinner",IF(AB65=0,,(AB65/$E$18)*'Customer Info'!$H$21),) -> 0 | CX65: 0 | CY65: 0 | CZ65: 0 | DA65: 0 | DB65: 0
K66: 0 | L66: 0 | M66: 0 | N66: 0 | O66: 0 | P66: 0 | Q66: 0 | R66: 0 | S66: 0 | T66: 0 | U66: 0 | V66: 0 | W66: 0 | X66: 0 | Y66: 0 | Z66: 0 | AA66: 0 | AB66: 0 | AC66: 0 | AD66: 0 | AE66: 0 | AF66: 0 | AG66: 0 | AH66: =IF((OR($F$4=0,$F$4="none")),IF(R66=0,,IF(OR($E$4='Customer Info'!$D$18,$E$4=0),R66,(R66/$E$4)*'Customer Info'!$D$18)),) -> 0 | AI66: =IF((OR($F$5=0,$F$5="none")),IF(S66=0,,IF(OR($E$5='Customer Info'!$D$18,$E$5=0),S66,(S66/$E$5)*'Customer Info'!$D$19)),) -> 0 | AJ66: =IF((OR($F$6=0,$F$6="none")),IF(T66=0,,IF(OR($E$6='Customer Info'!$D$18,$E$6=0),T66,(T66/$E$6)*'Customer Info'!$D$20)),) -> 0 | AK66: =IF((OR($F$7=0,$F$7="none")),IF(U66=0,,IF(OR($E$7='Customer Info'!$D$18,$E$7=0),U66,(U66/$E$7)*'Customer Info'!$D$21)),) -> 0 | AL66: =IF((OR($F$10=0,$F$10="none")),IF(V66=0,,IF(OR($E$10='Customer Info'!$F$18,$E$10=0),V66,(V66/$E$10)*'Customer Info'!$F$18)),) -> 0 | AM66: =IF((OR($F$11=0,$F$11="none")),IF(W66=0,,IF(OR($E$11='Customer Info'!$F$19,$E$11=0),W66,(W66/$E$11)*'Customer Info'!$F$19)),) -> 0 | AN66: =IF((OR($F$12=0,$F$12="none")),IF(X66=0,,IF(OR($E$12='Customer Info'!$F$20,$E$12=0),X66,(X66/$E$12)*'Customer Info'!$F$20)),) -> 0 | AO66: =IF((OR($F$13=0,$F$13="none")),IF(Y66=0,,IF(OR($E$13='Customer Info'!$F$21,$E$13=0),Y66,(Y66/$E$13)*'Customer Info'!$F$21)),) -> 0 | AP66: =IF((OR($F$16=0,$F$16="none")),IF(Z66=0,,IF(OR($E$16='Customer Info'!$H$18,$E$16=0),Z66,(Z66/$E$16)*'Customer Info'!$H$18)),) -> 0 | AQ66: =IF((OR($F$17=0,$F$17="none")),IF(AA66=0,,IF(OR($E$17='Customer Info'!$H$19,$E$17=0),AA66,(AA66/$E$17)*'Customer Info'!$H$19)),) -> 0 | AR66: =IF((OR($F$18=0,$F$18="none")),IF(AB66=0,,IF(OR($E$18='Customer Info'!$H$20,$E$18=0),AB66,(AB66/$E$18)*'Customer Info'!$H$20)),) -> 0 | AS66: =IF((OR($F$19=0,$F$19="none")),IF(AC66=0,,IF(OR($E$19='Customer Info'!$H$21,$E$19=0),AC66,(AC66/$E$19)*'Customer Info'!$H$21)),) -> 0 | AT66: =IF((OR($F$4=0,$F$4="none")),IF(AD66=0,,IF(OR($E$4='Customer Info'!$D$18,$E$4=0),AD66,(AD66/$E$4)*'Customer Info'!$D$18)),) -> 0 | AU66: =IF((OR($F$5=0,$F$5="none")),IF(AE66=0,,IF(OR($E$5='Customer Info'!$D$19,$E$5=0),AE66,(AE66/$E$5)*'Customer Info'!$D$19)),) -> 0 | AV66: =IF((OR($F$6=0,$F$6="none")),IF(AF66=0,,IF(OR($E$6='Customer Info'!$D$20,$E$6=0),AF66,(AF66/$E$6)*'Customer Info'!$D$20)),) -> 0 | AW66: =IF((OR($F$7=0,$F$7="none")),IF(AG66=0,,IF(OR($E$7='Customer Info'!$D$21,$E$7=0),AG66,(AG66/$E$7)*'Customer Info'!$D$21)),) -> 0 | AX66: 0 | AY66: 0 | AZ66: =IF(E66="plate waste",,IF('Customer Info'!$M$18=0,'Log Sheet'!AY66,'Customer Info'!$M$18*'Log Sheet'!AY66)) -> 0 | BA66: =IF(E66="plate waste",IF(OR(C66="patient",C66="patient beverages"),IF('Customer Info'!$M$27=0,AY66*'Customer Info'!$M$18,AY66*'Customer Info'!$M$27),IF(C66="cafeteria",IF('Customer Info'!$M$28=0,AY66*'Customer Info'!$M$18,AY66*'Customer Info'!$M$28),IF(C66="other1",IF('Customer Info'!$M$29=0,AY66*'Customer Info'!$M$18,AY66*'Customer Info'!$M$29),))),) -> 0 | BB66: 0 | BC66: =IF($F$4="lunch",IF(S66=0,,(S66/$E$5)*'Customer Info'!$D$18),) -> 0 | BD66: =IF($F$4="dinner",IF(T66=0,,(T66/$E$6)*'Customer Info'!$D$18),) -> 0 | BE66: =IF($F$4="other",IF(U66=0,,(U66/$E$7)*'Customer Info'!$D$18),) -> 0 | BF66: 0 | BG66: =IF($F$5="breakfast",IF(R66=0,,(R66/$E$4)*'Customer Info'!$D$19),) -> 0 | BH66: =IF($F$5="dinner",IF(T66=0,,(T66/$E$6)*'Customer Info'!$D$19),) -> 0 | BI66: =IF($F$5="other",IF(U66=0,,(U66/$E$7)*'Customer Info'!$D$19),) -> 0 | BJ66: 0 | BK66: =IF($F$6="breakfast",IF(R66=0,,(R66/$E$4)*'Customer Info'!$D$20),) -> 0 | BL66: =IF($F$6="lunch",IF(S66=0,,(S66/$E$5)*'Customer Info'!$D$20),) -> 0 | BM66: =IF($F$6="other",IF(U66=0,,(U66/$E$7)*'Customer Info'!$D$20),) -> 0 | BN66: 0 | BO66: =IF($F$7="breakfast",IF(R66=0,,(R66/$E$4)*'Customer Info'!$D$21),) -> 0 | BP66: =IF($F$7="lunch",IF(S66=0,,(S66/$E$5)*'Customer Info'!$D$21),) -> 0 | BQ66: =IF($F$7="dinner",IF(T66=0,,(T66/$E$6)*'Customer Info'!$D$21),) -> 0 | BR66: 0 | BS66: =IF($F$10="lunch",IF(W66=0,,(W66/$E$11)*'Customer Info'!$F$18),) -> 0 | BT66: =IF($F$10="dinner",IF(X66=0,,(X66/$E$12)*'Customer Info'!$F$18),) -> 0 | BU66: =IF($F$10="other",IF(Y66=0,,(Y66/$E$13)*'Customer Info'!$F$18),) -> 0 | BV66: 0 | BW66: =IF($F$11="breakfast",IF(V66=0,,(V66/$E$10)*'Customer Info'!$F$19),) -> 0 | BX66: =IF($F$11="dinner",IF(X66=0,,(X66/$E$12)*'Customer Info'!$F$19),) -> 0 | BY66: =IF($F$11="other",IF(Y66=0,,(Y66/$E$13)*'Customer Info'!$F$19),) -> 0 | BZ66: 0 | CA66: =IF($F$12="breakfast",IF(V66=0,,(V66/$E$10)*'Customer Info'!$F$20),) -> 0 | CB66: =IF($F$12="lunch",IF(W66=0,,(W66/$E$11)*'Customer Info'!$F$20),) -> 0 | CC66: =IF($F$12="other",IF(Y66=0,,(Y66/$E$13)*'Customer Info'!$F$20),) -> 0 | CD66: 0 | CE66: =IF($F$13="breakfast",IF(V66=0,,(V66/$E$10)*'Customer Info'!$F$21),) -> 0 | CF66: =IF($F$13="lunch",IF(W66=0,,(W66/$E$11)*'Customer Info'!$F$21),) -> 0 | CG66: =IF($F$13="dinner",IF(X66=0,,(X66/$E$12)*'Customer Info'!$F$21),) -> 0 | CH66: 0 | CI66: =IF($F$16="lunch",IF(AA66=0,,(AA66/$E$17)*'Customer Info'!$H$18),) -> 0 | CJ66: =IF($F$16="dinner",IF(AB66=0,,(AB66/$E$18)*'Customer Info'!$H$18),) -> 0 | CK66: =IF($F$16="other",IF(AC66=0,,(AC66/$E$19)*'Customer Info'!$H$18),) -> 0 | CL66: 0 | CM66: =IF($F$17="breakfast",IF(Z66=0,,(Z66/$E$16)*'Customer Info'!$H$19),) -> 0 | CN66: =IF($F$17="dinner",IF(AB66=0,,(AB66/$E$18)*'Customer Info'!$H$19),) -> 0 | CO66: =IF($F$17="other",IF(AC66=0,,(AC66/$E$19)*'Customer Info'!$H$19),) -> 0 | CP66: 0 | CQ66: =IF($F$18="breakfast",IF(Z66=0,,(Z66/$E$16)*'Customer Info'!$H$20),) -> 0 | CR66: =IF($F$18="lunch",IF(AA66=0,,(AA66/$E$17)*'Customer Info'!$H$20),) -> 0 | CS66: =IF($F$18="other",IF(AC66=0,,(AC66/$E$19)*'Customer Info'!$H$20),) -> 0 | CT66: 0 | CU66: =IF($F$19="breakfast",IF(Z66=0,,(Z66/$E$16)*'Customer Info'!$H$21),) -> 0 | CV66: =IF($F$19="lunch",IF(AA66=0,,(AA66/$E$17)*'Customer Info'!$H$21),) -> 0 | CW66: =IF($F$19="dinner",IF(AB66=0,,(AB66/$E$18)*'Customer Info'!$H$21),) -> 0 | CX66: 0 | CY66: 0 | CZ66: 0 | DA66: 0 | DB66: 0
K67: 0 | L67: 0 | M67: 0 | N67: 0 | O67: 0 | P67: 0 | Q67: 0 | R67: 0 | S67: 0 | T67: 0 | U67: 0 | V67: 0 | W67: 0 | X67: 0 | Y67: 0 | Z67: 0 | AA67: 0 | AB67: 0 | AC67: 0 | AD67: 0 | AE67: 0 | AF67: 0 | AG67: 0 | AH67: =IF((OR($F$4=0,$F$4="none")),IF(R67=0,,IF(OR($E$4='Customer Info'!$D$18,$E$4=0),R67,(R67/$E$4)*'Customer Info'!$D$18)),) -> 0 | AI67: =IF((OR($F$5=0,$F$5="none")),IF(S67=0,,IF(OR($E$5='Customer Info'!$D$18,$E$5=0),S67,(S67/$E$5)*'Customer Info'!$D$19)),) -> 0 | AJ67: =IF((OR($F$6=0,$F$6="none")),IF(T67=0,,IF(OR($E$6='Customer Info'!$D$18,$E$6=0),T67,(T67/$E$6)*'Customer Info'!$D$20)),) -> 0 | AK67: =IF((OR($F$7=0,$F$7="none")),IF(U67=0,,IF(OR($E$7='Customer Info'!$D$18,$E$7=0),U67,(U67/$E$7)*'Customer Info'!$D$21)),) -> 0 | AL67: =IF((OR($F$10=0,$F$10="none")),IF(V67=0,,IF(OR($E$10='Customer Info'!$F$18,$E$10=0),V67,(V67/$E$10)*'Customer Info'!$F$18)),) -> 0 | AM67: =IF((OR($F$11=0,$F$11="none")),IF(W67=0,,IF(OR($E$11='Customer Info'!$F$19,$E$11=0),W67,(W67/$E$11)*'Customer Info'!$F$19)),) -> 0 | AN67: =IF((OR($F$12=0,$F$12="none")),IF(X67=0,,IF(OR($E$12='Customer Info'!$F$20,$E$12=0),X67,(X67/$E$12)*'Customer Info'!$F$20)),) -> 0 | AO67: =IF((OR($F$13=0,$F$13="none")),IF(Y67=0,,IF(OR($E$13='Customer Info'!$F$21,$E$13=0),Y67,(Y67/$E$13)*'Customer Info'!$F$21)),) -> 0 | AP67: =IF((OR($F$16=0,$F$16="none")),IF(Z67=0,,IF(OR($E$16='Customer Info'!$H$18,$E$16=0),Z67,(Z67/$E$16)*'Customer Info'!$H$18)),) -> 0 | AQ67: =IF((OR($F$17=0,$F$17="none")),IF(AA67=0,,IF(OR($E$17='Customer Info'!$H$19,$E$17=0),AA67,(AA67/$E$17)*'Customer Info'!$H$19)),) -> 0 | AR67: =IF((OR($F$18=0,$F$18="none")),IF(AB67=0,,IF(OR($E$18='Customer Info'!$H$20,$E$18=0),AB67,(AB67/$E$18)*'Customer Info'!$H$20)),) -> 0 | AS67: =IF((OR($F$19=0,$F$19="none")),IF(AC67=0,,IF(OR($E$19='Customer Info'!$H$21,$E$19=0),AC67,(AC67/$E$19)*'Customer Info'!$H$21)),) -> 0 | AT67: =IF((OR($F$4=0,$F$4="none")),IF(AD67=0,,IF(OR($E$4='Customer Info'!$D$18,$E$4=0),AD67,(AD67/$E$4)*'Customer Info'!$D$18)),) -> 0 | AU67: =IF((OR($F$5=0,$F$5="none")),IF(AE67=0,,IF(OR($E$5='Customer Info'!$D$19,$E$5=0),AE67,(AE67/$E$5)*'Customer Info'!$D$19)),) -> 0 | AV67: =IF((OR($F$6=0,$F$6="none")),IF(AF67=0,,IF(OR($E$6='Customer Info'!$D$20,$E$6=0),AF67,(AF67/$E$6)*'Customer Info'!$D$20)),) -> 0 | AW67: =IF((OR($F$7=0,$F$7="none")),IF(AG67=0,,IF(OR($E$7='Customer Info'!$D$21,$E$7=0),AG67,(AG67/$E$7)*'Customer Info'!$D$21)),) -> 0 | AX67: 0 | AY67: 0 | AZ67: =IF(E67="plate waste",,IF('Customer Info'!$M$18=0,'Log Sheet'!AY67,'Customer Info'!$M$18*'Log Sheet'!AY67)) -> 0 | BA67: =IF(E67="plate waste",IF(OR(C67="patient",C67="patient beverages"),IF('Customer Info'!$M$27=0,AY67*'Customer Info'!$M$18,AY67*'Customer Info'!$M$27),IF(C67="cafeteria",IF('Customer Info'!$M$28=0,AY67*'Customer Info'!$M$18,AY67*'Customer Info'!$M$28),IF(C67="other1",IF('Customer Info'!$M$29=0,AY67*'Customer Info'!$M$18,AY67*'Customer Info'!$M$29),))),) -> 0 | BB67: 0 | BC67: =IF($F$4="lunch",IF(S67=0,,(S67/$E$5)*'Customer Info'!$D$18),) -> 0 | BD67: =IF($F$4="dinner",IF(T67=0,,(T67/$E$6)*'Customer Info'!$D$18),) -> 0 | BE67: =IF($F$4="other",IF(U67=0,,(U67/$E$7)*'Customer Info'!$D$18),) -> 0 | BF67: 0 | BG67: =IF($F$5="breakfast",IF(R67=0,,(R67/$E$4)*'Customer Info'!$D$19),) -> 0 | BH67: =IF($F$5="dinner",IF(T67=0,,(T67/$E$6)*'Customer Info'!$D$19),) -> 0 | BI67: =IF($F$5="other",IF(U67=0,,(U67/$E$7)*'Customer Info'!$D$19),) -> 0 | BJ67: 0 | BK67: =IF($F$6="breakfast",IF(R67=0,,(R67/$E$4)*'Customer Info'!$D$20),) -> 0 | BL67: =IF($F$6="lunch",IF(S67=0,,(S67/$E$5)*'Customer Info'!$D$20),) -> 0 | BM67: =IF($F$6="other",IF(U67=0,,(U67/$E$7)*'Customer Info'!$D$20),) -> 0 | BN67: 0 | BO67: =IF($F$7="breakfast",IF(R67=0,,(R67/$E$4)*'Customer Info'!$D$21),) -> 0 | BP67: =IF($F$7="lunch",IF(S67=0,,(S67/$E$5)*'Customer Info'!$D$21),) -> 0 | BQ67: =IF($F$7="dinner",IF(T67=0,,(T67/$E$6)*'Customer Info'!$D$21),) -> 0 | BR67: 0 | BS67: =IF($F$10="lunch",IF(W67=0,,(W67/$E$11)*'Customer Info'!$F$18),) -> 0 | BT67: =IF($F$10="dinner",IF(X67=0,,(X67/$E$12)*'Customer Info'!$F$18),) -> 0 | BU67: =IF($F$10="other",IF(Y67=0,,(Y67/$E$13)*'Customer Info'!$F$18),) -> 0 | BV67: 0 | BW67: =IF($F$11="breakfast",IF(V67=0,,(V67/$E$10)*'Customer Info'!$F$19),) -> 0 | BX67: =IF($F$11="dinner",IF(X67=0,,(X67/$E$12)*'Customer Info'!$F$19),) -> 0 | BY67: =IF($F$11="other",IF(Y67=0,,(Y67/$E$13)*'Customer Info'!$F$19),) -> 0 | BZ67: 0 | CA67: =IF($F$12="breakfast",IF(V67=0,,(V67/$E$10)*'Customer Info'!$F$20),) -> 0 | CB67: =IF($F$12="lunch",IF(W67=0,,(W67/$E$11)*'Customer Info'!$F$20),) -> 0 | CC67: =IF($F$12="other",IF(Y67=0,,(Y67/$E$13)*'Customer Info'!$F$20),) -> 0 | CD67: 0 | CE67: =IF($F$13="breakfast",IF(V67=0,,(V67/$E$10)*'Customer Info'!$F$21),) -> 0 | CF67: =IF($F$13="lunch",IF(W67=0,,(W67/$E$11)*'Customer Info'!$F$21),) -> 0 | CG67: =IF($F$13="dinner",IF(X67=0,,(X67/$E$12)*'Customer Info'!$F$21),) -> 0 | CH67: 0 | CI67: =IF($F$16="lunch",IF(AA67=0,,(AA67/$E$17)*'Customer Info'!$H$18),) -> 0 | CJ67: =IF($F$16="dinner",IF(AB67=0,,(AB67/$E$18)*'Customer Info'!$H$18),) -> 0 | CK67: =IF($F$16="other",IF(AC67=0,,(AC67/$E$19)*'Customer Info'!$H$18),) -> 0 | CL67: 0 | CM67: =IF($F$17="breakfast",IF(Z67=0,,(Z67/$E$16)*'Customer Info'!$H$19),) -> 0 | CN67: =IF($F$17="dinner",IF(AB67=0,,(AB67/$E$18)*'Customer Info'!$H$19),) -> 0 | CO67: =IF($F$17="other",IF(AC67=0,,(AC67/$E$19)*'Customer Info'!$H$19),) -> 0 | CP67: 0 | CQ67: =IF($F$18="breakfast",IF(Z67=0,,(Z67/$E$16)*'Customer Info'!$H$20),) -> 0 | CR67: =IF($F$18="lunch",IF(AA67=0,,(AA67/$E$17)*'Customer Info'!$H$20),) -> 0 | CS67: =IF($F$18="other",IF(AC67=0,,(AC67/$E$19)*'Customer Info'!$H$20),) -> 0 | CT67: 0 | CU67: =IF($F$19="breakfast",IF(Z67=0,,(Z67/$E$16)*'Customer Info'!$H$21),) -> 0 | CV67: =IF($F$19="lunch",IF(AA67=0,,(AA67/$E$17)*'Customer Info'!$H$21),) -> 0 | CW67: =IF($F$19="dinner",IF(AB67=0,,(AB67/$E$18)*'Customer Info'!$H$21),) -> 0 | CX67: 0 | CY67: 0 | CZ67: 0 | DA67: 0 | DB67: 0
K68: 0 | L68: 0 | M68: 0 | N68: 0 | O68: 0 | P68: 0 | Q68: 0 | R68: 0 | S68: 0 | T68: 0 | U68: 0 | V68: 0 | W68: 0 | X68: 0 | Y68: 0 | Z68: 0 | AA68: 0 | AB68: 0 | AC68: 0 | AD68: 0 | AE68: 0 | AF68: 0 | AG68: 0 | AH68: =IF((OR($F$4=0,$F$4="none")),IF(R68=0,,IF(OR($E$4='Customer Info'!$D$18,$E$4=0),R68,(R68/$E$4)*'Customer Info'!$D$18)),) -> 0 | AI68: =IF((OR($F$5=0,$F$5="none")),IF(S68=0,,IF(OR($E$5='Customer Info'!$D$18,$E$5=0),S68,(S68/$E$5)*'Customer Info'!$D$19)),) -> 0 | AJ68: =IF((OR($F$6=0,$F$6="none")),IF(T68=0,,IF(OR($E$6='Customer Info'!$D$18,$E$6=0),T68,(T68/$E$6)*'Customer Info'!$D$20)),) -> 0 | AK68: =IF((OR($F$7=0,$F$7="none")),IF(U68=0,,IF(OR($E$7='Customer Info'!$D$18,$E$7=0),U68,(U68/$E$7)*'Customer Info'!$D$21)),) -> 0 | AL68: =IF((OR($F$10=0,$F$10="none")),IF(V68=0,,IF(OR($E$10='Customer Info'!$F$18,$E$10=0),V68,(V68/$E$10)*'Customer Info'!$F$18)),) -> 0 | AM68: =IF((OR($F$11=0,$F$11="none")),IF(W68=0,,IF(OR($E$11='Customer Info'!$F$19,$E$11=0),W68,(W68/$E$11)*'Customer Info'!$F$19)),) -> 0 | AN68: =IF((OR($F$12=0,$F$12="none")),IF(X68=0,,IF(OR($E$12='Customer Info'!$F$20,$E$12=0),X68,(X68/$E$12)*'Customer Info'!$F$20)),) -> 0 | AO68: =IF((OR($F$13=0,$F$13="none")),IF(Y68=0,,IF(OR($E$13='Customer Info'!$F$21,$E$13=0),Y68,(Y68/$E$13)*'Customer Info'!$F$21)),) -> 0 | AP68: =IF((OR($F$16=0,$F$16="none")),IF(Z68=0,,IF(OR($E$16='Customer Info'!$H$18,$E$16=0),Z68,(Z68/$E$16)*'Customer Info'!$H$18)),) -> 0 | AQ68: =IF((OR($F$17=0,$F$17="none")),IF(AA68=0,,IF(OR($E$17='Customer Info'!$H$19,$E$17=0),AA68,(AA68/$E$17)*'Customer Info'!$H$19)),) -> 0 | AR68: =IF((OR($F$18=0,$F$18="none")),IF(AB68=0,,IF(OR($E$18='Customer Info'!$H$20,$E$18=0),AB68,(AB68/$E$18)*'Customer Info'!$H$20)),) -> 0 | AS68: =IF((OR($F$19=0,$F$19="none")),IF(AC68=0,,IF(OR($E$19='Customer Info'!$H$21,$E$19=0),AC68,(AC68/$E$19)*'Customer Info'!$H$21)),) -> 0 | AT68: =IF((OR($F$4=0,$F$4="none")),IF(AD68=0,,IF(OR($E$4='Customer Info'!$D$18,$E$4=0),AD68,(AD68/$E$4)*'Customer Info'!$D$18)),) -> 0 | AU68: =IF((OR($F$5=0,$F$5="none")),IF(AE68=0,,IF(OR($E$5='Customer Info'!$D$19,$E$5=0),AE68,(AE68/$E$5)*'Customer Info'!$D$19)),) -> 0 | AV68: =IF((OR($F$6=0,$F$6="none")),IF(AF68=0,,IF(OR($E$6='Customer Info'!$D$20,$E$6=0),AF68,(AF68/$E$6)*'Customer Info'!$D$20)),) -> 0 | AW68: =IF((OR($F$7=0,$F$7="none")),IF(AG68=0,,IF(OR($E$7='Customer Info'!$D$21,$E$7=0),AG68,(AG68/$E$7)*'Customer Info'!$D$21)),) -> 0 | AX68: 0 | AY68: 0 | AZ68: =IF(E68="plate waste",,IF('Customer Info'!$M$18=0,'Log Sheet'!AY68,'Customer Info'!$M$18*'Log Sheet'!AY68)) -> 0 | BA68: =IF(E68="plate waste",IF(OR(C68="patient",C68="patient beverages"),IF('Customer Info'!$M$27=0,AY68*'Customer Info'!$M$18,AY68*'Customer Info'!$M$27),IF(C68="cafeteria",IF('Customer Info'!$M$28=0,AY68*'Customer Info'!$M$18,AY68*'Customer Info'!$M$28),IF(C68="other1",IF('Customer Info'!$M$29=0,AY68*'Customer Info'!$M$18,AY68*'Customer Info'!$M$29),))),) -> 0 | BB68: 0 | BC68: =IF($F$4="lunch",IF(S68=0,,(S68/$E$5)*'Customer Info'!$D$18),) -> 0 | BD68: =IF($F$4="dinner",IF(T68=0,,(T68/$E$6)*'Customer Info'!$D$18),) -> 0 | BE68: =IF($F$4="other",IF(U68=0,,(U68/$E$7)*'Customer Info'!$D$18),) -> 0 | BF68: 0 | BG68: =IF($F$5="breakfast",IF(R68=0,,(R68/$E$4)*'Customer Info'!$D$19),) -> 0 | BH68: =IF($F$5="dinner",IF(T68=0,,(T68/$E$6)*'Customer Info'!$D$19),) -> 0 | BI68: =IF($F$5="other",IF(U68=0,,(U68/$E$7)*'Customer Info'!$D$19),) -> 0 | BJ68: 0 | BK68: =IF($F$6="breakfast",IF(R68=0,,(R68/$E$4)*'Customer Info'!$D$20),) -> 0 | BL68: =IF($F$6="lunch",IF(S68=0,,(S68/$E$5)*'Customer Info'!$D$20),) -> 0 | BM68: =IF($F$6="other",IF(U68=0,,(U68/$E$7)*'Customer Info'!$D$20),) -> 0 | BN68: 0 | BO68: =IF($F$7="breakfast",IF(R68=0,,(R68/$E$4)*'Customer Info'!$D$21),) -> 0 | BP68: =IF($F$7="lunch",IF(S68=0,,(S68/$E$5)*'Customer Info'!$D$21),) -> 0 | BQ68: =IF($F$7="dinner",IF(T68=0,,(T68/$E$6)*'Customer Info'!$D$21),) -> 0 | BR68: 0 | BS68: =IF($F$10="lunch",IF(W68=0,,(W68/$E$11)*'Customer Info'!$F$18),) -> 0 | BT68: =IF($F$10="dinner",IF(X68=0,,(X68/$E$12)*'Customer Info'!$F$18),) -> 0 | BU68: =IF($F$10="other",IF(Y68=0,,(Y68/$E$13)*'Customer Info'!$F$18),) -> 0 | BV68: 0 | BW68: =IF($F$11="breakfast",IF(V68=0,,(V68/$E$10)*'Customer Info'!$F$19),) -> 0 | BX68: =IF($F$11="dinner",IF(X68=0,,(X68/$E$12)*'Customer Info'!$F$19),) -> 0 | BY68: =IF($F$11="other",IF(Y68=0,,(Y68/$E$13)*'Customer Info'!$F$19),) -> 0 | BZ68: 0 | CA68: =IF($F$12="breakfast",IF(V68=0,,(V68/$E$10)*'Customer Info'!$F$20),) -> 0 | CB68: =IF($F$12="lunch",IF(W68=0,,(W68/$E$11)*'Customer Info'!$F$20),) -> 0 | CC68: =IF($F$12="other",IF(Y68=0,,(Y68/$E$13)*'Customer Info'!$F$20),) -> 0 | CD68: 0 | CE68: =IF($F$13="breakfast",IF(V68=0,,(V68/$E$10)*'Customer Info'!$F$21),) -> 0 | CF68: =IF($F$13="lunch",IF(W68=0,,(W68/$E$11)*'Customer Info'!$F$21),) -> 0 | CG68: =IF($F$13="dinner",IF(X68=0,,(X68/$E$12)*'Customer Info'!$F$21),) -> 0 | CH68: 0 | CI68: =IF($F$16="lunch",IF(AA68=0,,(AA68/$E$17)*'Customer Info'!$H$18),) -> 0 | CJ68: =IF($F$16="dinner",IF(AB68=0,,(AB68/$E$18)*'Customer Info'!$H$18),) -> 0 | CK68: =IF($F$16="other",IF(AC68=0,,(AC68/$E$19)*'Customer Info'!$H$18),) -> 0 | CL68: 0 | CM68: =IF($F$17="breakfast",IF(Z68=0,,(Z68/$E$16)*'Customer Info'!$H$19),) -> 0 | CN68: =IF($F$17="dinner",IF(AB68=0,,(AB68/$E$18)*'Customer Info'!$H$19),) -> 0 | CO68: =IF($F$17="other",IF(AC68=0,,(AC68/$E$19)*'Customer Info'!$H$19),) -> 0 | CP68: 0 | CQ68: =IF($F$18="breakfast",IF(Z68=0,,(Z68/$E$16)*'Customer Info'!$H$20),) -> 0 | CR68: =IF($F$18="lunch",IF(AA68=0,,(AA68/$E$17)*'Customer Info'!$H$20),) -> 0 | CS68: =IF($F$18="other",IF(AC68=0,,(AC68/$E$19)*'Customer Info'!$H$20),) -> 0 | CT68: 0 | CU68: =IF($F$19="breakfast",IF(Z68=0,,(Z68/$E$16)*'Customer Info'!$H$21),) -> 0 | CV68: =IF($F$19="lunch",IF(AA68=0,,(AA68/$E$17)*'Customer Info'!$H$21),) -> 0 | CW68: =IF($F$19="dinner",IF(AB68=0,,(AB68/$E$18)*'Customer Info'!$H$21),) -> 0 | CX68: 0 | CY68: 0 | CZ68: 0 | DA68: 0 | DB68: 0
K69: 0 | L69: 0 | M69: 0 | N69: 0 | O69: 0 | P69: 0 | Q69: 0 | R69: 0 | S69: 0 | T69: 0 | U69: 0 | V69: 0 | W69: 0 | X69: 0 | Y69: 0 | Z69: 0 | AA69: 0 | AB69: 0 | AC69: 0 | AD69: 0 | AE69: 0 | AF69: 0 | AG69: 0 | AH69: =IF((OR($F$4=0,$F$4="none")),IF(R69=0,,IF(OR($E$4='Customer Info'!$D$18,$E$4=0),R69,(R69/$E$4)*'Customer Info'!$D$18)),) -> 0 | AI69: =IF((OR($F$5=0,$F$5="none")),IF(S69=0,,IF(OR($E$5='Customer Info'!$D$18,$E$5=0),S69,(S69/$E$5)*'Customer Info'!$D$19)),) -> 0 | AJ69: =IF((OR($F$6=0,$F$6="none")),IF(T69=0,,IF(OR($E$6='Customer Info'!$D$18,$E$6=0),T69,(T69/$E$6)*'Customer Info'!$D$20)),) -> 0 | AK69: =IF((OR($F$7=0,$F$7="none")),IF(U69=0,,IF(OR($E$7='Customer Info'!$D$18,$E$7=0),U69,(U69/$E$7)*'Customer Info'!$D$21)),) -> 0 | AL69: =IF((OR($F$10=0,$F$10="none")),IF(V69=0,,IF(OR($E$10='Customer Info'!$F$18,$E$10=0),V69,(V69/$E$10)*'Customer Info'!$F$18)),) -> 0 | AM69: =IF((OR($F$11=0,$F$11="none")),IF(W69=0,,IF(OR($E$11='Customer Info'!$F$19,$E$11=0),W69,(W69/$E$11)*'Customer Info'!$F$19)),) -> 0 | AN69: =IF((OR($F$12=0,$F$12="none")),IF(X69=0,,IF(OR($E$12='Customer Info'!$F$20,$E$12=0),X69,(X69/$E$12)*'Customer Info'!$F$20)),) -> 0 | AO69: =IF((OR($F$13=0,$F$13="none")),IF(Y69=0,,IF(OR($E$13='Customer Info'!$F$21,$E$13=0),Y69,(Y69/$E$13)*'Customer Info'!$F$21)),) -> 0 | AP69: =IF((OR($F$16=0,$F$16="none")),IF(Z69=0,,IF(OR($E$16='Customer Info'!$H$18,$E$16=0),Z69,(Z69/$E$16)*'Customer Info'!$H$18)),) -> 0 | AQ69: =IF((OR($F$17=0,$F$17="none")),IF(AA69=0,,IF(OR($E$17='Customer Info'!$H$19,$E$17=0),AA69,(AA69/$E$17)*'Customer Info'!$H$19)),) -> 0 | AR69: =IF((OR($F$18=0,$F$18="none")),IF(AB69=0,,IF(OR($E$18='Customer Info'!$H$20,$E$18=0),AB69,(AB69/$E$18)*'Customer Info'!$H$20)),) -> 0 | AS69: =IF((OR($F$19=0,$F$19="none")),IF(AC69=0,,IF(OR($E$19='Customer Info'!$H$21,$E$19=0),AC69,(AC69/$E$19)*'Customer Info'!$H$21)),) -> 0 | AT69: =IF((OR($F$4=0,$F$4="none")),IF(AD69=0,,IF(OR($E$4='Customer Info'!$D$18,$E$4=0),AD69,(AD69/$E$4)*'Customer Info'!$D$18)),) -> 0 | AU69: =IF((OR($F$5=0,$F$5="none")),IF(AE69=0,,IF(OR($E$5='Customer Info'!$D$19,$E$5=0),AE69,(AE69/$E$5)*'Customer Info'!$D$19)),) -> 0 | AV69: =IF((OR($F$6=0,$F$6="none")),IF(AF69=0,,IF(OR($E$6='Customer Info'!$D$20,$E$6=0),AF69,(AF69/$E$6)*'Customer Info'!$D$20)),) -> 0 | AW69: =IF((OR($F$7=0,$F$7="none")),IF(AG69=0,,IF(OR($E$7='Customer Info'!$D$21,$E$7=0),AG69,(AG69/$E$7)*'Customer Info'!$D$21)),) -> 0 | AX69: 0 | AY69: 0 | AZ69: =IF(E69="plate waste",,IF('Customer Info'!$M$18=0,'Log Sheet'!AY69,'Customer Info'!$M$18*'Log Sheet'!AY69)) -> 0 | BA69: =IF(E69="plate waste",IF(OR(C69="patient",C69="patient beverages"),IF('Customer Info'!$M$27=0,AY69*'Customer Info'!$M$18,AY69*'Customer Info'!$M$27),IF(C69="cafeteria",IF('Customer Info'!$M$28=0,AY69*'Customer Info'!$M$18,AY69*'Customer Info'!$M$28),IF(C69="other1",IF('Customer Info'!$M$29=0,AY69*'Customer Info'!$M$18,AY69*'Customer Info'!$M$29),))),) -> 0 | BB69: 0 | BC69: =IF($F$4="lunch",IF(S69=0,,(S69/$E$5)*'Customer Info'!$D$18),) -> 0 | BD69: =IF($F$4="dinner",IF(T69=0,,(T69/$E$6)*'Customer Info'!$D$18),) -> 0 | BE69: =IF($F$4="other",IF(U69=0,,(U69/$E$7)*'Customer Info'!$D$18),) -> 0 | BF69: 0 | BG69: =IF($F$5="breakfast",IF(R69=0,,(R69/$E$4)*'Customer Info'!$D$19),) -> 0 | BH69: =IF($F$5="dinner",IF(T69=0,,(T69/$E$6)*'Customer Info'!$D$19),) -> 0 | BI69: =IF($F$5="other",IF(U69=0,,(U69/$E$7)*'Customer Info'!$D$19),) -> 0 | BJ69: 0 | BK69: =IF($F$6="breakfast",IF(R69=0,,(R69/$E$4)*'Customer Info'!$D$20),) -> 0 | BL69: =IF($F$6="lunch",IF(S69=0,,(S69/$E$5)*'Customer Info'!$D$20),) -> 0 | BM69: =IF($F$6="other",IF(U69=0,,(U69/$E$7)*'Customer Info'!$D$20),) -> 0 | BN69: 0 | BO69: =IF($F$7="breakfast",IF(R69=0,,(R69/$E$4)*'Customer Info'!$D$21),) -> 0 | BP69: =IF($F$7="lunch",IF(S69=0,,(S69/$E$5)*'Customer Info'!$D$21),) -> 0 | BQ69: =IF($F$7="dinner",IF(T69=0,,(T69/$E$6)*'Customer Info'!$D$21),) -> 0 | BR69: 0 | BS69: =IF($F$10="lunch",IF(W69=0,,(W69/$E$11)*'Customer Info'!$F$18),) -> 0 | BT69: =IF($F$10="dinner",IF(X69=0,,(X69/$E$12)*'Customer Info'!$F$18),) -> 0 | BU69: =IF($F$10="other",IF(Y69=0,,(Y69/$E$13)*'Customer Info'!$F$18),) -> 0 | BV69: 0 | BW69: =IF($F$11="breakfast",IF(V69=0,,(V69/$E$10)*'Customer Info'!$F$19),) -> 0 | BX69: =IF($F$11="dinner",IF(X69=0,,(X69/$E$12)*'Customer Info'!$F$19),) -> 0 | BY69: =IF($F$11="other",IF(Y69=0,,(Y69/$E$13)*'Customer Info'!$F$19),) -> 0 | BZ69: 0 | CA69: =IF($F$12="breakfast",IF(V69=0,,(V69/$E$10)*'Customer Info'!$F$20),) -> 0 | CB69: =IF($F$12="lunch",IF(W69=0,,(W69/$E$11)*'Customer Info'!$F$20),) -> 0 | CC69: =IF($F$12="other",IF(Y69=0,,(Y69/$E$13)*'Customer Info'!$F$20),) -> 0 | CD69: 0 | CE69: =IF($F$13="breakfast",IF(V69=0,,(V69/$E$10)*'Customer Info'!$F$21),) -> 0 | CF69: =IF($F$13="lunch",IF(W69=0,,(W69/$E$11)*'Customer Info'!$F$21),) -> 0 | CG69: =IF($F$13="dinner",IF(X69=0,,(X69/$E$12)*'Customer Info'!$F$21),) -> 0 | CH69: 0 | CI69: =IF($F$16="lunch",IF(AA69=0,,(AA69/$E$17)*'Customer Info'!$H$18),) -> 0 | CJ69: =IF($F$16="dinner",IF(AB69=0,,(AB69/$E$18)*'Customer Info'!$H$18),) -> 0 | CK69: =IF($F$16="other",IF(AC69=0,,(AC69/$E$19)*'Customer Info'!$H$18),) -> 0 | CL69: 0 | CM69: =IF($F$17="breakfast",IF(Z69=0,,(Z69/$E$16)*'Customer Info'!$H$19),) -> 0 | CN69: =IF($F$17="dinner",IF(AB69=0,,(AB69/$E$18)*'Customer Info'!$H$19),) -> 0 | CO69: =IF($F$17="other",IF(AC69=0,,(AC69/$E$19)*'Customer Info'!$H$19),) -> 0 | CP69: 0 | CQ69: =IF($F$18="breakfast",IF(Z69=0,,(Z69/$E$16)*'Customer Info'!$H$20),) -> 0 | CR69: =IF($F$18="lunch",IF(AA69=0,,(AA69/$E$17)*'Customer Info'!$H$20),) -> 0 | CS69: =IF($F$18="other",IF(AC69=0,,(AC69/$E$19)*'Customer Info'!$H$20),) -> 0 | CT69: 0 | CU69: =IF($F$19="breakfast",IF(Z69=0,,(Z69/$E$16)*'Customer Info'!$H$21),) -> 0 | CV69: =IF($F$19="lunch",IF(AA69=0,,(AA69/$E$17)*'Customer Info'!$H$21),) -> 0 | CW69: =IF($F$19="dinner",IF(AB69=0,,(AB69/$E$18)*'Customer Info'!$H$21),) -> 0 | CX69: 0 | CY69: 0 | CZ69: 0 | DA69: 0 | DB69: 0
